{"text_format":"1","workbook":"xlsx","n_sheets":17,"sheets":["PORTADA","MENU","IVA","FACTOR","PREOPERATIVO","FACTORPIA","FIVA","ART5B","INPC","DIOT","PAIS","DPIVA","CFDIR","RPAGOSR","RESUMENCOPA","CLAVESPS","DATOS"],"not_rendered":{"charts":0,"images":31,"macros":1,"external_links":0,"defined_names":30,"comments":4,"pivot_tables":0},"unopened":[],"bounds":{"document_bytes":16777216,"sheet_cells":100000,"rows_first":2000,"rows_last":500,"rows_between":2000,"halvings":0,"cell_chars":16384,"cell_head_chars":4096},"cells_cut":0,"cells_raw":0,"read":"whole","date_system":"1900"}

{"sheet":"PORTADA","index":0,"n_rows":0,"n_cols":0,"rows_kept":0,"cut":false,"hidden":false,"merged":[[0,0,29,9]]}

{"sheet":"MENU","index":1,"n_rows":18,"n_cols":3,"rows_kept":18,"cut":false,"hidden":false,"merged":[]}
[]
[]
[]
[]
[null,"Tema","Hoja"]
[null,"Ejemplo determinación del IVA","IVA"]
[null,"Determinación del factor de prorrateo articulo 5 y 5-A LIVA","FACTOR"]
[null,"Factor de prorrateo articulo 5-B y contribuyentes que inicien actividades","FACTORPIA"]
[null,"Formato IVA","FIVA"]
[null,"Fundamento 5-B inicio de actividades","ART5B"]
[null,"Tabla INPC","INPC"]
[null,"Archivo TXT para DIOT","DIOT"]
[null,"Paises para DIOT","PAIS"]
[null,"DPIVA","DPIVA"]
[null,"Importar XML recibidos","CFDIR"]
[null,"Importar XML complemento de pagos recibidos","RPAGOSR"]
[null,"Resumen de CFDI recibidos","RESUMENCOPA"]
[null,"Catálogo claves producto y servicios","CLAVESPS"]

{"sheet":"IVA","index":2,"n_rows":25,"n_cols":16,"rows_kept":25,"cut":false,"hidden":false,"merged":[[1,3,1,4],[1,6,1,7]]}
[]
[null,null,null,"Las celdas de color",null,null,"contienen formulas"]
[]
[null,"Determinación de los pagos mensuales de IVA del ejercicio 2021"]
[]
[null,"No. de cuenta","Cuenta","Enero","Febrero","Marzo","Abril","Mayo","Junio","Julio","Agosto","Septiembre","Octubre","Noviembre","Diciembre","Acumulado"]
[null,null,"Base IVA exentos",null,null,null,null,"","","","","","","","",{"$f":"SUM(D7:O7)","v":0}]
[null,null,"Base IVA 0%",null,null,null,null,null,null,null,null,null,null,null,null,{"$f":"SUM(D8:O8)","v":0}]
[null,null,"Base IVA 8% frontera norte"]
[null,null,"Base IVA 16%",null,null,null,null,null,null,null,null,null,null,null,null,0]
[null,null,"Suma base IVA",{"$f":"SUM(D7:D10)","v":0},{"$f":"SUM(E7:E10)","v":0},0,0,0,0,0,0,0,0,0,0,{"$f":"SUM(D11:O11)","v":0}]
[null,null,"Suma base IVA 16%",{"$f":"D10","v":0},{"$f":"E10","v":0},0,0,0,0,0,0,0,0,0,0,{"$f":"SUM(D12:O12)","v":0}]
[null,"Más","IEPS causado"]
[null,"Igual","Total base IVA 16%",{"$f":"D12+D13","v":0},{"$f":"E12+E13","v":0},0,0,0,0,0,0,0,0,0,0,{"$f":"SUM(D14:O14)","v":0}]
[]
[null,null,"IVA TRASLADADO COBRADO",{"$f":"IFERROR(D12*0.16,0)","v":0},{"$f":"IFERROR(E12*0.16,0)","v":0},0,0,0,0,0,0,0,0,0,0,{"$f":"SUM(D16:O16)","v":0}]
[]
[null,null,"IVA ACREDITABLE PAGADO"]
[null,null,"IVA ACREDITABLE DE IMPORTACION"]
[]
[]
[null,"Igual","Saldo a favor",{"$f":"IFERROR(IF((D18+D19)>D16,SUM(D18:D19)-D16,\"\"),\"\")","v":""},{"$f":"IFERROR(IF((E18+E19)>E16,SUM(E18:E19)-E16,\"\"),\"\")","v":""},"","","","","","","","","",{"$f":"IFERROR(IF((O18+O19)>O16,SUM(O18:O19)-O16,\"\"),\"\")","v":""},{"$f":"SUM(D22:O22)","v":0}]
[null,"Igual","Saldo a cargo",{"$f":"IFERROR(IF(D16>=SUM(D18:D19),D16-SUM(D18:D19),\"\"),\"\")","v":0},{"$f":"IFERROR(IF(E16>=SUM(E18:E19),E16-SUM(E18:E19),\"\"),\"\")","v":0},0,0,0,0,0,0,0,0,0,0,0]
[null,"Menos:","Acreditamiento saldo a favor",null,null,null,null,null,null,null,null,null,null,null,null,0]
[null,"Igual:","IVA por pagar",{"$f":"IFERROR(D23-D24,\"\")","v":0},{"$f":"IFERROR(E23-E24,\"\")","v":0},0,0,0,0,0,0,0,0,0,0,0]

{"sheet":"FACTOR","index":3,"n_rows":60,"n_cols":9,"rows_kept":60,"cut":false,"hidden":false,"merged":[[6,8,7,8],[20,1,20,3],[1,1,1,2],[6,1,6,2],[16,3,17,3],[14,1,14,3]]}
[]
[null,"Determinación del factor de prorrateo articulo 5 y 5-A LIVA"]
[]
[null,"Año de ajuste",2021]
[null,"Mes de ajuste","Marzo"]
[]
[null,"Datos del activo",null,null,null,"(1)","Total de actividades gravadas",null,{"$f":"IFERROR(H7/H8,0)","v":0}]
[null,"Descripción","Maquinaria",null,null,null,"Total de actividades gravadas y exentas"]
[null,"Fecha de adquisición"]
[null,"MOI"]
[null,"% de deducción"]
[null,"IVA acreditable pagado",{"$f":"C10*0.16","v":0}]
[null,"Factor de prorrateo del año y mes de acreditamiento del IVA",{"$f":"I7","v":0},"(1)"]
[]
[null,{"$f":"\"Determinación del factor de prorrateo del mes de \" & C5 & \" de \"& C4","v":"Determinación del factor de prorrateo del mes de Marzo de 2021"}]
[]
[null,"Total de actividades gravadas",null,{"$f":"IFERROR(C17/C18,0)","v":0}]
[null,"Total de actividades gravadas y exentas"]
[]
[]
[null,"Determinación del ajuste"]
[]
[null,null,{"$f":"IFERROR(PROPER(TEXT(C9,\"MMMM\")) & \" \" & YEAR(C9),\"\")","v":"Enero 1900"}]
[null,{"$f":"IF(C8<>\"\",C8,\"No a capturado los datos\")","v":"Maquinaria"},{"$f":"IF(C10<>\"\",C10,\"\")","v":""}]
[null,{"$f":"IF(C12<>\"\",B12,\"No a capturado los datos\")","v":"IVA acreditable pagado"},{"$f":"IF(C12<>\"\",C12,\"\")","v":0}]
[]
[null,{"$f":"IF(C13<>\"\",B13,\"No a capturado los datos\")","v":"Factor de prorrateo del año y mes de acreditamiento del IVA"},{"$f":"IF(C13<>\"\",C13,\"\")","v":0},"(1)"]
[]
[null,{"$f":"IF(C27<>\"\",\"IVA acreditaple en proporción\")","v":"IVA acreditaple en proporción"},{"$f":"IFERROR(C25*C27,\"\")","v":0}]
[]
[null,null,null,null,{"$f":"C5&\" \" &C4","v":"Marzo 2021"}]
[]
[null,{"$f":"B25","v":"IVA acreditable pagado"},{"$f":"C25","v":0},null,{"$f":"C25","v":0}]
["(X)","% máximo de depreciación para ISR",{"$f":"C11","v":0},null,{"$f":"C34","v":0}]
["(=)","Monto obtenido inciso a)",{"$f":"IFERROR(C33*C34,\"\")","v":0},null,{"$f":"IFERROR(E33*E34,\"\")","v":0}]
[null,"Entre;",12,null,12]
["(=)","Resultado inciso b)",{"$f":"IFERROR(C35/C36,\"\")","v":0},null,{"$f":"IFERROR(E35/E36,\"\")","v":0}]
["(x)","Proporción de acreditamiento aplicada",{"$f":"C27","v":0},"(1)",{"$f":"IF(OR((C27-D17)>0.03,(D17-C27)>0.03),D17,0)","v":0}]
["(=)","Moto determinado inciso c)",{"$f":"IFERROR(C37*C38,\"\")","v":0}]
[null,"MONTO DETERMINADO INCISO d)",null,null,{"$f":"IFERROR(E37*E38,\"\")","v":0}]
[]
[]
[null,"IVA a reintegrarse derivado del ajuste"]
[null,{"$f":"B39","v":"Moto determinado inciso c)"},null,{"$f":"IF(C38>E38,C39,\"\")","v":""}]
["(-)","Monto determinado inciso d)",null,{"$f":"IF(C38>E38,E40,\"\")","v":""}]
["(=)","IVA a reintegrarse",null,{"$f":"IFERROR(D44-D45,\"\")","v":""}]
["(x)","Factor de actualización",null,{"$f":"IFERROR(IF((C48/C49)<1,1,TRUNC(C48/C49,4)),\"\")","v":""}]
[null,{"$f":"\"INPC \" & C5 & \" \"&C4","v":"INPC Marzo 2021"},{"$f":"IFERROR(IF(D44<>\"\",INDEX(TINPC,MATCH(C4,INPCA,0),MATCH(C5,INPCM,0)),\"\"),\"\")","v":""}]
[null,{"$f":"\"INPC \" & PROPER(TEXT(C9,\"MMMM\")) & \" \" & YEAR(C9)","v":"INPC Enero 1900"},{"$f":"IFERROR(IF(D44<>\"\",INDEX(TINPC,MATCH(YEAR(C9),INPCA,0),MATCH(PROPER(TEXT(C9,\"MMMM\")),INPCM,0)),\"\"),\"\")","v":""}]
[null,"IVA a reintegrarse actualizado (fracción I)",null,{"$f":"IFERROR(D46*D47,\"\")","v":""}]
[]
[]
[null,"IVA acreditable derivado del ajuste"]
[null,"Monto determinado inciso d)",null,{"$f":"IF(E38>C38,E40,\"\")","v":""}]
["(-)",{"$f":"B50","v":"IVA a reintegrarse actualizado (fracción I)"},null,{"$f":"IF(E38>C38,C39,\"\")","v":""}]
["(=)","IVA a acreditarse",null,{"$f":"IFERROR(D54-D55,\"\")","v":""}]
["(x)","Factor de actualización",null,{"$f":"IFERROR(IF((C58/C59)<1,1,TRUNC(C58/C59,4)),\"\")","v":""}]
[null,{"$f":"\"INPC \" & C5 & \" \"&C4","v":"INPC Marzo 2021"},{"$f":"IFERROR(IF(D54<>\"\",INDEX(TINPC,MATCH(C4,INPCA,0),MATCH(C5,INPCM,0)),\"\"),\"\")","v":""}]
[null,{"$f":"\"INPC \" & PROPER(TEXT(C9,\"MMMM\")) & \" \" & YEAR(C9)","v":"INPC Enero 1900"},{"$f":"IFERROR(IF(D54<>\"\",INDEX(TINPC,MATCH(YEAR(C9),INPCA,0),MATCH(PROPER(TEXT(C9,\"MMMM\")),INPCM,0)),\"\"),\"\")","v":""}]
[null,"IVA a acreditarse actualizado (fracción II)",null,{"$f":"IFERROR(D56*D57,\"\")","v":""}]

{"sheet":"PREOPERATIVO","index":4,"n_rows":36,"n_cols":12,"rows_kept":36,"cut":false,"hidden":false,"merged":[[28,5,29,5],[23,5,24,5]]}
[null,"Solo capture las celdas en color"]
[]
[null,"Fecha de inicio del periodo preoperativo"]
[null,"Fecha de inicio de actividades por la cual se presentara la primera declaración"]
[]
[null,"Año al que corresponde el periodo preoperativo","Mes periodo preoperativo","Gastos","IVA acreditable pagado","Inversiones","IVA acreditable pagado","Total de IVA acreditable pagado","INPC del periodo de pago","INPC de la primera declaración","Factor de actualización","Total del IVA acreditable actualizado"]
[null,"",{"$f":"IFERROR(IF(B7<>\"\",PROPER(TEXT(C3,\"MMMM\")),\"\"),\"\")","v":""},null,null,null,null,{"$f":"IF(C7<>\"\",E7+G7,\"\")","v":""},{"$f":"IFERROR(INDEX(TINPC,MATCH(B7,INPCA,0),MATCH(C7,INPCM,0)),\"\")","v":""},{"$f":"IFERROR(IF(C7<>\"\",INDEX(TINPC,MATCH(YEAR($C$4),INPCA,0),MATCH(TEXT(EOMONTH($C$4,1),\"MMMM\"),INPCM,0)),\"\"),\"\")","v":""},{"$f":"IFERROR(IF((J7/I7)<0,1,ROUND(J7/I7,4)),\"\")","v":""},{"$f":"IFERROR(IF(C7<>\"\",ROUND(H7*K7,2),\"\"),\"\")","v":""}]
[null,"",{"$f":"IFERROR(IF(B8<>\"\",IF(B8=B7,PROPER(TEXT(EOMONTH($C$3,ROW(B7)-6),\"MMMM\")),IF(B8<>B7,\"Enero\",\"\")),\"\"),\"\")","v":""},null,null,null,null,{"$f":"IF(C8<>\"\",E8+G8,\"\")","v":""},"","",{"$f":"IFERROR(IF((J8/I8)<0,1,ROUND(J8/I8,4)),\"\")","v":""},{"$f":"IFERROR(IF(C8<>\"\",ROUND(H8*K8,2),\"\"),\"\")","v":""}]
[null,"",{"$f":"IFERROR(IF(B9<>\"\",IF(B9=B8,PROPER(TEXT(EOMONTH($C$3,ROW(B8)-6),\"MMMM\")),IF(B9<>B8,\"Enero\",\"\")),\"\"),\"\")","v":""},null,null,null,null,"","","","",""]
[null,"","",null,null,null,null,"","","","",""]
[null,"","",null,null,null,null,"","","","",""]
[null,"","",null,null,null,null,"","","","",""]
[null,"","",null,null,null,null,"","","","",""]
[null,"","",null,null,null,null,"","","","",""]
[null,"","",null,null,null,null,"","","","",""]
[null,"","",null,null,null,null,"","","","",""]
[null,"","",null,null,null,null,"","","","",""]
[null,null,"Totales",{"$f":"SUM(D7:D17)","v":0},{"$f":"SUM(E7:E17)","v":0},0,0,0,null,null,null,{"$f":"SUM(L7:L17)","v":0}]
[]
[]
[]
[null,"Proporción determinada en el inicio de actividades"]
[]
[null,"Total de actividades gravadas en el periodo de inicio de actividades",null,null,null,{"$f":"IFERROR(E24/E25,0)","v":0}]
[null,"Total de actividades gravadas + exentas del periodo de inicio de actividedes"]
[]
[null,"Ajuste doceavo mes contado apartir del mes posterior siguiente al de inicio de actividades"]
[]
[null,"Total de actividades gravadas del periodo de ajuste",null,null,null,{"$f":"IFERROR(E29/E30,0)","v":0}]
[null,"Total de actividades gravadas y exentas del periodo de ajuste"]
[]
[]
[]
[]
[null,"Año","Mes en que se acredito o solicito la devoluciòn","IVA acreditado","IVA que se debió acreditar","IVA a reintegrar derivado del ajuste","IVA a acreditar derivado del ajuste","INPC en que se acredito o solicito la devolución","INPC del mes en que se presenta la declaraciòn del ajuste","Factor de actualizaciòn","IVA a reintegrar derivado del ajuste actualizado","IVA a acreditar derivado del ajues actualizado"]
[null,{"$f":"IF(C4<>\"\",YEAR(C4),\"\")","v":""},{"$f":"IF(C4<>\"\",PROPER(TEXT(C4,\"MMMM\")),\"\")","v":""},{"$f":"IF(L18>0,L18,\"\")","v":""},{"$f":"IF((F29-F24)>3%,L18*F29,\"\")","v":""},{"$f":"IFERROR(IF(AND((L18*F24)>(L18*F29),E36<>\"\"),(L18*F24)-(L18*F29),\"\"),\"\")","v":""},{"$f":"IFERROR(IF(AND((L18*F24)<(L18*F29),E36<>\"\"),(L18*F29)-(L18*F24),\"\"),\"\")","v":""},{"$f":"IFERROR(INDEX(TINPC,MATCH(B36,INPCA,0),MATCH(C36,INPCM,0)),\"\")","v":""},null,{"$f":"IFERROR(IF((I36/H36)<1,1,TRUNC(I36/H36,4)),\"\")","v":""},{"$f":"IFERROR(IF(F36<>\"\",F36*J36,\"\"),\"\")","v":""},{"$f":"IFERROR(IF(G36<>\"\",G36*J36,\"\"),\"\")","v":""}]

{"sheet":"FACTORPIA","index":5,"n_rows":114,"n_cols":12,"rows_kept":114,"cut":false,"hidden":false,"merged":[[79,1,79,3],[91,11,92,11],[96,1,96,2],[106,1,106,2],[5,3,5,7],[20,3,20,7],[52,2,52,3],[69,1,69,2],[67,1,67,2]]}
[]
[null,null,"Factor de prorrateo articulo 5-B contribuyentes que inicien actividades"]
[]
[null,null,"Año de inicio de actividades",2021]
[]
[null,null,null,"Actividades"]
[null,"Mes de inicio de actividades","Mes año de inicio de actividades","Al 0%","Al 16%","Total gravadas","Exentas","Total G+E"]
[null,null,"Enero",null,null,{"$f":"IFERROR(SUM(D8:E8),\"\")","v":0},null,{"$f":"SUMIF(F8:G8,\">0\")","v":0},{"$f":"IF(COUNTA($B$8:B8)=1,1+IF(I7<>\"\",I7,0),\"\")","v":""}]
[null,null,"Febrero",null,null,{"$f":"IFERROR(SUM(D9:E9),\"\")","v":0},null,{"$f":"SUMIF(F9:G9,\">0\")","v":0},{"$f":"IF(COUNTA($B$8:B9)=1,1+IF(I8<>\"\",I8,0),\"\")","v":""}]
[null,null,"Marzo",null,null,0,null,0,{"$f":"IF(COUNTA($B$8:B10)=1,1+IF(I9<>\"\",I9,0),\"\")","v":""}]
[null,null,"Abril",null,null,0,null,0,{"$f":"IF(COUNTA($B$8:B11)=1,1+IF(I10<>\"\",I10,0),\"\")","v":""}]
[null,null,"Mayo",null,null,0,null,0,{"$f":"IF(COUNTA($B$8:B12)=1,1+IF(I11<>\"\",I11,0),\"\")","v":""}]
[null,null,"Junio",null,null,0,null,0,{"$f":"IF(COUNTA($B$8:B13)=1,1+IF(I12<>\"\",I12,0),\"\")","v":""}]
[null,null,"Julio",null,null,0,null,0,{"$f":"IF(COUNTA($B$8:B14)=1,1+IF(I13<>\"\",I13,0),\"\")","v":""}]
[null,null,"Agosto",null,null,0,null,0,{"$f":"IF(COUNTA($B$8:B15)=1,1+IF(I14<>\"\",I14,0),\"\")","v":""}]
[null,null,"Septiembre",null,null,0,null,0,{"$f":"IF(COUNTA($B$8:B16)=1,1+IF(I15<>\"\",I15,0),\"\")","v":""}]
[null,null,"Octubre",null,null,0,null,0,{"$f":"IF(COUNTA($B$8:B17)=1,1+IF(I16<>\"\",I16,0),\"\")","v":""}]
[null,null,"Noviembre",null,null,0,null,0,{"$f":"IF(COUNTA($B$8:B18)=1,1+IF(I17<>\"\",I17,0),\"\")","v":""}]
[null,null,"Diciembre",null,null,0,null,0,{"$f":"IF(COUNTA($B$8:B19)=1,1+IF(I18<>\"\",I18,0),\"\")","v":""}]
[]
[null,null,null,"Actividades"]
[null,null,"Mes año siguiente de inicio de actividades","Al 0%","Al 16%","Total gravadas","Exentas","Total G+E"]
[null,null,"Enero",null,null,{"$f":"IFERROR(SUM(D23:E23),\"\")","v":0},null,{"$f":"SUMIF(F23:G23,\">0\")","v":0},{"$f":"IF(COUNTA($B$8:B23)=1,1+IF(I19<>\"\",I19,0),\"\")","v":""}]
[null,null,"Febrero",null,null,0,null,0,{"$f":"IF(COUNTA($B$8:B24)=1,1+IF(I23<>\"\",I23,0),\"\")","v":""}]
[null,null,"Marzo",null,null,0,null,0,{"$f":"IF(COUNTA($B$8:B25)=1,1+IF(I24<>\"\",I24,0),\"\")","v":""}]
[null,null,"Abril",null,null,0,null,0,{"$f":"IF(COUNTA($B$8:B26)=1,1+IF(I25<>\"\",I25,0),\"\")","v":""}]
[null,null,"Mayo",null,null,0,null,0,{"$f":"IF(COUNTA($B$8:B27)=1,1+IF(I26<>\"\",I26,0),\"\")","v":""}]
[null,null,"Junio",null,null,0,null,0,{"$f":"IF(COUNTA($B$8:B28)=1,1+IF(I27<>\"\",I27,0),\"\")","v":""}]
[null,null,"Julio",null,null,0,null,0,{"$f":"IF(COUNTA($B$8:B29)=1,1+IF(I28<>\"\",I28,0),\"\")","v":""}]
[null,null,"Agosto",null,null,0,null,0,{"$f":"IF(COUNTA($B$8:B30)=1,1+IF(I29<>\"\",I29,0),\"\")","v":""}]
[null,null,"Septiembre",null,null,0,null,0,{"$f":"IF(COUNTA($B$8:B31)=1,1+IF(I30<>\"\",I30,0),\"\")","v":""}]
[null,null,"Octubre",null,null,0,null,0,{"$f":"IF(COUNTA($B$8:B32)=1,1+IF(I31<>\"\",I31,0),\"\")","v":""}]
[null,null,"Noviembre",null,null,0,null,0,{"$f":"IF(COUNTA($B$8:B33)=1,1+IF(I32<>\"\",I32,0),\"\")","v":""}]
[null,null,"Diciembre",null,null,0,null,0,{"$f":"IF(COUNTA($B$8:B34)=1,1+IF(I33<>\"\",I33,0),\"\")","v":""}]
[]
[]
[]
[null,null,"Factor de prorrateo para compras y gastos "]
[]
[null,"Año de inicio","Mes del año de inicio de actividades","Factor"]
[null,{"$f":"IF($D$4<>\"\",$D$4,\"\")","v":2021},"Enero",{"$f":"IFERROR(TRUNC(SUM($F$8:F8)/SUM($H$8:H8),4),\"\")","v":""}]
[null,{"$f":"IF($D$4<>\"\",$D$4,\"\")","v":2021},"Febrero",{"$f":"IFERROR(TRUNC(SUM($F$8:F9)/SUM($H$8:H9),4),\"\")","v":""}]
[null,2021,"Marzo",{"$f":"IFERROR(TRUNC(SUM($F$8:F10)/SUM($H$8:H10),4),\"\")","v":""}]
[null,2021,"Abril",{"$f":"IFERROR(TRUNC(SUM($F$8:F11)/SUM($H$8:H11),4),\"\")","v":""}]
[null,2021,"Mayo",{"$f":"IFERROR(TRUNC(SUM($F$8:F12)/SUM($H$8:H12),4),\"\")","v":""}]
[null,2021,"Junio",{"$f":"IFERROR(TRUNC(SUM($F$8:F13)/SUM($H$8:H13),4),\"\")","v":""}]
[null,2021,"Julio",{"$f":"IFERROR(TRUNC(SUM($F$8:F14)/SUM($H$8:H14),4),\"\")","v":""}]
[null,2021,"Agosto",{"$f":"IFERROR(TRUNC(SUM($F$8:F15)/SUM($H$8:H15),4),\"\")","v":""}]
[null,2021,"Septiembre",{"$f":"IFERROR(TRUNC(SUM($F$8:F16)/SUM($H$8:H16),4),\"\")","v":""}]
[null,2021,"Octubre",{"$f":"IFERROR(TRUNC(SUM($F$8:F17)/SUM($H$8:H17),4),\"\")","v":""}]
[null,2021,"Noviembre",{"$f":"IFERROR(TRUNC(SUM($F$8:F18)/SUM($H$8:H18),4),\"\")","v":""}]
[null,2021,"Diciembre",{"$f":"IFERROR(TRUNC(SUM($F$8:F19)/SUM($H$8:H19),4),\"\")","v":""}]
[null,"Año de inicio","Mes año siguiente de inicio de actividades"]
[null,{"$f":"IF($D$4<>\"\",$D$4+1,\"\")","v":2022},"Enero",{"$f":"IFERROR(TRUNC(SUM($F$8:F23)/SUM($H$8:H23),4),\"\")","v":""}]
[null,{"$f":"IF($D$4<>\"\",$D$4+1,\"\")","v":2022},"Febrero",{"$f":"IFERROR(TRUNC(SUM($F$8:F24)/SUM($H$8:H24),4),\"\")","v":""}]
[null,2022,"Marzo",{"$f":"IFERROR(TRUNC(SUM($F$8:F25)/SUM($H$8:H25),4),\"\")","v":""}]
[null,2022,"Abril",{"$f":"IFERROR(TRUNC(SUM($F$8:F26)/SUM($H$8:H26),4),\"\")","v":""}]
[null,2022,"Mayo",{"$f":"IFERROR(TRUNC(SUM($F$8:F27)/SUM($H$8:H27),4),\"\")","v":""}]
[null,2022,"Junio",{"$f":"IFERROR(TRUNC(SUM($F$8:F28)/SUM($H$8:H28),4),\"\")","v":""}]
[null,2022,"Julio",{"$f":"IFERROR(TRUNC(SUM($F$8:F29)/SUM($H$8:H29),4),\"\")","v":""}]
[null,2022,"Agosto",{"$f":"IFERROR(TRUNC(SUM($F$8:F30)/SUM($H$8:H30),4),\"\")","v":""}]
[null,2022,"Septiembre",{"$f":"IFERROR(TRUNC(SUM($F$8:F31)/SUM($H$8:H31),4),\"\")","v":""}]
[null,2022,"Octubre",{"$f":"IFERROR(TRUNC(SUM($F$8:F32)/SUM($H$8:H32),4),\"\")","v":""}]
[null,2022,"Noviembre",{"$f":"IFERROR(TRUNC(SUM($F$8:F33)/SUM($H$8:H33),4),\"\")","v":""}]
[null,2022,"Diciembre",{"$f":"IFERROR(TRUNC(SUM($F$8:F34)/SUM($H$8:H34),4),\"\")","v":""}]
[]
[]
[null,"Ajuste doceavo mes solo para inversiones"]
[]
[null,"Datos del activo"]
[null,"Descripción"]
[null,"Fecha de adquisición"]
[null,"MOI"]
[null,"% de deducción"]
[null,"IVA acreditable pagado"]
[null,"Factor prorrateo"]
[]
[]
[]
[null,"Determinación del ajuste"]
[]
[null,null,{"$f":"IFERROR(PROPER(TEXT(C68,\"MMMM\")) & \" \" & YEAR(C68),\"\")","v":"Enero 1900"}]
[null,{"$f":"IF(C71<>\"\",C71,\"No a capturado los datos\")","v":"No a capturado los datos"},{"$f":"IF(C73<>\"\",C73,\"\")","v":""}]
[null,{"$f":"IF(C75<>\"\",B75,\"No a capturado los datos\")","v":"No a capturado los datos"},{"$f":"IF(C75<>\"\",C75,\"\")","v":""}]
[]
[null,{"$f":"IF(B76<>\"\",B76,\"No a capturado los datos\")","v":"Factor prorrateo"},{"$f":"IF(C76<>\"\",C76,\"\")","v":""}]
[]
[null,{"$f":"IF(C86<>\"\",\"IVA acreditaple en proporción\",\"\")","v":""},{"$f":"IFERROR(C84*C86,\"\")","v":""}]
[]
[null,null,"IVA acreditable aplicado de adquisición",null,"IVA acreditable en el mes de ajuste"]
[null,null,null,null,null,null,"(1)"]
[null,{"$f":"B84","v":"No a capturado los datos"},{"$f":"C84","v":""},null,{"$f":"C84","v":""},null,"Total de actividades gravadas del periodo de ajuste",null,null,null,{"$f":"SUMIFS(F8:F34,I8:I34,\">=1\",I8:I34,\"<=12\")","v":0},{"$f":"IFERROR(K92/K93,0)","v":0}]
["(X)","Factor de prorrateo",{"$f":"IFERROR(C86,\"\")","v":""},null,{"$f":"L92","v":0},"(1)","Total de actividades gravadas y exentas del periodo de ajuste",null,null,null,{"$f":"SUMIFS(H8:H34,I8:I34,\">=1\",I8:I34,\"<=12\")","v":0}]
["(=)","IVA que se acredito",{"$f":"IFERROR(C92*C93,\"\")","v":""},null,{"$f":"IFERROR(E92*E93,\"\")","v":""}]
[]
[]
[null,"IVA a reintegrarse derivado del ajuste (solo cuando varie en + 3%)"]
[null,"IVA acreditable en la fecha de adquisición",null,{"$f":"IFERROR(IF((C93-E93)>3%,C94,\"\"),\"\")","v":""}]
["(-)","IVA que se debio acreditar en el periodo del ajuste",null,{"$f":"IF(D98<>\"\",E94,\"\")","v":""}]
["(=)","IVA a reintegrarse",null,{"$f":"IFERROR(D98-D99,\"\")","v":""}]
["(x)","Factor de actualización",null,{"$f":"IFERROR(IF((C102/C103)<1,1,TRUNC(C102/C103,4)),\"\")","v":""}]
[null,{"$f":"IFERROR(\"INPC \" &VLOOKUP(11,CHOOSE({2,1},MESAJUSTE,AJUSTE),2,FALSE) & \" \"&D4+1,\"\")","v":""},{"$f":"IFERROR(IF(D100<>\"\",INDEX(TINPC,MATCH(D4+1,INPCA,0),MATCH(VLOOKUP(11,CHOOSE({2,1},MESAJUSTE,AJUSTE),2,FALSE),INPCM,0)),\"\"),\"\")","v":""}]
[null,{"$f":"\"INPC \" & PROPER(TEXT(C72,\"MMMM\")) & \" \" & YEAR(C72)","v":"INPC Enero 1900"},{"$f":"IFERROR(IF(D100<>\"\",INDEX(TINPC,MATCH(D4+1,INPCA,0),MATCH(PROPER(TEXT(C72,\"MMMM\")),INPCM,0)),\"\"),\"\")","v":""}]
[null,"IVA a reintegrarse actualizado (fracción I)",null,{"$f":"IFERROR(D100*D101,\"\")","v":""}]
[]
[]
[null,"IVA acreditable derivado del ajuste (solo cuando varie en + 3%)"]
[null,"IVA acreditable en la fecha de adquisición",null,{"$f":"IFERROR(IF((E93-C93)>3%,C94,\"\"),\"\")","v":""}]
["(-)","IVA que se debio acreditar en el periodo del ajuste",null,{"$f":"IF(D108<>\"\",E104,\"\")","v":""}]
["(=)","IVA a acreditarse",null,{"$f":"IFERROR(D108-D109,\"\")","v":""}]
["(x)","Factor de actualización",null,{"$f":"IFERROR(IF((C112/C113)<1,1,TRUNC(C112/C113,4)),\"\")","v":""}]
[null,{"$f":"IFERROR(\"INPC \" &VLOOKUP(11,CHOOSE({2,1},MESAJUSTE,AJUSTE),2,FALSE) & \" \"&D4+1,\"\")","v":""},{"$f":"IFERROR(IF(D110<>\"\",INDEX(TINPC,MATCH(D4+1,INPCA,0),MATCH(VLOOKUP(11,CHOOSE({2,1},MESAJUSTE,AJUSTE),2,FALSE),INPCM,0)),\"\"),\"\")","v":""}]
[null,{"$f":"\"INPC \" & PROPER(TEXT(C72,\"MMMM\")) & \" \" & YEAR(C72)","v":"INPC Enero 1900"},{"$f":"IFERROR(IF(D110<>\"\",INDEX(TINPC,MATCH(D4+1,INPCA,0),MATCH(PROPER(TEXT(C72,\"MMMM\")),INPCM,0)),\"\"),\"\")","v":""}]
[null,"IVA a acreditarse actualizado (fracción II)",null,{"$f":"IFERROR(D110*D111,\"\")","v":""}]

{"sheet":"FIVA","index":6,"n_rows":0,"n_cols":0,"rows_kept":0,"cut":false,"hidden":false,"merged":[]}

{"sheet":"ART5B","index":7,"n_rows":60,"n_cols":6,"rows_kept":60,"cut":false,"hidden":false,"merged":[[42,1,42,4],[41,3,41,4],[40,1,40,2],[40,3,40,4],[56,1,56,4],[57,1,57,4],[58,1,58,4],[50,3,50,4],[51,3,51,4],[52,3,52,4],[53,3,53,4],[54,3,54,4],[55,3,55,4],[52,1,52,2],[59,1,59,4],[43,1,43,4],[44,2,44,3],[45,2,45,3],[46,1,46,2],[46,3,46,4],[47,1,47,2],[47,3,47,4],[48,1,48,4],[49,1,49,2],[49,3,49,4],[50,1,50,2],[51,1,51,2],[53,1,53,2],[54,1,54,2],[55,1,55,2],[27,1,27,5],[22,1,22,5],[23,1,23,5],[24,1,24,5],[25,1,25,5],[26,1,26,5],[13,1,13,5],[14,2,14,4],[15,2,17,4],[18,1,18,3],[21,1,21,2],[21,3,21,5],[18,4,18,5],[19,1,19,3],[20,1,20,3],[19,4,19,5],[20,4,20,5],[41,1,41,2],[28,1,28,5],[29,1,29,5],[30,1,30,5],[31,1,31,5],[32,1,32,5],[34,1,34,5],[35,1,35,5],[36,1,36,5],[33,1,33,5],[39,1,39,4],[37,1,37,5],[38,1,38,5]]}
[]
[]
[]
[]
[]
[]
[]
[]
[]
[]
[]
[]
[]
[null,"9/IVA Informe de inicio de actividades"]
[null,"Trámite l","Descripción del trámite o servicio",null,null,"Monto"]
[null,"Servicio ¡","Informe para indicar la fecha en la que iniciaste tus actividades e identificar el mes en el que se deberá efectuar el ajuste del IVA acreditable por gastos e inversiones realizadas en el periodo preoperativo.",null,null,"l Gratuito "]
[null,null,null,null,null,"¡ Pago de derechos"]
[null,null,null,null,null,"Costo: "]
[null,"¿Quién puede solicitar el trámite o servicio?",null,null,"¿Cuándo se presenta?"]
[null,"·          Personas físicas y morales que en período preoperativo realicen gastos o inversiones.",null,null,"·          En el mes en el que iniciaste tus actividades en el caso que se trate de gastos o inversiones en período preoperativo y,"]
[null,"·          Personas físicas y morales que realicen inversiones una vez iniciadas sus actividades.",null,null,"·          Antes del doceavo mes al en que se deba realizar el ajuste en el caso de que se trate de inversiones realizadas una vez iniciadas sus actividades."]
[null,"¿Dónde puedo presentarlo?",null,"En el Portal del SAT: https://portalsat.plataforma.sat.gob.mx/SATAuthenticator/AuthLogin/showLogin.action "]
[null,"INFORMACIÓN PARA REALIZAR EL TRÁMITE O SERVICIO"]
[null,"¿Qué tengo que hacer para realizar el trámite o servicio?"]
[null,"1. Ingresa a la liga del apartado ¿Dónde puedo presentarlo?."]
[null,"2. Captura tu RFC y Contraseña seguido de Iniciar sesión."]
[null,"3. Selecciona las opciones Servicios por Internet/Servicio o solicitudes/ Solicitud."]
[null,"4. Llena los datos solicitados por el formulario electrónico Servicio de Aviso; en Trámite elige: 9/IVA INICIO DE ACTIVIDADES; en Asunto indica: Informe de Inicio de Actividades; en Descripción indica: Presentación del Informe de inicio de actividades, en términos de la ficha de trámite 9/IVA."]
[null,"5. Adjunta los archivos correspondientes con los documentos del trámite, eligiendo la opción Adjuntar Archivo / Examinar; la información deberá estar comprimida en formato ZIP, selecciona el botón Enviar."]
[null,"6. Imprime y conserva el acuse de recibo electrónico."]
[null,"¿Qué requisitos debo cumplir?"]
[null,"Adjunta archivo digitalizado con los documentos que acrediten el inicio de las actividades, que pueden ser los siguientes:"]
[null,"1. Reporte de los CFDI emitidos."]
[null,"2. Declaración en la que conste los ingresos obtenidos y el valor de actos o actividades realizados."]
[null,"3. Contratos celebrados con clientes."]
[null,"4. Estados de cuenta que reflejen la recepción de recursos por pagos derivados de las actividades realizadas."]
[null,"5. Documento que ampare el cumplimiento de la presentación de la contabilidad en medios electrónicos o a través de la aplicación Mis cuentas."]
[null,"¿Con qué condiciones debo cumplir?"]
[null,"Contar con Contraseña."]
[null,"SEGUIMIENTO Y RESOLUCIÓN DEL TRÁMITE O SERVICIO"]
[null,"¿Cómo puedo dar seguimiento al trámite o servicio?",null,"¿El SAT llevará a cabo alguna inspección o verificación para emitir la resolución de este trámite o servicio?"]
[null,"Trámite inmediato.",null,"No."]
[null,"Resolución del trámite o servicio"]
[null,"La autoridad validará la información presentada y en caso de cumplir con los requisitos solicitados se tendrá por presentado el informe."]
[null,"Plazo máximo para que el SAT resuelva el trámite o servicio","Plazo máximo para que el SAT solicite información adicional",null,"Plazo máximo para cumplir con la información solicitada"]
[null,"Trámite inmediato.","No aplica.",null,"No aplica."]
[null,"¿Qué documento obtengo al finalizar el trámite o servicio?",null,"¿Cuál es la vigencia del trámite o servicio?"]
[null,"Acuse de recibo.",null,"Indefinida."]
[null,"CANALES DE ATENCIÓN"]
[null,"Consultas y dudas",null,"Quejas y denuncias"]
[null,"·          MarcaSAT: 55-62-72-27-28 y 01-87-74-48-87-28 desde Estados Unidos y Canadá.",null,"·          Quejas y Denuncias SAT: 55-88-52-22-22 y 84-42-87-38-03 para otros países."]
[null,"·          Atención personal en las Oficinas del SAT ubicadas en diversas ciudades del país como se establece en la siguiente liga:",null,"·          Correo electrónico: denuncias@sat.gob.mx"]
[null,"https://www.sat.gob.mx/personas/directorio-nacional-de-modulos-de-servicios-tributarios",null,"·          SAT Móvil - Aplicación para celular, apartado Quejas y Denuncias."]
[null,"Los días y horarios siguientes: lunes a jueves de 8:30 a 16:00 hrs. y viernes de 8:30 a 15:00 hrs.",null,"·          En el Portal del SAT:"]
[null,"·          Vía Chat: http://chatsat.mx/ ",null,"https://www.sat.gob.mx/aplicacion/50409/presenta-tu-queja-o-denuncia"]
[null,null,null,"·          Teléfonos rojos ubicados en las Aduanas y las oficinas del SAT."]
[null,"Información adicional"]
[null,"No aplica."]
[null,"Fundamento jurídico"]
[null,"Artículos: 17-D del CFF; 5, 5-B de la LIVA; Regla 4.1.10. de la RMF."]

{"sheet":"INPC","index":8,"n_rows":51,"n_cols":15,"rows_kept":51,"cut":false,"hidden":false,"merged":[]}
[]
[null,"Tabla INPC nueva Base 2Q Julio 2018 = 100"]
[]
[null,"Año","Enero","Febrero","Marzo","Abril","Mayo","Junio","Julio","Agosto","Septiembre","Octubre","Noviembre","Diciembre","Año"]
[null,2022,118.002,118.98099999999999,120.15900000000001,120.809,121.02200000000001,122.044,122.94799999999999,123.803,null,null,null,null,2022]
[null,2021,110.21,110.907,111.824,112.19,112.419,113.018,113.682,113.899,114.601,115.56100000000001,116.884,117.30800000000001,2021]
[null,2020,106.447,106.889,106.83799999999999,105.755,106.16200000000001,106.74299999999999,107.444,107.867,108.114,108.774,108.85599999999999,109.271,2020]
[null,2019,103.108,103.07899999999999,103.476,103.53100000000001,103.233,103.29900000000001,103.687,103.67,103.94199999999999,104.503,105.346,105.934,2019]
[null,2018,98.794999699501005,99.171374481640001,99.492156980588007,99.154847046097004,98.994080173086999,99.376464931786998,99.909099104513999,100.492,100.917,101.44,102.303,103.02,2018]
[null,2017,93.603882444858996,94.144780335356998,94.722489332292,94.838932628162993,94.725494320571997,94.963639641805003,95.322735741331002,95.793767654305995,96.093515235290994,96.698269126750006,97.695173988822006,98.272882985755999,2017]
[null,2016,89.386381393112998,89.777781116653998,89.910000600998004,89.625277961416003,89.225614520102994,89.324027886291006,89.556914478034003,89.809333493598999,90.357743854798997,90.906154215998995,91.616833944348002,92.039034797764003,2016]
[null,2015,87.110102770598999,87.275377126028999,87.630716990203993,87.403840375022995,86.967365827272999,87.113107758880005,87.240819760803006,87.424875292986002,87.752419015566005,88.203918504718004,88.685467876675006,89.046817717411002,2015]
[null,2014,84.519051625699007,84.733157040687999,84.965292385360002,84.806779253561004,84.535579061242004,84.682072239918,84.914958831660996,85.219965142136004,85.596339924274005,86.069625578460005,86.763777871266001,87.188983712964003,2014]
[null,2013,80.892782018150001,81.290942965322003,81.887433139010994,81.941522928061005,81.668820241600997,81.619237934972006,81.592193040447,81.824328385119003,82.132339683875003,82.522988160346003,83.292265160165996,83.770058296773001,2013]
[null,2012,78.343049462107004,78.502313840976001,78.547388665184002,78.300979626179995,78.053819340104994,78.413666686699997,78.853897469800003,79.090540296892996,79.439118937436007,79.841036119959,80.383436504597995,80.568243283851004,2012]
[null,2011,75.295991345633993,75.578460244005001,75.723450928540998,75.717440951979995,75.159264378868997,75.155508143518006,75.516106737184003,75.635555021334994,75.821113047658997,76.332712302421996,77.158332832501998,77.792385359696993,2011]
[null,2010,72.552045976151007,72.971670511062001,73.489725492434005,73.255564640854004,72.793977652452,72.771183233271003,72.929190002590005,73.131749500306,73.515110186520999,73.968926350203006,74.561581248891997,74.930954450610002,2010]
[null,2009,69.456149407474001,69.609493681960004,70.009950182560999,70.254990188749005,70.050358471107998,70.179354161469007,70.370516449595002,70.538884318540994,70.892715870817995,71.107190633106001,71.476045779843005,71.771855174205001,2009]
[null,2008,65.350563680104003,65.544834298119,66.019890716036002,66.170126660633997,66.098635073205003,66.372168103369006,66.742059360067998,67.127492266209003,67.584934814760004,68.045485693200007,68.818941780386993,69.295552363249001,2008]
[null,2007,63.016207934043997,63.192346627710997,63.329113142792998,63.291295129151997,62.982534360255002,63.058170387535,63.326004812904003,63.583996193627002,64.077702590875006,64.327405091895997,64.781221255576995,65.049055680945997,2007]
[null,2006,60.603625885795999,60.696357727462001,60.772511809722999,60.861617266518998,60.590674511262002,60.642998064380002,60.809293713400997,61.119608647242003,61.736612130056002,62.006518775350997,62.331857303652001,62.692423570686003,2006]
[null,2005,58.309160373300998,58.503430991316002,58.767120976834001,58.976415189308,58.828251464635997,58.771783471665998,59.001799883395002,59.072255360862002,59.309006487348,59.454579937113998,59.882493351727,60.250312388501001,2005]
[null,2004,55.774317349450001,56.107944757452998,56.298070935616998,56.383031952562,56.241602942646999,56.331744509406001,56.479390179097003,56.828041181560003,57.297917049664001,57.694747165395,58.186899397696997,58.307088153376,2004]
[null,2003,53.525440675315998,53.674122454969996,54.012930412785998,54.105144199469997,53.930559670748998,53.975112399147001,54.053338701333999,54.215489910502001,54.538238163896999,54.738207386707003,55.192541605370003,55.429810786837997,2003]
[null,2002,50.900472009715998,50.867749849081001,51.127948444495999,51.407234972562001,51.511429231397997,51.762586176958997,51.911181353361997,52.108560301263999,52.421983564994001,52.653036086686001,53.078877281373998,53.309929803065003,2002]
[null,2001,48.575476247933999,48.543328159565,48.850887781723998,49.097308632382997,49.209970463624998,49.326363767191999,49.198201964029998,49.489687547186001,49.950381149771999,50.176135367754,50.365148908872001,50.434898785092997,2001]
[null,2000,44.930830116377997,45.329380314521998,45.580680782035003,45.840018271642002,46.011379073729003,46.283920241006001,46.464466209717997,46.719785188278003,47.061071604014998,47.385135825852998,47.790287862832997,48.307671180741004,2000]
[null,1999,40.469770280539997,41.013642812363997,41.394683783067002,41.774576609237002,42.02587707675,42.302006204759003,42.581579771548,42.821255256237997,43.235018392756999,43.508851226518999,43.895776447019998,44.335516388565999,1999]
[null,1998,34.003924110859998,34.599237843852997,35.004533397604,35.332042063402,35.613481363761998,36.034420411382001,36.381878110460001,36.731632103784001,37.327376387091,37.862268927258,38.532786225594002,39.472974324694,1998]
[null,1997,29.498886028859999,29.994598091509001,30.367889073663001,30.695971811728999,30.976119445603,31.250956912307998,31.523211040861,31.803502196688001,32.199612588994,32.456940823078,32.820042010843999,33.279874507621003,1997]
[null,1996,23.329753761294,23.874262028762001,24.399825880352999,25.093449617204001,25.550842302962,25.966901728547001,26.336030688063001,26.686071714930002,27.112751490396999,27.451167539621,27.867083448433998,28.759336453704002,1996]
[null,1995,15.376990944299999,16.028707348708998,16.973617202949999,18.326133255310999,19.092090190992,19.698024268685,20.099588355293999,20.432981265710001,20.855642530130002,21.284762116614999,21.809608384348,22.520167271192001,1995]
[null,1994,13.950374980567,14.022124062044,14.094224762979,14.163251304932,14.231682244252999,14.302894568965,14.366326769868,14.433286645443999,14.535936644548,14.612245304055,14.690360856448001,14.819204368158999,1994]
[null,1993,12.977319763866999,13.083345310799,13.159593689429,13.235480403514,13.311137489729999,13.385797123244,13.450123440421001,13.522112194855,13.622260672231,13.677973025024,13.738302356338,13.843054897126001,1993]
[null,1992,11.657778465389001,11.795900435066001,11.915947720289999,12.022171319641,12.101437891771999,12.183345192186,12.260272414519999,12.335592231401,12.442896524527001,12.532493537792,12.636620340687999,12.816553481441,1992]
[null,1991,9.8838798948009998,10.056424721909,10.199839643789,10.306687551197999,10.407441671111,10.516647583476001,10.609584269261999,10.683422977312,10.789850374312,10.915342738584,11.186374096785,11.449679866825999,1991]
[null,1990,7.7760373017279996,7.9521198537759998,8.0923099196599999,8.2154715493909993,8.3588376756719995,8.5429385894719996,8.6987348337260002,8.8469504416049993,8.9730613687050003,9.102059887647,9.3437231026759999,9.6382139538609994,1990]
[null,1989,6.349023792963,6.4351835425089998,6.5049448988289997,6.6022244447040004,6.6930987691499997,6.7743846367099998,6.8421482176049997,6.9073327757470002,6.9733927950019998,7.0765250152229999,7.175855437159,7.4180295787319999,1989]
[null,1988,4.7182459356499997,5.1117830400719999,5.3735474255859996,5.538940736801,5.6461086882159996,5.7612921365389997,5.857456543164,5.9113433427300004,5.9451390220790001,5.9904864830819999,6.0706543465480003,6.1973163857179996,1988]
[null,1987,1.7044012927959999,1.8273863901109999,1.948152699385,2.1186064597269998,2.2783250588419999,2.443145732803,2.641021526516,2.8568715486410001,3.0450813948030002,3.2988446335320001,3.560511422667,4.0863924586009999,1987]
[null,1986,0.83409223138499999,0.87117447743800003,0.91166671679400002,0.95926311145800003,1.0125700987090001,1.0775666443359999,1.131332892509,1.221531243274,1.2948116693730001,1.3688240294530001,1.4613043243420001,1.576734625864,1986]
[null,1985,0.50271144651599997,0.52359622178499998,0.54388539960299997,0.56062106216600005,0.57390224086300001,0.58827559343199998,0.60876282367000001,0.63537685186600001,0.66075231421400005,0.685852223117,0.71749512498900003,0.76634013058899997,1985]
[null,1984,0.31272771793199999,0.32923231761100002,0.34330428133399998,0.35815554998400001,0.370031685863,0.38342337604799998,0.39599270575599999,0.40724883861299999,0.419380437765,0.434033653997,0.44892941320899998,0.46799581549399999,1984]
[null,1983,0.18035508617400001,0.190033959196,0.19923204611199999,0.211845861202,0.22103390303199999,0.22940388942199999,0.240746133379,0.25009060709100001,0.25778749500499998,0.26634117851099998,0.28198323736800002,0.29404738058000002,1983]
[null,1982,8.5865535761999998E-2,8.9239653757999998E-2,9.2498950048999995E-2,9.7512043770000001E-2,0.10299300848700001,0.107954431404,0.11351720218399999,0.126255878884,0.132995499623,0.13989011723100001,0.14696269708699999,0.16265641638700001,1982]
[null,1981,6.5615113636999997E-2,6.7226824128999996E-2,6.8664872229000001E-2,7.0213436998999998E-2,7.1275470431999999E-2,7.2271488120999997E-2,7.3544494264999996E-2,7.5060048571000001E-2,7.6456481315000005E-2,7.8152867892999994E-2,7.9656936920999996E-2,8.1801099141000005E-2,1981]
[null,1980,5.1342222290000003E-2,5.2529117335E-2,5.3609811108999997E-2,5.4546982931999999E-2,5.5436799348999997E-2,5.6536148283E-2,5.8114848311E-2,5.9318963503999997E-2,5.9977717037999999E-2,6.0886183433999999E-2,6.1942481999000001E-2,6.3567107600999997E-2,1980]
[null,1979,4.2237421534000001E-2,4.2844504263000002E-2,4.3425751590999997E-2,4.3814686550000002E-2,4.4388763996000002E-2,4.4881030200999997E-2,4.5424962027999997E-2,4.6112415807999997E-2,4.6677878000999998E-2,4.7493063416999999E-2,4.8104451184000002E-2,4.8955511907000003E-2,1979]
[null,1978,3.5892480982999998E-2,3.6407712565E-2,3.6786597256000003E-2,3.7195627565999999E-2,3.7560162134E-2,3.8076828728000001E-2,3.8722661971000001E-2,3.9108726904000003E-2,3.9555067534000003E-2,4.0034418628000001E-2,4.0446313781999997E-2,4.0789323166000001E-2,1978]
[null,1977,3.0026891524999998E-2,3.0689944915999998E-2,3.1225266668999999E-2,3.1697442701999999E-2,3.1975866170999998E-2,3.2367671153000002E-2,3.2733645913999999E-2,3.3405309378E-2,3.3998041984999998E-2,3.4257810293999998E-2,3.4632389947999997E-2,3.5111741042000003E-2,1977]
[null,1976,2.3318846237999999E-2,2.3755141782E-2,2.3987639676999999E-2,2.4155556839E-2,2.4324909012E-2,2.4422500209000001E-2,2.4629167883E-2,2.4864535803E-2,2.5712731682000001E-2,2.7160830048999999E-2,2.8387910620000002E-2,2.9099759608E-2,1976]

{"sheet":"DIOT","index":9,"n_rows":9,"n_cols":25,"rows_kept":9,"cut":false,"hidden":false,"merged":[[0,1,0,22],[5,1,5,4],[6,1,6,4]]}
[]
[null,{"$f":"COUNTA(B10:B64999)","v":0}]
[]
[null,null,null,"Mes a generar",null,"Año a generar"]
[]
[]
[]
[null,"Campo 1","Campo 2","Campo 3","Campo 4","Campo 5","Campo 6","Campo 7","Campo 8","Campo 9","Campo 10","Campo 11","Campo 12","Campo 13","Campo 14","Campo 15","Campo 16","Campo 17","Campo 18","Campo 19","Campo 20","Campo 21","Campo 22","Campo 23","Campo 24"]
[null,"Tipo de Tercero","Tipo de Operación","RFC","                                                          Número de ID Fiscal","Nombre del Extranjero","País de de residencia","Nacionalidad","Valor de los actos o actividades pagados a la tasa del 15%  ó 16% de IVA","Valor de los actos o actividades pagados a la tasa del 15% de IVA","Monto del IVA pagado no acreditable a la tasa del 15% ó 16% (correspondiente en la proporcion de las deducciones autorizadas)","Valor de los actos o actividades pagados a la tasa del 10%  u 11%de IVA","Valor de los actos o actividades pagados a la tasa del 10% de IVA","Valor de los actos o actividades pagados sujeto al estimulo de la region fronteriza norte","Monto del IVA pagado no acreditable a la tasa del 10% u 11% (correspondiente en la proporcion de las deducciones autorizadas)","Monto del IVA pagado no acreditable sujeto al estimulo de la region fronteriza norte (correspondiente en la proporcion de las deducciones autorizadas)","Valor de los actos o actividades pagados en la importación de bienes y servicios a la tasa del 15% ó 16%de IVA","Monto del IVA pagado no acreditable por la importación a la tasa del 15% ó 16% (correspondiente en la proporcion de las deducciones autorizadas)","Valor de los actos o actividades pagados en la importación de bienes y servicios a la tasa del 10% u 11% de IVA","Monto del IVA pagado no acreditable por la importación a la tasa del 10% u 11% (Correspondiente en la proporcion de las deducciones autorizadas)","Valor de los actos o actividades pagados en la importación de bienes y servicios por los que no se pagará el IVA (Exentos)","Valor de los demás actos o actividades pagados a la tasa del 0% de IVA","Valor de los actos o actividades pagados por los que no se pagará el IVA (Exentos)","IVA Retenido por el contribuyente","IVA correspondiente a las devoluciones, descuentos y bonificaciones sobre compras"]

{"sheet":"PAIS","index":10,"n_rows":248,"n_cols":3,"rows_kept":248,"cut":false,"hidden":false,"merged":[[0,1,5,2]]}
[]
[]
[]
[]
[]
[]
[null,"Valor","Descripción"]
[null,0,"  "]
[null,"AD","AD - Principado de Andorra"]
[null,"AE","AE - Emiratos Arabes Unidos"]
[null,"AF","AF - Afganistán"]
[null,"AG","AG - Antigua y Bermuda"]
[null,"AI","AI - Isla Anguilla"]
[null,"AL","AL - República de Albania"]
[null,"AN","AN - Antillas Neerlandesas"]
[null,"AO","AO - República de Angola"]
[null,"AQ","AQ - Antártica"]
[null,"AR","AR - Argentina"]
[null,"AS","AS - Samoa Americana"]
[null,"AT","AT - Austria"]
[null,"AU","AU - Australia"]
[null,"AW","AW - Aruba"]
[null,"AX","AX - Ascensión"]
[null,"AZ","AZ - Islas Azores"]
[null,"BB","BB - Barbados"]
[null,"BD","BD - Bangladesh"]
[null,"BE","BE - Bélgica"]
[null,"BF","BF - Burkina Faso"]
[null,"BG","BG - Bulgaria"]
[null,"BH","BH - Estado de Bahrein"]
[null,"BI","BI - Burundi"]
[null,"BJ","BJ - Benin"]
[null,"BL","BL - Belice"]
[null,"BM","BM - Bermudas"]
[null,"BN","BN - Brunei Darussalam"]
[null,"BO","BO - Bolivia"]
[null,"BR","BR - Brasil"]
[null,"BS","BS - Commonwealth de las Bahamas"]
[null,"BT","BT - Buthan"]
[null,"BU","BU - Burma"]
[null,"BV","BV - Isla Bouvet"]
[null,"BW","BW - Botswana"]
[null,"BY","BY - Bielorrusia"]
[null,"CA","CA - Canadá"]
[null,"CC","CC - Isla de Cocos o Kelling"]
[null,"CD","CD - Islas Canarias"]
[null,"CE","CE - Isla de Christmas"]
[null,"CF","CF - República Centro Africana"]
[null,"CG","CG - Congo"]
[null,"CH","CH - Suiza"]
[null,"CI","CI - Costa de Marfil"]
[null,"CK","CK - Islas Cook"]
[null,"CL","CL - Chile"]
[null,"CM","CM - Camerún"]
[null,"CN","CN - China"]
[null,"CO","CO - Colombia"]
[null,"CP","CP - Campione D'Italia"]
[null,"CR","CR - República de Costa Rica"]
[null,"CS","CS - República Checa y República Eslovaca"]
[null,"CU","CU - Cuba"]
[null,"CV","CV - República de Cabo Verde"]
[null,"CX","CX - Isla de Navidad"]
[null,"CY","CY - República de Chipre"]
[null,"DD","DD - Alemania"]
[null,"DJ","DJ - República de Djibouti"]
[null,"DK","DK - Dinamarca"]
[null,"DM","DM - República Dominicana"]
[null,"DN","DN - Commonwealth de Dominica"]
[null,"DZ","DZ - Argelia"]
[null,"EC","EC - Ecuador"]
[null,"EG","EG - Egipto"]
[null,"EH","EH - Sahara del Oeste"]
[null,"EO","EO - Estado Independiente de Samoa Occidental"]
[null,"ES","ES - España"]
[null,"ET","ET - Etiopía"]
[null,"FI","FI - Finlandia"]
[null,"FJ","FJ - Fiji"]
[null,"FK","FK - Islas Malvinas"]
[null,"FM","FM - Micronesia"]
[null,"FO","FO - Islas Faroe"]
[null,"FR","FR - Francia"]
[null,"GA","GA - Gabón"]
[null,"GB","GB - Gran Bretaña (Reino Unido)"]
[null,"GD","GD - Granada"]
[null,"GF","GF - Guyana Francesa"]
[null,"GH","GH - Ghana"]
[null,"GI","GI - Gibraltar"]
[null,"GJ","GJ - Groenlandia"]
[null,"GM","GM - Gambia"]
[null,"GN","GN - Guinea"]
[null,"GP","GP - Guadalupe"]
[null,"GQ","GQ - Guinea Ecuatorial"]
[null,"GR","GR - Grecia"]
[null,"GT","GT - Guatemala"]
[null,"GU","GU - Guam"]
[null,"GW","GW - Guinea Bissau"]
[null,"GY","GY - República de Guyana"]
[null,"GZ","GZ - Islas de Guernesey, Jersey, Alderney, Isla Great Sark, Herm, Little Sark, Berchou, Jethou, Lihou (Islas del Canal)"]
[null,"HK","HK - Hong Kong"]
[null,"HM","HM - Islas Heard and Mc Donald"]
[null,"HN","HN - República de Honduras"]
[null,"HT","HT - Haití"]
[null,"HU","HU - Hungría"]
[null,"ID","ID - Indonesia"]
[null,"IE","IE - Irlanda"]
[null,"IH","IH - Isla del Hombre"]
[null,"IL","IL - Israel"]
[null,"IN","IN - India"]
[null,"IO","IO - Territorio Británico en el Océano Indico"]
[null,"IP","IP - Islas Pacífico"]
[null,"IQ","IQ - Iraq"]
[null,"IR","IR - Irán"]
[null,"IS","IS - Islandia"]
[null,"IT","IT - Italia"]
[null,"JM","JM - Jamaica"]
[null,"JO","JO - Reino Hachemita de Jordania"]
[null,"JP","JP - Japón"]
[null,"KE","KE - Kenia"]
[null,"KH","KH - Campuchea Democrática"]
[null,"KI","KI - Kiribati"]
[null,"KM","KM - Comoros"]
[null,"KN","KN - San Kitts"]
[null,"KP","KP - República Democrática de Corea"]
[null,"KR","KR - República de Corea"]
[null,"KW","KW - Estado de Kuwait"]
[null,"KY","KY - Islas Caimán"]
[null,"LA","LA - República Democrática de Laos"]
[null,"LB","LB - Líbano"]
[null,"LC","LC - Santa Lucía"]
[null,"LI","LI - Principado de Liechtenstein"]
[null,"LK","LK - República Socialista Democrática de Sri Lanka"]
[null,"LN","LN - Labuán"]
[null,"LR","LR - República de Liberia"]
[null,"LS","LS - Lesotho"]
[null,"LU","LU - Gran Ducado de Luxemburgo"]
[null,"LY","LY - Libia"]
[null,"MA","MA - Marruecos"]
[null,"MC","MC - Principado de Mónaco"]
[null,"MD","MD - Madeira"]
[null,"MG","MG - Madagascar"]
[null,"MH","MH - República de las Islas Marshall"]
[null,"ML","ML - Malí"]
[null,"MN","MN - Mongolia"]
[null,"MO","MO - Macao"]
[null,"MP","MP - Islas Marianas del Noreste"]
[null,"MQ","MQ - Martinica"]
[null,"MR","MR - Mauritania"]
[null,"MS","MS - Monserrat"]
[null,"MT","MT - Malta"]
[null,"MU","MU - República de Mauricio"]
[null,"MV","MV - República de Maldivas"]
[null,"MW","MW - Malawi"]
[null,"MY","MY - Malasia "]
[null,"MZ","MZ - Mozambique"]
[null,"NA","NA - República de Namibia"]
[null,"NC","NC - Nueva Caledonia"]
[null,"NE","NE - Níger"]
[null,"NF","NF - Isla de Norfolk"]
[null,"NG","NG - Nigeria"]
[null,"NI","NI - Nicaragua"]
[null,"NL","NL - Holanda"]
[null,"NO","NO - Noruega"]
[null,"NP","NP - Nepal"]
[null,"NR","NR - República de Nauru"]
[null,"NT","NT - Zona Neutral"]
[null,"NU","NU - Niue"]
[null,"NV","NV - Nevis"]
[null,"NZ","NZ - Nueva Zelandia"]
[null,"OM","OM - Sultanía de Omán"]
[null,"PA","PA - República de Panamá"]
[null,"PE","PE - Perú"]
[null,"PF","PF - Polinesia Francesa"]
[null,"PG","PG - Papúa Nueva Guinea"]
[null,"PH","PH - Filipinas"]
[null,"PK","PK - Pakistán"]
[null,"PL","PL - Polonia"]
[null,"PM","PM - Isla de San Pedro y Miguelón"]
[null,"PN","PN - Pitcairn"]
[null,"PR","PR - Estado Libre Asociado de Puerto Rico"]
[null,"PT","PT - Portugal"]
[null,"PU","PU - Patau"]
[null,"PW","PW - Palau"]
[null,"PY","PY - Paraguay"]
[null,"QA","QA - Estado de Quatar"]
[null,"QB","QB - Isla Qeshm"]
[null,"RE","RE - Reunión"]
[null,"RO","RO - Rumania"]
[null,"RW","RW - Rhuanda"]
[null,"SA","SA - Arabia Saudita"]
[null,"SB","SB - Islas Salomón"]
[null,"SC","SC - Seychelles Islas"]
[null,"SD","SD - Sudán"]
[null,"SE","SE - Suecia"]
[null,"SG","SG - Singapur"]
[null,"SH","SH - Santa Elena"]
[null,"SI","SI - Archipiélago de Svalbard"]
[null,"SJ","SJ - Islas Svalbard and Jan Mayen"]
[null,"SK","SK - Sark"]
[null,"SL","SL - Sierra Leona"]
[null,"SM","SM - Serenísima República de San Marino"]
[null,"SN","SN - Senegal"]
[null,"SO","SO - Somalia"]
[null,"SR","SR - Surinam"]
[null,"ST","ST - Sao Tome and Príncipe"]
[null,"SU","SU - Países de la Ex-U.R.S.S., excepto Ucrania y Bielorusia"]
[null,"SV","SV - El Salvador"]
[null,"SW","SW - República de Seychelles"]
[null,"SY","SY - Siria"]
[null,"SZ","SZ - Reino de Swazilandia"]
[null,"TC","TC - Islas Turcas y Caicos"]
[null,"TD","TD - Chad"]
[null,"TF","TF - Territorios Franceses del Sureste"]
[null,"TG","TG - Togo"]
[null,"TH","TH - Thailandia"]
[null,"TK","TK - Tokelau"]
[null,"TN","TN - República de Túnez"]
[null,"TO","TO - Reino de Tonga"]
[null,"TP","TP - Timor Este"]
[null,"TR","TR - Trieste"]
[null,"TS","TS - Tristán Da Cunha"]
[null,"TT","TT - República de Trinidad y Tobago"]
[null,"TU","TU - Turquía"]
[null,"TV","TV - Tuvalu"]
[null,"TW","TW - Taiwán"]
[null,"TZ","TZ - Tanzania"]
[null,"UA","UA - Ucrania"]
[null,"UG","UG - Uganda"]
[null,"UM","UM - Islas menores alejadas de los Estados Unidos"]
[null,"US","US - Estados Unidos de América"]
[null,"UY","UY - República Oriental del Uruguay"]
[null,"VA","VA - El Vaticano"]
[null,"VC","VC - San Vicente y Las Granadinas"]
[null,"VE","VE - Venezuela"]
[null,"VG","VG - Islas Vírgenes Británicas"]
[null,"VI","VI - Islas Vírgenes de Estados Unidos de América"]
[null,"VN","VN - Vietnam"]
[null,"VU","VU - República de Vanuatu"]
[null,"WF","WF - Islas Wallis y Funtuna"]
[null,"XX","XX - Otro"]
[null,"YD","YD - Yemen Democrática"]
[null,"YE","YE - República del Yemen"]
[null,"YU","YU - Países de la Ex-Yugoslavia"]
[null,"ZA","ZA - Sudáfrica"]
[null,"ZC","ZC - Zona Especial Canaria"]
[null,"ZM","ZM - Zambia"]
[null,"ZO","ZO - Zona Libre Ostrava"]
[null,"ZR","ZR - Zaire"]
[null,"ZW","ZW - Zimbawe"]

{"sheet":"DPIVA","index":11,"n_rows":6,"n_cols":79,"rows_kept":6,"cut":false,"hidden":false,"merged":[]}
[]
[]
[null,"Campos DPIVA"]
[]
[null,"Campo 1","Campo 2","Campo 3","Campo 4","Campo 5","Campo 6","Campo 7","Campo 8","Campo 9","Campo 10","Campo 11","Campo 12","Campo 13","Campo 14","Campo 15","Campo 16","Campo 17","Campo 18","Campo 19","Campo 20","Campo 21","Campo 22","Campo 23","Campo 24","Campo 25","Campo 26","Campo 27","Campo 28","Campo 29","Campo 30","Campo 31","Campo 32","Campo 33","Campo 34","Campo 35","Campo 36","Campo 37","Campo 38","Campo 39","Campo 40","Campo 41","Campo 42","Campo 43","Campo 44","Campo 45","Campo 46","Campo 47","Campo 48","Campo 49","Campo 50","Campo 51","Campo 52","Campo 53","Campo 54","Campo 55","Campo 56","Campo 57","Campo 58","Campo 59","Campo 60","Campo 61","Campo 62","Campo 63","Campo 64","Campo 65","Campo 66","Campo 67","Campo 68","Campo 69","Campo 70","Campo 71","Campo 72","Campo 73","Campo 74","Campo 75","Campo 76","Campo 77","Campo 78"]
[null,"Version","Ejercicio","TipoPerid","Periodo","DPIVA","TipoDec","FolioAnt","FechPresAnt","TotOperac","TotActPagTas15o16IVA","TotActPagTas15IVA","TotIVAPagNoAcrTas15o16","TotActPagTas10u11IVA","TotActPagTas10IVA","TotIVAPagNoAcrTas10u11","TotActPagImpBySTas15o16IVA","TotIVAPagNoAcrImpTas15o16","TotActPagImpBySTas10u11IVA","TotIVAPagNoAcrImpTas10u11","TotActPagImpBySNoPagIVA","TotDemActPagTas0IVA","TotActPagNoPagIVA","TotIVARetCont","TotIVADevDescyBonifComp","TotIVATraslContExcImpByS","TotIVAPagImpByS","Datos del proveedor nacional. ProvNacional","TipoOperac","RFCProv","ValActPagTas15o16IVA","ValActPagTas15IVA","MonIVAPagNoAcrTas15o16","ValActPagTas10u11IVA","ValActPagTas10IVA","VersionMonIVAPagNoAcrTas10u11","ValActPagTas0IVA","ValActPagNoIVA","IVARetCont","IVADevDescyBonifComp","Datos del proveedor extranjero.","TipoOperac","RFCProv","NumIDFiscal","NombExtranjero","PaisResidencia","Nacionalidad","ValActPagTas15o16IVA","ValActPagTas15IVA","MonIVAPagNoAcrTas15o16","ValActPagTas10u11IVA","ValActPagTas10IVA","MonIVAPagNoAcrTas10u11","ValActPagImpBySTas15o16IVA","MonIVAPagNoAcrImpTas15o16","ValActPagImpBySTas10u11IVA","MonIVAPagNoAcrImpTas10u11","ValActPagImpBySNoIVA","ValActPagTas0IVA","ValActPagNoIVA","IVARetCont","IVADevDescyBonifComp","Datos del proveedor global.","TipoOperac","ValActPagTas15o16IVA","ValActPagTas15IVA","MonIVAPagNoAcrTas15o16","ValActPagTas10u11IVA","ValActPagTas10IVA","MonIVAPagNoAcrTas10u11","ValActPagImpBySTas15o16IVA","MonIVAPagNoAcrImpTas15o16","ValActPagImpBySTas10u11IVA","MonIVAPagNoAcrImpTas10u11","ValActPagImpBySNoIVA","ValActPagTas0IVA","ValActPagNoIVA","IVARetCont","IVADevDescyBonifComp"]

{"sheet":"CFDIR","index":12,"n_rows":4,"n_cols":70,"rows_kept":4,"cut":false,"hidden":false,"merged":[[2,19,2,23]]}
[]
["Hoja para importar los XML recibidos por la empresa (excepto complemento de pagos y nómina)"]
[null,null,null,null,null,null,null,null,null,null,null,null,null,null,null,null,null,null,null,"Información en caso de factura global"]
["Fecha de emisión","Tipo de comprobante","Tipo de comprobante del catálogo del SAT","Exportación","Clave de exportación catálogo del SAT","Serie","Folio","Folio fiscal","RFC emisor","Emisor","Régimen fiscal","Tipo de régimen catálogo del SAT","RFC receptor","Receptor","Régimen fiscal","Tipo de régimen catálogo del SAT","Domicilio fiscal receptor","Uso del CFDI","Uso del CFDI del catálogo del SAT","Periodicidad","Descripción de la clave del catálogo del SAT","Meses","Descripción de la clave del catálogo del SAT","Año","Clave producto/servicio SAT","Descripción de la clave del catálogo del SAT","Palabras similares","Clave unidad de medida","Unidad de medida del catálogo del SAT","Unidad","Cantidad","Descripción","Valor unitario","Importe","Descuento","Objeto del impuesto","Tipo de objeto del impuesto catálogo del SAT","Base para IEPS","Tipo factor","Tasa o cuota","Total IEPS trasladado del comprobante","Base para IVA","Tipo  factor","Tasa o cuota","Total IVA trasladado del comprobante","Base retención ISR","Tipo factor","Tasa o cuota","Retención de ISR","Base retención IVA","Tipo factor","Tasa o cuota","Retención IVA","Total del comprobante","Tipo de relación","Tipo de relación del catálogo del SAT","UUID relación","Forma de pago","Forma de pago del catálogo del SAT","Método de pago","Método de pago catálogo del SAT","Moneda","Moneda del catálogo del SAT","Tipo de cambio","No. de pedimento","Cuenta predial","Fecha de cancelación","Ruta del archivo","Operación convertida a moneda nacional","¿Deducible?"]

{"sheet":"RPAGOSR","index":13,"n_rows":7,"n_cols":75,"rows_kept":7,"cut":false,"hidden":false,"merged":[[5,58,5,61],[5,67,5,70],[5,71,5,74],[4,21,4,47],[5,9,5,11],[5,12,5,14],[5,15,5,20],[5,32,5,35],[5,36,5,45],[5,46,5,47]]}
[]
[null,"Hoja para importar los XML recibidos con el complemento de recepción de pagos"]
[]
[]
[null,null,null,null,null,null,null,null,null,null,null,null,null,null,null,null,null,null,null,null,null,"Complemento de recepción de pagos"]
[null,null,null,null,null,null,null,null,null,"Emisor",null,null,"Receptor",null,null,"Campos generales CFDI 3.3",null,null,null,null,null,null,null,null,null,null,null,null,null,null,null,null,"Solo que el pago se reciba en SPEI",null,null,null,"Documentos que se cobran",null,null,null,null,null,null,null,null,null,"Timbre fiscal del complemento de recepción de pagos",null,null,null,null,null,null,null,null,null,null,null,"Retenciones",null,null,null,null,null,null,null,null,"Impuestos trasladados",null,null,null,"Impuestos retenidos"]
[null,"Fecha de emisión","Folio","Serie","Subtotal","Moneda","Total","Tipo de comprobante","Lugar Expedicion","Rfc","Nombre","Régimen fiscal","Rfc","Nombre","Uso del CFDI","ClaveProdServ","Cantidad","Unidad","Descripcion","ValorUnitario","Importe","Fecha de pago","Forma de pago","MonedaP","TipoCambioP","Monto","NumOperacion","RfcEmisorCtaOrd ","NomBancoOrdExt ","CtaOrdenante","RfcEmisorCtaBen ","CtaBeneficiario","TipoCadPago ","CertPago","CadPago","SelloPago","IdDocumento ","Serie","Folio","MonedaDR ","TipoCambioDR","MetodoDePagoDR","NumParcialidad ","ImpSaldoAnt ","ImpPagado ","ImpSaldoInsoluto","Fecha de timbrado","UUID","Total factura","Importe cobrado","Factor de pago","Base IVA al 16%","IVA al 16%","Base IVA al 8%","IVA al 8%","Base IVA al 0%","Base IVA exento","IEPS","Base retención ISR","Retención ISR","Base retención IVA","IVA","Ruta en donde se encuentra el archivo","Fecha de cancelación","Fecha de factura","Pagos en moneda nacional","Objeto de impuestos DR","Base IEPS","IEPS","Base IVA","IVA","Base ISR","ISR","Base IVA","IVA"]

{"sheet":"RESUMENCOPA","index":14,"n_rows":96,"n_cols":27,"rows_kept":96,"cut":false,"hidden":false,"merged":[[5,4,5,10],[5,12,5,18],[5,20,5,26],[38,12,38,14],[71,4,71,10]]}
[]
[]
[null,"Fecha inicial"]
[null,"Fecha final"]
[]
[null,null,null,null,"CFDI de tipo ingreso de acuerdo a la forma de pago cobrados",null,null,null,null,null,null,null,"CFDI emitidos de tipo egreso de acuerdo a la forma de pago",null,null,null,null,null,null,null,"CFDI de tipo ingresos emitidos"]
[null,"c_FormaPago","Descripción","Bancarizado","Importe","Descuento","Total IEPS trasladado del comprobante","Total IVA trasladado del comprobante","Retención de ISR","Retención IVA","Total del comprobante",null,"Importe","Descuento","Total IEPS trasladado del comprobante","Total IVA trasladado del comprobante","Retención de ISR","Retención IVA","Total del comprobante",null,"Importe","Descuento","Total IEPS trasladado del comprobante","Total IVA trasladado del comprobante","Retención de ISR","Retención IVA","Total del comprobante"]
[null,"01","Efectivo","No"]
[null,"02","Cheque nominativo","Sí"]
[null,"03","Transferencia electrónica de fondos","Sí"]
[null,"04","Tarjeta de crédito","Sí"]
[null,"05","Monedero electrónico","Sí"]
[null,"06","Dinero electrónico","Sí"]
[null,"08","Vales de despensa","No"]
[null,12,"Dación en pago","No"]
[null,13,"Pago por subrogación","No"]
[null,14,"Pago por consignación","No"]
[null,15,"Condonación","No"]
[null,17,"Compensación","No"]
[null,23,"Novación","No"]
[null,24,"Confusión","No"]
[null,25,"Remisión de deuda","No"]
[null,26,"Prescripción o caducidad","No"]
[null,27,"A satisfacción del acreedor","No"]
[null,28,"Tarjeta de débito","Sí"]
[null,29,"Tarjeta de servicios","Sí"]
[null,30,"Aplicación de anticipos","No"]
[null,31,"Intermediario pagos","No"]
[null,99,null,"Totales"]
[]
[null,99,"Por definir (por fecha de cobro y fecha de la factura)","Opcional"]
[null,99,"Por definir (solo operaciones del mes)","Opcional"]
[]
[]
[]
[]
[]
[]
[null,null,null,null,null,null,null,null,null,null,null,null,"Campo importe"]
[null,"Concentrado de CFDI de tipo ingreso recibidos de acuerdo al método de pago con el que se pagaron",null,null,null,null,null,null,null,null,null,null,"G01","G03"]
[null,"c_FormaPago","Descripción","Bancarizado","Importe","Descuento","Total IEPS trasladado del comprobante","Total IVA trasladado del comprobante","Retención de ISR","Retención IVA","Total del comprobante",null,"Adquisición de mercancías.","Gastos en general.","Otros"]
[null,"02","Cheque nominativo","Sí"]
[null,"03","Transferencia electrónica de fondos","Sí"]
[null,"04","Tarjeta de crédito","Sí"]
[null,"05","Monedero electrónico","Sí"]
[null,"06","Dinero electrónico","Sí"]
[null,28,"Tarjeta de débito","Sí"]
[null,29,"Tarjeta de servicios","Sí"]
[null,null,null,"Totales"]
[]
[null,"c_FormaPago","Descripción","Bancarizado","Importe","Descuento","Total IEPS trasladado del comprobante","Total IVA trasladado del comprobante","Retención de ISR","Retención IVA","Total del comprobante"]
[null,"01","Efectivo","No"]
[null,"08","Vales de despensa","No"]
[null,12,"Dación en pago","No"]
[null,13,"Pago por subrogación","No"]
[null,14,"Pago por consignación","No"]
[null,15,"Condonación","No"]
[null,17,"Compensación","No"]
[null,23,"Novación","No"]
[null,24,"Confusión","No"]
[null,25,"Remisión de deuda","No"]
[null,26,"Prescripción o caducidad","No"]
[null,27,"A satisfacción del acreedor","No"]
[null,30,"Aplicación de anticipos","No"]
[null,31,"Intermediario pagos","No"]
[null,null,null,"Totales"]
[]
[null,99,"Por definir (por fecha de cobro y fecha de la factura)","Opcional"]
[null,99,"Por definir (solo operaciones del mes)","Opcional"]
[]
[]
[null,null,null,null,"CFDI recibidos de tipo egreso de acuerdo a la forma de pago"]
[null,"c_FormaPago","Descripción","Bancarizado","Importe","Descuento","Total IEPS trasladado del comprobante","Total IVA trasladado del comprobante","Retención de ISR","Retención IVA","Total del comprobante"]
[null,"01","Efectivo","No"]
[null,"02","Cheque nominativo","Sí"]
[null,"03","Transferencia electrónica de fondos","Sí"]
[null,"04","Tarjeta de crédito","Sí"]
[null,"05","Monedero electrónico","Sí"]
[null,"06","Dinero electrónico","Sí"]
[null,"08","Vales de despensa","No"]
[null,12,"Dación en pago","No"]
[null,13,"Pago por subrogación","No"]
[null,14,"Pago por consignación","No"]
[null,15,"Condonación","No"]
[null,17,"Compensación","No"]
[null,23,"Novación","No"]
[null,24,"Confusión","No"]
[null,25,"Remisión de deuda","No"]
[null,26,"Prescripción o caducidad","No"]
[null,27,"A satisfacción del acreedor","No"]
[null,28,"Tarjeta de débito","Sí"]
[null,29,"Tarjeta de servicios","Sí"]
[null,30,"Aplicación de anticipos","No"]
[null,31,"Intermediario pagos","No"]
[null,99,"Por definir","Opcional"]
[null,null,null,"Totales "]

{"sheet":"CLAVESPS","index":15,"n_rows":105032,"n_cols":41,"rows_kept":4500,"cut":true,"hidden":false,"merged":[[1,39,1,40],[27,18,27,19],[27,21,27,22],[1,21,1,22],[1,24,1,25],[1,27,1,28],[1,30,1,31],[1,33,1,34],[1,36,1,37],[1,18,1,19],[1,1,1,3],[1,6,1,7],[1,9,1,10],[1,12,1,13],[1,15,1,16]],"bounds":{"rows_first":2000,"rows_last":500,"rows_between":2000,"halvings":0}}
[]
[null,"Catálogo de claves de producto/servicio",null,null,null,null,"Catálogo de claves de unidad de medida",null,null,"Cátalogo de formas de pago",null,null,"Catálogo de moneda",null,null,"Catálogo tipo de comprobante",null,null,"Catálogo de régimen fiscal",null,null,"Catálogo del uso del CFDI",null,null,"Catálogo tipo de relación",null,null,"Catálogo metodo de pago",null,null,"Catálogo exportación V. 4.0",null,null,"Catálogo objeto V. 4.0",null,null,"Catálogo periodicidad V. 4.0",null,null,"Catálogo meses V. 4.0"]
[null,"c_ClaveProdServ","Descripción","Palabras similares",null,null,"c_ClaveUnidad","Nombre",null,"c_FormaPago","Descripción",null,"c_Moneda","Descripción",null,"c_TipoDeComprobante","Descripción",null,"c_RegimenFiscal","Descripción",null,"c_UsoCFDI","Descripción",null,"c_TipoRelacion","Descripción",null,"c_MetodoPago","Descripción",null,"Clave","Descripción",null,"Clave","Descripción",null,"Clave","Descripción",null,"Clave","Descripción"]
[null,"01010101","No existe en el catálogo","Público en general",null,null,18,"Tambor de cincuenta y cinco galones (EUA)",null,"01","Efectivo",null,"AED","Dirham de EAU",null,"I","Ingreso",null,601,"General de Ley Personas Morales",null,"G01","Adquisición de mercancias",null,"01","Nota de crédito de los documentos relacionados",null,"PUE","Pago en una sola exhibición",null,1,"No aplica",null,1,"No objeto de impuesto.",null,1,"Diario",null,1,"Enero"]
[null,10101500,"Animales vivos de granja",null,null,null,19,"Camión cisterna",null,"02","Cheque nominativo",null,"AFN","Afghani",null,"E","Egreso",null,603,"Personas Morales con Fines no Lucrativos",null,"G02","Devoluciones, descuentos o bonificaciones",null,"02","Nota de débito de los documentos relacionados",null,"PPD","Pago en parcialidades o diferido",null,2,"Definitiva",null,2,"Sí objeto de impuesto.",null,2,"Semanal",null,2,"Febrero"]
[null,10101501,"Gatos vivos",null,null,null,26,"Tonelada real",null,"03","Transferencia electrónica de fondos",null,"ALL","Lek",null,"T","Traslado",null,605,"Sueldos y Salarios e Ingresos Asimilados a Salarios",null,"G03","Gastos en general",null,"03","Devolución de mercancía sobre facturas o traslados previos",null,null,null,null,3,"Temporal",null,3,"Sí objeto del impuesto y no obligado al desglose.",null,3,"Quincenal",null,3,"Marzo"]
[null,10101502,"Perros",null,null,null,29,"Libra por mil pies cuadrados",null,"04","Tarjeta de crédito",null,"AMD","Dram armenio",null,"N","Nómina",null,606,"Arrendamiento",null,"I01","Construcciones",null,"04","Sustitución de los CFDI previos",null,null,null,null,null,null,null,null,null,null,4,"Mensual",null,4,"Abril"]
[null,10101504,"Visón",null,null,null,30,"Día de potencia de caballos por tonelada métrica de aire seco",null,"05","Monedero electrónico",null,"ANG","Florín antillano neerlandés",null,null,null,null,608,"Demás ingresos",null,"I02","Mobilario y equipo de oficina por inversiones",null,"05","Traslados de mercancias facturados previamente",null,null,null,null,null,null,null,null,null,null,5,"Bimestral",null,5,"Mayo"]
[null,10101505,"Ratas",null,null,null,31,"Pescar",null,"06","Dinero electrónico",null,"AOA","Kwanza",null,"P","Pago",null,609,"Consolidación",null,"I03","Equipo de transporte",null,"06","Factura generada por los traslados previos",null,null,null,null,null,null,null,null,null,null,null,null,null,6,"Junio"]
[null,10101506,"Caballos","Equinos, Potrancas, Potras, Potrillos, Potros, Yeguas",null,null,32,"Kilogramo por tonelada métrica seca del aire",null,"08","Vales de despensa",null,"ARS","Peso Argentino",null,null,null,null,610,"Residentes en el Extranjero sin Establecimiento Permanente en México",null,"I04","Equipo de computo y accesorios",null,"07","CFDI por aplicación de anticipo",null,null,null,null,null,null,null,null,null,null,null,null,null,7,"Julio"]
[null,10101507,"Ovejas","Borregos, Carneros",null,null,36,"Pie cúbico por minuto por pie cuadrado",null,12,"Dación en pago",null,"AUD","Dólar Australiano",null,null,null,null,611,"Ingresos por Dividendos (socios y accionistas)",null,"I05","Dados, troqueles, moldes, matrices y herramental",null,"08","Factura generada por pagos en parcialidades",null,null,null,null,null,null,null,null,null,null,null,null,null,8,"Agosto"]
[null,10101508,"Cabras","Borregos cimarrones, Cabritos, Cabros, Carnero de las Rocosas, Chivas, Chivatos, Chivos, Irascos, Machos cabríos, Chivos",null,null,44,"Bolsa a granel de quinientos kilos",null,13,"Pago por subrogación",null,"AWG","Aruba Florin",null,null,null,null,612,"Personas Físicas con Actividades Empresariales y Profesionales",null,"I06","Comunicaciones telefónicas",null,"09","Factura generada por pagos diferidos",null,null,null,null,null,null,null,null,null,null,null,null,null,9,"Septiembre"]
[null,10101509,"Asnos","Borricos, Burros",null,null,45,"Bolsa a granel de trescientos kilos",null,14,"Pago por consignación",null,"AZN","Azerbaijanian Manat",null,null,null,null,614,"Ingresos por intereses",null,"I07","Comunicaciones satelitales",null,null,null,null,null,null,null,null,null,null,null,null,null,null,null,null,10,"Octubre"]
[null,10101510,"Ratones",null,null,null,46,"Bolsa a granel de cincuenta libras",null,15,"Condonación",null,"BAM","Convertibles marca",null,null,null,null,616,"Sin obligaciones fiscales",null,"I08","Otra maquinaria y equipo",null,null,null,null,null,null,null,null,null,null,null,null,null,null,null,null,11,"Noviembre"]
[null,10101511,"Cerdos","Cerdo montés, Chanchos, Chanchos almizcleros, Chanchos de monte, Cochinillos, Cochinos, Cochinos de monte, Cuche, Cuinos, Gorrinos, Jabalíes americanos, Lechones, Cochinos de monte, Pecaríes, Porcinos, Puercos, Puercos de monte, Tayatos",null,null,47,"Bolso de cincuenta libras",null,17,"Compensación",null,"BBD","Dólar de Barbados",null,null,null,null,620,"Sociedades Cooperativas de Producción que optan por diferir sus ingresos",null,"D01","Honorarios médicos, dentales y gastos hospitalarios.",null,null,null,null,null,null,null,null,null,null,null,null,null,null,null,null,12,"Diciembre"]
[null,10101512,"Conejos","Liebres",null,null,48,"Carga masiva",null,23,"Novación",null,"BDT","Taka",null,null,null,null,621,"Incorporación Fiscal",null,"D02","Gastos médicos por incapacidad o discapacidad",null,null,null,null,null,null,null,null,null,null,null,null,null,null,null,null,13,"Enero-Febrero"]
[null,10101513,"Cobayas o conejillos de indias","Chanchito de Indias, Cobayos, Cuilo, Cuyo",null,null,53,"Kilogramo teórico",null,24,"Confusión",null,"BGN","Lev búlgaro",null,null,null,null,622,"Actividades Agrícolas, Ganaderas, Silvícolas y Pesqueras",null,"D03","Gastos funerales.",null,null,null,null,null,null,null,null,null,null,null,null,null,null,null,null,14,"Marzo-Abril"]
[null,10101514,"Primates","Changos, Chimpancés, Gorilas, Lémures, Macacos, Micos, Monos, Orangutanes, Simios, Monos",null,null,54,"Tonelada teórica (UK)",null,25,"Remisión de deuda",null,"BHD","Dinar de Bahrein",null,null,null,null,623,"Opcional para Grupos de Sociedades",null,"D04","Donativos.",null,null,null,null,null,null,null,null,null,null,null,null,null,null,null,null,15,"Mayo-Junio"]
[null,10101515,"Armadillos","Toches",null,null,62,"Por ciento por 1000 horas",null,26,"Prescripción o caducidad",null,"BIF","Burundi Franc",null,null,null,null,624,"Coordinados",null,"D05","Intereses reales efectivamente pagados por créditos hipotecarios (casa habitación).",null,null,null,null,null,null,null,null,null,null,null,null,null,null,null,null,16,"Julio-Agosto"]
[null,10101516,"Ganado vacuno","Bueyes, Búfalos, Cebús, Otros vacunos o bovinos, Toros, Vacas",null,null,63,"Tasa de fracaso en el tiempo",null,27,"A satisfacción del acreedor",null,"BMD","Dólar de Bermudas",null,null,null,null,628,"Hidrocarburos",null,"D06","Aportaciones voluntarias al SAR.",null,null,null,null,null,null,null,null,null,null,null,null,null,null,null,null,17,"Septiembre-Octubre"]
[null,10101517,"Camellos","Dromedarios",null,null,64,"Libra por pulgada cuadrada, calíbre",null,28,"Tarjeta de débito",null,"BND","Dólar de Brunei",null,null,null,null,607,"Régimen de Enajenación o Adquisición de Bienes",null,"D07","Primas por seguros de gastos médicos.",null,null,null,null,null,null,null,null,null,null,null,null,null,null,null,null,18,"Noviembre-Diciembre"]
[null,10101600,"Pájaros y aves de corral vivos",null,null,null,66,"Oersted",null,29,"Tarjeta de servicios",null,"BOB","Boliviano",null,null,null,null,629,"De los Regímenes Fiscales Preferentes y de las Empresas Multinacionales",null,"D08","Gastos de transportación escolar obligatoria."]
[null,10101601,"Pollos vivos","Gallinas, Gallinas de guinea, Gallos, Pintadas, Pollitos",null,null,69,"Escala específica de prueba",null,30,"Aplicación de anticipos",null,"BOV","Mvdol",null,null,null,null,630,"Enajenación de acciones en bolsa de valores",null,"D09","Depósitos en cuentas para el ahorro, primas que tengan como base planes de pensiones."]
[null,10101602,"Patos vivos",null,null,null,71,"Voltios amperios por libra",null,31,"Intermediario pagos",null,"BRL","Real brasileño",null,null,null,null,615,"Régimen de los ingresos por obtención de premios",null,"D10","Pagos por servicios educativos (colegiaturas)"]
[null,10101603,"Pavos vivos","Gallipavos, Guajolotes, Pavos salvajes",null,null,72,"Vatio por libra",null,99,"Por definir",null,"BSD","Dólar de las Bahamas",null,null,null,null,null,null,null,"P01","Por definir"]
[null,10101604,"Gansos vivos",null,null,null,73,"Amperios por centímetro",null,null,null,null,"BTN","Ngultrum"]
[null,10101605,"Faisanes vivos",null,null,null,76,"Gauss",null,null,null,null,"BWP","Pula"]
[null,10101700,"Peces vivos",null,null,null,78,"Kilogauss",null,null,null,null,"BYR","Rublo bielorruso",null,null,null,null,"Catálogo de régimen fiscal V.4.0",null,null,"Catálogo del uso del CFDI V 4.0"]
[null,10101701,"Salmones vivos",null,null,null,84,"Kilopound-force por pulgada cuadrada",null,null,null,null,"BZD","Dólar de Belice",null,null,null,null,"c_RegimenFiscal","Descripción",null,"c_UsoCFDI","Descripción"]
[null,10101702,"Trucha viva",null,null,null,90,"Saybold segundo universal",null,null,null,null,"CAD","Dolar Canadiense",null,null,null,null,601,"General de Ley Personas Morales",null,"G01","Adquisición de mercancías."]
[null,10101703,"Tilapia viva","Mojarra",null,null,92,"Calorías por centímetro cúbico",null,null,null,null,"CDF","Franco congoleño",null,null,null,null,603,"Personas Morales con Fines no Lucrativos",null,"G02","Devoluciones, descuentos o bonificaciones."]
[null,10101704,"Carpa viva",null,null,null,93,"Calorías por gramo",null,null,null,null,"CHE","WIR Euro",null,null,null,null,605,"Sueldos y Salarios e Ingresos Asimilados a Salarios",null,"G03","Gastos en general."]
[null,10101705,"Anguilas vivas",null,null,null,94,"Unidad de curl",null,null,null,null,"CHF","Franco Suizo",null,null,null,null,606,"Arrendamiento",null,"I01","Construcciones."]
[null,10101800,"Mariscos e invertebrados acuáticos vivos",null,null,null,95,"Veinte mil galones",null,null,null,null,"CHW","Franc WIR",null,null,null,null,607,"Régimen de Enajenación o Adquisición de Bienes",null,"I02","Mobiliario y equipo de oficina por inversiones."]
[null,10101801,"Camarón vivo","Esquilas",null,null,96,"Diez mil galones (US)",null,null,null,null,"CLF","Unidad de Fomento",null,null,null,null,608,"Demás ingresos",null,"I03","Equipo de transporte."]
[null,10101802,"Almejas vivas",null,null,null,97,"Diez kilos de tambor",null,null,null,null,"CLP","Peso chileno",null,null,null,null,610,"Residentes en el Extranjero sin Establecimiento Permanente en México",null,"I04","Equipo de computo y accesorios."]
[null,10101803,"Mejillones vivos",null,null,null,98,"Quince kilos de tambor",null,null,null,null,"CNY","Yuan Renminbi",null,null,null,null,611,"Ingresos por Dividendos (socios y accionistas)",null,"I05","Dados, troqueles, moldes, matrices y herramental."]
[null,10101804,"Ostras vivas",null,null,null,"05","Ascensor",null,null,null,null,"COP","Peso Colombiano",null,null,null,null,612,"Personas Físicas con Actividades Empresariales y Profesionales",null,"I06","Comunicaciones telefónicas."]
[null,10101805,"Cangrejos vivos",null,null,null,"06","Pequeño aerosol",null,null,null,null,"COU","Unidad de Valor real",null,null,null,null,614,"Ingresos por intereses",null,"I07","Comunicaciones satelitales."]
[null,10101806,"Abulones vivos","Orejas de mar",null,null,"08","Montón de calor",null,null,null,null,"CRC","Colón costarricense",null,null,null,null,615,"Régimen de los ingresos por obtención de premios",null,"I08","Otra maquinaria y equipo."]
[null,10101807,"Pulpo vivo","Octópodo",null,null,"10","Grupos",null,null,null,null,"CUC","Peso Convertible",null,null,null,null,616,"Sin obligaciones fiscales",null,"D01","Honorarios médicos, dentales y gastos hospitalarios."]
[null,10101808,"Calamar vivo",null,null,null,"11","Equipos",null,null,null,null,"CUP","Peso Cubano",null,null,null,null,620,"Sociedades Cooperativas de Producción que optan por diferir sus ingresos",null,"D02","Gastos médicos por incapacidad o discapacidad."]
[null,10101809,"Sanguijuelas","Hirudineas, Hirudos, Hirudíneo",null,null,"13","Raciones",null,null,null,null,"CVE","Cabo Verde Escudo",null,null,null,null,621,"Incorporación Fiscal",null,"D03","Gastos funerales."]
[null,10101900,"Insectos vivos",null,null,null,"14","Shot",null,null,null,null,"CZK","Corona checa",null,null,null,null,622,"Actividades Agrícolas, Ganaderas, Silvícolas y Pesqueras",null,"D04","Donativos."]
[null,10101901,"Mariposas",null,null,null,"15","Palo, medida militar.",null,null,null,null,"DJF","Franco de Djibouti",null,null,null,null,623,"Opcional para Grupos de Sociedades",null,"D05","Intereses reales efectivamente pagados por créditos hipotecarios (casa habitación)."]
[null,10101902,"Escarabajos","Mariquitas, Sanjuaneros",null,null,"16","Tambor de 115 kilogramos",null,null,null,null,"DKK","Corona danesa",null,null,null,null,624,"Coordinados",null,"D06","Aportaciones voluntarias al SAR."]
[null,10101903,"Abejas",null,null,null,"17","Tambor de cien libras",null,null,null,null,"DOP","Peso Dominicano",null,null,null,null,625,"Régimen de las Actividades Empresariales con ingresos a través de Plataformas Tecnológicas",null,"D07","Primas por seguros de gastos médicos."]
[null,10101904,"Gusanos de seda","Crisálida, Larva, Orug",null,null,"1A","Milla de carros",null,null,null,null,"DZD","Dinar argelino",null,null,null,null,626,"Régimen Simplificado de Confianza",null,"D08","Gastos de transportación escolar obligatoria."]
[null,10102000,"Animales salvajes vivos",null,null,null,"1B","Recuento de automóviles",null,null,null,null,"EGP","Libra egipcia",null,null,null,null,null,null,null,"D09","Depósitos en cuentas para el ahorro, primas que tengan como base planes de pensiones."]
[null,10102001,"Elefantes","Paquidermos",null,null,"1C","Conteo de locomotoras",null,null,null,null,"ERN","Nakfa",null,null,null,null,null,null,null,"D10","Pagos por servicios educativos (colegiaturas)."]
[null,10102002,"Zorros vivos","Zorras",null,null,"1D","Caboose count",null,null,null,null,"ETB","Birr etíope",null,null,null,null,null,null,null,"S01","Sin efectos fiscales.  "]
[null,10102100,"Huevos de aves para incubar",null,null,null,"1E","Coche vacío",null,null,null,null,"EUR","Euro",null,null,null,null,null,null,null,"CP01","Pagos"]
[null,10111300,"Accesorios, equipo y tratamientos para los animales domésticos","Accesorios, equipo y medicamentos para animales domésticos",null,null,"1F","Milla de tren",null,null,null,null,"FJD","Dólar de Fiji",null,null,null,null,null,null,null,"CN01","Nómina"]
[null,10111301,"Juguetes para mascotas",null,null,null,"1G","Galón del uso del combustible (los EUA)",null,null,null,null,"FKP","Libra malvinense"]
[null,10111302,"Productos para el aseo y cuidado de mascotas",null,null,null,"1H","Milla de caboose",null,null,null,null,"GBP","Libra Esterlina"]
[null,10111303,"Equipo para el manejo de desperdicios de las mascotas",null,null,null,"1I"," Tipo de interés fijo",null,null,null,null,"GEL","Lari"]
[null,10111304,"Tazones o equipo para alimentación de mascotas",null,null,null,"1J","Tonelada milla",null,null,null,null,"GHS","Cedi de Ghana"]
[null,10111305,"Tratamientos medicados para mascotas","Tratamientos medicinales para mascotas",null,null,"1K","Milla locomotora",null,null,null,null,"GIP","Libra de Gibraltar"]
[null,10111306,"Kits para el entrenamiento de mascotas domésticas",null,null,null,"1L","Recuento total de automóviles",null,null,null,null,"GMD","Dalasi"]
[null,10111307,"Cobijas para mascotas","Mantas para mascotas, Sábanas para mascotas",null,null,"1M","Milla total del coche",null,null,null,null,"GNF","Franco guineano"]
[null,10121500,"Pienso para ganado","Alimento para ganado",null,null,"1X","Cuarto de milla",null,null,null,null,"GTQ","Quetzal"]
[null,10121501,"Salvado de trigo puro",null,null,null,"20"," Contenedores de veinte pies",null,null,null,null,"GYD","Dólar guyanés"]
[null,10121502,"Avena para forraje",null,null,null,"21"," Contenedor de cuarenta pies",null,null,null,null,"HKD","Dolar De Hong Kong"]
[null,10121503,"Maíz para forraje",null,null,null,"22","Decilitro por gramo",null,null,null,null,"HNL","Lempira"]
[null,10121504,"Sorgo para forraje",null,null,null,"23","Gramo por centímetro cúbico",null,null,null,null,"HRK","Kuna"]
[null,10121505,"Heno",null,null,null,"24","Libra teórica",null,null,null,null,"HTG","Gourde"]
[null,10121506,"Tortas oleaginosas","Torta de aceite para ganado",null,null,"25","Gramo por centímetro cuadrado",null,null,null,null,"HUF","Florín"]
[null,10121507,"Forraje compuesto",null,null,null,"27","Tonelada teórica",null,null,null,null,"IDR","Rupia"]
[null,10121600,"Alimento para pájaros y aves de corral",null,null,null,"28","Kilogramo por metro cuadrado",null,null,null,null,"ILS","Nuevo Shekel Israelí"]
[null,10121601,"Alimento vivo para aves",null,null,null,"2A","Radián por segundo",null,null,null,null,"INR","Rupia india"]
[null,10121602,"Alpiste",null,null,null,"2B","Radián por segundo cuadrado",null,null,null,null,"IQD","Dinar iraquí"]
[null,10121603,"Botanas o comida recreacional para aves",null,null,null,"2C","Roentgen",null,null,null,null,"IRR","Rial iraní"]
[null,10121604,"Alimento avícola",null,null,null,"2G","Voltios CA",null,null,null,null,"ISK","Corona islandesa"]
[null,10121700,"Alimento para peces",null,null,null,"2H","Voltios CD",null,null,null,null,"JMD","Dólar Jamaiquino"]
[null,10121701,"Salmuera fresca o congelada",null,null,null,"2I","Unidad térmica británica (tabla internacional) por hora",null,null,null,null,"JOD","Dinar jordano"]
[null,10121702,"Alimento granulado para peces",null,null,null,"2J","Centímetro cúbico por segundo",null,null,null,null,"JPY","Yen"]
[null,10121703,"Alimento en hojuelas para peces",null,null,null,"2K","Pie cúbico por hora",null,null,null,null,"KES","Chelín keniano"]
[null,10121800,"Alimento para perros y gatos",null,null,null,"2L","Pie cúbico por minuto",null,null,null,null,"KGS","Som"]
[null,10121801,"Comida seca para perros",null,null,null,"2M","Centímetro por segundo",null,null,null,null,"KHR","Riel"]
[null,10121802,"Comida húmeda para perros",null,null,null,"2N","Decibel",null,null,null,null,"KMF","Franco Comoro"]
[null,10121803,"Leche para perros o gatos",null,null,null,"2P","Kilobyte",null,null,null,null,"KPW","Corea del Norte ganó"]
[null,10121804,"Comida seca para gatos",null,null,null,"2Q","Kilobecquerel",null,null,null,null,"KRW","Won"]
[null,10121805,"Comida húmeda para gatos",null,null,null,"2R","Kilocurie",null,null,null,null,"KWD","Dinar kuwaití"]
[null,10121806,"Botanas o comida recreacional para gatos o perros",null,null,null,"2U","Megagramo",null,null,null,null,"KYD","Dólar de las Islas Caimán"]
[null,10121900,"Alimento para roedores",null,null,null,"2V","Megagrama por hora",null,null,null,null,"KZT","Tenge"]
[null,10121901,"Comida granulada para roedores",null,null,null,"2X","Metro por minuto",null,null,null,null,"LAK","Kip"]
[null,10122000,"Alimento para reptiles",null,null,null,"2Y","Milliroentgen",null,null,null,null,"LBP","Libra libanesa"]
[null,10122001,"Comida granulada para reptiles",null,null,null,"2Z","Milivoltio",null,null,null,null,"LKR","Rupia de Sri Lanka"]
[null,10122002,"Comida húmeda para reptiles",null,null,null,"33","Kilopascal por grtr",null,null,null,null,"LRD","Dólar liberiano"]
[null,10122003,"Comida viva para reptiles",null,null,null,"34","Kilopascal por milimetro",null,null,null,null,"LSL","Loti"]
[null,10122100,"Comida para animales variados","Comida para diversos animales",null,null,"35","Milimetro por un segundo centimetro cuadrado",null,null,null,null,"LYD","Dinar libio"]
[null,10122101,"Comida para cerdos","Comida para chanchos, Comida para cochinillos, Comida para cochinos, Comida para cuche, Comida para cuinos, Comida para gorrinos, Comida para lechones, Comida para marranos, Comida para porcinos, Comida para puercos, Comida para lechones",null,null,"37","Onza por pie cuadrado",null,null,null,null,"MAD","Dirham marroquí"]
[null,10122102,"Comida para visones",null,null,null,"38","Onzas por pie cuadrado por 0,01 pulgadas",null,null,null,null,"MDL","Leu moldavo"]
[null,10122103,"Comida para monos",null,null,null,"3B","Megajoule",null,null,null,null,"MGA","Ariary malgache"]
[null,10122104,"Comida para conejos",null,null,null,"3C","Manmonth",null,null,null,null,"MKD","Denar"]
[null,10131500,"Cobertizos para animales",null,null,null,"3E","Libra por libra de producto",null,null,null,null,"MMK","Kyat"]
[null,10131506,"Establos para ganado",null,null,null,"3G","Libra por pieza de producto",null,null,null,null,"MNT","Tugrik"]
[null,10131507,"Casas para mascotas domesticadas",null,null,null,"3H","Kilogramo por kilogramo de producto",null,null,null,null,"MOP","Pataca"]
[null,10131508,"Camas para mascotas",null,null,null,"3I","Kilogramo por pedazo de producto",null,null,null,null,"MRO","Ouguiya"]
[null,10131600,"Recipientes para animales","Contenedores de comida para animales",null,null,"40","Mililitro por segundo",null,null,null,null,"MUR","Rupia de Mauricio"]
[null,10131601,"Jaulas o sus accesorios",null,null,null,"41","Mililitro por minuto",null,null,null,null,"MVR","Rupia"]
[null,10131602,"Perreras",null,null,null,"4B","Gorra",null,null,null,null,"MWK","Kwacha"]
[null,10131603,"Equipaje para el transporte de animales",null,null,null,"4C","Centistokes",null,null,null,null,"MXN","Peso Mexicano"]
[null,10131604,"Correas para perros",null,null,null,"4E","Veinte pack",null,null,null,null,"MXV","México Unidad de Inversión (UDI)"]
[null,10131700,"Hábitat para animales","Ambientes para animales",null,null,"4G","Microlitro",null,null,null,null,"MYR","Ringgit malayo"]
[null,10131701,"Terrarios",null,null,null,"4H","Micra",null,null,null,null,"MZN","Mozambique Metical"]
[null,10131702,"Acuarios",null,null,null,"4K","Miliamperio",null,null,null,null,"NAD","Dólar de Namibia"]
[null,10141500,"Talabartería","Guarniciones para caballerías",null,null,"4L","Megabyte",null,null,null,null,"NGN","Naira"]
[null,10141501,"Sillas de montar",null,null,null,"4M","Miligramo por hora",null,null,null,null,"NIO","Córdoba Oro"]
[null,10141502,"Fustas y látigos",null,null,null,"4N","Megabequerel",null,null,null,null,"NOK","Corona noruega"]
[null,10141503,"Herraduras para caballo",null,null,null,"4O","Microfaradio",null,null,null,null,"NPR","Rupia nepalí"]
[null,10141504,"Herraduras para mula",null,null,null,"4P","Newton por metro",null,null,null,null,"NZD","Dólar de Nueva Zelanda"]
[null,10141505,"Sillín o pelero",null,null,null,"4Q","Onza pulgada",null,null,null,null,"OMR","Rial omaní"]
[null,10141600,"Arneses",null,null,null,"4R","Onza pie",null,null,null,null,"PAB","Balboa"]
[null,10141601,"Bridas","Correas para caballos",null,null,"4T","Picofaradio",null,null,null,null,"PEN","Nuevo Sol"]
[null,10141602,"Yugos",null,null,null,"4U","Libra por hora",null,null,null,null,"PGK","Kina"]
[null,10141603,"Bocados para caballos","Embocaduras para caballo",null,null,"4W","Tonelada (EUA) por hora",null,null,null,null,"PHP","Peso filipino"]
[null,10141604,"Riendas","Correas",null,null,"4X","Kilolitro por hora",null,null,null,null,"PKR","Rupia de Pakistán"]
[null,10141605,"Estribos",null,null,null,"56","Sitas",null,null,null,null,"PLN","Zloty"]
[null,10141606,"Correas o traíllas",null,null,null,"57","Malla",null,null,null,null,"PYG","Guaraní"]
[null,10141607,"Arneses de cuello para animales",null,null,null,"58"," kilogramo neto",null,null,null,null,"QAR","Qatar Rial"]
[null,10141608,"Arneses o sus accesorios",null,null,null,"59","Parte por millón",null,null,null,null,"RON","Leu rumano"]
[null,10141609,"Sujetadores",null,null,null,"5A","Barril por minuto",null,null,null,null,"RSD","Dinar serbio"]
[null,10141610,"Bozales",null,null,null,"5B","Batch",null,null,null,null,"RUB","Rublo ruso"]
[null,10141611,"Soportes para correas",null,null,null,"5C","Galón (US) por mil",null,null,null,null,"RWF","Franco ruandés"]
[null,10151500,"Semillas y plántulas vegetales","Semillas y vástagos vegetales",null,null,"5E","Mmscf/day",null,null,null,null,"SAR","Riyal saudí"]
[null,10151501,"Semillas o plántulas de fríjol","Semillas o vástago primario de fríjol, Semillas o vástago primario de fríjol blanco, Semillas o vástago primario de fríjol negro, Semillas o vástago primario de fríjol rojo adzuki",null,null,"5F","Libra por mil",null,null,null,null,"SBD","Dólar de las Islas Salomón"]
[null,10151502,"Semillas o plántulas de zanahoria","Semillas o vástago primario de zanahoria",null,null,"5G","bomba",null,null,null,null,"SCR","Rupia de Seychelles"]
[null,10151503,"Semillas o plántulas de apio","Semillas o vástago primario de apio",null,null,"5H","Escenario",null,null,null,null,"SDG","Libra sudanesa"]
[null,10151504,"Semillas o plántulas de chiles","Semillas o vástago primario de chiles",null,null,"5I","Pies cúbicos estándar",null,null,null,null,"SEK","Corona sueca"]
[null,10151505,"Semillas o plántulas de calabacín","Semillas o vástago primario de calabacín",null,null,"5J","Caballos de potencia hidráulica",null,null,null,null,"SGD","Dolar De Singapur"]
[null,10151506,"Semillas o plántulas de alverja","Semillas o vástago primario de chícharo, Semillas o vástago primario de guisante",null,null,"5K","Contar por minuto",null,null,null,null,"SHP","Libra de Santa Helena"]
[null,10151507,"Semillas o plántulas de pepino cohombro","Semillas o vástago primario de pepino cohombro",null,null,"5P","Nivel sísmico",null,null,null,null,"SLL","Leona"]
[null,10151508,"Semillas o plántulas de berenjena","Semillas o vástago primario de berenjena",null,null,"5Q","Línea sísmica",null,null,null,null,"SOS","Chelín somalí"]
[null,10151509,"Semillas o plántulas de endivias","Semillas o vástago primario de endivias",null,null,"60","Tanto por ciento en peso",null,null,null,null,"SRD","Dólar de Suriname"]
[null,10151510,"Semillas o plántulas de ajo","Semillas o vástago primario de ajo",null,null,"61","Parte por mil millones (EUA)",null,null,null,null,"SSP","Libra sudanesa Sur"]
[null,10151511,"Semillas o plántulas de puerro","Semillas o vástago primario de puerro",null,null,"74","Milipascal",null,null,null,null,"STD","Dobra"]
[null,10151512,"Semillas o plántulas de lechuga","Semillas o vástago primario de lechuga",null,null,"77","Mili-pulgada",null,null,null,null,"SVC","Colon El Salvador"]
[null,10151513,"Semillas o plántulas de maíz","Semillas o vástago primario de maíz",null,null,"80","Libra por pulgada cuadrado absoluta",null,null,null,null,"SYP","Libra Siria"]
[null,10151514,"Semillas o plántulas de melón","Semillas o vástago primario de melón",null,null,"81","Henry",null,null,null,null,"SZL","Lilangeni"]
[null,10151515,"Semillas o plántulas cebolla","Semillas o vástago primario de cebolla",null,null,"85","Pie libra-fuerza",null,null,null,null,"THB","Baht"]
[null,10151516,"Semillas o plántulas de soya","Semillas o vástago primario de soya",null,null,"87","Libra por pie cúbico",null,null,null,null,"TJS","Somoni"]
[null,10151517,"Semillas o plántulas de espinaca","Semillas o vástago primario de espinaca",null,null,"89","Poise",null,null,null,null,"TMT","Turkmenistán nuevo manat"]
[null,10151518,"Semillas o plántulas de tomate","Semillas o vástago primario de tomate",null,null,"91","Stokes",null,null,null,null,"TND","Dinar tunecino"]
[null,10151519,"Semillas o plántulas de nabo","Semillas o vástago primario de nabo",null,null,"A1","15 ° C calorías",null,null,null,null,"TOP","Pa'anga"]
[null,10151520,"Semillas o plántulas de acelga","Semillas o vástago primario de acelga",null,null,"A10","Amperio por metro cuadrado por joule segundo",null,null,null,null,"TRY","Lira turca"]
[null,10151521,"Semillas o plántulas de pimiento morrón","Semillas o vástago primario de pimiento morrón",null,null,"A11","Ángstrom",null,null,null,null,"TTD","Dólar de Trinidad y Tobago"]
[null,10151522,"Semillas o plántulas de remolacha","Semillas o vástago primario de betabel",null,null,"A12","Unidad astronómica",null,null,null,null,"TWD","Nuevo dólar de Taiwán"]
[null,10151523,"Semillas o plántulas de coliflor","Semillas o vástago primario de coliflor",null,null,"A13","Attojoule",null,null,null,null,"TZS","Shilling tanzano"]
[null,10151524,"Semillas o plántulas de perejil","Semillas o vástago primario de perejil",null,null,"A14","Barn",null,null,null,null,"UAH","Hryvnia"]
[null,10151525,"Semillas o plántulas de brócoli","Semillas o vástago primario de brócoli",null,null,"A15","Barn por electrovoltio",null,null,null,null,"UGX","Shilling de Uganda"]
[null,10151526,"Semillas o plántulas de repollo","Semillas o vástago primario de col",null,null,"A16","Barn por electrovoltio ",null,null,null,null,"USD","Dolar americano"]
[null,10151527,"Semillas o plántulas de papa","Semillas o vástago primario de patata",null,null,"A17","Barn por esteroradian",null,null,null,null,"USN","Dólar estadounidense (día siguiente)"]
[null,10151528,"Semillas o plántulas de batata","Semillas o vástago primario de camote",null,null,"A18","Becquerel por kilogramo",null,null,null,null,"UYI","Peso Uruguay en Unidades Indexadas (URUIURUI)"]
[null,10151529,"Semillas o plántulas de calabaza","Semillas o vástago primario de calabaza",null,null,"A19","Becquerel por metro cúbico",null,null,null,null,"UYU","Peso Uruguayo"]
[null,10151530,"Semillas o plántulas de rábano","Semillas o vástago primario de rabanito, Semillas o vástago primario de rábano",null,null,"A2","Amperio por centímetro",null,null,null,null,"UZS","Uzbekistán Sum"]
[null,10151531,"Semillas o plántulas de repollitos de bruselas","Semillas o vástago primario de col de Bruselas",null,null,"A20","Unidad térmica británica (tabla internacional) por segundo pie cuadrado grado rankine.",null,null,null,null,"VEF","Bolívar"]
[null,10151532,"Semillas o plántulas de ahuyama","Semillas o vástago primario de calabaza de castilla",null,null,"A21","Unidad térmica británica (tabla internacional) por libra grado rankine",null,null,null,null,"VND","Dong"]
[null,10151533,"Semillas o plántulas de okra","Semillas o vástago primario de okra",null,null,"A22","Unidad térmica británica (tabla internacional) por segundo pie grado rankine",null,null,null,null,"VUV","Vatu"]
[null,10151534,"Semillas o plántulas de melón cantalupo","Semillas o vástago primario de melón cantalupo",null,null,"A23","Unidad térmica británica (tabla internacional) por hora pie cuadrado grado rankine.",null,null,null,null,"WST","Tala"]
[null,10151535,"Semillas o plántulas de maní","Semillas o vástago primario de cacahuate",null,null,"A24","Candela por metro cuadrado",null,null,null,null,"XAF","Franco CFA BEAC"]
[null,10151536,"Semillas o plántulas de caigua","Semillas o vástago primario de caigua",null,null,"A25","Caballo de vapor",null,null,null,null,"XAG","Plata"]
[null,10151537,"Semillas o plántulas de espárrago","Semillas o vástago primario de espárrago",null,null,"A26","Culombio metro",null,null,null,null,"XAU","Oro"]
[null,10151538,"Semillas o plántulas de garbanzo","Semillas o vástago primario de garbanzo",null,null,"A27","Culombio metro cuadrado por voltio",null,null,null,null,"XBA","Unidad de Mercados de Bonos Unidad Europea Composite (EURCO)"]
[null,10151539,"Semillas o plántulas de haba","Semillas o vástago primario de haba",null,null,"A28","Culombio por centímetro cúbico",null,null,null,null,"XBB","Unidad Monetaria de Bonos de Mercados Unidad Europea (UEM-6)"]
[null,10151600,"Semillas de cereales",null,null,null,"A29","Culombio por metro cúbico",null,null,null,null,"XBC","Mercados de Bonos Unidad Europea unidad de cuenta a 9 (UCE-9)"]
[null,10151601,"Semillas de trigo",null,null,null,"A3","Amperio por milímetro",null,null,null,null,"XBD","Mercados de Bonos Unidad Europea unidad de cuenta a 17 (UCE-17)"]
[null,10151602,"Semillas de canola","Semillas de colza",null,null,"A30","Culombio por milimetro cúbico",null,null,null,null,"XCD","Dólar del Caribe Oriental"]
[null,10151603,"Semillas de cebada",null,null,null,"A31","Culombio por kilogramo-segundo",null,null,null,null,"XDR","DEG (Derechos Especiales de Giro)"]
[null,10151604,"Semillas de mijo",null,null,null,"A32","Culombio por Mol",null,null,null,null,"XOF","Franco CFA BCEAO"]
[null,10151605,"Semillas de avena",null,null,null,"A33","Culombio por centímetro cuadrado",null,null,null,null,"XPD","Paladio"]
[null,10151606,"Semillas de ajonjolí","Semillas de sésamo",null,null,"A34","Culombio por metro cuadrado",null,null,null,null,"XPF","Franco CFP"]
[null,10151607,"Semillas de linaza","Semillas de lino",null,null,"A35","Culombio por milímetro cuadrado",null,null,null,null,"XPT","Platino"]
[null,10151608,"Semillas de aceite de ricino","Semillas de ricino",null,null,"A36","Centimetro cúbico por Mol",null,null,null,null,"XSU","Sucre"]
[null,10151609,"Semillas de maíz",null,null,null,"A37","Decimetro cuadrado por Mol",null,null,null,null,"XTS","Códigos reservados específicamente para propósitos de prueba"]
[null,10151610,"Semillas de centeno",null,null,null,"A38","Cubic pooulo p",null,null,null,null,"XUA","Unidad ADB de Cuenta"]
[null,10151611,"Semillas de sorgo",null,null,null,"A39","Metro cúbico por kilogramo",null,null,null,null,"XXX","Los códigos asignados para las transacciones en que intervenga ninguna moneda"]
[null,10151612,"Semillas o plántulas de kiwicha","Semillas o vástagos de amaranto",null,null,"A4","Amperio por centímetro cuadrado",null,null,null,null,"YER","Rial yemení"]
[null,10151613,"Semillas o plántulas de quínoa","Semillas o vástagos de quinua",null,null,"A40","Metro cubbico por Mol",null,null,null,null,"ZAR","Rand"]
[null,10151700,"Semillas y plántulas de hierba y forraje","Semillas y vástagos de hierba y forraje",null,null,"A41","Amperio por metro cuadrado",null,null,null,null,"ZMW","Kwacha zambiano"]
[null,10151701,"Semillas o plántulas de arroz",null,null,null,"A42","Curie por kilogramo",null,null,null,null,"ZWL","Zimbabwe Dólar"]
[null,10151702,"Semillas o plántulas de trébol",null,null,null,"A43","Tonelaje de peso muerto"]
[null,10151703,"Semillas o plántulas de alfalfa",null,null,null,"A44","Decalitro"]
[null,10151704,"Semillas o plántulas de pasto","Semillas o vástagos para césped",null,null,"A45","Decámetro"]
[null,10151705,"Semillas o plántulas de veza (gachas / guija)",null,null,null,"A47","Decitex"]
[null,10151706,"Semillas o plántulas de guar",null,null,null,"A48","Grado rankine"]
[null,10151800,"Semillas y plántulas de especias","Semillas y vástagos de especias",null,null,"A49","Negador"]
[null,10151801,"Semillas o plántulas de pimienta",null,null,null,"A5","Amperio metro cuadrado"]
[null,10151802,"Semillas o plántulas de vainilla",null,null,null,"A50","Dina segundo por centímetro cúbico"]
[null,10151803,"Semillas o plántulas de canela",null,null,null,"A51","Dina segundo por centímetro"]
[null,10151804,"Semillas o plántulas de clavo de olor",null,null,null,"A52","Dina segundo por centímetro a la quinta potencia"]
[null,10151805,"Semillas o plántulas de cilantro",null,null,null,"A53","Electrónvoltio"]
[null,10151806,"Semillas o plántulas de jengibre",null,null,null,"A54","Electrovoltio por metro"]
[null,10151807,"Semillas o plántulas de azafrán",null,null,null,"A55","Electrovoltio por metro cuadrado"]
[null,10151808,"Semillas o plántulas de tomillo",null,null,null,"A56","Electrovoltio metro cuadrado por kilogramo"]
[null,10151809,"Semillas o plántulas de curry","Semillas o vástagos de curri",null,null,"A57","Ergio"]
[null,10151810,"Semillas o plántulas de mostaza",null,null,null,"A58","Erg por centímetro"]
[null,10151811,"Semillas o plántulas de ginseng",null,null,null,"A59","La cobertura de nubes 8-parte"]
[null,10151812,"Semillas o plántulas de champiñones",null,null,null,"A6","Amperio por metro cuadrado Kelvin cuadrado"]
[null,10151813,"Semillas o plántulas de sacha inchi",null,null,null,"A60","Erg por centímetro cúbico"]
[null,10151814,"Semillas o plántulas de achiote",null,null,null,"A61","Erg por gramo"]
[null,10151815,"Semillas o plántulas de kudzu",null,null,null,"A62","Erg por segundo gramo"]
[null,10151816,"Semillas o plántulas de albahaca",null,null,null,"A63","Erg por segundo"]
[null,10151817,"Semillas o plántulas de anís","Semillas o vástago de badiana",null,null,"A64","Erg por segundo centímetro cuadrado"]
[null,10151900,"Semillas, bulbos, plántulas y esquejes de flores","Semillas, bulbos, vástagos y codos de flores",null,null,"A65","Erg por centímetro cuadrado segundo"]
[null,10151901,"Semillas, bulbos, plántulas o esquejes de tulipán",null,null,null,"A66","Erg centímetro cuadrado"]
[null,10151902,"Semillas, plántulas o esquejes de rosa",null,null,null,"A67","Erg centímetro cuadrado por gramo"]
[null,10151903,"Semillas, bulbos, plántulas o esquejes de narciso",null,null,null,"A68","Exajoule"]
[null,10151904,"Semillas de girasol","Semillas de acahual, Semillas de mirasol",null,null,"A69","Faradio por metro"]
[null,10151905,"Bulbos o tallos de jacinto",null,null,null,"A7","Amperio por milímetro cuadrado"]
[null,10151906,"Bulbos de lirio",null,null,null,"A70","Femtojoule"]
[null,10151907,"Semillas o plántulas de veza",null,null,null,"A71","Femtómetro"]
[null,10152000,"Semillas y esquejes de árboles y arbustos",null,null,null,"A73","Pie por segundo al cuadrado"]
[null,10152001,"Semillas o esquejes de árboles frutales",null,null,null,"A74","Pie libra-fuerza por segundo"]
[null,10152002,"Semillas o esquejes de coníferas",null,null,null,"A75","Tonelada de carga"]
[null,10152003,"Semillas o esquejes de árboles de frutos secos",null,null,null,"A76","Galón"]
[null,10152004,"Plántulas de latifoliados",null,null,null,"A77","Gaussian CGS (Centímetro-Gram-Segundo sistema) unidad de desplazamiento"]
[null,10152005,"Plántulas de coníferas",null,null,null,"A78","Gaussiano CGS (Centímetro-Gram-Segundo sistema) unidad de corriente eléctrica"]
[null,10152006,"Semillas o yemas de pino",null,null,null,"A79","Gaussian CGS (Centímetro-Gram-Segundo sistema) unidad de carga eléctrica"]
[null,10152007,"Semillas o yemas de algarrobo",null,null,null,"A8","Amperio segundo"]
[null,10152100,"Residuos que no sean de piensos","Residuos que no sean alimento",null,null,"A80","Gaussiano CGS (Centímetro-Gram-Segundo sistema) unidad de la fuerza del campo eléctrico"]
[null,10152101,"Extracción de los residuos de semilla de babool",null,null,null,"A81","Gaussian CGS (Centímetro-Gram-Segundo sistema) unidad de polarización eléctrica"]
[null,10152102,"Residuos de semilla de colza",null,null,null,"A82","Gaussiano CGS (Centímetro-Gram-Segundo sistema) unidad de potencial eléctrico"]
[null,10152103,"Residuo de semillas de linaza",null,null,null,"A83","Gaussian CGS (Centímetro-Gram-Segundo sistema) unidad de magnetización"]
[null,10152104,"Torta de neem",null,null,null,"A84","GigaCulombio por metro cúbico"]
[null,10152200,"Semillas de cultivos fibrosos y semilleros",null,null,null,"A85","Gigaelectrónvoltio"]
[null,10152201,"Semillas o plántulas de algodón",null,null,null,"A86","Gigahertz"]
[null,10152202,"Semillas o plántulas de lino","Semillas o vástago de linaza",null,null,"A87","GigaOhm"]
[null,10152300,"Plántulas y semillas de leguminosas",null,null,null,"A88","GigaOhm metro"]
[null,10152400,"Plántulas y semillas de tubérculos",null,null,null,"A89","Gigapascal"]
[null,10161500,"Árboles y arbustos",null,null,null,"A9","Tarífa"]
[null,10161501,"Aceitunos",null,null,null,"A90","Gigawatt"]
[null,10161502,"Cafetos",null,null,null,"A91","Grado centesimal"]
[null,10161503,"Cacaoteros","Cocoa",null,null,"A93","Gramo por metro cúbico"]
[null,10161504,"Manzanos",null,null,null,"A94","Gramo por Mol"]
[null,10161505,"Peros",null,null,null,"A95","Gray"]
[null,10161506,"Naranjos",null,null,null,"A96","Gray por segundo"]
[null,10161507,"Rododendros","Azaleas",null,null,"A97","Hectopascal"]
[null,10161508,"Plantas de te",null,null,null,"A98","Henry por metro"]
[null,10161509,"Coníferas",null,null,null,"A99","Bit"]
[null,10161510,"Abetos rojos (píceas)","Abetos falsos",null,null,"AA","Balón"]
[null,10161511,"Pinos",null,null,null,"AB","Paquete a granel"]
[null,10161512,"Abetos",null,null,null,"ACR","Acre"]
[null,10161513,"Palmeras",null,null,null,"ACT","Actividad"]
[null,10161514,"Casuarina","Roble hembra",null,null,"AD","Byte"]
[null,10161515,"Ciprés",null,null,null,"AE","Amperio por metro"]
[null,10161516,"Eucalipto",null,null,null,"AH","Minuto adicional"]
[null,10161517,"Árbol de quinua","Árbol de quina",null,null,"AI","Minuto y medio por llamada"]
[null,10161518,"Magnolio",null,null,null,"AJ","policía"]
[null,10161519,"Mioporo","Siempreverde",null,null,"AK","Braza"]
[null,10161520,"Acalifa","Cola de zorro roja",null,null,"AL","Línea de acceso"]
[null,10161521,"Tecomaria capensis o madreselva del cabo","Bignonia roja",null,null,"AMH","Amperio hora"]
[null,10161522,"Arbusto croton bolaina","Croton variegado",null,null,"AMP","Amperio"]
[null,10161523,"Abutillón","Malva",null,null,"ANN","Año"]
[null,10161524,"Ficus","Higuera",null,null,"AP","Libra de aluminio solamente"]
[null,10161525,"Lúcumo",null,null,null,"APZ","Onza troy u onza farmacéutica "]
[null,10161526,"Aguacatal",null,null,null,"AQ","Unidad del factir anti-hemofilico."]
[null,10161527,"Guanábano",null,null,null,"AR","supositorio"]
[null,10161528,"Carambolo","Membrillo torombolo",null,null,"ARE","Are"]
[null,10161529,"Ciruelo",null,null,null,"AS","Variedad"]
[null,10161530,"Árbol de quince","Árbol de membrillo",null,null,"ASM","Grado alcohólico en masa"]
[null,10161600,"Plantas florales","Agave, Caña de azúcar, Mague",null,null,"ASU","Grado alcohólico volumétrico"]
[null,10161602,"Poinsettias","Nochebuena",null,null,"ATM","Atmósfera estándar"]
[null,10161604,"Azaleas",null,null,null,"ATT","Atmósfera técnica"]
[null,10161605,"Cactos","Cactus, Nopal",null,null,"AW","Relleno de polvo en viales"]
[null,10161606,"Ageratum púrpura","Agérato mexicano",null,null,"AWG","Calibre de alambre americano"]
[null,10161800,"Plantas sin flor",null,null,null,"AY","Montaje"]
[null,10161801,"Helechos",null,null,null,"AZ","Unidad térmica británica (tabla internacional) por libra"]
[null,10161802,"Hiedras",null,null,null,"B0","Btu por pie cúbico"]
[null,10161803,"Filodendros","Trepadora",null,null,"B1","Barril (EUA) por día"]
[null,10161804,"Líquenes",null,null,null,"B10","Bits por segundo"]
[null,10161805,"Vides","Parra, Vid",null,null,"B11","Joule por kilogramo kelvin"]
[null,10161900,"Productos florales secos",null,null,null,"B12","Joule por metro"]
[null,10161901,"Vainas secas",null,null,null,"B13","Joule por metro cuadrado"]
[null,10161902,"Follaje seco",null,null,null,"B14","Joule por metro a la cuarta potencia"]
[null,10161903,"Helechos secos",null,null,null,"B15","Juole por Mol"]
[null,10161905,"Ramas y tallos secos",null,null,null,"B16","Juoule por Mol kelvin"]
[null,10161906,"Penachos de gramíneas secos",null,null,null,"B17","Crédito"]
[null,10161907,"Flores secas prensadas",null,null,null,"B18","Segundos joule"]
[null,10161908,"Pétalos secos",null,null,null,"B19","Dígito"]
[null,10171500,"Abonos orgánicos y nutrientes para plantas",null,null,null,"B2","litera"]
[null,10171501,"Estiércol o guano",null,null,null,"B20","Joule metro cuadrado por kologramo"]
[null,10171502,"Hormonas para plantas",null,null,null,"B21","Kelvin por watt"]
[null,10171503,"Harina de pescado",null,null,null,"B22","Kiloamperio"]
[null,10171504,"Abono",null,null,null,"B23","Kiloamperio por metro cuadrado"]
[null,10171505,"Nutriente foliar",null,null,null,"B24","Kiloamperio por metro"]
[null,10171506,"Humus",null,null,null,"B25","Kilobecquerel por metrocúbico"]
[null,10171600,"Abonos químicos y nutrientes para plantas",null,null,null,"B26","KiloCulombio"]
[null,10171601,"Fertilizante nitrogenado",null,null,null,"B27","KiloCulombio por metro cúbico"]
[null,10171602,"Fertilizante de potasio",null,null,null,"B28","KiloCulombio por metro cuadrado"]
[null,10171603,"Fertilizante de fósforo",null,null,null,"B29","Kiloelectrónvoltio"]
[null,10171604,"Fertilizante de sulfuro",null,null,null,"B3","Libra de bateo"]
[null,10171605,"Mezclas de nitrógeno – fósforo – potasio – npk",null,null,null,"B30","Gibibit"]
[null,10171606,"Fertilizarte de sílice puro",null,null,null,"B31","Kilogramo metro por segundo"]
[null,10171607,"Fertilizante con magnesio",null,null,null,"B32","Kilogramo metro cuadrado"]
[null,10171608,"Fertilizante micro elemento",null,null,null,"B33","Kilogramo metro cuadrado por segundo"]
[null,10171609,"Fertilizante fosfato de sílice",null,null,null,"B34","Kilogramo por decímetro cúbico"]
[null,10171610,"Fertilizante potasio de sílice",null,null,null,"B35","Kilogramo por litro"]
[null,10171611,"Fertilizante de calcio",null,null,null,"B36","Calorías (termoquímicas) por gramo"]
[null,10171700,"Herbicidas",null,null,null,"B37","Kilogramo de fuerza"]
[null,10171701,"Matamalezas",null,null,null,"B38","Kilogramo-metro de la fuerza"]
[null,10171702,"Fungicidas",null,null,null,"B39","Kilogramo-fuerza del metro por segundo"]
[null,10171800,"Acondicionadores de suelos",null,null,null,"B4","Barril, unidad imperial"]
[null,10171801,"Acondicionador orgánico de suelos",null,null,null,"B40","Kilogramo de fuerza por metro cuadrado"]
[null,10171802,"Acondicionador inorgánico de suelos",null,null,null,"B41","Kilojoule por kelvin"]
[null,10191500,"Pesticidas o repelentes de plagas",null,null,null,"B42","Kilojoule por kilogramo"]
[null,10191506,"Mata – roedores","Veneno para roedores",null,null,"B43","Kilojoule por kilogramo kelvin"]
[null,10191507,"Repelentes de aves",null,null,null,"B44","Kilojoule por Mol "]
[null,10191508,"Protectores contra termitas",null,null,null,"B45","KiloMol"]
[null,10191509,"Insecticidas",null,null,null,"B46","KiloMol por metro cúbico"]
[null,10191510,"Abamectina",null,null,null,"B47","Kilonewton"]
[null,10191511,"Fipronil",null,null,null,"B48","Kilonewton metro"]
[null,10191700,"Dispositivos para control de plagas",null,null,null,"B49","KiloOhm"]
[null,10191701,"Trampas para control animal",null,null,null,"B5","palanquilla"]
[null,10191703,"Trampas para el control de insectos voladores",null,null,null,"B50","KiloOhm metro"]
[null,10191704,"Matamoscas",null,null,null,"B51","KiloLibra"]
[null,10191705,"Lazos",null,null,null,"B52","Kilosegundo"]
[null,10191706,"Cepos","Ratoneras",null,null,"B53","Kilosiemens"]
[null,10191707,"Repelente ultrasónico de pestes","Ahuyentador Ultrasónico",null,null,"B54","Kilosiemens por metro"]
[null,10201500,"Rosales vivos azules o lavanda o púrpura",null,null,null,"B55","Kilovoltio por metro"]
[null,10201501,"Rosal vivo allure o sterling 95",null,null,null,"B56","Kiloweber por metro"]
[null,10201502,"Rosal vivo amnesia",null,null,null,"B57","Año luz"]
[null,10201503,"Rosal vivo augusta louise",null,null,null,"B58","Litro por Mol"]
[null,10201504,"Rosal vivo avant garde",null,null,null,"B59","Lumen hora"]
[null,10201505,"Rosal vivo blue bird",null,null,null,"B6","Bollo"]
[null,10201506,"Rosal vivo curiosa",null,null,null,"B60","Lumen por metro cuadrado"]
[null,10201507,"Rosal vivo cool water",null,null,null,"B61","Luminosidad por watt"]
[null,10201508,"Rosal vivo delilah",null,null,null,"B62","Lumen segundo"]
[null,10201509,"Rosal vivo double party",null,null,null,"B63","Hora de luz"]
[null,10201510,"Rosal vivo faith",null,null,null,"B64","Segundo de luz"]
[null,10201511,"Rosal vivo mami blue o mammy blue",null,null,null,"B65","Maxwell"]
[null,10201512,"Rosal vivo marítimo",null,null,null,"B66","Megaamperio por metro cuadrado"]
[null,10201513,"Rosal vivo milano",null,null,null,"B67","Megabecquerel por kilogramo"]
[null,10201514,"Rosal vivo mistery",null,null,null,"B68","Gigabit"]
[null,10201515,"Rosal vivo ocean song o boyfriend",null,null,null,"B69","MegaCulombio por metro cúbico"]
[null,10201516,"Rosal vivo cezanne púrpura",null,null,null,"B7","Ciclo"]
[null,10201517,"Rosal vivo purple fragrance",null,null,null,"B70","MegaCulombio por metro cuadrado"]
[null,10201518,"Rosal vivo sanaa",null,null,null,"B71","Megaelectrónvoltio"]
[null,10201519,"Rosal vivo silverstone",null,null,null,"B72","Megagramo por metro cúbico"]
[null,10201520,"Rosal vivo soulmate",null,null,null,"B73","Meganewton"]
[null,10201521,"Rosal vivo stranger",null,null,null,"B74","Meganewton metro"]
[null,10201522,"Rosal vivo tinted blue",null,null,null,"B75","MegaOhm"]
[null,10201523,"Rosal vivo two faces",null,null,null,"B76","MegaOhm metro"]
[null,10201600,"Rosales vivos chocolate o marrón",null,null,null,"B77","Megasiemens por metro"]
[null,10201601,"Rosal vivo black lava",null,null,null,"B78","Megavoltio "]
[null,10201602,"Rosal vivo cimarron",null,null,null,"B79","Megavoltio por metro"]
[null,10201603,"Rosal vivo coffee break",null,null,null,"B8","Joule por metro cúbico"]
[null,10201604,"Rosal vivo estelle",null,null,null,"B80","Gigabit por segundo"]
[null,10201605,"Rosal vivo gypsy leonidas",null,null,null,"B81","Reciprocidad del metro cuadrado, reciprocidad del segundo"]
[null,10201606,"Rosal vivo leonidas",null,null,null,"B82","Pulgadas por pie lineal"]
[null,10201607,"Rosal vivo matilda",null,null,null,"B83","Metro a la cuarta potencia"]
[null,10201608,"Rosal vivo sunny leonidas",null,null,null,"B84","Microamperio"]
[null,10201609,"Rosal vivo terra nostra",null,null,null,"B85","Microbar"]
[null,10201610,"Rosal vivo terracotta",null,null,null,"B86","MicroCulombio"]
[null,10201700,"Rosales vivos crema",null,null,null,"B87","MicroCulombio por metro cúbico"]
[null,10201701,"Rosal vivo advenire",null,null,null,"B88","MicroCulombio por metro cuadrado"]
[null,10201702,"Rosal vivo alex",null,null,null,"B89","Microfaradio por metro"]
[null,10201703,"Rosal vivo antique brass",null,null,null,"B9","Batt"]
[null,10201704,"Rosal vivo aubade",null,null,null,"B90","Microhenry"]
[null,10201705,"Rosal vivo beach",null,null,null,"B91","Microhenry por metro"]
[null,10201706,"Rosal vivo belle pearl",null,null,null,"B92","Micronewton"]
[null,10201707,"Rosal vivo blush de los andes",null,null,null,"B93","Micronewton metro"]
[null,10201708,"Rosal vivo camel",null,null,null,"B94","Micro Ohm"]
[null,10201709,"Rosal vivo caramel antike o caramel antique",null,null,null,"B95","MicroOhm metro"]
[null,10201710,"Rosal vivo champagne",null,null,null,"B96","Micropascal"]
[null,10201711,"Rosal vivo clear ocean",null,null,null,"B97","Microrradián"]
[null,10201712,"Rosal vivo combo",null,null,null,"B98","Microsegundo"]
[null,10201713,"Rosal vivo creme de la creme",null,null,null,"B99","Microsiemens"]
[null,10201714,"Rosal vivo emanuella",null,null,null,"BAR","Bar [unidad de presión]"]
[null,10201715,"Rosal vivo evolution",null,null,null,"BB","Caja base"]
[null,10201716,"Rosal vivo fedora",null,null,null,"BFT","Tablero de pies"]
[null,10201717,"Rosal vivo fenice",null,null,null,"BH","Cepillo"]
[null,10201718,"Rosal vivo french vanilla",null,null,null,"BHP","Potencia al freno"]
[null,10201719,"Rosal vivo hollywood",null,null,null,"BIL","Billon"]
[null,10201720,"Rosal vivo ilios",null,null,null,"BLD","Barril seco (EUA)"]
[null,10201721,"Rosal vivo jelena",null,null,null,"BLL","Barril (EUA)"]
[null,10201722,"Rosal vivo kameleon",null,null,null,"BP","Tabledo de cien pies"]
[null,10201723,"Rosal vivo kentucky",null,null,null,"BPM","Latidos por minuto"]
[null,10201724,"Rosal vivo kings pride",null,null,null,"BQL","Becquerel"]
[null,10201725,"Rosal vivo latin fusion",null,null,null,"BTU","Unidad térmica británica (tabla internacional)"]
[null,10201726,"Rosal vivo lemon dream",null,null,null,"BUA","Bushel (EUA)"]
[null,10201727,"Rosal vivo magic moka",null,null,null,"BUI","Bushel (UK)"]
[null,10201728,"Rosal vivo mamamia",null,null,null,"BW","Peso base"]
[null,10201729,"Rosal vivo message",null,null,null,"BZ","Millones de BTUs"]
[null,10201730,"Rosal vivo muneca o munieca",null,null,null,"C0","Llamada"]
[null,10201731,"Rosal vivo parfum de rosas",null,null,null,"C1","Libra de producto compuesto (peso total)"]
[null,10201732,"Rosal vivo porcelina",null,null,null,"C10","Milifaradio"]
[null,10201733,"Rosal vivo privilege",null,null,null,"C11","Miligalón"]
[null,10201734,"Rosal vivo quicksand",null,null,null,"C12","Miligramo por metro"]
[null,10201735,"Rosal vivo rollercoaster",null,null,null,"C13","MilliGray"]
[null,10201736,"Rosal vivo romantic curiosa",null,null,null,"C14","Milihenry"]
[null,10201737,"Rosal vivo safari",null,null,null,"C15","Milijoule"]
[null,10201738,"Rosal vivo sahara",null,null,null,"C16","Milímetro por segundo"]
[null,10201739,"Rosal vivo sandy femma",null,null,null,"C17","Milímetro cuadrado por segundo"]
[null,10201740,"Rosal vivo talea",null,null,null,"C18","MiliMol"]
[null,10201741,"Rosal vivo timeless",null,null,null,"C19","Mol por kilogramo"]
[null,10201742,"Rosal vivo transition",null,null,null,"C2","Carset"]
[null,10201743,"Rosal vivo trump",null,null,null,"C20","Milinewton"]
[null,10201744,"Rosal vivo twin",null,null,null,"C21","Kibibit"]
[null,10201745,"Rosal vivo vendela",null,null,null,"C22","Milinewton por metro"]
[null,10201746,"Rosal vivo virginia",null,null,null,"C23","MiliOhm metro"]
[null,10201800,"Rosales vivos verdes o lima",null,null,null,"C24","Milipascal segundo"]
[null,10201801,"Rosal vivo amandine",null,null,null,"C25","Milirradián"]
[null,10201802,"Rosal vivo caipirinha",null,null,null,"C26","Milisegundo"]
[null,10201803,"Rosal vivo green fashion",null,null,null,"C27","Milisiemens"]
[null,10201804,"Rosal vivo green tea",null,null,null,"C28","MilliSievert"]
[null,10201805,"Rosal vivo jade",null,null,null,"C29","Militesla"]
[null,10201806,"Rosal vivo limbo",null,null,null,"C3","Microvoltios por metro"]
[null,10201807,"Rosal vivo limena o limenia",null,null,null,"C30","Milivoltio por metro"]
[null,10201808,"Rosal vivo limona",null,null,null,"C31","Miliwatt"]
[null,10201809,"Rosal vivo old dutch",null,null,null,"C32","Miliwatt por metro cuadrado"]
[null,10201810,"Rosal vivo super green",null,null,null,"C33","Miliweber"]
[null,10201811,"Rosal vivo sweet green",null,null,null,"C34","Mol"]
[null,10201812,"Rosal vivo viva",null,null,null,"C35","Mol por decimetro cúbico"]
[null,10201813,"Rosal vivo zazu",null,null,null,"C36","Mol por metro cúbico"]
[null,10201900,"Rosales vivos rosado claro",null,null,null,"C37","Kilobits"]
[null,10201901,"Rosal vivo anna",null,null,null,"C38","Mol por litro"]
[null,10201902,"Rosal vivo bella vita",null,null,null,"C39","Nanoamperio"]
[null,10201903,"Rosal vivo bridal dream",null,null,null,"C4","partido de carga"]
[null,10201904,"Rosal vivo candy bianca",null,null,null,"C40","NanoCulombio"]
[null,10201905,"Rosal vivo caress",null,null,null,"C41","Nanofaradio"]
[null,10201906,"Rosal vivo carolina",null,null,null,"C42","Nanofaradio por metro"]
[null,10201907,"Rosal vivo climax",null,null,null,"C43","Nanohenry"]
[null,10201908,"Rosal vivo danny",null,null,null,"C44","Nanohenry por metro"]
[null,10201909,"Rosal vivo dolce vita",null,null,null,"C45","Nanómetro"]
[null,10201910,"Rosal vivo elite",null,null,null,"C46","NanoOhm metro"]
[null,10201911,"Rosal vivo emma",null,null,null,"C47","Nanosegundo"]
[null,10201912,"Rosal vivo engagement",null,null,null,"C48","Nanotesla"]
[null,10201913,"Rosal vivo esther",null,null,null,"C49","Nanowatt"]
[null,10201914,"Rosal vivo excalibur",null,null,null,"C5","Costo"]
[null,10201915,"Rosal vivo exciting",null,null,null,"C50","Neperio"]
[null,10201916,"Rosal vivo first lady",null,null,null,"C51","Neperio por segundo"]
[null,10201917,"Rosal vivo geraldine",null,null,null,"C52","Picómetro"]
[null,10201918,"Rosal vivo gotcha",null,null,null,"C53","Newton metro segundo"]
[null,10201919,"Rosal vivo harmonie",null,null,null,"C54","Newton metro cuadrado por kilogramo cuadrado"]
[null,10201920,"Rosal vivo heaven",null,null,null,"C55","Newton por metro cuadrado"]
[null,10201921,"Rosal vivo high and elegant",null,null,null,"C56","Newton por milimetro cuadrado"]
[null,10201922,"Rosal vivo katherine",null,null,null,"C57","Newton segundo"]
[null,10201923,"Rosal vivo king kong",null,null,null,"C58","Segundos newton por metro"]
[null,10201924,"Rosal vivo livia",null,null,null,"C59","Octava"]
[null,10201925,"Rosal vivo lorena",null,null,null,"C6","celda"]
[null,10201926,"Rosal vivo lovely",null,null,null,"C60","Ohm centímetro"]
[null,10201927,"Rosal vivo maaike",null,null,null,"C61","Ohm metro"]
[null,10201928,"Rosal vivo marilyn",null,null,null,"C62","Uno"]
[null,10201929,"Rosal vivo marlise",null,null,null,"C63","Pársec"]
[null,10201930,"Rosal vivo miranda o ausimmon",null,null,null,"C64","Pascal por kelvin"]
[null,10201931,"Rosal vivo mona lisa",null,null,null,"C65","Pascal segundo"]
[null,10201932,"Rosal vivo nirvana",null,null,null,"C66","Segundos pascal por metro cúbico"]
[null,10201933,"Rosal vivo o hara",null,null,null,"C67","Segundos pascal por metro "]
[null,10201934,"Rosal vivo ole",null,null,null,"C68","Petajoule"]
[null,10201935,"Rosal vivo olga",null,null,null,"C69","Phon"]
[null,10201936,"Rosal vivo pacífica",null,null,null,"C7","Centipoise"]
[null,10201937,"Rosal vivo party mix",null,null,null,"C70","Picoamperio"]
[null,10201938,"Rosal vivo peckoubo o pekcoubo",null,null,null,"C71","PicoCulombio"]
[null,10201939,"Rosal vivo phoebe o ausnotice",null,null,null,"C72","Picofaradio por metro"]
[null,10201940,"Rosal vivo pink farfalla",null,null,null,"C73","Picohenry"]
[null,10201941,"Rosal vivo pink finess",null,null,null,"C74","Kilobits por segundo"]
[null,10201942,"Rosal vivo pink magic",null,null,null,"C75","Picowatt"]
[null,10201943,"Rosal vivo pink osiana",null,null,null,"C76","Picowatt  por metro cuadrado"]
[null,10201944,"Rosal vivo pretty woman",null,null,null,"C77","Calibre de libra"]
[null,10201945,"Rosal vivo romance",null,null,null,"C78","Libra fuerza"]
[null,10201946,"Rosal vivo romantic antike o antique",null,null,null,"C79","Kilovoltios horas amperios"]
[null,10201947,"Rosal vivo rosalind o astew",null,null,null,"C8","MilliCulombio por kilogramo"]
[null,10201948,"Rosal vivo rosita vendela",null,null,null,"C80","Rad"]
[null,10201949,"Rosal vivo secret garden",null,null,null,"C81","Radián"]
[null,10201950,"Rosal vivo solaire",null,null,null,"C82","Radianmetro cuadrado por Mol"]
[null,10201951,"Rosal vivo sophie",null,null,null,"C83","Rradian metro cuadrado por kilogramo"]
[null,10201952,"Rosal vivo sweet akito",null,null,null,"C84","Radían por metro"]
[null,10201953,"Rosal vivo sweet avalanche",null,null,null,"C85","Reciprocidad Ámstrong"]
[null,10201954,"Rosal vivo sweet elegance",null,null,null,"C86","Reciprocidad del metro cúbico"]
[null,10201955,"Rosal vivo sweet pink",null,null,null,"C87","Reciprocidad metro cúbico por segundo"]
[null,10201956,"Rosal vivo titanic",null,null,null,"C88","Recíproco joule por metro cúbico"]
[null,10201957,"Rosal vivo toscanini",null,null,null,"C89","Henry recíproco"]
[null,10201958,"Rosal vivo vania",null,null,null,"C9","Grupo bobinas"]
[null,10201959,"Rosal vivo vanity",null,null,null,"C90","Recíproco Henry"]
[null,10201960,"Rosal vivo vision",null,null,null,"C91","Recíprocidad de kelvin ó kelvin a la potencia menos 1"]
[null,10201961,"Rosal vivo vivaldi",null,null,null,"C92","Reciprocidad Metro"]
[null,10201962,"Rosal vivo whisper",null,null,null,"C93","Reciprocidad Metro cuadrado"]
[null,10202000,"Rosales vivos multicolor rosados",null,null,null,"C94","Reciprocidad Minuto"]
[null,10202001,"Rosal vivo attracta",null,null,null,"C95","Reciprocidad Mol"]
[null,10202002,"Rosal vivo boheme",null,null,null,"C96","Reciprocidad Pascal o pascal a la potencia menos 1 "]
[null,10202003,"Rosal vivo carousel",null,null,null,"C97","Reciprocidad Segundo"]
[null,10202004,"Rosal vivo cezanne",null,null,null,"C98","Segundo recíproco por metro cúbico"]
[null,10202005,"Rosal vivo crazy one",null,null,null,"C99","Reciprocidad Segundo por metro cuadrado"]
[null,10202006,"Rosal vivo dance valley",null,null,null,"CCT","Capacidad de carga en toneladas métricas"]
[null,10202007,"Rosal vivo duett",null,null,null,"CDL","Candela"]
[null,10202008,"Rosal vivo esperance",null,null,null,"CE","Cada mes"]
[null,10202009,"Rosal vivo fiesta",null,null,null,"CEL","Grados celsius"]
[null,10202010,"Rosal vivo halloween",null,null,null,"CEN","Centenar"]
[null,10202011,"Rosal vivo highlander",null,null,null,"CG","Tarjeta"]
[null,10202012,"Rosal vivo hot ambiance",null,null,null,"CGM","Centígramo"]
[null,10202013,"Rosal vivo la belle",null,null,null,"CK","Conector"]
[null,10202014,"Rosal vivo laguna",null,null,null,"CKG","Culombio por kilogramo"]
[null,10202015,"Rosal vivo latin ambiance",null,null,null,"CLF","Cientos de hojas"]
[null,10202016,"Rosal vivo latin breeze",null,null,null,"CLT","Centilitro"]
[null,10202017,"Rosal vivo long arifa",null,null,null,"CMK","Centímetro cuadrado"]
[null,10202018,"Rosal vivo murano",null,null,null,"CMQ","Centímetro cúbico"]
[null,10202019,"Rosal vivo n-joy rose",null,null,null,"CMT","Centímetro"]
[null,10202020,"Rosal vivo panama",null,null,null,"CNP","Cientos de paquetes"]
[null,10202021,"Rosal vivo peppermint",null,null,null,"CNT","Cental (UK)"]
[null,10202022,"Rosal vivo pijama party",null,null,null,"COU","Culombio"]
[null,10202023,"Rosal vivo portofino",null,null,null,"CTG","Contenido en gramos"]
[null,10202024,"Rosal vivo priceless",null,null,null,"CTM","Quilatage métrico"]
[null,10202025,"Rosal vivo queen amazon",null,null,null,"CTN","Tonelada de contenido (métrica)"]
[null,10202026,"Rosal vivo ranuncula",null,null,null,"CUR","Curie"]
[null,10202027,"Rosal vivo rossini",null,null,null,"CWA","Hundred pound"]
[null,10202028,"Rosal vivo sabina o sabrina",null,null,null,"CWI","Hundredweight"]
[null,10202029,"Rosal vivo scandal",null,null,null,"CZ","Combo"]
[null,10202030,"Rosal vivo silvery pink",null,null,null,"D03","Kilovatio hora por hora"]
[null,10202031,"Rosal vivo something else",null,null,null,"D04","Lot [unidad de peso]"]
[null,10202032,"Rosal vivo soutine",null,null,null,"D1","Segundo recíproco por estereorradián"]
[null,10202033,"Rosal vivo sovereign",null,null,null,"D10","Siemens por metro"]
[null,10202034,"Rosal vivo super disco",null,null,null,"D11","Mebibit"]
[null,10202035,"Rosal vivo ts 1968",null,null,null,"D12","Siemens metro cuadrado por Mol"]
[null,10202036,"Rosal vivo variance",null,null,null,"D13","Sievert"]
[null,10202037,"Rosal vivo verdi",null,null,null,"D14","Yarda mil lineal"]
[null,10202100,"Rosales vivos anaranjados",null,null,null,"D15","Sone"]
[null,10202101,"Rosal vivo alhambra",null,null,null,"D16","Centimetro cuadrado por erg"]
[null,10202102,"Rosal vivo aloha",null,null,null,"D17","Centimetro cuadrado por esteroradian erg"]
[null,10202103,"Rosal vivo amber",null,null,null,"D18","Metro kelvin"]
[null,10202104,"Rosal vivo apache",null,null,null,"D19","Metro cuadrado kelvin por watt."]
[null,10202105,"Rosal vivo arabia",null,null,null,"D2","Segundo recíproco por estereorradián metro cuadrado"]
[null,10202106,"Rosal vivo bengala",null,null,null,"D20","Metro cuadrado por joule"]
[null,10202107,"Rosal vivo bibi",null,null,null,"D21","Metro cuadrado por kilogramo"]
[null,10202108,"Rosal vivo caramba",null,null,null,"D22","Metro cuadrado por Mol"]
[null,10202109,"Rosal vivo caramella",null,null,null,"D23","Gramo pluma (proteína)"]
[null,10202110,"Rosal vivo carla",null,null,null,"D24","Metro cuadrado por esteroradian"]
[null,10202111,"Rosal vivo cartagena",null,null,null,"D25","Metro cuadrado por esteroradian joule"]
[null,10202112,"Rosal vivo chanson",null,null,null,"D26","Metro cuadrado por voltiosegundo"]
[null,10202113,"Rosal vivo charmer",null,null,null,"D27","Estereorradían"]
[null,10202114,"Rosal vivo cherry brandy",null,null,null,"D28","sifón"]
[null,10202115,"Rosal vivo chilis",null,null,null,"D29","Terahertz"]
[null,10202116,"Rosal vivo cinnamon",null,null,null,"D30","Terajoule"]
[null,10202117,"Rosal vivo colandro",null,null,null,"D31","Terawatt"]
[null,10202118,"Rosal vivo coral sea",null,null,null,"D32","Terawatt hora "]
[null,10202119,"Rosal vivo corvette o red corvette",null,null,null,"D33","Tesla"]
[null,10202120,"Rosal vivo dark milva",null,null,null,"D34","Tex"]
[null,10202121,"Rosal vivo donna",null,null,null,"D35","Calorías (termoquímicas)"]
[null,10202122,"Rosal vivo dreamer",null,null,null,"D36","Megabit"]
[null,10202123,"Rosal vivo el dorado",null,null,null,"D37","Calorías (termoquímicas) por gramo de kelvin"]
[null,10202124,"Rosal vivo el toro",null,null,null,"D38","Calorías (termoquímicas) por segundo centímetro kelvin"]
[null,10202125,"Rosal vivo elena",null,null,null,"D39","Calorías (termoquímicas) por segundo centímetro cuadrado kelvin"]
[null,10202126,"Rosal vivo ensueño",null,null,null,"D40","Mil litros"]
[null,10202127,"Rosal vivo euforia",null,null,null,"D41","Tonelada por metro cúbico"]
[null,10202128,"Rosal vivo exótica",null,null,null,"D42","Año tropical"]
[null,10202129,"Rosal vivo fancy amazon",null,null,null,"D43","Unidad de masa atómica unificada"]
[null,10202130,"Rosal vivo fiction",null,null,null,"D44","Var"]
[null,10202131,"Rosal vivo finess",null,null,null,"D45","Voltio cuadrado por kelvin cuadrado"]
[null,10202132,"Rosal vivo flameco",null,null,null,"D46","Voltioio-amperio"]
[null,10202133,"Rosal vivo free spirit",null,null,null,"D47","Voltio por centímetro"]
[null,10202134,"Rosal vivo gelato",null,null,null,"D48","Voltio por Kelvin "]
[null,10202135,"Rosal vivo gypsy curiosa",null,null,null,"D49","Millivoltio por Kelvin "]
[null,10202136,"Rosal vivo high and magic",null,null,null,"D5","Kilogramo por centímetro cuadrado"]
[null,10202137,"Rosal vivo high and orange magic",null,null,null,"D50","Voltio por metro"]
[null,10202138,"Rosal vivo iguana o alegra",null,null,null,"D51","Voltio por milímetro"]
[null,10202139,"Rosal vivo impulse",null,null,null,"D52","Watt por kelvin"]
[null,10202140,"Rosal vivo indian femma",null,null,null,"D53","Watt por metro kelvin"]
[null,10202141,"Rosal vivo indian sunset",null,null,null,"D54","Watt por metro cuadrado"]
[null,10202142,"Rosal vivo karusso",null,null,null,"D55","Watt por metro cuadrado kelvin"]
[null,10202143,"Rosal vivo kerio",null,null,null,"D56","Watt por metro cuadrado kelvin a la cuarta potencia"]
[null,10202144,"Rosal vivo kiki",null,null,null,"D57","Watt por estereorradián"]
[null,10202145,"Rosal vivo latin circus",null,null,null,"D58","Watt por estereorradián metro cuadrado"]
[null,10202146,"Rosal vivo leonisa",null,null,null,"D59","Weber por metro"]
[null,10202147,"Rosal vivo lipstick",null,null,null,"D6","Roentgen por segundo"]
[null,10202148,"Rosal vivo lobita",null,null,null,"D60","Weber por milímetro"]
[null,10202149,"Rosal vivo luca",null,null,null,"D61","Minuto [unidad de ángulo]"]
[null,10202150,"Rosal vivo manitou",null,null,null,"D62","Segundo [unidad de ángulo]"]
[null,10202151,"Rosal vivo mariana",null,null,null,"D63","Libro"]
[null,10202152,"Rosal vivo marjan o pk sensation",null,null,null,"D64","bloquear"]
[null,10202153,"Rosal vivo milonga",null,null,null,"D65","Redondo"]
[null,10202154,"Rosal vivo milva",null,null,null,"D66","casete"]
[null,10202155,"Rosal vivo miracle",null,null,null,"D67","Dólar por hora"]
[null,10202156,"Rosal vivo mirage",null,null,null,"D68","Número de palabras"]
[null,10202157,"Rosal vivo monte carlo",null,null,null,"D69","Pulgada a la cuarta potencia"]
[null,10202158,"Rosal vivo movie star",null,null,null,"D7","Sandwich"]
[null,10202159,"Rosal vivo nikita",null,null,null,"D70","Calorías (tabla internacional)"]
[null,10202160,"Rosal vivo orange flame",null,null,null,"D71","Calorías (tabla internacional) por segundo centímetro kelvin"]
[null,10202161,"Rosal vivo orange france",null,null,null,"D72","Calorías (tabla internacional) por segundo centímetro cuadrado kelvin"]
[null,10202162,"Rosal vivo orange intuition",null,null,null,"D73","Joule metro cuadrado"]
[null,10202163,"Rosal vivo orange unique",null,null,null,"D74","Kilogramo por Mol"]
[null,10202164,"Rosal vivo orangine u orangina",null,null,null,"D75","Calorías (tabla internacional) por gramo"]
[null,10202165,"Rosal vivo papaya",null,null,null,"D76","Calorías (tabla internacional) por gramo de kelvin"]
[null,10202166,"Rosal vivo pareo",null,null,null,"D77","MegaCulombio"]
[null,10202167,"Rosal vivo peach sherbet",null,null,null,"D78","Megajoule por segundo"]
[null,10202168,"Rosal vivo queensday",null,null,null,"D79","Viga"]
[null,10202169,"Rosal vivo rosselle",null,null,null,"D8","Draize score"]
[null,10202170,"Rosal vivo royal circus",null,null,null,"D80","Microwatt"]
[null,10202171,"Rosal vivo sari",null,null,null,"D81","Microtesla"]
[null,10202172,"Rosal vivo sensual",null,null,null,"D82","Microvoltio"]
[null,10202173,"Rosal vivo soap",null,null,null,"D83","Milinewton metro"]
[null,10202174,"Rosal vivo sombrero",null,null,null,"D85","Microwatt por metro cuadrado"]
[null,10202175,"Rosal vivo spicy",null,null,null,"D86","MiliCulombio"]
[null,10202176,"Rosal vivo star 2000",null,null,null,"D87","MiliMol por kilogramo"]
[null,10202177,"Rosal vivo summer versilia",null,null,null,"D88","MiliCulombio por metro cúbico"]
[null,10202178,"Rosal vivo trixx",null,null,null,"D89","MiliCulombio por metro cuadrado"]
[null,10202179,"Rosal vivo tropical amazon",null,null,null,"D9","Dina por centímetro cuadrado"]
[null,10202180,"Rosal vivo utopia",null,null,null,"D90","Metro cúbico (neta)"]
[null,10202181,"Rosal vivo valentine",null,null,null,"D91","Rem"]
[null,10202182,"Rosal vivo verano",null,null,null,"D92","banda"]
[null,10202183,"Rosal vivo versilia",null,null,null,"D93","Segundo por metro cúbico"]
[null,10202184,"Rosal vivo voodoo",null,null,null,"D94","Segundo por metro cúbico Radian"]
[null,10202185,"Rosal vivo wow",null,null,null,"D95","Joule por gramo"]
[null,10202186,"Rosal vivo yabadabadoo",null,null,null,"D96","Libra bruta"]
[null,10202200,"Rosales vivos durazno",null,null,null,"D98","Libra masiva"]
[null,10202201,"Rosal vivo alejandra",null,null,null,"D99","manga"]
[null,10202202,"Rosal vivo azafran",null,null,null,"DAA","Decar"]
[null,10202203,"Rosal vivo big fun",null,null,null,"DAD","Decena de días"]
[null,10202204,"Rosal vivo cabaret",null,null,null,"DAY","Día"]
[null,10202205,"Rosal vivo capuccino",null,null,null,"DB","Libra seca"]
[null,10202206,"Rosal vivo carpe diem",null,null,null,"DC","Disco (disco)"]
[null,10202207,"Rosal vivo cosima",null,null,null,"DD","Grado [unidad de ángulo]"]
[null,10202208,"Rosal vivo cumbia",null,null,null,"DE","Acuerdo"]
[null,10202209,"Rosal vivo dream",null,null,null,"DEC","Década"]
[null,10202210,"Rosal vivo epoca",null,null,null,"DG","Decigramo"]
[null,10202211,"Rosal vivo fado",null,null,null,"DI","dispensador"]
[null,10202212,"Rosal vivo femma",null,null,null,"DJ","Decagramo"]
[null,10202213,"Rosal vivo guajira",null,null,null,"DLT","Decilitro"]
[null,10202214,"Rosal vivo high and arena",null,null,null,"DMA","Decámetro cúbico"]
[null,10202215,"Rosal vivo high and dandy",null,null,null,"DMK","Decímetro cuadrado "]
[null,10202216,"Rosal vivo high and lucky",null,null,null,"DMO","Kiloliter norma"]
[null,10202217,"Rosal vivo high and peach",null,null,null,"DMQ","Decímetro cúbico"]
[null,10202218,"Rosal vivo imagination",null,null,null,"DMT","Decímetro"]
[null,10202219,"Rosal vivo isis",null,null,null,"DN","Decinewton metro"]
[null,10202220,"Rosal vivo joy o light versilia",null,null,null,"DPC","Docenas de piezas"]
[null,10202221,"Rosal vivo juliet ausjameson",null,null,null,"DPR","Docenas de pares"]
[null,10202222,"Rosal vivo la parisienne",null,null,null,"DPT","Peso de desplazamiento"]
[null,10202223,"Rosal vivo la perla",null,null,null,"DQ","registro de datos"]
[null,10202224,"Rosal vivo lovita sunblaze",null,null,null,"DRA","Dram (EUA)"]
[null,10202225,"Rosal vivo malilena o marilena",null,null,null,"DRI","Dram (UK)"]
[null,10202226,"Rosal vivo monyna",null,null,null,"DRL","Docena de rodillos"]
[null,10202227,"Rosal vivo nectarine",null,null,null,"DRM","Drachm (UK)"]
[null,10202228,"Rosal vivo oriental curiosa",null,null,null,"DS","monitor"]
[null,10202229,"Rosal vivo osiana",null,null,null,"DT","Tonelada seca"]
[null,10202230,"Rosal vivo peach avalanche",null,null,null,"DTN","Decitonelada métrica"]
[null,10202231,"Rosal vivo peach deja vu",null,null,null,"DU","dina"]
[null,10202232,"Rosal vivo picanto",null,null,null,"DWT","Pennyweight"]
[null,10202233,"Rosal vivo prima donna",null,null,null,"Dx","Dina por centímetro"]
[null,10202234,"Rosal vivo sheril",null,null,null,"DY","Libro de directorio"]
[null,10202235,"Rosal vivo sirocco",null,null,null,"DZN","Docena"]
[null,10202236,"Rosal vivo tamara",null,null,null,"DZP","Docena de paquete"]
[null,10202237,"Rosal vivo taxo",null,null,null,"E01","Newton por centímetro cuadrado"]
[null,10202238,"Rosal vivo trust",null,null,null,"E07","Megawatt hora por hora"]
[null,10202239,"Rosal vivo valencia",null,null,null,"E08","Megavatios por hertz"]
[null,10202240,"Rosal vivo vinci",null,null,null,"E09","Miliamperio hora"]
[null,10202241,"Rosal vivo wanda",null,null,null,"E10","Día de grado"]
[null,10202300,"Rosales vivos rosados",null,null,null,"E11","Gigacalorie"]
[null,10202301,"Rosal vivo aerobic",null,null,null,"E12","Mille"]
[null,10202302,"Rosal vivo after party",null,null,null,"E14","Kilocaloría (tabla internacional)"]
[null,10202303,"Rosal vivo amsterdam",null,null,null,"E15","Kilocaloría (termoquímica) por hora"]
[null,10202304,"Rosal vivo aqua rose",null,null,null,"E16","Millón de btu (ti) por hora"]
[null,10202305,"Rosal vivo attache",null,null,null,"E17","Pie cúbico por segundo"]
[null,10202306,"Rosal vivo attitude",null,null,null,"E18","Tonelada por hora"]
[null,10202307,"Rosal vivo ballet",null,null,null,"E19","Ping"]
[null,10202308,"Rosal vivo belami",null,null,null,"E20","Megabit por segundo"]
[null,10202309,"Rosal vivo bella voo o belle vue",null,null,null,"E21","Shares"]
[null,10202310,"Rosal vivo bling bling",null,null,null,"E22","Tue"]
[null,10202311,"Rosal vivo blushing akito",null,null,null,"E23","Neumático"]
[null,10202312,"Rosal vivo brooke",null,null,null,"E25","Unidad activa"]
[null,10202313,"Rosal vivo bugatti",null,null,null,"E27","Dosis"]
[null,10202314,"Rosal vivo cadillac",null,null,null,"E28","Tonelada seca de aire"]
[null,10202315,"Rosal vivo carnaval",null,null,null,"E3","remolque"]
[null,10202316,"Rosal vivo cereza",null,null,null,"E30","Hebra"]
[null,10202317,"Rosal vivo charming unique",null,null,null,"E31","Metro cuadrado por litro"]
[null,10202318,"Rosal vivo cherry o",null,null,null,"E32","Litros por hora"]
[null,10202319,"Rosal vivo ciciolina",null,null,null,"E33","Por mil pies"]
[null,10202320,"Rosal vivo classic cezanne",null,null,null,"E34","Gigabyte"]
[null,10202321,"Rosal vivo clasic duett",null,null,null,"E35","Terabyte"]
[null,10202322,"Rosal vivo cosmiq",null,null,null,"E36","Petabyte"]
[null,10202323,"Rosal vivo dark engagement",null,null,null,"E37","Pixel"]
[null,10202324,"Rosal vivo daytona",null,null,null,"E38","Megapíxeles"]
[null,10202325,"Rosal vivo dekora",null,null,null,"E39","Puntos por pulgada"]
[null,10202326,"Rosal vivo dolores",null,null,null,"E4","Kilo bruto"]
[null,10202327,"Rosal vivo eliza",null,null,null,"E40","Parte por cien mil"]
[null,10202328,"Rosal vivo flash baccara",null,null,null,"E41","Kilogramo-fuerza por milímetro cuadrado"]
[null,10202329,"Rosal vivo full house",null,null,null,"E42","Kilogramo-fuerza por centímetro cuadrado"]
[null,10202330,"Rosal vivo funky",null,null,null,"E43","Joule por centímetro cuadrado"]
[null,10202331,"Rosal vivo giliane",null,null,null,"E44","Metros kilogramo-fuerza por centímetro cuadrado"]
[null,10202332,"Rosal vivo gran europe",null,null,null,"E45","MiliOhm"]
[null,10202333,"Rosal vivo habari",null,null,null,"E46","Kilovatio hora por metro cúbico"]
[null,10202334,"Rosal vivo hanseat",null,null,null,"E47","Kilovatio hora por kelvin"]
[null,10202335,"Rosal vivo high and amazing",null,null,null,"E48","Unidad de servicio"]
[null,10202336,"Rosal vivo high and bonita",null,null,null,"E49","Día de trabajo"]
[null,10202337,"Rosal vivo high and booming",null,null,null,"E5","Tonelada métrica larga"]
[null,10202338,"Rosal vivo high and fantasy",null,null,null,"E50","Unidad de cuenta"]
[null,10202339,"Rosal vivo high and rich",null,null,null,"E51","Trabajo"]
[null,10202340,"Rosal vivo hot lady",null,null,null,"E52","Run foot"]
[null,10202341,"Rosal vivo hot princess",null,null,null,"E53","Prueba"]
[null,10202342,"Rosal vivo inspiration",null,null,null,"E54","Viaje"]
[null,10202343,"Rosal vivo jeimy",null,null,null,"E55","Utilizar"]
[null,10202344,"Rosal vivo kachita",null,null,null,"E56","Bien"]
[null,10202345,"Rosal vivo karen",null,null,null,"E57","Zona"]
[null,10202346,"Rosal vivo kenji",null,null,null,"E58","Exabit por segundo"]
[null,10202347,"Rosal vivo kiko",null,null,null,"E59","Exbibyte"]
[null,10202348,"Rosal vivo laser",null,null,null,"E60","Pebibyte"]
[null,10202349,"Rosal vivo latin duett",null,null,null,"E61","Tebibyte"]
[null,10202350,"Rosal vivo latin fever",null,null,null,"E62","Gibibyte"]
[null,10202351,"Rosal vivo lifestyle",null,null,null,"E63","Mebibyte"]
[null,10202352,"Rosal vivo light orlando",null,null,null,"E64","Kibibyte"]
[null,10202353,"Rosal vivo lovely dreams",null,null,null,"E65","Exbibit por metro"]
[null,10202354,"Rosal vivo loyalty",null,null,null,"E66","Exbibit por metro cuadrado"]
[null,10202355,"Rosal vivo malibu",null,null,null,"E67","Exbibit por metro cúbico"]
[null,10202356,"Rosal vivo mata-hari",null,null,null,"E68","Gigabyte por segundo"]
[null,10202357,"Rosal vivo memphis",null,null,null,"E69","Gibibit por metro"]
[null,10202358,"Rosal vivo mi amor",null,null,null,"E70","Gibibit por metro cuadrado"]
[null,10202359,"Rosal vivo miami",null,null,null,"E71","Gibibit por metro cúbico"]
[null,10202360,"Rosal vivo michelle",null,null,null,"E72","Kibibit por metro"]
[null,10202361,"Rosal vivo mikaela",null,null,null,"E73","Kibibit por metro cuadrado"]
[null,10202362,"Rosal vivo orchestra",null,null,null,"E74","Kikibit por metro cúbico."]
[null,10202363,"Rosal vivo orlando",null,null,null,"E75","Mebbit por metro."]
[null,10202364,"Rosal vivo osadia",null,null,null,"E76","Mebbitt por metro cuadrado."]
[null,10202365,"Rosal vivo paeonia freelander",null,null,null,"E77","Mebbit por metro cúbico. "]
[null,10202366,"Rosal vivo paula",null,null,null,"E78","Petabit"]
[null,10202367,"Rosal vivo pavarotti",null,null,null,"E79","Pebibit por segundo."]
[null,10202368,"Rosal vivo pink intuition",null,null,null,"E80","Pebibit por metro."]
[null,10202369,"Rosal vivo poison",null,null,null,"E81","Pebibit por metro cuadrado."]
[null,10202370,"Rosal vivo princess",null,null,null,"E82","Pebibit por metro cúbico."]
[null,10202371,"Rosal vivo queen mary",null,null,null,"E83","Tebibit."]
[null,10202372,"Rosal vivo raphaela",null,null,null,"E84","Tebibit por segundo"]
[null,10202373,"Rosal vivo raspberry ice",null,null,null,"E85","Tebibit por metro."]
[null,10202374,"Rosal vivo ravel",null,null,null,"E86","Tebibit por metro cúbico."]
[null,10202375,"Rosal vivo riviera",null,null,null,"E87","Tebibit por metro cuadrado"]
[null,10202376,"Rosal vivo sade",null,null,null,"E88","Bit por metro"]
[null,10202377,"Rosal vivo sashimi",null,null,null,"E89","Bit por metro cuadrado"]
[null,10202378,"Rosal vivo shanya",null,null,null,"E90","Centímetro recíproco"]
[null,10202379,"Rosal vivo shocking versilia",null,null,null,"E91","Día recíproco"]
[null,10202380,"Rosal vivo solitaire",null,null,null,"E92","Decímetro cúbico por hora"]
[null,10202381,"Rosal vivo something different",null,null,null,"E93","Kilogramo por hora"]
[null,10202382,"Rosal vivo splendid renate",null,null,null,"E94","KiloMol por segundo"]
[null,10202383,"Rosal vivo star",null,null,null,"E95","Mol por segundo"]
[null,10202384,"Rosal vivo sweet candia",null,null,null,"E96","Grado por segundo"]
[null,10202385,"Rosal vivo sweet moments",null,null,null,"E97","Mililitro por gadro celsius metro"]
[null,10202386,"Rosal vivo sweet unique",null,null,null,"E98","Grado celsius por kelvin"]
[null,10202387,"Rosal vivo taboo",null,null,null,"E99","Hectopascal por bar"]
[null,10202388,"Rosal vivo timona",null,null,null,"EA","Elemento"]
[null,10202389,"Rosal vivo topaz",null,null,null,"EB","Casilla de correo electrónico"]
[null,10202390,"Rosal vivo vogue",null,null,null,"EP","Paquete de once"]
[null,10202391,"Rosal vivo voila",null,null,null,"EQ","Galón equivalente"]
[null,10202392,"Rosal vivo wild one",null,null,null,"F01","Bit por metro cúbico"]
[null,10202393,"Rosal vivo yves piaget",null,null,null,"F02","Kelvin por kelvin"]
[null,10202400,"Rosales vivos rojos o burgundy",null,null,null,"F03","Kilopascal por bar"]
[null,10202401,"Rosal vivo african dawn",null,null,null,"F04","Milibar por bar"]
[null,10202402,"Rosal vivo amada",null,null,null,"F05","Megapascal por bar"]
[null,10202403,"Rosal vivo black baccara",null,null,null,"F06","Poise por bar"]
[null,10202404,"Rosal vivo black beauty",null,null,null,"F07","Pascal por bar"]
[null,10202405,"Rosal vivo black finess o black magic",null,null,null,"F08","Miliamperio por pulgada"]
[null,10202406,"Rosal vivo black magic",null,null,null,"F1","Mil pies cúbicos por día"]
[null,10202407,"Rosal vivo bohemian o pasarela",null,null,null,"F10","Kelvin por hora"]
[null,10202408,"Rosal vivo breathless",null,null,null,"F11","Kelvin por minuto"]
[null,10202409,"Rosal vivo caballero",null,null,null,"F12","Kelvin por segundo"]
[null,10202410,"Rosal vivo carrera",null,null,null,"F13","Slug"]
[null,10202411,"Rosal vivo charlene",null,null,null,"F14","Gramo por kelvin"]
[null,10202412,"Rosal vivo charlotte",null,null,null,"F15","Kilogramo por kelvin"]
[null,10202413,"Rosal vivo cherry lady",null,null,null,"F16","Miligramo por kelvin"]
[null,10202414,"Rosal vivo cherry love",null,null,null,"F17","Libra fuerza por pie"]
[null,10202415,"Rosal vivo classy rose",null,null,null,"F18","Kilogramo centímetro cuadrado"]
[null,10202416,"Rosal vivo colorado velvet",null,null,null,"F19","Kilogramo milimetro cuadrado"]
[null,10202417,"Rosal vivo corazon",null,null,null,"F20","Libra pulgada cuadrada"]
[null,10202418,"Rosal vivo corrida",null,null,null,"F21","Libra fuerza pulgada"]
[null,10202419,"Rosal vivo dynamite",null,null,null,"F22","Libra fuerza por pie entre amperio"]
[null,10202420,"Rosal vivo eurored",null,null,null,"F23","Gramo por decímetro cúbico"]
[null,10202421,"Rosal vivo fashion",null,null,null,"F24","Kilogramo por kiloMol"]
[null,10202422,"Rosal vivo fire and ice",null,null,null,"F25","Gramo por hertz"]
[null,10202423,"Rosal vivo first red",null,null,null,"F26","Gramo por día"]
[null,10202424,"Rosal vivo forever young",null,null,null,"F27","Gramo por hora"]
[null,10202425,"Rosal vivo freedom",null,null,null,"F28","Gramo por minuto"]
[null,10202426,"Rosal vivo freestyle",null,null,null,"F29","Gramo por segundo"]
[null,10202427,"Rosal vivo friendship",null,null,null,"F30","Kilogramo por día"]
[null,10202428,"Rosal vivo gospel",null,null,null,"F31","Kilogramo por minuto"]
[null,10202429,"Rosal vivo graffity",null,null,null,"F32","Miligramo por dia"]
[null,10202430,"Rosal vivo grand gala",null,null,null,"F33","Miligramo por minuto"]
[null,10202431,"Rosal vivo grand prix",null,null,null,"F34","Miligramo por segundo"]
[null,10202432,"Rosal vivo grand classe",null,null,null,"F35","Gramo por día kelvin"]
[null,10202433,"Rosal vivo hearts",null,null,null,"F36","Gramo por hora kelvin"]
[null,10202434,"Rosal vivo heat",null,null,null,"F37","Gramo por minuto kelvin"]
[null,10202435,"Rosal vivo hocus pocus",null,null,null,"F38","Gramo por segundo kelvin"]
[null,10202436,"Rosal vivo lady in red",null,null,null,"F39","Kilogramo por día kelvin"]
[null,10202437,"Rosal vivo latin lady",null,null,null,"F40","Kilogramo por hora kelvin"]
[null,10202438,"Rosal vivo legend",null,null,null,"F41","Kilogramo por minuto kelvin"]
[null,10202439,"Rosal vivo lulu",null,null,null,"F42","Kilogramo por segundo kelvin"]
[null,10202440,"Rosal vivo luna rossa",null,null,null,"F43","Miligramo por día kelvin"]
[null,10202441,"Rosal vivo luxor",null,null,null,"F44","Miligramo por hora kelvin"]
[null,10202442,"Rosal vivo madame delbard o carola",null,null,null,"F45","Miligramo por minuto kelvin"]
[null,10202443,"Rosal vivo miss paris",null,null,null,"F46","Miligramo por segundo kelvin"]
[null,10202444,"Rosal vivo nicole",null,null,null,"F47","Newton por milímetro"]
[null,10202445,"Rosal vivo night fever",null,null,null,"F48","Libra fuerza por pulgada"]
[null,10202446,"Rosal vivo obsession",null,null,null,"F49","Rod (Unidad de distancia)"]
[null,10202447,"Rosal vivo opium",null,null,null,"F50","Micrómetro por kelvin"]
[null,10202448,"Rosal vivo paz",null,null,null,"F51","Centímetro por kelvin"]
[null,10202449,"Rosal vivo preference",null,null,null,"F52","Metro por kelvin"]
[null,10202450,"Rosal vivo red berlin",null,null,null,"F53","Mililitro por kelvin"]
[null,10202451,"Rosal vivo red bull",null,null,null,"F54","MiliOhm por metro"]
[null,10202452,"Rosal vivo red calypso",null,null,null,"F55","Ohm por milla (milla estatal)"]
[null,10202453,"Rosal vivo red diamond",null,null,null,"F56","Ohm por kilómetro"]
[null,10202454,"Rosal vivo red fantasy",null,null,null,"F57","Miliamperio por libra-fuerza por pulgada cuadrada"]
[null,10202455,"Rosal vivo red france",null,null,null,"F58","Bar recíproco"]
[null,10202456,"Rosal vivo red intuition",null,null,null,"F59","Miliamperio por bar"]
[null,10202457,"Rosal vivo red jewel",null,null,null,"F60","Grado celsius por bar"]
[null,10202458,"Rosal vivo red magic",null,null,null,"F61","Kelvin por bar"]
[null,10202459,"Rosal vivo red one",null,null,null,"F62","Gramo por día bar"]
[null,10202460,"Rosal vivo red paris",null,null,null,"F63","Gramo por hora bar"]
[null,10202461,"Rosal vivo red princess",null,null,null,"F64","Gramo por minuto bar"]
[null,10202462,"Rosal vivo red sensation o colorad",null,null,null,"F65","Gramo por segundo bar"]
[null,10202463,"Rosal vivo red unique",null,null,null,"F66","Kililogramo por día bar"]
[null,10202464,"Rosal vivo rockefeller",null,null,null,"F67","Kilogramo por hora bar"]
[null,10202465,"Rosal vivo romeo",null,null,null,"F68","Kilogramo por minuto bar"]
[null,10202466,"Rosal vivo rouge baiser",null,null,null,"F69","Kilogramo por segundo bar"]
[null,10202467,"Rosal vivo roulette",null,null,null,"F70","Miligramo por día bar"]
[null,10202468,"Rosal vivo royal massai",null,null,null,"F71","Miligramo por hora bar"]
[null,10202469,"Rosal vivo royal red",null,null,null,"F72","Miligramo por minuto bar"]
[null,10202470,"Rosal vivo samurai",null,null,null,"F73","Miligramo por segundo bar"]
[null,10202471,"Rosal vivo sexy red",null,null,null,"F74","Gramo por bar"]
[null,10202472,"Rosal vivo starfire",null,null,null,"F75","Miligramo por bar"]
[null,10202473,"Rosal vivo tango",null,null,null,"F76","Miliamperio por milímetro"]
[null,10202474,"Rosal vivo tiger tail",null,null,null,"F77","Pascal segundo por kelvin"]
[null,10202475,"Rosal vivo tinto",null,null,null,"F78","Pulgada de agua"]
[null,10202476,"Rosal vivo top secret",null,null,null,"F79","Pulgada de mercurio"]
[null,10202477,"Rosal vivo vital",null,null,null,"F80","Caballos de fuerza de agua"]
[null,10202478,"Rosal vivo wisdom",null,null,null,"F81","Bar por kelvin"]
[null,10202479,"Rosal vivo xantia",null,null,null,"F82","Hectopascal por kelvin"]
[null,10202480,"Rosal vivo xcite",null,null,null,"F83","Kilopascal por kelvin"]
[null,10202500,"Rosales vivos sweetheart","Rosales La Minuette",null,null,"F84","Milibar por kelvin"]
[null,10202501,"Rosal vivo burgundy sweetheart","Rosal vivo La Minuette burgundy",null,null,"F85","Megapascal por kelvin"]
[null,10202502,"Rosal vivo cream sweetheart","Rosal vivo La Minuette cream",null,null,"F86","Poise por kelvin"]
[null,10202503,"Rosal vivo hot pink sweetheart","Rosal vivo La Minuette hot pink",null,null,"F87","Voltio por litro minuto"]
[null,10202504,"Rosal vivo lavender sweetheart","Rosal vivo La Minuette lavender",null,null,"F88","Newton centímetro"]
[null,10202505,"Rosal vivo light pink sweetheart","Rosal vivo La Minuette light pink",null,null,"F89","Newton metro por grados"]
[null,10202506,"Rosal vivo orange sweetheart","Rosal vivo La Minuette orange",null,null,"F9","Fibra por centímetro cúbico de aire"]
[null,10202507,"Rosal vivo peach sweetheart","Rosal vivo La Minuette peach",null,null,"F90","Newton metro por amperio"]
[null,10202508,"Rosal vivo red sweetheart","Rosal vivo La Minuette red",null,null,"F91","Bar litro por segundo"]
[null,10202509,"Rosal vivo white sweetheart","Rosal vivo La Minuette white",null,null,"F92","Bar metro cúbico por segundo"]
[null,10202510,"Rosal vivo yelllow sweetheart","Rosal vivo La Minuette yellow",null,null,"F93","Hectopascal litro por segundo"]
[null,10202600,"Rosales vivos blancos",null,null,null,"F94","Hectopascal metro cúbico por segundo"]
[null,10202601,"Rosal vivo absolut",null,null,null,"F95","Milibar litro por segundo"]
[null,10202602,"Rosal vivo aida",null,null,null,"F96","Milibar metro cúbico por segundo"]
[null,10202603,"Rosal vivo akito",null,null,null,"F97","Megapascal litro por segundo"]
[null,10202604,"Rosal vivo amelia",null,null,null,"F98","Megapascal metro cúbico por segundo"]
[null,10202605,"Rosal vivo anastasia",null,null,null,"F99","Pascal litro por segundo"]
[null,10202606,"Rosal vivo andean crystal",null,null,null,"FAH","Grado fahrenheit"]
[null,10202607,"Rosal vivo angel",null,null,null,"FAR","Farad"]
[null,10202608,"Rosal vivo annemarie",null,null,null,"FB","campo"]
[null,10202609,"Rosal vivo avalanche",null,null,null,"FBM","Medidor de fibra"]
[null,10202610,"Rosal vivo bianca",null,null,null,"FC","Mil pies cúbicos"]
[null,10202611,"Rosal vivo blizzard",null,null,null,"FD","Millones de partículas por pie cúbico"]
[null,10202612,"Rosal vivo bridal akito",null,null,null,"FE","Pie de pista"]
[null,10202613,"Rosal vivo domenica",null,null,null,"FF","Cien metros cúbicos"]
[null,10202614,"Rosal vivo escimo",null,null,null,"FG","Parche transdérmico"]
[null,10202615,"Rosal vivo farfalla",null,null,null,"FH","MicroMol"]
[null,10202616,"Rosal vivo high and peace",null,null,null,"FIT","Fallas en el tiempo"]
[null,10202617,"Rosal vivo high and pure",null,null,null,"FL","Flake ton"]
[null,10202618,"Rosal vivo inocencia o innocenti",null,null,null,"FM","Millones de pies cúbicos"]
[null,10202619,"Rosal vivo ivory",null,null,null,"FOT","Pie"]
[null,10202620,"Rosal vivo mondial",null,null,null,"FP","Libra por pie cuadrado"]
[null,10202621,"Rosal vivo mount everest",null,null,null,"FR","Pie por minuto"]
[null,10202622,"Rosal vivo nova zembla",null,null,null,"FS","Pie por segundo"]
[null,10202623,"Rosal vivo patience o auspator",null,null,null,"FTK","Pie cuadrado"]
[null,10202624,"Rosal vivo polar star",null,null,null,"FTQ","Pie cúbico"]
[null,10202625,"Rosal vivo polo",null,null,null,"G01","Pascal metro cúbico por segundo"]
[null,10202626,"Rosal vivo proud",null,null,null,"G04","Centímetro por bar"]
[null,10202627,"Rosal vivo snowy jewel",null,null,null,"G05","Metro por bar "]
[null,10202628,"Rosal vivo tibet",null,null,null,"G06","Milímetro por bar "]
[null,10202629,"Rosal vivo tineke",null,null,null,"G08","Pulgada cuadrada por segundo"]
[null,10202630,"Rosal vivo vitality",null,null,null,"G09","Metro cuadrado por segundo kelvin"]
[null,10202631,"Rosal vivo white cadillac",null,null,null,"G10","Stokes por kelvin"]
[null,10202632,"Rosal vivo white dove",null,null,null,"G11","Gramo por centímetro cúbico bar"]
[null,10202700,"Rosales vivos amarillos",null,null,null,"G12","Gramo por decímetro cúbico bar"]
[null,10202701,"Rosal vivo aalsmeer gold",null,null,null,"G13","Gramo por litro bar"]
[null,10202702,"Rosal vivo alina",null,null,null,"G14","Gramo por metro cúbico bar"]
[null,10202703,"Rosal vivo ambiance",null,null,null,"G15","Gramo por mililitro bar"]
[null,10202704,"Rosal vivo aquarel",null,null,null,"G16","Kilogramo por centímetro cúbico bar"]
[null,10202705,"Rosal vivo autumn",null,null,null,"G17","Kilogramo por litro bar"]
[null,10202706,"Rosal vivo brasil",null,null,null,"G18","Kilogramo por metro cúbico bar"]
[null,10202707,"Rosal vivo candle light",null,null,null,"G19","Newton metro por kilogramo"]
[null,10202708,"Rosal vivo cantata o cantate",null,null,null,"G2","Galón (EUA) por minuto"]
[null,10202709,"Rosal vivo capriccio",null,null,null,"G20","Libra-fuerza pie por libra"]
[null,10202710,"Rosal vivo caribbean",null,null,null,"G21","Taza (unidad de volumen)"]
[null,10202711,"Rosal vivo circus",null,null,null,"G23","Peck"]
[null,10202712,"Rosal vivo citran",null,null,null,"G24","Cucharada (estados unidos)"]
[null,10202713,"Rosal vivo concorde",null,null,null,"G25","Cucharilla (estados unidos)"]
[null,10202714,"Rosal vivo conga",null,null,null,"G26","Estere"]
[null,10202715,"Rosal vivo deja vu",null,null,null,"G27","Centímetro cúbico por kelvin"]
[null,10202716,"Rosal vivo desire",null,null,null,"G28","Litro por kelvin"]
[null,10202717,"Rosal vivo donia sol",null,null,null,"G29","Metro cúbico por kelvin"]
[null,10202718,"Rosal vivo dueto",null,null,null,"G3","Galón (RU) por minuto"]
[null,10202719,"Rosal vivo erin",null,null,null,"G30","Mililitro por klevin"]
[null,10202720,"Rosal vivo exotic curiosa",null,null,null,"G31","Kilogramo por centímetro cúbico"]
[null,10202721,"Rosal vivo feria",null,null,null,"G32","Onza (avoirdupois) por yarda cúbica"]
[null,10202722,"Rosal vivo fire bird",null,null,null,"G33","Gramo por centímetro cúbico kelvin"]
[null,10202723,"Rosal vivo florida",null,null,null,"G34","Gramo por decímetro cúbico kelvin"]
[null,10202724,"Rosal vivo friendly",null,null,null,"G35","Gramo por litro kelvin"]
[null,10202725,"Rosal vivo gallinda",null,null,null,"G36","Gramo por metro cúbico kelvin"]
[null,10202726,"Rosal vivo geisha",null,null,null,"G37","Gramo por mililitro kelvin"]
[null,10202727,"Rosal vivo gelbe",null,null,null,"G38","Kilogramo por centímetro cúbico kelvin"]
[null,10202728,"Rosal vivo gelosia o yellow flame",null,null,null,"G39","Kilogramo por litro kelvin"]
[null,10202729,"Rosal vivo gold rush",null,null,null,"G40","Kilogramo por metro cúbico kelvin"]
[null,10202730,"Rosal vivo gold star",null,null,null,"G41","Metro cuadrado por segundo bar"]
[null,10202731,"Rosal vivo gold strike",null,null,null,"G42","Microsiemens por centímetro"]
[null,10202732,"Rosal vivo golda",null,null,null,"G43","Microsiemens por metro"]
[null,10202733,"Rosal vivo golden fashion",null,null,null,"G44","Nanosiemens por centímetro"]
[null,10202734,"Rosal vivo golden gate",null,null,null,"G45","Nanosiemens por metro"]
[null,10202735,"Rosal vivo gran dorado",null,null,null,"G46","Stokes por bar"]
[null,10202736,"Rosal vivo helio",null,null,null,"G47","Centímetro cúbico por día"]
[null,10202737,"Rosal vivo high and exotic",null,null,null,"G48","Centímetro cúbico por hora"]
[null,10202738,"Rosal vivo high and yellow flame",null,null,null,"G49","Centímetro cúbico por minuto"]
[null,10202739,"Rosal vivo high and yellow magic",null,null,null,"G50","Galón por hora"]
[null,10202740,"Rosal vivo high society",null,null,null,"G51","Litro por segundo"]
[null,10202741,"Rosal vivo hummer",null,null,null,"G52","Metro cúbico por día"]
[null,10202742,"Rosal vivo idole o elle",null,null,null,"G53","Metro cúbico por minuto"]
[null,10202743,"Rosal vivo inti",null,null,null,"G54","Mililitro por día"]
[null,10202744,"Rosal vivo jet set",null,null,null,"G55","Mililitro por hora"]
[null,10202745,"Rosal vivo judy",null,null,null,"G56","Pulgada cúbica por hora"]
[null,10202746,"Rosal vivo jupiter",null,null,null,"G57","Pulgada cúbica por minuto"]
[null,10202747,"Rosal vivo konfetti",null,null,null,"G58","Pulgada cúbica por segundo"]
[null,10202748,"Rosal vivo kyara o kira",null,null,null,"G59","Miliamperio por litro minuto"]
[null,10202749,"Rosal vivo latin beauty",null,null,null,"G60","Voltio por bar"]
[null,10202750,"Rosal vivo latin spirit",null,null,null,"G61","Centímetro cúbico por día kelvin"]
[null,10202751,"Rosal vivo latina",null,null,null,"G62","Centímetro cúbico por hora kelvin"]
[null,10202752,"Rosal vivo lina",null,null,null,"G63","Centímetro cúbico por minuto kelvin"]
[null,10202753,"Rosal vivo lindsey",null,null,null,"G64","Centímetro cúbico por segundo kelvin"]
[null,10202754,"Rosal vivo male",null,null,null,"G65","Litro por día kelvin"]
[null,10202755,"Rosal vivo marie clare",null,null,null,"G66","Litro por hora kelvin"]
[null,10202756,"Rosal vivo marisa",null,null,null,"G67","Litro por minuto kelvin"]
[null,10202757,"Rosal vivo matchball",null,null,null,"G68","Litro por segundo kelvin"]
[null,10202758,"Rosal vivo melon",null,null,null,"G69","Metro cúbico por día kelvin"]
[null,10202759,"Rosal vivo mohana",null,null,null,"G7","Hoja de microficha"]
[null,10202760,"Rosal vivo okie dokie",null,null,null,"G70","Metro cúbico por hora kelvin"]
[null,10202761,"Rosal vivo pailine",null,null,null,"G71","Metro cúbico por minuto kelvin"]
[null,10202762,"Rosal vivo parrot",null,null,null,"G72","Metro cúbico por segundo kelvin"]
[null,10202763,"Rosal vivo rio d oro",null,null,null,"G73","Mililitro por día kelvin"]
[null,10202764,"Rosal vivo salami",null,null,null,"G74","Mililitro por hora kelvin"]
[null,10202765,"Rosal vivo santa fe",null,null,null,"G75","Mililitro por minuto kelvin"]
[null,10202766,"Rosal vivo skyline",null,null,null,"G76","Mililitro por segundo kelvin"]
[null,10202767,"Rosal vivo sonrisa",null,null,null,"G77","Milímetro a la cuarta potencia "]
[null,10202768,"Rosal vivo star ambiance",null,null,null,"G78","Centímetro cúbico por día bar"]
[null,10202769,"Rosal vivo starbust",null,null,null,"G79","Centímetro cúbico por hora bar"]
[null,10202770,"Rosal vivo sun king",null,null,null,"G80","Centímetro cúbico por minuto bar"]
[null,10202771,"Rosal vivo sunmaster",null,null,null,"G81","Centímetro cúbico por segundo bar"]
[null,10202772,"Rosal vivo sunny milva",null,null,null,"G82","Litro por día bar"]
[null,10202773,"Rosal vivo sushi",null,null,null,"G83","Litro por hora bar"]
[null,10202774,"Rosal vivo tabasco",null,null,null,"G84","Litro por minuto bar"]
[null,10202775,"Rosal vivo tara",null,null,null,"G85","Litro por segundo bar"]
[null,10202776,"Rosal vivo tresor 2000",null,null,null,"G86","Metro cúbico por día bar"]
[null,10202777,"Rosal vivo ooty",null,null,null,"G87","Metro cúbico por hora bar"]
[null,10202778,"Rosal vivo yellow coral",null,null,null,"G88","Metro cúbico por minuto bar"]
[null,10202779,"Rosal vivo yellow finess",null,null,null,"G89","Metro cúbico por segundo bar"]
[null,10202780,"Rosal vivo yellow submarine",null,null,null,"G90","Mililitro por día bar"]
[null,10202781,"Rosal vivo yellow sunset",null,null,null,"G91","Mililitro por hora bar"]
[null,10202782,"Rosal vivo yelllow timeless",null,null,null,"G92","Mililitro por minuto bar"]
[null,10202800,"Rosales vivos spray",null,null,null,"G93","Mililitro por segundo bar"]
[null,10202801,"Rosal vivo alegria spray",null,null,null,"G94","Centímetro cúbico por bar"]
[null,10202802,"Rosal vivo andrea follies spray",null,null,null,"G95","Litro por bar"]
[null,10202803,"Rosal vivo antara follies spray",null,null,null,"G96","Metro cúbico por bar"]
[null,10202804,"Rosal vivo arrow follies spray",null,null,null,"G97","Mililitro por bar "]
[null,10202805,"Rosal vivo babe spray",null,null,null,"G98","Micro henry por kiloOhm"]
[null,10202806,"Rosal vivo bellina collection spray",null,null,null,"G99","Micro henry por Ohm"]
[null,10202807,"Rosal vivo blue moon spray",null,null,null,"GB","Galón (EUA) por día"]
[null,10202808,"Rosal vivo chablis spray",null,null,null,"GBQ","Gigabecquerel"]
[null,10202809,"Rosal vivo cherry follies spray",null,null,null,"GC","Gramo por 100 gramos"]
[null,10202810,"Rosal vivo chess spray",null,null,null,"Gd","Barril bruto"]
[null,10202811,"Rosal vivo classic lydia spray",null,null,null,"GDW","Gramo, peso seco"]
[null,10202812,"Rosal vivo cream gracia spray",null,null,null,"GE","Libra por galón (EUA)"]
[null,10202813,"Rosal vivo cream lydia spray",null,null,null,"GF","Gramo por metro (gramo por 100 centímetros)"]
[null,10202814,"Rosal vivo cream sensation spray",null,null,null,"GFI","Gramo de isótopo fisible"]
[null,10202815,"Rosal vivo cremita spray",null,null,null,"GGR","Grandioso"]
[null,10202816,"Rosal vivo diablo spray",null,null,null,"GH","Medio galón (US)"]
[null,10202817,"Rosal vivo electra spray",null,null,null,"GIA","Gill (us)"]
[null,10202818,"Rosal vivo fire king spray",null,null,null,"GIC","Gramo, incluido el contenedor"]
[null,10202819,"Rosal vivo fleur spray",null,null,null,"GII","Gill (uk)"]
[null,10202820,"Rosal vivo girlie follies spray",null,null,null,"GIP","Grama, incluido el embalaje interior"]
[null,10202821,"Rosal vivo giselle follies spray",null,null,null,"GJ","Gramo por mililitro"]
[null,10202822,"Rosal vivo golden collection spray",null,null,null,"GK","Gramo por kilogramo"]
[null,10202823,"Rosal vivo golden mimi spray",null,null,null,"GL","Gramo por litro"]
[null,10202824,"Rosal vivo gracia spray",null,null,null,"GLD","Galón seco (EUA)"]
[null,10202825,"Rosal vivo hot majolica spray",null,null,null,"GLI","Galón (UK)"]
[null,10202826,"Rosal vivo hot pink follies spray",null,null,null,"GLL","Galón (EUA)"]
[null,10202827,"Rosal vivo ilse spray",null,null,null,"GM","Gramo por metro cuadrado"]
[null,10202828,"Rosal vivo jelena spray",null,null,null,"GN","Galón bruto"]
[null,10202829,"Rosal vivo laminuette spray",null,null,null,"GO","Miligramo por metro cuadrado"]
[null,10202830,"Rosal vivo lavender follies spray",null,null,null,"GP","Miligramo por metro cúbico"]
[null,10202831,"Rosal vivo limoncello spray",null,null,null,"GQ","Microgramo por metro cúbico"]
[null,10202832,"Rosal vivo little silver spray",null,null,null,"GRM","Gramo"]
[null,10202833,"Rosal vivo lovely lydia spray",null,null,null,"GRN","Grano"]
[null,10202834,"Rosal vivo lucy spray",null,null,null,"GRO","Gross"]
[null,10202835,"Rosal vivo lydia spray",null,null,null,"GT","Tonelada bruta"]
[null,10202836,"Rosal vivo macarena spray",null,null,null,"GV","Gigajoule"]
[null,10202837,"Rosal vivo magic sensation spray",null,null,null,"GW","Galón por mil pies cúbicos"]
[null,10202838,"Rosal vivo majolica spray",null,null,null,"GWH","Gigawatt hora"]
[null,10202839,"Rosal vivo mambo number 5 spray",null,null,null,"GY","Patio grueso"]
[null,10202840,"Rosal vivo mambo spray",null,null,null,"GZ","Sistema de calibración"]
[null,10202841,"Rosal vivo marlene spray",null,null,null,"H03","Henry por kiloOhm"]
[null,10202842,"Rosal vivo mimi eden spray",null,null,null,"H04","Henry por Ohm"]
[null,10202843,"Rosal vivo minou spray",null,null,null,"H05","Milihenry por kiloOhm"]
[null,10202844,"Rosal vivo nikita spray",null,null,null,"H06","Milihenry por Ohm"]
[null,10202845,"Rosal vivo novel collection spray",null,null,null,"H07","Pascal segundo por bar"]
[null,10202846,"Rosal vivo orange success spray",null,null,null,"H08","Microbequerel"]
[null,10202847,"Rosal vivo pepita spray",null,null,null,"H09","Año recíproco"]
[null,10202848,"Rosal vivo pink flash spray",null,null,null,"H1","Media página - electrónica"]
[null,10202849,"Rosal vivo pink sensation spray",null,null,null,"H10","Hora recíproca"]
[null,10202850,"Rosal vivo porcelina spray",null,null,null,"H11","Mes recíproco"]
[null,10202851,"Rosal vivo princess spray",null,null,null,"H12","Grado celsius por hora"]
[null,10202852,"Rosal vivo purple mikado spray",null,null,null,"H13","Grado celsius por minuto"]
[null,10202853,"Rosal vivo red angel spray",null,null,null,"H14","Grado celsius por segundo"]
[null,10202854,"Rosal vivo red collection spray",null,null,null,"H15","Centímetro cudrado por gramo"]
[null,10202855,"Rosal vivo red hero spray",null,null,null,"H16","Decámetro cuadrado"]
[null,10202856,"Rosal vivo red mikado spray",null,null,null,"H18","Hectómetro cuadrado"]
[null,10202857,"Rosal vivo red vision spray",null,null,null,"H19","Hectómetro cúbico"]
[null,10202858,"Rosal vivo ritmo spray",null,null,null,"H2","Medio litro"]
[null,10202859,"Rosal vivo romance mikado o eva spray",null,null,null,"H20","Kilómetro cúbico"]
[null,10202860,"Rosal vivo romantica follies spray",null,null,null,"H21","Blanco"]
[null,10202861,"Rosal vivo rubicon spray",null,null,null,"H22","Voltio pulgada cuadrada por libra fuerza"]
[null,10202862,"Rosal vivo rumba spray",null,null,null,"H23","Voltio por pulgada"]
[null,10202863,"Rosal vivo salsa spray",null,null,null,"H24","Voltio por microsegundo"]
[null,10202864,"Rosal vivo sangrita spray",null,null,null,"H25","Por ciento por kelvin"]
[null,10202865,"Rosal vivo santa barbara spray",null,null,null,"H26","Ohm por metro"]
[null,10202866,"Rosal vivo sashaba spray",null,null,null,"H27","Grado por metro"]
[null,10202867,"Rosal vivo scarlett spray",null,null,null,"H28","Microfaradio por kilómetro"]
[null,10202868,"Rosal vivo seline spray",null,null,null,"H29","Microgramo por litro"]
[null,10202869,"Rosal vivo sensation spray",null,null,null,"H30","Micrómetro cuadrado"]
[null,10202870,"Rosal vivo silver collection spray",null,null,null,"H31","Amperio por kilogramo"]
[null,10202871,"Rosal vivo silver sensation spray",null,null,null,"H32","Amperio cuadrado segundo"]
[null,10202872,"Rosal vivo snowdance spray",null,null,null,"H33","Faradio por kilómetro"]
[null,10202873,"Rosal vivo snowflake spray",null,null,null,"H34","Hertz metro"]
[null,10202874,"Rosal vivo suncity spray",null,null,null,"H35","Kelvin metro por watt"]
[null,10202875,"Rosal vivo super nova spray",null,null,null,"H36","MegaOhm por kilómetro"]
[null,10202876,"Rosal vivo sweet sensation spray",null,null,null,"H37","MegaOhm por metro"]
[null,10202877,"Rosal vivo taifun o typhoon spray",null,null,null,"H38","Megaamperio"]
[null,10202878,"Rosal vivo tamango spray",null,null,null,"H39","Megahertz kilómetro"]
[null,10202879,"Rosal vivo tanger follies spray",null,null,null,"H40","Newton por amperio"]
[null,10202880,"Rosal vivo tiara spray",null,null,null,"H41","Newton metro watts elevado a la potencia menos 0.5"]
[null,10202881,"Rosal vivo tiramisú spray",null,null,null,"H42","Pascal por metro"]
[null,10202882,"Rosal vivo twinkle bride spray",null,null,null,"H43","Siemens por centímetro"]
[null,10202883,"Rosal vivo viviane spray",null,null,null,"H44","TeraOhm"]
[null,10202884,"Rosal vivo white majolica spray",null,null,null,"H45","Voltio segundo por metro"]
[null,10202885,"Rosal vivo white mikado spray",null,null,null,"H46","Voltio por segundo"]
[null,10202886,"Rosal vivo xentina spray",null,null,null,"H47","Watt por metro cúbico"]
[null,10202887,"Rosal vivo yellow babe spray",null,null,null,"H48","Attofarad"]
[null,10202888,"Rosal vivo yellow follies spray",null,null,null,"H49","Centímetro por hora"]
[null,10211500,"Anturios vivos","Lirios flamingo vivos",null,null,"H50","Reciprocidad del centimetro cúbico"]
[null,10211501,"Anturio vivo chocolate","Lirio flamingo vivo chocolate",null,null,"H51","Decibel per kilometro"]
[null,10211502,"Anturio vivo rojo oscuro","Lirio flamingo vivo rojo oscuro",null,null,"H52","Decibel per metro"]
[null,10211503,"Anturio vivo verde","Lirio flamingo vivo verde",null,null,"H53","Kilogramo por bar"]
[null,10211504,"Anturio vivo rosado fuerte","Lirio flamingo vivo rosado fuerte",null,null,"H54","Kilogramo por decímetro cúbico kelvin "]
[null,10211505,"Anturio vivo mickey mouse","Lirio flamingo vivo mickey mouse",null,null,"H55","Kilogramo por decímetro cúbico bar"]
[null,10211506,"Anturio vivo obake verde y blanco","Lirio flamingo vivo obake verde y blanco",null,null,"H56","Kilogramo por metro cuadrado segundo"]
[null,10211507,"Anturio vivo obake rojo y verde","Lirio flamingo vivo obake rojo y verde",null,null,"H57","Pulgada por dos pi por radián"]
[null,10211508,"Anturio vivo anaranjado","Lirio flamingo vivo anaranjado",null,null,"H58","Metro por voltio segundo"]
[null,10211509,"Anturio vivo durazno","Lirio flamingo vivo durazno",null,null,"H59","Metro cuadrado por newton"]
[null,10211510,"Anturio vivo picasso o pecoso","Lirio flamingo vivo picasso o pecoso",null,null,"H60","Metro cúbico por metro cúbico"]
[null,10211511,"Anturio vivo rojo","Lirio flamingo vivo rojo",null,null,"H61","Milisiemens por centímetro"]
[null,10211512,"Anturio vivo salpicadura","Lirio flamingo vivo salpicadura",null,null,"H62","Milivoltio por minuto"]
[null,10211513,"Anturio vivo fuego del trópico","Lirio flamingo vivo fuego del trópico",null,null,"H63","Miligramo por centímetro cuadrado"]
[null,10211514,"Anturio vivo tulipán verde","Lirio flamingo vivo tulipán verde",null,null,"H64","Miligramo por gramo"]
[null,10211515,"Anturio vivo tulipán rosado","Lirio flamingo vivo tulipán rosado",null,null,"H65","Mililitro por metro cúbico"]
[null,10211516,"Anturio vivo tulipán púrpura","Lirio flamingo vivo tulipán púrpura",null,null,"H66","Milímetro por año "]
[null,10211517,"Anturio vivo tulipán rojo","Lirio flamingo vivo tulipán rojo",null,null,"H67","Milímetro por hora"]
[null,10211518,"Anturio vivo blanco","Lirio flamingo vivo blanco",null,null,"H68","MiliMol por gram"]
[null,10211519,"Anturio vivo cosa salvaje","Lirio flamingo vivo cosa salvaje",null,null,"H69","Picopascal por kilometro"]
[null,10211600,"Allium vivo","Cebolletas ornamentales vivas",null,null,"H70","Picosegundo"]
[null,10211601,"Allium vivo embajador","Cebolleta ornamental viva embajador",null,null,"H71","Por ciento al mes"]
[null,10211602,"Allium vivo ampeloprasum","Cebolleta ornamental viva ampeloprasum",null,null,"H72","Por ciento por hectobar"]
[null,10211603,"Allium vivo bullit o drumstick","Cebolleta ornamental viva bullit o drumstick",null,null,"H73","Por ciento por decakelvin"]
[null,10211604,"Allium vivo christophii","Cebolleta ornamental viva christophii",null,null,"H74","Watt por metro"]
[null,10211605,"Allium vivo cowanii spray white","Cebolleta ornamental viva cowanii spray white",null,null,"H75","Decapascal"]
[null,10211606,"Allium vivo gigante","Cebolleta ornamental viva gigante",null,null,"H76","Gramo por milímetro"]
[null,10211607,"Allium vivo gladiador","Cebolleta ornamental viva gladiador",null,null,"H77","Anchura del módulo"]
[null,10211608,"Allium vivo globemaster","Cebolleta ornamental viva globemaster",null,null,"H78","Centímetro convencional de agua"]
[null,10211609,"Allium vivo bola de golf blanca","Cebolleta ornamental viva bola de golf blanca",null,null,"H79","Escala francesa "]
[null,10211610,"Allium vivo cabello","Cebolleta ornamental viva cabello",null,null,"H80","Unidad de bastidor"]
[null,10211611,"Allium vivo rosado gigante","Cebolleta ornamental viva rosado gigante",null,null,"H81","Milímetro por minuto"]
[null,10211612,"Allium vivo sensación púrpura","Cebolleta ornamental viva sensación púrpura",null,null,"H82","Punto grande"]
[null,10211613,"Allium vivo sicilum hanging","Cebolleta ornamental viva sicilum hanging",null,null,"H83","Litro por kilogramo"]
[null,10211614,"Allium vivo spider schubertii","Cebolleta ornamental viva spider schubertii",null,null,"H84","Gramos milímetro"]
[null,10211615,"Allium vivo spray moly","Cebolleta ornamental viva spray moly",null,null,"H85","Semana recíproca"]
[null,10211616,"Allium vivo spray roseum","Cebolleta ornamental viva spray roseum",null,null,"H87","Pieza"]
[null,10211617,"Allium vivo tuberosum","Cebolleta ornamental viva tuberosum",null,null,"H88","MegaOhm kilómetro"]
[null,10211618,"Allium vivo unifolium o spray allium","Cebolleta ornamental viva unifolium o spray Cebolleta ornamental",null,null,"H89","Por ciento por Ohmio"]
[null,10211619,"Allium vivo monte everest blanco","Cebolleta ornamental viva monte everest blanco",null,null,"H90","Porcentaje por grado"]
[null,10211700,"Astromelia viva","Lirios de campo vivos",null,null,"H91","Por ciento por cada diez mil"]
[null,10211701,"Astromelia viva agropoli","Lirio de campo vivo agropoli",null,null,"H92","Ciento por cien mil"]
[null,10211702,"Astromelia viva bourgogne","Lirio de campo vivo bourgogne",null,null,"H93","Porcentaje por cien"]
[null,10211703,"Astromelia viva cairo","Lirio de campo vivo cairo",null,null,"H94","Por ciento por mil"]
[null,10211704,"Astromelia viva charmes","Lirio de campo vivo charmes",null,null,"H95","Por ciento por voltio"]
[null,10211705,"Astromelia viva cherry bay","Lirio de campo vivo cherry bay",null,null,"H96","Tanto por ciento por bar"]
[null,10211706,"Astromelia viva cherry white","Lirio de campo vivo cherry white",null,null,"H98","Por ciento por pulgada"]
[null,10211707,"Astromelia viva dame blanche","Lirio de campo vivo dame blanche",null,null,"H99","Por ciento por metro"]
[null,10211708,"Astromelia viva diamond","Lirio de campo vivo diamond",null,null,"HA","Madeja"]
[null,10211709,"Astromelia viva gran canaria","Lirio de campo vivo gran canaria",null,null,"HAR","hectárea"]
[null,10211710,"Astromelia viva harlekijn","Lirio de campo vivo harlekijn",null,null,"HBA","Hectobar "]
[null,10211711,"Astromelia viva indian summer","Lirio de campo vivo indian summer",null,null,"HBX","Ciento de cajas"]
[null,10211712,"Astromelia viva jamaica","Lirio de campo vivo jamaica",null,null,"HC","Conteo en cientos"]
[null,10211713,"Astromelia viva macondo","Lirio de campo vivo macondo",null,null,"HD","Media docena"]
[null,10211714,"Astromelia viva mistique","Lirio de campo vivo mistique",null,null,"HDW","Cien kilogramos, peso seco"]
[null,10211715,"Astromelia viva my fair","Lirio de campo vivo my fair",null,null,"HE","Centésima de un quilate"]
[null,10211716,"Astromelia viva new cairo","Lirio de campo vivo new cairo",null,null,"HEA","Cabeza"]
[null,10211717,"Astromelia viva nice","Lirio de campo vivo nice",null,null,"HF","Cien pies"]
[null,10211718,"Astromelia viva orange bowl","Lirio de campo vivo orange bowl",null,null,"HGM","Héctogramo"]
[null,10211719,"Astromelia viva orange queens","Lirio de campo vivo orange queens",null,null,"HH","Cien pies cúbicos"]
[null,10211720,"Astromelia viva orange sun","Lirio de campo vivo orange sun",null,null,"HI","Cien hojas"]
[null,10211721,"Astromelia viva paris","Lirio de campo vivo parís",null,null,"HIU","Unidad internacional de cien"]
[null,10211722,"Astromelia viva picasso","Lirio de campo vivo picasso",null,null,"HJ","Potencia métrica"]
[null,10211723,"Astromelia viva pink panther","Lirio de campo vivo pink panther",null,null,"HK","Cien kilogramos"]
[null,10211724,"Astromelia viva prima donna","Lirio de campo vivo prima donna",null,null,"HKM","Cien kilogramos, masa neta"]
[null,10211725,"Astromelia viva red silhouette","Lirio de campo vivo red silhouette",null,null,"HL","Cien pies (lineal)"]
[null,10211726,"Astromelia viva sacha","Lirio de campo vivo sacha",null,null,"HLT","Hectolitro"]
[null,10211727,"Astromelia viva salmon","Lirio de campo vivo salmón",null,null,"HM","Milla por hora (milla estatal)"]
[null,10211728,"Astromelia viva santiago","Lirio de campo vivo santiago",null,null,"HMQ","Millones de metros cúbicos"]
[null,10211729,"Astromelia viva senna","Lirio de campo vivo senna",null,null,"HMT","Hectómetro"]
[null,10211730,"Astromelia viva snowball","Lirio de campo vivo snowball",null,null,"HN","Milímetro convencional de mercurio"]
[null,10211731,"Astromelia viva sublime","Lirio de campo vivo sublime",null,null,"HO","Cien onzas troy"]
[null,10211732,"Astromelia viva tropicana","Lirio de campo vivo tropicana",null,null,"HP","Milímetro convencional de agua"]
[null,10211733,"Astromelia viva virginia","Lirio de campo vivo virginia",null,null,"HPA","Hectolitro de alcohol puro"]
[null,10211734,"Astromelia viva white","Lirio de campo vivo white",null,null,"HS","Cien pies cuadrados"]
[null,10211800,"Amaranto vivo",null,null,null,"HT","media hora"]
[null,10211801,"Amaranto vivo verde colgante",null,null,null,"HTZ","Hertz"]
[null,10211802,"Amaranto vivo rojo colgante",null,null,null,"HUR","Hora"]
[null,10211803,"Amaranto vivo bonce erguido",null,null,null,"HY","Cien yardas"]
[null,10211804,"Amaranto vivo verde erguido",null,null,null,"IA","Pulgada libra"]
[null,10211805,"Amaranto vivo rojo erguido",null,null,null,"IC","Contar por pulgada"]
[null,10211900,"Amaryllis vivo","Amaryllis viva",null,null,"IE","Personas"]
[null,10211901,"Amaryllis vivo naranja","Amaryllis viva naranja",null,null,"IF","Pulgadas de agua"]
[null,10211902,"Amaryllis vivo orange nagano","Amaryllis viva orange nagano",null,null,"II","Columna pulgada"]
[null,10211903,"Amaryllis vivo pygmee mini","Amaryllis viva pygmee mini",null,null,"IM","Impresión"]
[null,10211904,"Amaryllis vivo red lion","Amaryllis viva red lion",null,null,"INH","Pulgada"]
[null,10211905,"Amaryllis vivo rilona","Amaryllis viva rilona",null,null,"INK","Pulgada cuadrada"]
[null,10211906,"Amaryllis vivo royal velvet","Amaryllis viva royal velvet",null,null,"INQ","Pulgada cúbica"]
[null,10211907,"Amaryllis vivo sonatini orange","Amaryllis viva sonatini orange",null,null,"IP","póliza de seguros"]
[null,10211908,"Amaryllis vivo sonatini red","Amaryllis viva sonatini red",null,null,"ISD","Grado internacional de azúcar"]
[null,10211909,"Amaryllis vivo tango","Amaryllis viva tango",null,null,"IT","Recuento por centímetro"]
[null,10211910,"Amaryllis vivo tinto night","Amaryllis viva tinto night",null,null,"IU","Pulgada por segundo"]
[null,10212000,"Anémona viva",null,null,null,"IV","Pulgada por segundo al cuadrado"]
[null,10212001,"Anémona viva aubergine",null,null,null,"J10","Por ciento por milímetro"]
[null,10212002,"Anémona viva negra",null,null,null,"J12","Por mille por psi"]
[null,10212003,"Anémona viva azul",null,null,null,"J13","Grado api"]
[null,10212004,"Anémona viva cereza",null,null,null,"J14","Grado baume (escala de origen)"]
[null,10212005,"Anémona viva coronaria",null,null,null,"J15","Grado baume (us pesado)"]
[null,10212006,"Anémona viva rosada fuerte",null,null,null,"J16","Grado baume (luz de los EUA)"]
[null,10212007,"Anémona viva rosada claro",null,null,null,"J17","Grado balling"]
[null,10212008,"Anémona viva rosada",null,null,null,"J18","Grado brix"]
[null,10212009,"Anémona viva púrpura",null,null,null,"J19","Grado fahrenheit hora pie cuadrado por unidad térmica británica (termoquímico)."]
[null,10212010,"Anémona viva roja",null,null,null,"J2","Joule por kilogramo"]
[null,10212011,"Anémona viva blanca",null,null,null,"J20","Grado fahrenheit por kelvin"]
[null,10212100,"Asclepia viva","Algodoncillos vivos",null,null,"J21","Grado fahrenheit por bar"]
[null,10212101,"Asclepia viva lavanda","Algodoncillo vivo lavanda",null,null,"J22","Grado fahrenheit hora pie cuadrado por unidad térmica británica (tabla internacional)."]
[null,10212102,"Asclepia viva moby dick","Algodoncillo vivo moby dick",null,null,"J23","Grado fahrenheit por hora"]
[null,10212103,"Asclepia viva tuberosa","Algodoncillo vivo tuberoso",null,null,"J24","Grado fahrenheit por minuto"]
[null,10212104,"Asclepia viva blanca","Algodoncillo vivo blanco",null,null,"J25","Grado fahrenheit por segundo"]
[null,10212200,"Aster viva","Estrellas vivas",null,null,"J26","Reciprocidad grado fahrenheit"]
[null,10212201,"Aster viva belleza","Estrella viva belleza",null,null,"J27","Grado oechsle"]
[null,10212202,"Aster viva azul japonés","Estrella viva azul japonés",null,null,"J28","Grado rankine por hora"]
[null,10212203,"Aster viva verde japonés","Estrella viva verde japonés",null,null,"J29","Grado rankine por minuto"]
[null,10212204,"Aster viva rosado fuerte japonés","Estrella viva rosado fuerte japonés",null,null,"J30","Grado rankine por segundo"]
[null,10212205,"Aster viva lavanda japonés","Estrella viva lavanda japonés",null,null,"J31","Grado twaddel."]
[null,10212206,"Aster viva rosado claro japonés","Estrella viva rosado claro japonés",null,null,"J32","Micropoise"]
[null,10212207,"Aster viva durazno japonés","Estrella viva durazno japonés",null,null,"J33","Microgramo por kilogramo"]
[null,10212208,"Aster viva rosado japonés","Estrella viva rosado japonés",null,null,"J34","Microgramo por metro cúbico kelvin"]
[null,10212209,"Aster viva púrpura japonés","Estrella viva púrpura japonés",null,null,"J35","Microgramo por metro cúbico bar"]
[null,10212210,"Aster viva rojo japonés","Estrella viva rojo japonés",null,null,"J36","Microlitro por litro"]
[null,10212211,"Aster viva araña japonés","Estrella viva araña japonés",null,null,"J38","Baud"]
[null,10212212,"Aster viva blanca japonés","Estrella viva blanca japonés",null,null,"J39","Unidad térmica británica (significado)"]
[null,10212213,"Aster viva rosado fuerte novi belgii","Estrella viva rosado fuerte novi belgii",null,null,"J40","Unidad térmica británica (tabla internacional) pie por hora pie cuadrado grado fahrenheit."]
[null,10212214,"Aster viva lavanda novi belgii","Estrella viva lavanda novi belgii",null,null,"J41","Unidad térmica británica (tabla internacional) pulgada por hora pie cuadrado grado fahrenheit."]
[null,10212215,"Aster viva rosado novi belgii","Estrella viva rosado novi belgii",null,null,"J42","Unidad térmica británica (tabla internacional) pulgada por segundo pie cuadrado grado fahrenheit."]
[null,10212216,"Aster viva púrpura novi belgii","Estrella viva púrpura novi belgii",null,null,"J43","Unidad térmica británica (tabla internacional) por libra grado fahrenheit"]
[null,10212217,"Aster viva blanca novi belgii","Estrella viva blanca novi belgii",null,null,"J44","Unidad térmica británica (tabla internacional) por minuto"]
[null,10212218,"Aster viva solidago","Estrella viva solidago",null,null,"J45","Unidad térmica británica (tabla internacional) por segundo"]
[null,10212219,"Aster viva araña","Estrella viva araña",null,null,"J46","Unidad térmica británica (termoquímico) pie por hora pie cuadrado grado fahrenheit."]
[null,10212300,"Berzelia viva",null,null,null,"J47","Unidad térmica británica (termoquímica) por hora"]
[null,10212301,"Berzelia lanuginosa viva abrotanoides",null,null,null,"J48","Unidad térmica británica (termoquímico) pulgada por hora pie cuadrado grado fahrenheit."]
[null,10212302,"Berzelia lanuginosa viva fireball",null,null,null,"J49","Unidad térmica británica (termoquímico) pulgada por segundo pie cuadrado grado fahrenheit."]
[null,10212303,"Berzelia lanuginosa viva galpinii",null,null,null,"J50","Unidad térmica británica (termoquímico) por libra grado fahrenheit"]
[null,10212304,"Berzelia lanuginosa viva galpini o baubles",null,null,null,"J51","Unidad térmica británica (termoquímica) por minuto"]
[null,10212305,"Berzelia lanuginosa viva squarrosa",null,null,null,"J52","Unidad térmica británica (termoquímica) por segundo"]
[null,10212400,"Bouvaria viva","Trompetillas vivas",null,null,"J53","Culombio metro cuadrado por kilogramo"]
[null,10212401,"Bouvardia viva doble rosado fuerte","Trompetilla viva doble rosado fuerte",null,null,"J54","Megabaud"]
[null,10212402,"Bouvardia viva rosado claro","Trompetilla viva rosado claro",null,null,"J55","Watt segundo"]
[null,10212403,"Bouvardia viva doble rosado claro","Trompetilla viva doble rosado claro",null,null,"J56","Bar por bar"]
[null,10212404,"Bouvardia viva roja","Trompetilla viva roja",null,null,"J57","Barril (uk petróleo)"]
[null,10212405,"Bouvardia viva blanca","Trompetilla viva blanca",null,null,"J58","Barril (petróleo UK) por minuto"]
[null,10212500,"Brodiaea viva",null,null,null,"J59","Barril (petróleo UK) por día"]
[null,10212501,"Brodiaea viva congesta",null,null,null,"J60","Barril (petróleo UK) por hora"]
[null,10212502,"Brodiaea viva congesta lavanda",null,null,null,"J61","Barril (petróleo UK) por segundo"]
[null,10212503,"Brodiaea viva hyacintha",null,null,null,"J62","Barril (petróleo estados unidos) por hora"]
[null,10212504,"Brodiaea viva ida maija",null,null,null,"J63","Barril (petróleo estados unidos) por segundo"]
[null,10212505,"Brodiaea viva starlight",null,null,null,"J64","Bushel (UK) por día "]
[null,10212600,"Calla viva","Alcatraces vivos",null,null,"J65","Bushel (UK) por hora"]
[null,10212601,"Calla viva green goddess","Alcatraz vivo green goddess",null,null,"J66","Bushel (UK) por minuto"]
[null,10212602,"Calla viva ramillete albertville","Alcatraz vivo ramillete albertville",null,null,"J67","Bushel (UK) por segundo"]
[null,10212603,"Calla viva ramillete aranal","Alcatraz vivo ramillete aranal",null,null,"J68","Bushel (seco,estados unidos) por día"]
[null,10212604,"Calla viva ramillete black eyed beauty","Alcatraz vivo ramillete black eyed beauty",null,null,"J69","Bushel (seco,estados unidos) por hora"]
[null,10212605,"Calla viva ramillete black star","Alcatraz vivo ramillete black star",null,null,"J70","Bushel (seco,estados unidos) por minuto"]
[null,10212606,"Calla viva ramillete brisbane","Alcatraz vivo ramillete brisbane",null,null,"J71","Bushel (seco,estados unidos) por segundo"]
[null,10212607,"Calla viva ramillete crystal blush","Alcatraz vivo ramillete crystal blush",null,null,"J72","Centinewton metro"]
[null,10212608,"Calla viva ramillete crystal pink","Alcatraz vivo ramillete crystal pink",null,null,"J73","Centipoise por kelvin"]
[null,10212609,"Calla viva ramillete crystal white","Alcatraz vivo ramillete crystal white",null,null,"J74","Centipoise por bar"]
[null,10212610,"Calla viva ramillete dark captain romanc","Alcatraz vivo ramillete dark captain romance",null,null,"J75","Caloría"]
[null,10212611,"Calla viva ramillete dark mozart","Alcatraz vivo ramillete dark mozart",null,null,"J76","Caloría (tabla internacional) por gramo gadro celsius"]
[null,10212612,"Calla viva ramillete dark naomi","Alcatraz vivo ramillete dark naomi",null,null,"J78","Caloría (termoquímica) por centímetro segundo grado celsius"]
[null,10212613,"Calla viva ramillete deformed calla","Alcatraz vivo ramillete deformed calla",null,null,"J79","Caloría (termoquímico) por gramo gadro celsius"]
[null,10212614,"Calla viva ramillete dordogne","Alcatraz vivo ramillete dordogne",null,null,"J81","Caloría (termoquímica) por minuto"]
[null,10212615,"Calla viva ramillete etude","Alcatraz vivo ramillete etude",null,null,"J82","Caloría (termoquímica) por segundo"]
[null,10212616,"Calla viva ramillete farao","Alcatraz vivo ramillete farao",null,null,"J83","Clo"]
[null,10212617,"Calla viva ramillete fire glow","Alcatraz vivo ramillete fire glow",null,null,"J84","Centímetro por segundo kelvin"]
[null,10212618,"Calla viva ramillete florex gold","Alcatraz vivo ramillete florex gold",null,null,"J85","Centímetro por segundo bar"]
[null,10212619,"Calla viva ramillete garnet glow","Alcatraz vivo ramillete garnet glow",null,null,"J87","Centímetro cúbico por metro cúbico"]
[null,10212620,"Calla viva ramillete hot chocolate","Alcatraz vivo ramillete hot chocolate",null,null,"J89","Centímetro de mercurio"]
[null,10212621,"Calla viva ramillete lavender improved","Alcatraz vivo ramillete lavender improved",null,null,"J90","Decímetro cúbico por día"]
[null,10212622,"Calla viva ramillete light cromance","Alcatraz vivo ramillete light cromance",null,null,"J91","Decímetro cúbico por metro cúbico"]
[null,10212623,"Calla viva ramillete little suzy","Alcatraz vivo ramillete little suzy",null,null,"J92","Decímetro cúbico por minuto"]
[null,10212624,"Calla viva ramillete majestic red","Alcatraz vivo ramillete majestic red",null,null,"J93","Decímetro cúbico por segundo"]
[null,10212625,"Calla viva ramillete mango","Alcatraz vivo ramillete mango",null,null,"J94","Dina centímetro"]
[null,10212626,"Calla viva ramillete merlot","Alcatraz vivo ramillete merlot",null,null,"J95","Onza (fluido, UK) por día"]
[null,10212627,"Calla viva ramillete mozart","Alcatraz vivo ramillete mozart",null,null,"J96","Onza (fluido, UK) por hora"]
[null,10212628,"Calla viva ramillete naomi","Alcatraz vivo ramillete naomi",null,null,"J97","Onza (fluido, UK) por minuto"]
[null,10212629,"Calla viva ramillete night cap","Alcatraz vivo ramillete night cap",null,null,"J98","Onza (fluido, UK) por segundo"]
[null,10212630,"Calla viva ramillete odessa","Alcatraz vivo ramillete odessa",null,null,"J99","Onza (fluido, estados unidos) por día"]
[null,10212631,"Calla viva ramillete pacific pink","Alcatraz vivo ramillete pacific pink",null,null,"JB","Jumbo"]
[null,10212632,"Calla viva ramillete passion fruit","Alcatraz vivo ramillete passion fruit",null,null,"JE","Joule por kelvin"]
[null,10212633,"Calla viva ramillete picasso","Alcatraz vivo ramillete picasso",null,null,"JK","Megajoule por kilogramo"]
[null,10212634,"Calla viva ramillete pillow talk","Alcatraz vivo ramillete pillow talk",null,null,"JM","Megajoule por metro cúbico"]
[null,10212635,"Calla viva ramillete pink persuation","Alcatraz vivo ramillete pink persuation",null,null,"JNT","Junta de tubería"]
[null,10212636,"Calla viva ramillete pisa","Alcatraz vivo ramillete pisa",null,null,"Jo","Articulación"]
[null,10212637,"Calla viva ramillete pot of","Alcatraz vivo ramillete pot of",null,null,"JOU","Joule"]
[null,10212638,"Calla viva ramillete red sox","Alcatraz vivo ramillete red sox",null,null,"JPS","Cien metros"]
[null,10212639,"Calla viva ramillete rosa","Alcatraz vivo ramillete rosa",null,null,"JWL","Número de joyas"]
[null,10212640,"Calla viva ramillete ruby light rose","Alcatraz vivo ramillete ruby light rose",null,null,"K1","Demanda de kilowatt"]
[null,10212641,"Calla viva ramillete samur","Alcatraz vivo ramillete samur",null,null,"K10","Onza (fluido, estados unidos) por hora"]
[null,10212642,"Calla viva ramillete sapporo","Alcatraz vivo ramillete sapporo",null,null,"K11","Onza (fluido, estados unidos) por minuto"]
[null,10212643,"Calla viva ramillete schwarzwalder","Alcatraz vivo ramillete schwarzwalder",null,null,"K12","Onza (fluido, estados unidos) por segundo"]
[null,10212644,"Calla viva ramillete serrada","Alcatraz vivo ramillete serrada",null,null,"K13","Pie por grado fahrenheit"]
[null,10212645,"Calla viva ramillete solemio","Alcatraz vivo ramillete solemio",null,null,"K14","Pie por hora"]
[null,10212646,"Calla viva ramillete sunrise","Alcatraz vivo ramillete sunrise",null,null,"K15","Pie libra-fuerza por hora"]
[null,10212647,"Calla viva ramillete super mac","Alcatraz vivo ramillete super mac",null,null,"K16","Pie libra-fuerza por minuto"]
[null,10212648,"Calla viva ramillete swan lake","Alcatraz vivo ramillete swan lake",null,null,"K17","Pie por psi (libra por pulgada cuadrada)"]
[null,10212649,"Calla viva ramillete vermeer","Alcatraz vivo ramillete vermeer",null,null,"K18","Pie por segundo grado fahrenheit"]
[null,10212650,"Calla viva ramillete white butterfly","Alcatraz vivo ramillete white butterfly",null,null,"K19","Pie por segundo psi (libra por pulgada cuadrada)"]
[null,10212651,"Calla viva ramillete yellow","Alcatraz vivo ramillete yellow",null,null,"K2","Kilovoltios amperios demanda reactiva"]
[null,10212652,"Calla viva ramillete yellow mozart","Alcatraz vivo ramillete yellow mozart",null,null,"K20","Reciprocidad del pie cuadrado"]
[null,10212653,"Calla viva ramillete white large","Alcatraz vivo ramillete white large",null,null,"K21","Pie cúbico por grado fahrenheit"]
[null,10212800,"Celosia viva","Flores de terciopelo vivas",null,null,"K22","Pie cúbico por día"]
[null,10212801,"Celosia viva cresta de gallo verde","Flor de terciopelo viva verde",null,null,"K23","Pie cúbico por psi (libra por pulgada cuadrada)"]
[null,10212802,"Celosia viva cresta de gallo anaranjado","Flor de terciopelo viva anaranjado",null,null,"K24","Pie de agua"]
[null,10212803,"Celosia viva cresta de gallo rosado","Flor de terciopelo viva rosado",null,null,"K25","Pie de mercurio"]
[null,10212804,"Celosia viva cresta de gallo púrpura","Flor de terciopelo viva púrpura",null,null,"K26","Galón (UK) por día"]
[null,10212805,"Celosia viva cresta de gallo rojo","Flor de terciopelo viva rojo",null,null,"K27","Galón (UK) por hora"]
[null,10212806,"Celosia viva cresta de gallo amarillo","Flor de terciopelo viva amarillo",null,null,"K28","Galón (UK) por segundo"]
[null,10212807,"Celosia viva pluma rosado claro","Flor de terciopelo viva plume light",null,null,"K3","Kilovoltio amperio hora reactivo"]
[null,10212808,"Celosia viva pluma anaranjado","Flor de terciopelo viva plume orange",null,null,"K30","Galón (líquido, EUA) por segundo"]
[null,10212809,"Celosia viva pluma púrpura","Flor de terciopelo viva plume purple",null,null,"K31","Gramo-fuerza por centímetro cuadrado"]
[null,10212810,"Celosia viva pluma rojo","Flor de terciopelo viva plume red",null,null,"K32","Gill (UK) por día"]
[null,10212811,"Celosia viva pluma amarillo","Flor de terciopelo viva plume yellow",null,null,"K33","Gill (UK) por hora"]
[null,10212812,"Celosia viva trigo rosado","Flor de terciopelo viva wheat pink",null,null,"K34","Gill (UK) por minuto"]
[null,10212813,"Celosia viva trigo amarillo","Flor de terciopelo viva wheat yellow",null,null,"K35","Gill (UK) por segundo"]
[null,10212900,"Narciso vivo",null,null,null,"K36","Gill (estados unidos) por día"]
[null,10212901,"Narciso vivo dick wilden",null,null,null,"K37","Gill (estados unidos) por hora"]
[null,10212902,"Narciso vivo dutch master",null,null,null,"K38","Gill (estados unidos) por minuto"]
[null,10212903,"Narciso vivo ice follies",null,null,null,"K39","Gill (estados unidos) por segundo"]
[null,10212904,"Narciso vivo ice king",null,null,null,"K40","Aceleración estándar de la caída libre"]
[null,10212905,"Narciso vivo johan strauss",null,null,null,"K41","Grano por galón (EUA)"]
[null,10212906,"Narciso vivo yellow carlton",null,null,null,"K42","Caballo de fuerza de caldera "]
[null,10213000,"Dalia viva",null,null,null,"K43","Caballo de fuerza (eléctrico)"]
[null,10213001,"Dalia viva bicolor",null,null,null,"K45","Pulgada por grado fahrenheit"]
[null,10213002,"Dalia viva rosado fuerte",null,null,null,"K46","Pulgada por psi (libra por pulgada cuadrada)"]
[null,10213003,"Dalia viva rosado claro",null,null,null,"K47","Pulgada por segundo grado fahrenheit"]
[null,10213004,"Dalia viva rosado medio",null,null,null,"K48","Pulgada por segundo psi (libra por pulgada cuadrada)"]
[null,10213005,"Dalia viva anaranjado",null,null,null,"K49","Reciprocidad de la pulgada cuadrada"]
[null,10213006,"Dalia viva durazno",null,null,null,"K5","Kilovoltios amperios (reactivos)"]
[null,10213007,"Dalia viva púrpura",null,null,null,"K50","Kilobaud"]
[null,10213008,"Dalia viva roja",null,null,null,"K51","Kilocaloría (significado)"]
[null,10213009,"Dalia viva blanca",null,null,null,"K52","Kilocaloría (tabla internacional) por hora metro grado celsius"]
[null,10213010,"Dalia viva amarilla",null,null,null,"K53","Kilocaloría (termoquímico)"]
[null,10213100,"Delphinium vivo",null,null,null,"K54","Kilocaloría (termoquímica) por minuto"]
[null,10213101,"Delphinium vivo bella azul oscuro",null,null,null,"K55","Kilocaloría (termoquímica) por segundo"]
[null,10213102,"Delphinium vivo bella azul claro",null,null,null,"K58","KiloMol por hora"]
[null,10213103,"Delphinium vivo bella blanco",null,null,null,"K59","KiloMol por metro cúbico kelvin"]
[null,10213104,"Delphinium vivo azul sombra",null,null,null,"K6","Kilolitro"]
[null,10213105,"Delphinium vivo híbrido azul oscuro",null,null,null,"K60","KiloMol por metro cúbico bar"]
[null,10213106,"Delphinium vivo híbrido azul claro",null,null,null,"K61","KiloMol por minuto"]
[null,10213107,"Delphinium vivo híbrido malva",null,null,null,"K62","Litro por litro"]
[null,10213108,"Delphinium vivo híbrido rosado",null,null,null,"K63","Reciprocidad del litro"]
[null,10213109,"Delphinium vivo híbrido púrpura",null,null,null,"K64","Libra (avoirdupois) por grado fahrenheit"]
[null,10213110,"Delphinium vivo híbrido rojo",null,null,null,"K65","Libra (avoirdupois) pie cuadrado"]
[null,10213111,"Delphinium vivo híbrido blanco",null,null,null,"K66","Libra (avoirdupois) por día"]
[null,10213112,"Delphinium vivo princesa carolina",null,null,null,"K67","Libra por pie hora"]
[null,10213113,"Delphinium vivo volkerfrieden",null,null,null,"K68","Libra por pie segundo"]
[null,10213200,"Clavel (dianthus) vivo","Clavelinas vivas",null,null,"K69","Libra (avoirdupois) por pie cúbico grado fahrenheit"]
[null,10213201,"Clavel (dianthus) vivo chocolate","Clavelina viva chocolate",null,null,"K70","Libra (avoirdupois) por pie cúbico psi"]
[null,10213202,"Clavel (dianthus) vivo fucsia","Clavelina viva fucsia",null,null,"K71","Libra (avoirdupois) por galón (UK)"]
[null,10213203,"Clavel (dianthus) vivo bola verde","Clavelina viva bola verde",null,null,"K73","Libra (avoirdupois) por hora grados fahrenheit"]
[null,10213204,"Clavel (dianthus) vivo rosado fuerte","Clavelina viva rosado fuerte",null,null,"K74","Libra (avoirdupois) por hora libra-fuerza por pulgada cuadrada"]
[null,10213205,"Clavel (dianthus) vivo lavanda","Clavelina viva lavanda",null,null,"K75","Libra (avoirdupois) por pulgada cúbica grado fahrenheit"]
[null,10213206,"Clavel (dianthus) vivo frambuesa","Clavelina viva frambuesa",null,null,"K76","Libra (avoirdupois) por pulgada cúbica psi"]
[null,10213207,"Clavel (dianthus) vivo rojo","Clavelina viva rojo",null,null,"K77","Libra (avoirdupois) por psi"]
[null,10213208,"Clavel (dianthus) vivo rosado","Clavelina viva rosado",null,null,"K78","Libra (avoirdupois) por minuto"]
[null,10213300,"Eremruses vivas",null,null,null,"K79","Libra (avoirdupois) por minuto grados fahrenheit"]
[null,10213301,"Eremurus vivo deruyter híbrido",null,null,null,"K80","Libra (avoirdupois) por minuto libra-fuerza por pulgada cuadrada"]
[null,10213302,"Eremurus vivo himalaicus blanco",null,null,null,"K81","Libra (avoirdupois) por segundo"]
[null,10213303,"Eremurus vivo anaranjado",null,null,null,"K82","Libra (avoirdupois)por segundo grados fahrenheit"]
[null,10213304,"Eremurus vivo durazno",null,null,null,"K83","Libra (avoirdupois) por segundo libra-fuerza por pulgada cuadrada"]
[null,10213305,"Eremurus vivo amarillo",null,null,null,"K84","Libra por yarda cúbica "]
[null,10213400,"Brezo (erica) viva","Brecinas vivas",null,null,"K85","Libra-fuerza por pie cuadrado"]
[null,10213401,"Brezo (erica) vivo campunalarus","Brecina viva campunalarus",null,null,"K86","Libra-fuerza por pulgada cuadrada grados fahrenheit"]
[null,10213402,"Brezo (erica) vivo conica","Brecina viva cónica",null,null,"K87","Libra-fuerza por pulgada cuadrada pulgada cúbica por segundo"]
[null,10213403,"Brezo (erica) vivo green ice","Brecina viva green ice",null,null,"K88","Libra-fuerza por pulgada cuadrada litro por segundo"]
[null,10213404,"Brezo (erica) vivo rosado","Brecina viva rosado",null,null,"K89","Libra-fuerza por pulgada cuadrada metro cúbico por segundo"]
[null,10213405,"Brezo (erica) vivo príncipe de gales","Brecina viva príncipe de gales",null,null,"K90","Libra-fuerza por pulgada cuadrada yarda cúbica por segundo"]
[null,10213500,"Euphorbia viva","Coronas de Cristo vivas",null,null,"K91","Libra-fuerza segundo por pie cuadrado"]
[null,10213501,"Euphorbia viva characias","Corona de Cristo viva characias",null,null,"K92","Libra-fuerza segundo por pulgada cuadrada"]
[null,10213502,"Euphorbia viva griffithii fireglow","Corona de Cristo viva griffithii fireglow",null,null,"K93","Reciprocidad psi"]
[null,10213503,"Euphorbia viva martini","Corona de Cristo viva martini",null,null,"K94","Cuarto (líquido, UK) por día"]
[null,10213504,"Euphorbia viva anaranjada","Corona de Cristo viva anaranjada",null,null,"K95","Cuarto (líquido, UK) por hora"]
[null,10213505,"Euphorbia viva durazno","Corona de Cristo viva durazno",null,null,"K96","Cuarto (líquido, UK) por minuto"]
[null,10213506,"Euphorbia viva rosada","Corona de Cristo viva rosada",null,null,"K97","Cuarto (líquido, UK) por segundo"]
[null,10213507,"Euphorbia viva roja","Corona de Cristo viva roja",null,null,"K98","Cuarto (líquido, estados unidos) por día"]
[null,10213508,"Euphorbia viva blanca","Corona de Cristo viva blanca",null,null,"K99","Cuarto (líquido, estados unidos) por hora"]
[null,10213509,"Euphorbia viva amarilla","Corona de Cristo viva amarilla",null,null,"KA","Pastel"]
[null,10213510,"Euphorbia viva amarilla spurge","Corona de Cristo viva amarilla spurge",null,null,"KAT","Katal"]
[null,10213600,"Fresia viva","Freesias vivas",null,null,"KB","Kilocaracter"]
[null,10213601,"Fresia viva crema","Freesia viva crema",null,null,"KBA","Kilobar"]
[null,10213602,"Fresia viva doble blanca","Freesia viva doble blanca",null,null,"KCC","Kilogramo de cloruro de colina"]
[null,10213603,"Fresia viva doble amarilla","Freesia viva doble amarilla",null,null,"KD","Kilogram decimal"]
[null,10213604,"Fresia viva rosado fuerte","Freesia viva rosado fuerte",null,null,"KDW","Kilogramo de peso neto drenado"]
[null,10213605,"Fresia viva lady brunet","Freesia viva lady brunet",null,null,"KEL","Kelvin"]
[null,10213606,"Fresia viva lavanda","Freesia viva lavanda",null,null,"KF","Kilopacket"]
[null,10213607,"Fresia viva rosado medio","Freesia viva rosado medio",null,null,"KGM","Kilogramo"]
[null,10213608,"Fresia viva anaranjado","Freesia viva anaranjado",null,null,"KGS","Kilogramo por segundo"]
[null,10213609,"Fresia viva pimpinela","Freesia viva pimpinela",null,null,"KHY","Kilogramo de peróxido de hidrógeno"]
[null,10213610,"Fresia viva rosada","Freesia viva rosada",null,null,"KHZ","Kilohertz"]
[null,10213611,"Fresia viva pùrpura","Freesia viva púrpura",null,null,"KI","Kilogramo por milímetro de ancho"]
[null,10213612,"Fresia viva roja","Freesia viva roja",null,null,"KIC","Kilogramo, incluyendo el contenedor"]
[null,10213613,"Fresia viva blanca","Freesia viva blanca",null,null,"KIP","Kilogramo, incluyendo el empaquetado interno"]
[null,10213614,"Fresia viva amarilla","Freesia viva amarilla",null,null,"KJ","Kilosegmento"]
[null,10213700,"Ajedrezada viva",null,null,null,"KJO","Kilojoule"]
[null,10213701,"Ajedrezada viva acmopelata",null,null,null,"KL","Kilogramo por metro"]
[null,10213702,"Ajedrezada viva assyriaca",null,null,null,"KLK","Porcentaje de material seco láctico"]
[null,10213703,"Ajedrezada viva assyriaca uva vulpis",null,null,null,"KLX","Kilolux"]
[null,10213704,"Ajedrezada viva elysee",null,null,null,"KMA","Kilogramo de metilamina"]
[null,10213705,"Ajedrezada viva imperialis anaranjada",null,null,null,"KMH","Kilómetro por hora"]
[null,10213706,"Ajedrezada viva imperialis amarilla",null,null,null,"KMK","Kilómetro cuadrado"]
[null,10213707,"Ajedrezada viva meleagris",null,null,null,"KMQ","Kilogramo por metro cúbico"]
[null,10213708,"Ajedrezada viva michailowski",null,null,null,"KMT","Kilómetro"]
[null,10213709,"Ajedrezada viva uva vulpis",null,null,null,"KNI","Kilogramo de nitrógeno"]
[null,10213800,"Hiniesta viva",null,null,null,"KNM","Kolonewton por metro cuadrado"]
[null,10213801,"Hiniesta viva verde",null,null,null,"KNS","Kilogram sustancia nombrada"]
[null,10213802,"Hiniesta viva rosado fuerte",null,null,null,"KNT","Nudo"]
[null,10213803,"Hiniesta viva lavanda",null,null,null,"KO","Miliequivalentes de potasa cáustica por gramo de producto"]
[null,10213804,"Hiniesta viva rosado claro",null,null,null,"KPA","Kilopascal"]
[null,10213805,"Hiniesta viva durazno",null,null,null,"KPH","Kilogramo de hidróxido de potasio (potasa cáustica)"]
[null,10213806,"Hiniesta viva púrpura",null,null,null,"KPO","Kilogramo de óxido de potasio"]
[null,10213807,"Hiniesta viva blanco",null,null,null,"KPP","Kilogramo de pentóxido de fósforo (anhídrido fosfórico)"]
[null,10213808,"Hiniesta viva amarillo",null,null,null,"KR","Kiloroentgen"]
[null,10213900,"Margarita viva","Gerberas vivas",null,null,"KS","Mil libras por pulgada cuadrada"]
[null,10213901,"Margarita viva crema de centro negro","Gerbera viva crema de centro negro",null,null,"KSD","Kilogramo de sustancia 90% seco"]
[null,10213902,"Margarita viva crema","Gerbera viva crema",null,null,"KSH","Kilogramo de hidróxido de sodio (sodio cáustica)"]
[null,10213903,"Margarita viva dorada","Gerbera viva dorada",null,null,"KT","Kit"]
[null,10213904,"Margarita viva rosado fuerte","Gerbera viva rosado fuerte",null,null,"KTN","Kilotonelada Métrica"]
[null,10213905,"Margarita viva rosado claro","Gerbera viva rosado claro",null,null,"KUR","Kilogramo de uranio"]
[null,10213906,"Margarita viva magenta","Gerbera viva magenta",null,null,"KVA","Kilovoltio - amperio"]
[null,10213907,"Margarita viva mini coral","Gerbera viva mini coral",null,null,"KVR","Kilovar"]
[null,10213908,"Margarita viva mini fucsia","Gerbera viva mini fucsia",null,null,"KVT","Kilovoltio"]
[null,10213909,"Margarita viva mini rosado fuerte","Gerbera viva mini rosado fuerte",null,null,"KW","Kilogramo por milímetro"]
[null,10213910,"Margarita viva mini anaranjado claro de centro negro","Gerbera viva mini anaranjado claro de centro negro",null,null,"KWH","Kilowatt hora"]
[null,10213911,"Margarita viva mini anaranjado de centro negro","Gerbera viva mini anaranjado de centro negro",null,null,"KWN","Kilowatt hora por metro cúbico normalizado"]
[null,10213912,"Margarita viva mini anaranjado","Gerbera viva mini anaranjado",null,null,"KWO","Kilogramo de trióxido de tungsteno"]
[null,10213913,"Margarita viva mini rojo de centro negro","Gerbera viva mini rojo de centro negro",null,null,"KWS","Kilowatt hora por metro cúbico estándar"]
[null,10213914,"Margarita viva mini blanco","Gerbera viva mini blanco",null,null,"KWT","Kilowatt"]
[null,10213915,"Margarita viva mini amarillo claro de centro negro","Gerbera viva mini amarillo claro de centro negro",null,null,"KX","Mililitro por kilogramo"]
[null,10213916,"Margarita viva anaranjado de centro negro","Gerbera viva anaranjado de centro negro",null,null,"L10","Cuarto (líquido, estados unidos) por minuto"]
[null,10213917,"Margarita viva anaranjada","Gerbera viva anaranjada",null,null,"L11","Cuarto (líquido, estados unidos) por segundo"]
[null,10213918,"Margarita viva durazno de centro negro","Gerbera viva durazno de centro negro",null,null,"L12","Metro por segundo kelvin"]
[null,10213919,"Margarita viva durazno","Gerbera viva durazno",null,null,"L13","Metro por segundo bar"]
[null,10213920,"Margarita viva rosada de centro negro","Gerbera viva rosada de centro negro",null,null,"L14","Metro cuadrado hora grado celsius por kilocaloría (tabla internacional)"]
[null,10213921,"Margarita viva rosada","Gerbera viva rosada",null,null,"L15","Milipascal segundo por kelvin"]
[null,10213922,"Margarita viva roja de centro negro","Gerbera viva roja de centro negro",null,null,"L16","Milipascal segundo por bar"]
[null,10213923,"Margarita viva roja","Gerbera viva roja",null,null,"L17","Miligramo por metro cúbico kelvin"]
[null,10213924,"Margarita viva spider durazno","Gerbera viva spider durazno",null,null,"L18","Miligramo por metro cúbico bar"]
[null,10213925,"Margarita viva spider roja","Gerbera viva spider roja",null,null,"L19","Mililitro por litro"]
[null,10213926,"Margarita viva terracota","Gerbera viva terracota",null,null,"L2","Litro por minuto"]
[null,10213927,"Margarita viva blanca de centro negro","Gerbera viva blanca de centro negro",null,null,"L20","Reciprocidad del milimetro cúbico"]
[null,10213928,"Margarita viva blanca","Gerbera viva blanca",null,null,"L21","Milimetro cúbico por metro cúbico"]
[null,10213929,"Margarita viva amarilla","Gerbera viva amarilla",null,null,"L23","Mol por hora "]
[null,10214000,"Jengibre vivo","Flores de jengibre vivas",null,null,"L24","Mol por kilogramo kelvin"]
[null,10214001,"Jengibre vivo  indonesio","Flor de jengibre viva indonesio",null,null,"L25","Mol por kilogramo bar"]
[null,10214002,"Jengibre vivo jungle king rosado","Flor de jengibre viva jungle king rosado",null,null,"L26","Mol por litreo kelvin"]
[null,10214003,"Jengibre vivo jungle king rojo","Flor de jengibre viva jungle king rojo",null,null,"L27","Mol por litro bar"]
[null,10214004,"Jengibre vivo rosado","Flor de jengibre viva rosado",null,null,"L28","Mol por metro cúbico kelvin"]
[null,10214005,"Jengibre vivo rojo","Flor de jengibre viva rojo",null,null,"L29","Mol por metro cúbico bar"]
[null,10214006,"Jengibre vivo torch","Flor de jengibre viva torch",null,null,"L30","Mol por minuto"]
[null,10214100,"Gladiolo vivo","Gladiolas vivas",null,null,"L31","Milliroentgen aequivalent men"]
[null,10214101,"Gladiolo vivo vinotinto","Gladiola viva burgundy",null,null,"L32","Nanogramo por kilogramo"]
[null,10214102,"Gladiolo vivo fucsia","Gladiola viva fucsia",null,null,"L33","Onza (avoirdupois) por día"]
[null,10214103,"Gladiolo vivo verde","Gladiola viva verde",null,null,"L34","Onza (avoirdupois) por hora"]
[null,10214104,"Gladiolo vivo rosado fuerte","Gladiola viva rosado fuerte",null,null,"L35","Onza (avoirdupois) por minuto"]
[null,10214105,"Gladiolo vivo rosado claro","Gladiola viva rosado claro",null,null,"L36","Onza (avoirdupois) por segundo"]
[null,10214106,"Gladiolo vivo anaranjado","Gladiola viva anaranjado",null,null,"L37","Onza (avoirdupois) por galón (UK)"]
[null,10214107,"Gladiolo vivo durazno","Gladiola viva durazno",null,null,"L38","Onza (avoirdupois) por galón (EUA)"]
[null,10214108,"Gladiolo vivo rosado medio","Gladiola viva rosado medio",null,null,"L39","Onza (avoirdupois) por pulgada cúbica"]
[null,10214109,"Gladiolo vivo púrpura","Gladiola viva púrpura",null,null,"L40","Onza fuerza"]
[null,10214110,"Gladiolo vivo rojo bicolor","Gladiola viva rojo bicolor",null,null,"L41","Onza (avoirdupois) fuerza pulgada"]
[null,10214111,"Gladiolo vivo rojo","Gladiola viva rojo",null,null,"L42","Picosiemens por metro"]
[null,10214112,"Gladiolo vivo salmón","Gladiola viva salmón",null,null,"L43","Peck (UK)"]
[null,10214113,"Gladiolo vivo blanco","Gladiola viva blanco",null,null,"L44","Peck (UK) por día"]
[null,10214114,"Gladiolo vivo amarillo","Gladiola viva amarillo",null,null,"L45","Peck (UK) por hora"]
[null,10214200,"Godetia viva",null,null,null,"L46","Peck (UK) por minuto"]
[null,10214201,"Godetia viva bicolor",null,null,null,"L47","Peck (UK) por segundo"]
[null,10214202,"Godetia viva fucsia",null,null,null,"L48","Peck (seco, estados unidos) por día"]
[null,10214203,"Godetia viva rosado fuerte",null,null,null,"L49","Peck (seco, estados unidos) por hora"]
[null,10214204,"Godetia viva anaranjada",null,null,null,"L50","Peck (seco, estados unidos) por minuto"]
[null,10214205,"Godetia viva roja",null,null,null,"L51","Peck (seco, estados unidos) por segundo"]
[null,10214206,"Godetia viva blanca",null,null,null,"L52","Libra.fuerza por pulgada cuadrada por libra fuerza por pulgada cuadrada"]
[null,10214300,"Bromelia viva",null,null,null,"L53","Pinta (UK) por día"]
[null,10214301,"Bromelia lingulata viva anaranjada",null,null,null,"L54","Pinta (UK) por hora"]
[null,10214302,"Bromelia lingulata viva roja",null,null,null,"L55","Pinta (UK) por minuto"]
[null,10214303,"Bromelia lingulata viva blanca",null,null,null,"L56","Pinta (UK) por segundo"]
[null,10214304,"Bromelia lingulata viva amarilla",null,null,null,"L57","Pinta (líquido, estados unidos) por día"]
[null,10214305,"Bromelia variegata viva",null,null,null,"L58","Pinta (líquido, estados unidos) por hora"]
[null,10214400,"Gypsophilia viva","Nubes vivas",null,null,"L59","Pinta (líquido, estados unidos) por minuto"]
[null,10214401,"Gypsophilia viva bambino","Nube viva bambino",null,null,"L60","Pinta (líquido, estados unidos) por segundo"]
[null,10214402,"Gypsophilia viva million stars","Nube viva million stars",null,null,"L61","Pinta (US seco)"]
[null,10214403,"Gypsophilia viva mirabella","Nube viva mirabella",null,null,"L62","Cuarto de galón (seco de los EUA)"]
[null,10214404,"Gypsophilia viva new love","Nube viva new love",null,null,"L63","Slug por día"]
[null,10214405,"Gypsophilia viva orión","Nube viva orión",null,null,"L64","Slug por pie segundo"]
[null,10214406,"Gypsophilia viva perfecta","Nube viva perfecta",null,null,"L65","Slug por pie cúbico"]
[null,10214500,"Brezo vivo","Biércol vivo",null,null,"L66","Slug por hora"]
[null,10214501,"Brezo vivo augustine","Biércol vivo augustine",null,null,"L67","Slug por minuto"]
[null,10214502,"Brezo vivo érica cuatro hermanas","Biércol vivo érica cuatro hermanas",null,null,"L68","Slug por segundo"]
[null,10214503,"Brezo vivo francés","Biércol vivo francés",null,null,"L69","Tonelada por kelvin"]
[null,10214504,"Brezo vivo verde","Biércol vivo verde",null,null,"L70","Tonelada por bar"]
[null,10214505,"Brezo sterling range blanco vivo","Biércol vivo sterling range blanco",null,null,"L71","Tonelada por día"]
[null,10214506,"Brezo vivo rosado sunset","Biércol vivo rosado sunset",null,null,"L72","Tonelada por día kelvin"]
[null,10214507,"Brezo vivo blanco","Biércol vivo blanco",null,null,"L73","Tonelada por día bar"]
[null,10214600,"Heliconia viva","Pinzas de langosta vivas",null,null,"L74","Tonelada por hora kelvin"]
[null,10214601,"Heliconia viva bihai claw","Pinza de langosta viva bihai claw",null,null,"L75","Tonelada por hora bar"]
[null,10214602,"Heliconia viva bihai flash","Pinza de langosta viva bihai flash",null,null,"L76","Tonelada por metro cúbico kelvin"]
[null,10214603,"Heliconia viva bihai lobster claw","Pinza de langosta viva bihai lobster claw",null,null,"L77","Tonelada por metro cúbico bar"]
[null,10214604,"Heliconia viva caribea red","Pinza de langosta viva caribea red",null,null,"L78","Tonelada por minuto"]
[null,10214605,"Heliconia viva caribea yellow","Pinza de langosta viva caribea yellow",null,null,"L79","Tonelada por minuto kelvin"]
[null,10214606,"Heliconia viva christmas","Pinza de langosta viva christmas",null,null,"L80","Tonelada por minuto bar"]
[null,10214607,"Heliconia viva edge of night","Pinza de langosta viva edge of night",null,null,"L81","Tonelada por segundo"]
[null,10214608,"Heliconia viva green bihai","Pinza de langosta viva green bihai",null,null,"L82","Tonelada por segundo kelvin"]
[null,10214609,"Heliconia viva marginata lutea","Pinza de langosta viva marginata lútea",null,null,"L83","Tonelada por segundo bar"]
[null,10214610,"Heliconia viva psitt fire opal","Pinza de langosta viva psitt fire opal",null,null,"L84","Tonelada (flota UK)"]
[null,10214611,"Heliconia viva psittacorum","Pinza de langosta viva psittacorum",null,null,"L85","Tonelada larga por día"]
[null,10214612,"Heliconia viva richmond red","Pinza de langosta viva richmond red",null,null,"L86","Tonelada (flota estados unidos)"]
[null,10214613,"Heliconia viva rostrata","Pinza de langosta viva rostrata",null,null,"L87","Tonelada corta por grado fahrenheit"]
[null,10214614,"Heliconia viva sexy pink","Pinza de langosta viva sexy pink",null,null,"L88","Tonelada corta por día"]
[null,10214615,"Heliconia viva sexy scarlett","Pinza de langosta viva sexy scarlett",null,null,"L89","Tonelada corta por hora grados fahrenheit"]
[null,10214616,"Heliconia viva shogun","Pinza de langosta viva shogun",null,null,"L90","Tonelada corta por hora libra-fuerza por pulgada cuadrada"]
[null,10214617,"Heliconia viva small red","Pinza de langosta viva small red",null,null,"L91","Tonelada corta por psi"]
[null,10214618,"Heliconia viva southern cross","Pinza de langosta viva southern cross",null,null,"L92","Tonelada larga (UK) por yarda cúbica"]
[null,10214619,"Heliconia viva wagneriana","Pinza de langosta viva wagneriana",null,null,"L93","Tonelada corta (estados unidos) por yarda cúbica"]
[null,10214700,"Jacinto vivo",null,null,null,"L94","Tonelada fuerza"]
[null,10214701,"Jacinto vivo bean",null,null,null,"L95","Año común"]
[null,10214702,"Jacinto vivo durazno",null,null,null,"L96","Año sideral"]
[null,10214703,"Jacinto vivo azul",null,null,null,"L98","Yarda por grado fahrenheit"]
[null,10214704,"Jacinto vivo fucsia",null,null,null,"L99","Yarda por psi (libra por pulgada cuadrada)"]
[null,10214705,"Jacinto vivo rosado fuerte",null,null,null,"LA","Libra por pulgada cúbica "]
[null,10214706,"Jacinto vivo lavanda",null,null,null,"LAC","Porcentaje de exceso de lactosa"]
[null,10214707,"Jacinto vivo azul claro",null,null,null,"LBR","Libra"]
[null,10214708,"Jacinto vivo rosado medio",null,null,null,"LBT","Troy pound"]
[null,10214709,"Jacinto vivo rosado",null,null,null,"LC","Centímetro lineal"]
[null,10214710,"Jacinto vivo estrella púrpura",null,null,null,"LD","Litro por día"]
[null,10214711,"Jacinto vivo blanco",null,null,null,"LE","Lite"]
[null,10214712,"Jacinto vivo amarillo",null,null,null,"LEF","Hoja"]
[null,10214800,"Hydrangea viva","Hortensias vivas",null,null,"LF","Pie lineal"]
[null,10214801,"Hydrangea viva anabella","Hortensia viva anabella",null,null,"LH","Hora de trabajo"]
[null,10214802,"Hydrangea viva azul antiguo","Hortensia viva azul antiguo",null,null,"LI","Pulgada lineal"]
[null,10214803,"Hydrangea viva azul antiguo  o verde o nueva zelandia","Hortensia viva azul antiguo o verde o nueva zelandia",null,null,"LJ","Spray grande"]
[null,10214804,"Hydrangea viva verde antiguo","Hortensia viva verde antiguo",null,null,"LK","Enlazar"]
[null,10214805,"Hydrangea viva rosado antiguo","Hortensia viva rosado antiguo",null,null,"LM","Metro lineal"]
[null,10214806,"Hydrangea viva púrpura antiguo o nueva zelandia","Hortensia viva púrpura antiguo o nueva zelandia",null,null,"LN","Longitud"]
[null,10214807,"Hydrangea viva aubergene o nueva zelandia","Hortensia viva aubergene o nueva zelandia",null,null,"LO","Lote [unidad de adquisición]"]
[null,10214808,"Hydrangea viva azul oscuro","Hortensia viva azul oscuro",null,null,"LP","Libra líquida"]
[null,10214809,"Hydrangea viva rosado oscuro","Hortensia viva rosado oscuro",null,null,"LPA","Litro de alcohol puro"]
[null,10214810,"Hydrangea viva púrpura oscuro","Hortensia viva púrpura oscuro",null,null,"LR","Capa "]
[null,10214811,"Hydrangea viva berenjena","Hortensia viva berenjena",null,null,"LS","Suma global"]
[null,10214812,"Hydrangea viva verde teñida","Hortensia viva verde teñida",null,null,"LTN","Tonelada (UK) o tonelada larga (estados unidos)"]
[null,10214813,"Hydrangea viva limón verde","Hortensia viva limón verde",null,null,"LTR","Litro"]
[null,10214814,"Hydrangea viva rosado fuerte","Hortensia viva rosado fuerte",null,null,"LUB","Tonelada métrica, aceite lubricante"]
[null,10214815,"Hydrangea viva jumbo blanca","Hortensia viva jumbo blanca",null,null,"LUM","Lumen"]
[null,10214816,"Hydrangea viva lavanda o nueva zelandia","Hortensia viva lavanda o nueva zelandia",null,null,"LUX","Lux"]
[null,10214817,"Hydrangea viva azul claro","Hortensia viva azul claro",null,null,"LX","Yarda lineal por libra"]
[null,10214818,"Hydrangea viva rosado claro grande","Hortensia viva rosado claro grande",null,null,"LY","Yarda lineal"]
[null,10214819,"Hydrangea viva verde lima grande","Hortensia viva verde lima grande",null,null,"M0","cinta magnética"]
[null,10214820,"Hydrangea viva mini verde","Hortensia viva mini verde",null,null,"M1","Miligramo por litro"]
[null,10214821,"Hydrangea viva oakleaf","Hortensia viva oakleaf",null,null,"M10","Reciprocidad de la yarda cuadrada"]
[null,10214822,"Hydrangea viva oakleaf copo de nieve","Hortensia viva oakleaf copo de nieve",null,null,"M11","Yarda cúbica por grado fahrenheit"]
[null,10214823,"Hydrangea viva rosado teñido","Hortensia viva rosado teñido",null,null,"M12","Yarda cúbica por día"]
[null,10214824,"Hydrangea viva rosado","Hortensia viva rosado",null,null,"M13","Yarda cúbica por hora "]
[null,10214825,"Hydrangea viva púrpura o nueva zelandia","Hortensia viva púrpura o nueva zelandia",null,null,"M14","Yarda cúbica por psi (libra por pulgada cuadrada)"]
[null,10214826,"Hydrangea viva rojo teñido","Hortensia viva rojo teñido",null,null,"M15","Yarda cúbica por minuto"]
[null,10214827,"Hydrangea viva shocking blue","Hortensia viva shocking blue",null,null,"M16","Yarda cúbica por segundo"]
[null,10214828,"Hydrangea viva tardiva","Hortensia viva tardiva",null,null,"M17","Kilohertz metro"]
[null,10214829,"Hydrangea viva blanca","Hortensia viva blanca",null,null,"M18","Gigahertz metro"]
[null,10214900,"Iris Viva",null,null,null,"M19","Beaufort"]
[null,10214901,"Iris viva negra barbada",null,null,null,"M20","Recíproco de megakelvin ó megakelvin a la potencia menos 1"]
[null,10214902,"Iris viva azul barbada",null,null,null,"M21","Kilovoltio-amperio hora recíprocidad"]
[null,10214903,"Iris viva lavanda barbada",null,null,null,"M22","Milímetro por centímetro cuadrado minuto"]
[null,10214904,"Iris viva barbada azul clara",null,null,null,"M23","Newton por centímetro"]
[null,10214905,"Iris viva barbada púrpura",null,null,null,"M24","Ohm kilómetro"]
[null,10214906,"Iris viva barbada roja",null,null,null,"M25","Porcentaje por grado celsius"]
[null,10214907,"Iris viva barbada blanca",null,null,null,"M26","GigaOhm por metro"]
[null,10214908,"Iris viva baerbada blanca y púrpura",null,null,null,"M27","Megahertz metro"]
[null,10214909,"Iris viva amarilla barbada",null,null,null,"M29","Kilogramo por kilogramo"]
[null,10214910,"Iris viva blue elegance",null,null,null,"M30","voltio-amperio segundo recíprocidad"]
[null,10214911,"Iris viva casablanca",null,null,null,"M31","Kilogramo por kilómetro"]
[null,10214912,"Iris viva golden beau",null,null,null,"M32","Segundos pascal por litro"]
[null,10214913,"Iris viva hildegard",null,null,null,"M33","MiliMol por litro"]
[null,10214914,"Iris viva hong kong",null,null,null,"M34","Newton metro por metro cuadrado"]
[null,10214915,"Iris viva ideal",null,null,null,"M35","Milivoltio - amperio"]
[null,10214916,"Iris viva professor blue",null,null,null,"M36","Mes de 30 días"]
[null,10214917,"Iris viva purple",null,null,null,"M37","Actual 360"]
[null,10214918,"Iris viva spuria",null,null,null,"M38","Kilómetro por segundo cuadrado"]
[null,10214919,"Iris viva telstar",null,null,null,"M39","Centímetro por segundo cuadrado"]
[null,10215000,"Pata de canguro viva",null,null,null,"M4","Valor monetario"]
[null,10215001,"Pata de canguro viva bicolor",null,null,null,"M40","Yarda por segundo cuadrado"]
[null,10215002,"Pata de canguro viva negra",null,null,null,"M41","Milímetro por segundo cuadrado"]
[null,10215003,"Pata de canguro viva verde",null,null,null,"M42","Milla (milla estatal)  por segundo cuadrado"]
[null,10215004,"Pata de canguro viva anaranjada",null,null,null,"M43","Mil (unidad de Medida Militar)"]
[null,10215005,"Pata de canguro viva rosada",null,null,null,"M44","Revolución"]
[null,10215006,"Pata de canguro viva roja",null,null,null,"M45","Grado por segundo cuadrado"]
[null,10215007,"Pata de canguro viva amarilla",null,null,null,"M46","Revolución por minuto"]
[null,10215100,"Delfinio vivo","Delphinium (larkspurs) vivos",null,null,"M47","Circular Mil"]
[null,10215101,"Delfinio viva azul nube","Delphinium (larkspurs) vivo azul nube",null,null,"M48","Milla cuadrada (basado en u.s survey foot)"]
[null,10215102,"Delfinio viva rosado fuerte","Delphinium (larkspurs) vivo rosado fuerte",null,null,"M49","Cadena "]
[null,10215103,"Delfinio viva lavanda","Delphinium (larkspurs) vivo lavanda",null,null,"M5","Microcurie"]
[null,10215104,"Delfinio viva rosado claro","Delphinium (larkspurs) vivo rosado claro",null,null,"M50","Estadio"]
[null,10215105,"Delfinio viva púrpura","Delphinium (larkspurs) vivo púrpura",null,null,"M51","Pie (Topografía UEA)"]
[null,10215106,"Delfinio viva blanca","Delphinium (larkspurs) vivo blanca",null,null,"M52","Milla"]
[null,10215200,"Lepto vivo",null,null,null,"M53","Metro por pascal"]
[null,10215201,"Lepto vivo azul o floreciente",null,null,null,"M55","Metro por radián"]
[null,10215202,"Lepto vivo rosado fuerte",null,null,null,"M56","Shake "]
[null,10215203,"Lepto vivo rosado claro",null,null,null,"M57","Milla por minuto"]
[null,10215204,"Lepto vivo rosado",null,null,null,"M58","Milla por segundo"]
[null,10215205,"Lepto vivo rojo",null,null,null,"M59","Metro por segundo pascal"]
[null,10215206,"Lepto vivo blanco",null,null,null,"M60","Metro por hora"]
[null,10215300,"Lila viva",null,null,null,"M61","Pulgada por año"]
[null,10215301,"Lila  viva híbrida francesa lavanda",null,null,null,"M62","Kilómetro por segundo"]
[null,10215302,"Lila  viva híbrida francesa púrpura",null,null,null,"M63","Pulgada por minuto"]
[null,10215303,"Lila  viva púrpura",null,null,null,"M64","Yarda por segundo"]
[null,10215304,"Lila  viva vino",null,null,null,"M65","Yarda por minuto"]
[null,10215305,"Lila  viva blanca",null,null,null,"M66","Yarda por hora"]
[null,10215306,"Lila  viva blanca salvaje",null,null,null,"M67","Acre-pie"]
[null,10215400,"Azucena viva","Lili viva",null,null,"M68","Cordón"]
[null,10215401,"Azucena viva alteza longiflorum e híbrido asiática","Lili viva alteza longiflorum e híbrido asiática",null,null,"M69","Milla cúbica (reinounido)"]
[null,10215402,"Azucena viva black out","Lili viva black out",null,null,"M7","Micro-pulgada"]
[null,10215403,"Azucena viva rosado oscuro","Lili viva rosado oscuro",null,null,"M70","Unidad tradicional de capacidad de carga"]
[null,10215404,"Azucena viva leéctrica asiática","Lili viva eléctrica asiática",null,null,"M71","Metro cúbico por pascal (joules)"]
[null,10215405,"Azucena viva festival asiática","Lili viva festival asiática",null,null,"M72","Bel"]
[null,10215406,"Azucena viva ginebra asiática","Lili viva ginebra asiática",null,null,"M73","Kilogramo por metro cúbico pascal"]
[null,10215407,"Azucena viva rosado claro asiática","Lili viva rosado claro asiática",null,null,"M74","Kilogramo por pascal"]
[null,10215408,"Azucena viva colombina asiática","Lili viva colombina asiática",null,null,"M75","Kilolibra fuerza"]
[null,10215409,"Azucena viva miss américa púrpura asiática","Lili viva miss américa púrpura asiática",null,null,"M76","Poundal"]
[null,10215410,"Azucena viva monte negro asiática","Lili viva monte negro asiática",null,null,"M77","Kilogramo metro por segundo cuadrado"]
[null,10215411,"Azucena viva anaranjada asiática","Lili viva anaranjada asiática",null,null,"M78","Pond"]
[null,10215412,"Azucena viva durazno cannes asiática","Lili viva durazno cannes asiática",null,null,"M79","Pie cuadrado por hora"]
[null,10215413,"Azucena viva rosada asiática","Lili viva rosada asiática",null,null,"M80","Stokes por pascal"]
[null,10215414,"Azucena viva sancerre asiátia","Lili viva sancerre asiática",null,null,"M81","Centímetro cuadrado por segundo"]
[null,10215415,"Azucena viva white dream asiática","Lili viva white dream asiática",null,null,"M82","Metro cuadrado por segundo pascal"]
[null,10215416,"Azucena viva amarilla asiática","Lili viva amarilla asiática",null,null,"M83","Denier"]
[null,10215417,"Azucena viva diamante brillante longiflorum e híbrido asiática","Lili viva diamante brillante longiflorum e híbrido asiática",null,null,"M84","Libra por yarda "]
[null,10215418,"Azucena viva brindisi longiflorum e híbrido asiática","Lili viva brindisi longiflorum e híbrido asiática",null,null,"M85","Tonelada, ensayo"]
[null,10215419,"Azucena viva carmine longiflorum e híbrido asiática","Lili viva carmine longiflorum e híbrido asiática",null,null,"M86","Libra Alemana"]
[null,10215420,"Azucena viva cinnabar longiflorum e híbrido asiática","Lili viva cinnabar longiflorum e híbrido asiática",null,null,"M87","Kilogramo por segundo pascal"]
[null,10215421,"Azucena viva club longiflorum e híbrido asiática","Lili viva club longiflorum e híbrido asiática",null,null,"M88","Tonelada por mes"]
[null,10215422,"Azucena viva discovery longiflorum e híbrido asiática","Lili viva discovery longiflorum e híbrido asiática",null,null,"M89","Tonelada por año"]
[null,10215423,"Azucena viva de pascua","Lili viva de pascua",null,null,"M9","Millones de btu por 1000 pies cúbicos"]
[null,10215424,"Azucena viva isis longiflorum e híbrido asiática","Lili viva isis longiflorum e híbrido asiática",null,null,"M90","Kilolibra por hora"]
[null,10215425,"Azucena viva la hybrid justice longiflorum e híbrido asiática","Lili viva la hybrid justice longiflorum e híbrido asiática",null,null,"M91","Libra por libra"]
[null,10215426,"Azucena viva lace longiflorum e híbrido asiática","Lili viva lace longiflorum e híbrido asiática",null,null,"M92","Libra fuerza pie"]
[null,10215427,"Azucena viva lirio de los valles","Lili viva lirio de los valles",null,null,"M93","Newton metro por radián"]
[null,10215428,"Azucena viva love longiflorum e híbrido asiática","Lili viva love longiflorum e híbrido asiática",null,null,"M94","Kilogramo metro"]
[null,10215429,"Azucena viva menorca longiflorum e híbrido asiática","Lili viva menorca longiflorum e híbrido asiática",null,null,"M95","Poundal pie"]
[null,10215430,"Azucena viva oriental acapulco","Lili viva oriental acapulco",null,null,"M96","Poundal pulgada"]
[null,10215431,"Azucena viva oriental albion","Lili viva oriental albión",null,null,"M97","Dina metro"]
[null,10215432,"Azucena viva oriental argentina","Lili viva oriental argentina",null,null,"M98","Kilogramo centímetro por segundo"]
[null,10215433,"Azucena viva oriental auratum","Lili viva oriental auratum",null,null,"M99","Gramo centímetro por segundo"]
[null,10215434,"Azucena viva oriental barbaresco","Lili viva oriental barbaresco",null,null,"MA","Máquina por unidad"]
[null,10215435,"Azucena viva oriental bernini","Lili viva oriental bernini",null,null,"MAH","Megavoltio amperio reactivo hora"]
[null,10215436,"Azucena viva oriental beseno","Lili viva oriental beseno",null,null,"MAL","Megalitro"]
[null,10215437,"Azucena viva oriental broadway","Lili viva oriental broadway",null,null,"MAM","Megametro"]
[null,10215438,"Azucena viva oriental canada","Lili viva oriental canadá",null,null,"MAR","Megavar"]
[null,10215439,"Azucena viva oriental casablanca","Lili viva oriental casablanca",null,null,"MAW","Megawatt"]
[null,10215440,"Azucena viva oriental chili","Lili viva oriental chili",null,null,"MBE","Mil equivalente de ladrillo estándar"]
[null,10215441,"Azucena viva oriental chrystal","Lili viva oriental chrystal",null,null,"MBF","Mil pies de tabla"]
[null,10215442,"Azucena viva oriental cobra","Lili viva oriental cobra",null,null,"MBR","Milibar"]
[null,10215443,"Azucena viva oriental conca d’ or","Lili viva oriental conca d' ivor",null,null,"MC","Microgramo"]
[null,10215444,"Azucena viva oriental cote d’ ivor","Lili viva oriental cote d' ivor",null,null,"MCU","Milicurie"]
[null,10215445,"Azucena viva oriental dizzy","Lili viva oriental dizzy",null,null,"MD","Tonelada métrica seca al aire"]
[null,10215446,"Azucena viva oriental fireball","Lili viva oriental fireball",null,null,"MF","Miligramo por pie cuadrado por lado"]
[null,10215447,"Azucena viva oriental gluhwein","Lili viva oriental gluhwein",null,null,"MGM","Miligramo"]
[null,10215448,"Azucena viva oriental goldband","Lili viva oriental goldband",null,null,"MHZ","Megahertz"]
[null,10215449,"Azucena viva oriental halifax","Lili viva oriental halifax",null,null,"MIK","Milla cuadrada (milla estatal)"]
[null,10215450,"Azucena viva oriental kathryn","Lili viva oriental kathryn",null,null,"MIL","Mil"]
[null,10215451,"Azucena viva oriental kyoto","Lili viva oriental kyoto",null,null,"MIN","Minuto [unidad de tiempo]"]
[null,10215452,"Azucena viva oriental la mancha","Lili viva oriental la mancha",null,null,"MIO","Millon"]
[null,10215453,"Azucena viva oriental medusa","Lili viva oriental medusa",null,null,"MIU","Unidad internacional de millon"]
[null,10215454,"Azucena viva oriental montezuma","Lili viva oriental montezuma",null,null,"MK","Miligramo por pulgada cuadrada"]
[null,10215455,"Azucena viva oriental muscadet","Lili viva oriental muscadet",null,null,"MLD","Mil millones"]
[null,10215456,"Azucena viva oriental nippon","Lili viva oriental nippon",null,null,"MLT","Mililitro"]
[null,10215457,"Azucena viva oriental opus one","Lili viva oriental opus one",null,null,"MMK","Milímetro cuadrado"]
[null,10215458,"Azucena viva oriental pompeii","Lili viva oriental pompeii",null,null,"MMQ","Milímetro cúbico"]
[null,10215459,"Azucena viva oriental rialto","Lili viva oriental rialto",null,null,"MMT","Milímetro"]
[null,10215460,"Azucena viva oriental robina","Lili viva oriental robina",null,null,"MND","Kilogramo, peso seco"]
[null,10215461,"Azucena viva oriental rousilon","Lili viva oriental rousilon",null,null,"MON","Mes "]
[null,10215462,"Azucena viva oriental siberia","Lili viva oriental siberia",null,null,"MPA","Megapascal"]
[null,10215463,"Azucena viva oriental sorbonne","Lili viva oriental sorbonne",null,null,"MQ","Mil metros"]
[null,10215464,"Azucena viva oriental starfighter","Lili viva oriental starfighter",null,null,"MQH","Metro cúbico por hora"]
[null,10215465,"Azucena viva oriental stargazer","Lili viva oriental stargazer",null,null,"MQS","Metro cúbico por segundo"]
[null,10215466,"Azucena viva oriental sumatra","Lili viva oriental sumatra",null,null,"MSK","Metro por segundo cuadrado"]
[null,10215467,"Azucena viva oriental time out","Lili viva oriental time out",null,null,"MTK","Metro cuadrado"]
[null,10215468,"Azucena viva oriental tom pouche","Lili viva oriental tom pouche",null,null,"MTQ","Metro cúbico"]
[null,10215469,"Azucena viva oriental tropical","Lili viva oriental tropical",null,null,"MTR","Metro"]
[null,10215470,"Azucena viva oriental white cup","Lili viva oriental white cup",null,null,"MTS","Metro por segundo"]
[null,10215471,"Azucena viva oriental white merostar","Lili viva oriental white merostar",null,null,"MV","Número de mults"]
[null,10215472,"Azucena viva oriental white montana","Lili viva oriental white montana",null,null,"MVA","Megavoltio - amperio"]
[null,10215473,"Azucena viva oriental white stargazer","Lili viva oriental white stargazer",null,null,"MWH","Megawatt hora"]
[null,10215474,"Azucena viva oriental yellow band","Lili viva oriental yellow band",null,null,"N1","Pluma calórica"]
[null,10215475,"Azucena viva oriental yellow dream","Lili viva oriental yellow dream",null,null,"N10","Libra pie por segundo"]
[null,10215476,"Azucena viva oriental yellow queen","Lili viva oriental yellow queen",null,null,"N11","Libra pulgada por segundo"]
[null,10215477,"Azucena viva oriental yellow star","Lili viva oriental yellow star",null,null,"N12","Pferdestaerke"]
[null,10215478,"Azucena viva oriental yeloween","Lili viva oriental yelloween",null,null,"N13","Centímetro de mercurio (0°)"]
[null,10215479,"Azucena viva ot red dutch","Lili viva ot red dutch",null,null,"N14","Centímetro de agua (4°)"]
[null,10215480,"Azucena viva sonata nimph","Lili viva sonata nimph",null,null,"N15","Pie de agua (39.2 °f)"]
[null,10215481,"Azucena viva sonata shocking","Lili viva sonata shocking",null,null,"N16","Pulgada de mercurio (32 °f)"]
[null,10215482,"Azucena viva sonata triumphateer","Lili viva sonata triumphateer",null,null,"N17","Pulgada de mercurio (60 °f)"]
[null,10215483,"Azucena viva sunset longiflorum e híbrido asiática","Lili viva sunset longiflorum e híbrido asiática",null,null,"N18","Pulgada de agua (39.2 °f)"]
[null,10215484,"Azucena viva de agua","Lili viva de agua",null,null,"N19","Pulgada de agua (60 °f)"]
[null,10215500,"Lavanda viva",null,null,null,"N2","número de líneas"]
[null,10215501,"Lavanda marina viva misty peach",null,null,null,"N20","Kip por pulgada cuadrada"]
[null,10215502,"Lavanda marina viva misty rosada",null,null,null,"N21","Poundal por pie cuadrado"]
[null,10215503,"Lavanda marina viva misty blanca",null,null,null,"N22","Onza (avoirdupois) por pulgada cuadrada"]
[null,10215504,"Lavanda marina viva misty amarilla",null,null,null,"N23","Metro convencional de agua"]
[null,10215505,"Lavanda marina viva safora",null,null,null,"N24","Gramo por milímetro cuadrado"]
[null,10215506,"Lavanda marina viva sinensis",null,null,null,"N25","Libra por yarda cuadrada"]
[null,10215600,"Lisianthus vivo","Eustomas vivas",null,null,"N26","Poundal por pulgada cuadrada"]
[null,10215601,"Lisianthus vivo crema","Eustoma viva crema",null,null,"N27","Pie a la cuarta potencia "]
[null,10215602,"Lisianthus vivo rosado fuerte","Eustoma viva rosado fuerte",null,null,"N28","Decímetro cúbico por kilogramo"]
[null,10215603,"Lisianthus vivo verde","Eustoma viva verde",null,null,"N29","Pie cúbico por libra "]
[null,10215604,"Lisianthus vivo lavanda","Eustoma viva lavanda",null,null,"N3","Impresión de punto"]
[null,10215605,"Lisianthus vivo rosado claro","Eustoma viva rosado claro",null,null,"N30","Pulgada cúbica por libra"]
[null,10215606,"Lisianthus vivo mini blanco","Eustoma viva mini blanco",null,null,"N31","Kilonewton por metro"]
[null,10215607,"Lisianthus vivo durazno","Eustoma viva durazno",null,null,"N32","Poundal por pulgada"]
[null,10215608,"Lisianthus vivo rosado con borde blanco","Eustoma viva rosado con borde blanco",null,null,"N33","Libra-fuerza por yarda"]
[null,10215609,"Lisianthus vivo púrpura","Eustoma viva púrpura",null,null,"N34","Poundal segundo por pie cuadrado"]
[null,10215610,"Lisianthus vivo púrpura con borde blanco","Eustoma viva púrpura con borde blanco",null,null,"N35","Poise por pascal"]
[null,10215611,"Lisianthus vivo blanco con borde rosado","Eustoma viva blanco con borde rosado",null,null,"N36","Newton segundo por metro cuadrado"]
[null,10215612,"Lisianthus vivo blanco","Eustoma viva blanco",null,null,"N37","Kilogramo por metro segundo"]
[null,10215613,"Lisianthus vivo blanco con borde púrpura","Eustoma viva blanco con borde púrpura",null,null,"N38","Kilogramo por metro minuto"]
[null,10215700,"Muscari viva",null,null,null,"N39","Kilogramo por metro día"]
[null,10215701,"Muscari viva armeniacum",null,null,null,"N40","Kilogramo por metro hora"]
[null,10215702,"Muscari viva bortyoides blanca",null,null,null,"N41","Gramo por centímetro segundo"]
[null,10215703,"Muscari viva verde",null,null,null,"N42","Poundal segundo por pulgada cuadrada"]
[null,10215704,"Muscari viva latifolia",null,null,null,"N43","Libra por pie minuto"]
[null,10215705,"Muscari viva valerie finn",null,null,null,"N44","Libra por pie día"]
[null,10215800,"Narciso vivo",null,null,null,"N45","Metro cúbico por segundo pascal"]
[null,10215801,"Narciso vivo alegría",null,null,null,"N46","Pie poundal"]
[null,10215802,"Narciso vivo amanecer dorado",null,null,null,"N47","Pulgada poundal"]
[null,10215803,"Narciso vivo abba paperwhite",null,null,null,"N48","Watt por centímetro cuadrado"]
[null,10215804,"Narciso vivo paperwhite",null,null,null,"N49","Watt por pulgada cuadrada"]
[null,10215805,"Narciso vivo ojo de faisán",null,null,null,"N50","Unidad térmica británica (tabla internacional) por pie cuadrado hora."]
[null,10215806,"Narciso vivo soleil d’ or",null,null,null,"N51","Unidad térmica británica (termoquímica) por pie cuadrado hora."]
[null,10215807,"Narciso vivo tete a tete",null,null,null,"N52","Unidad térmica británica (termoquímico) por pie cuadrado minuto."]
[null,10215808,"Narciso vivo thalia",null,null,null,"N53","Unidad térmica británica (tabla internacional) por pie cuadrado segundo."]
[null,10216000,"Pimientos ornamentales vivos","Paprikas ornamentales vivas",null,null,"N54","Unidad térmica británica (termoquímica) por pie cuadrado segundo."]
[null,10216001,"Pimiento chile vivo ornamental","Paprika ornamental viva",null,null,"N55","Unidad térmica británica (tabla internacional) por pulgada cuadrada segundo."]
[null,10216002,"Pimiento mezclado vivo ornamental","Paprika ornamental mezclada viva",null,null,"N56","Caloría (termoquímica) por centímetro cuadrado minuto"]
[null,10216003,"Pimiento anaranjado vivo ornamental","Paprika ornamental anaranjada viva",null,null,"N57","Caloría (termoquímica) por centímetro cuadrado segundo"]
[null,10216004,"Pimiento rojo vivo ornamental","Paprika ornamental roja viva",null,null,"N58","Unidad térmica británica (tabla internacional) por pie cúbico"]
[null,10216005,"Pimiento amarillo vivo ornamental","Paprika ornamental amarilla viva",null,null,"N59","Unidad térmica británica (termoquímica) por pie cúbico"]
[null,10216100,"Estrella de Belén viva",null,null,null,"N60","Unidad térmica británica (tabla internacional) por grado fahrenheit"]
[null,10216101,"Estrella de belén viva arábica",null,null,null,"N61","Unidad térmica británica (termoquímico) por grado fahrenheit"]
[null,10216102,"Estrella de belén viva dubium anaranjada",null,null,null,"N62","Unidad térmica británica (tabla internacional) por grado rankine"]
[null,10216103,"Estrella de belén viva umbellada",null,null,null,"N63","Unidad térmica británica (termoquímico) por grado rankine"]
[null,10216104,"Estrella de belén viva dubium blanca",null,null,null,"N64","Unidad térmica británica (termoquímico) por libra grado rankine"]
[null,10216105,"Estrella de belén viva dubium amarilla",null,null,null,"N65","Kilocaloría (tabla internacional) por gramo kelvin"]
[null,10216200,"Peonia viva",null,null,null,"N66","Unidad térmica británica (39 °f)"]
[null,10216201,"Peonia viva alexander fleming",null,null,null,"N67","Unidad térmica británica (59 °f)"]
[null,10216202,"Peonia viva coral charm",null,null,null,"N68","Unidad térmica británica (60 °f)"]
[null,10216203,"Peonia viva suset",null,null,null,"N69","Caloría (20 °c)"]
[null,10216204,"Peonia viva coral supreme",null,null,null,"N70","Quad"]
[null,10216205,"Peonia viva gardenia doble",null,null,null,"N71","Termia (energía comercial)"]
[null,10216206,"Peonia viva doble jues eli oscura",null,null,null,"N72","Termia (UEA)"]
[null,10216207,"Peonia viva soble duquesa blanca",null,null,null,"N73","Unidad térmica británica (termoquímica) por libra"]
[null,10216208,"Peonia viva felix crousse",null,null,null,"N74","Unidad térmica británica (tabla internacional) por hora pie cuadrado grado fahrenheit."]
[null,10216209,"Peonia viva festiva máxima",null,null,null,"N75","Unidad térmica británica (termoquímico) por hora pie cuadrado grado farenheit."]
[null,10216210,"Peonia viva tesoro del jardín",null,null,null,"N76","Unidad térmica británica (tabla internacional) por segundo pie cuadrado grado fahrenheit."]
[null,10216211,"Peonia viva kansas rosado oscuro",null,null,null,"N77","Unidad térmica británica (termoquímico) por segundo pie cuadrado grado fahrenheit."]
[null,10216212,"Peonia viva karl rosenfelt",null,null,null,"N78","Kilowatt por metro cuadrado kelvin"]
[null,10216213,"Peonia viva paula fay",null,null,null,"N79","Kelvin por pascal"]
[null,10216214,"Peonia viva encanto rojo",null,null,null,"N80","Watt por metro grado celsius"]
[null,10216215,"Peonia viva pasion roja",null,null,null,"N81","Kilowatt por metro kelvin"]
[null,10216216,"Peonia viva sarah bernhardt roja",null,null,null,"N82","Kilowatt por metro grado celsius"]
[null,10216217,"Peonia viva scarlet o’ hara",null,null,null,"N83","Metro por grado celsius metro"]
[null,10216218,"Peonia viva shirley temple",null,null,null,"N84","Grado fahrenheit hora por unidad térmica británica (tabla internacional)"]
[null,10216300,"Banksia viva","Flores vivas de árbol madreselva australiano",null,null,"N85","Grado fahrenheit hora por unidad térmica británica (termoquímico)"]
[null,10216301,"Banksia viva ashbyi","Flor de árbol madreselva australiano viva ashbyi",null,null,"N86","Grado fahrenheit segundo por unidad térmica británica (tabla internacional)"]
[null,10216302,"Banksia viva baxteri","Flor de árbol madreselva australiano viva baxteri",null,null,"N87","Grago fahrenheit segundo por unidad térmica británica (termoquímico)"]
[null,10216306,"Banksia viva coccinea","Flor de árbol madreselva australiano viva coccínea",null,null,"N88","Grado fahrenheit hora pie cuadrado por unidad térmica británica (tabla internacional) pulgada"]
[null,10216311,"Banksia viva ericifolia","Flor de árbol madreselva australiano viva ericifolia",null,null,"N89","Grado fahrenheit hora pie cuadrado por unidad térmica británica (termoquímico) pulgada."]
[null,10216315,"Banksia viva verde","Flor de árbol madreselva australiano viva verde",null,null,"N90","Kilofaradio"]
[null,10216322,"Banksia viva menziesii","Flor de árbol madreselva australiano viva menziesii",null,null,"N91","Joule recíproco"]
[null,10216325,"Banksia viva blanco natural","Flor de árbol madreselva australiano viva blanco natural",null,null,"N92","Picosiemens"]
[null,10216326,"Banksia viva anaranjado","Flor de árbol madreselva australiano viva anaranjado",null,null,"N93","Amperio por pascal"]
[null,10216332,"Banksia viva rosada","Flor de árbol madreselva australiano viva rosada",null,null,"N94","Franklin"]
[null,10216400,"Ranúculo vivo",null,null,null,"N95","Amperio minuto"]
[null,10216401,"Ranúnculo vivo chocolate",null,null,null,"N96","Biot"]
[null,10216402,"Ranúnculo vivo elegancia",null,null,null,"N97","Gilbert"]
[null,10216403,"Ranúnculo vivo verde",null,null,null,"N98","Voltio por pascal"]
[null,10216404,"Ranúnculo vivo grimaldi",null,null,null,"N99","Picovoltio"]
[null,10216405,"Ranúnculo vivo rosado fuerte",null,null,null,"NA","Miligramo por kilogramo"]
[null,10216406,"Ranúnculo vivo rosado claro",null,null,null,"NAR","Número de artículos"]
[null,10216407,"Ranúnculo vivo anaranjado",null,null,null,"NB","barcaza"]
[null,10216408,"Ranúnculo vivo centro verde",null,null,null,"NBB","Número de bobinas"]
[null,10216409,"Ranúnculo vivo rosado",null,null,null,"NC","Carro"]
[null,10216410,"Ranúnculo vivo rojo",null,null,null,"NCL","Número de celulas"]
[null,10216411,"Ranúnculo vivo blanco",null,null,null,"ND","Barril neto"]
[null,10216412,"Ranúnculo vivo amarillo",null,null,null,"NE","Litro neto"]
[null,10216413,"Ranúnculo vivo salmón",null,null,null,"NEW","Newton"]
[null,10216500,"Escabiosa viva","Flores del acerico vivas",null,null,"NF","Mensaje"]
[null,10216501,"Escabiosa viva anual","Flor del acerico viva anual",null,null,"NG","Galón neto (us)"]
[null,10216502,"Escabiosa viva negra","Flor del acerico viva negra",null,null,"NH","Hora del mensaje"]
[null,10216503,"Escabiosa viva caucásica azul","Flor del acerico viva caucásica azul",null,null,"NI","Galón imperial neto"]
[null,10216504,"Escabiosa viva caucásica rosada","Flor del acerico viva caucásica rosada",null,null,"NIL","Nil"]
[null,10216505,"Escabiosa viva caucásica vainas","Flor del acerico viva caucásica vainas",null,null,"NIU","Número de unidades internacionales"]
[null,10216506,"Escabiosa viva caucásica blanca","Flor del acerico viva caucásica blanca",null,null,"NJ","Número de pantallas"]
[null,10216507,"Escabiosa viva fresa","Flor del acerico viva fresa",null,null,"NL","Carga"]
[null,10216600,"Retama de escobas viva",null,null,null,"NM3","Metro cúbico normalizado"]
[null,10216601,"Retama de escobas viva rosada",null,null,null,"NMI","Milla náutica"]
[null,10216602,"Retama de escobas viva púrpura",null,null,null,"NMP","Número de paquetes"]
[null,10216603,"Retama de escobas viva blanca",null,null,null,"NN","tren"]
[null,10216604,"Retama de escobas viva amarilla",null,null,null,"NPR","Número de parejas"]
[null,10216700,"Boca de dragón viva",null,null,null,"NPT","Número de partes"]
[null,10216701,"Boca de dragón viva bicolor",null,null,null,"NQ","Mho"]
[null,10216702,"Boca de dragón viva burgundy",null,null,null,"NR","Micromho"]
[null,10216703,"Boca de dragón viva rosado fuerte",null,null,null,"NT","Tonelada neta"]
[null,10216704,"Boca de dragón viva lavanda",null,null,null,"NTT","Tonelada de registro neto"]
[null,10216705,"Boca de dragón viva anaranjado claro",null,null,null,"NV","vehículo"]
[null,10216706,"Boca de dragón viva rosado claro",null,null,null,"NY","Libra por tonelada métrica al aire seco"]
[null,10216707,"Boca de dragón viva anaranjado",null,null,null,"NX","Parte por mil"]
[null,10216708,"Boca de dragón viva blanco",null,null,null,"OA","Panel"]
[null,10216709,"Boca de dragón viva amarillo",null,null,null,"ODE","Equvalente de agotamiento del ozona"]
[null,10216800,"Romero del pantano viva","Siemprevivas azules vivas",null,null,"Ohm","Ohm"]
[null,10216801,"Romero del pantano viva azul","Siempreviva azul viva color azul",null,null,"ON","Onza por yarda cuadrada"]
[null,10216802,"Romero del pantano viva lavanda","Siempreviva azul viva lavanda",null,null,"ONZ","Onza (avoirdupois)"]
[null,10216803,"Romero del pantano viva durazno","Siempreviva azul viva durazno",null,null,"OP","Dos paquetes"]
[null,10216804,"Romero del pantano viva rosada","Siempreviva azul viva rosada",null,null,"OPM","Oscilaciones por minuto"]
[null,10216805,"Romero del pantano viva púrpura","Siempreviva azul viva púrpura",null,null,"OT","Hora extra"]
[null,10216806,"Romero del pantano viva espuma de mar","Siempreviva azul viva espuma de mar",null,null,"OZ","Onza AV"]
[null,10216807,"Romero del pantano viva blanca","Siempreviva azul viva blanca",null,null,"OZA","Onza líquida (estados unidos)"]
[null,10216808,"Romero del pantano viva amarilla","Siempreviva azul viva amarilla",null,null,"OZI","Onza líquida (UK)"]
[null,10216900,"Matiola viva","Alhelís vivas",null,null,"P0","Página electrónica"]
[null,10216901,"Matiola viva apricot","Alhelí viva apricot",null,null,"P1","Tanto por ciento"]
[null,10216902,"Matiola viva crema","Alhelí viva crema",null,null,"P10","Culombio por metro"]
[null,10216903,"Matiola viva fucsia","Alhelí viva fucsia",null,null,"P11","Kiloweber"]
[null,10216904,"Matiola viva lavanda","Alhelí viva lavanda",null,null,"P12","Gamma"]
[null,10216905,"Matiola viva lavanda claro","Alhelí viva lavanda claro",null,null,"P13","Kilotesla"]
[null,10216906,"Matiola viva rosada","Alhelí viva rosada",null,null,"P14","Joule por segundo"]
[null,10216907,"Matiola viva púrpura","Alhelí viva púrpura",null,null,"P15","Joule por minuto"]
[null,10216908,"Matiola viva rojo rubí","Alhelí viva rojo rubí",null,null,"P16","Joule por hora"]
[null,10216909,"Matiola viva enamorada rosda","Alhelí viva enamorada rosada",null,null,"P17","Joule por día"]
[null,10216910,"Matiola viva blanca","Alhelí viva blanca",null,null,"P18","Kilojoule por segundo"]
[null,10217000,"Girasol viva",null,null,null,"P19","Kilojoule por minuto"]
[null,10217001,"Girasol viva tinte festivo",null,null,null,"P2","Libra por pie"]
[null,10217002,"Girasol viva mahogany",null,null,null,"P20","Kilojoule por hora"]
[null,10217003,"Girasol viva rayo de sol",null,null,null,"P21","Kilojoule por dia"]
[null,10217004,"Girasol viva brillo del sol",null,null,null,"P22","NanoOhm"]
[null,10217005,"Girasol viva salpicada de sol",null,null,null,"P23","Ohm circular-mil por pie"]
[null,10217006,"Girasol viva oso de peluche",null,null,null,"P24","Kilohenry"]
[null,10217100,"Guisante de olor vivo",null,null,null,"P25","Lumen por pie cuadrado"]
[null,10217101,"Guisante de olor vivo verde teñido",null,null,null,"P26","Foto"]
[null,10217102,"Guisante de olor vivo rosado fuerte",null,null,null,"P27","Vela (medida)"]
[null,10217103,"Guisante de olor vivo lavanda",null,null,null,"P28","Candela por pulgada cuadrada"]
[null,10217104,"Guisante de olor vivo rosado claro",null,null,null,"P29","Footlambert"]
[null,10217105,"Guisante de olor vivo anaranjado",null,null,null,"P3","Tres paquetes"]
[null,10217106,"Guisante de olor vivo durazno teñido",null,null,null,"P30","Lambert"]
[null,10217107,"Guisante de olor vivo púrpura",null,null,null,"P31","Stilb "]
[null,10217108,"Guisante de olor vivo blanco",null,null,null,"P32","Candela por pie cuadrado"]
[null,10217200,"Cardo vivo",null,null,null,"P33","Kilocandela"]
[null,10217201,"Cardo vivo alpinum",null,null,null,"P34","Milicandela"]
[null,10217202,"Cardo vivo echinops",null,null,null,"P35","Hefner-kerze"]
[null,10217203,"Cardo vivo eryngium árabe",null,null,null,"P36","Candela internacional"]
[null,10217204,"Cardo vivo eryngium azul",null,null,null,"P37","Unidad térmica británica (tabla internacional) por pie cuadrado"]
[null,10217205,"Cardo vivo eryngium orión",null,null,null,"P38","Unidad térmica británica (termoquímica) por pie cuadrado"]
[null,10217206,"Cardo vivo eryngium frambuesa",null,null,null,"P39","Caloría (termoquímica) por centímetro cuadrado"]
[null,10217207,"Cardo vivo eryngium supernova",null,null,null,"P4","paquete de cuatro"]
[null,10217208,"Cardo vivo eryngium campanita",null,null,null,"P40","Langley"]
[null,10217300,"Tulipán vivo",null,null,null,"P41","Década (logaritmica)"]
[null,10217301,"Tulipán vivo adrem",null,null,null,"P42","Pascal por segundo cuadrado"]
[null,10217302,"Tulipán vivo apricot",null,null,null,"P43","Bel por metro"]
[null,10217303,"Tulipán vivo bicolor rojo y amarillo",null,null,null,"P44","Libra Mol"]
[null,10217304,"Tulipán vivo doble bicolor",null,null,null,"P45","Libra de Mol por segundo"]
[null,10217305,"Tulipán vivo doble rosado",null,null,null,"P46","Libra Mol por minuto"]
[null,10217306,"Tulipán vivo doble rojo",null,null,null,"P47","KiloMol por kilogramo"]
[null,10217307,"Tulipán vivo doble blanco",null,null,null,"P48","Libra de Mol por libra"]
[null,10217308,"Tulipán vivo doble amarillo",null,null,null,"P49","Newton metro cuadrado por amperio"]
[null,10217309,"Tulipán vivo francés avignon",null,null,null,"P5","Paquete de cinco"]
[null,10217310,"Tulipán vivo francés camarque",null,null,null,"P50","Metro weber"]
[null,10217311,"Tulipán vivo francés dordogne",null,null,null,"P51","Mol por kilogramo pascal "]
[null,10217312,"Tulipán vivo francés fiat",null,null,null,"P52","Mol por metro cúbico pascal"]
[null,10217313,"Tulipán vivo francés flamboyant",null,null,null,"P53","Unit por segundo"]
[null,10217314,"Tulipán vivo francés flaming parrot",null,null,null,"P54","MiliGray por segundo"]
[null,10217315,"Tulipán vivo francés florissa",null,null,null,"P55","MicroGray por segundo"]
[null,10217316,"Tulipán vivo francés doble maureen",null,null,null,"P56","NanoGray por segundo"]
[null,10217317,"Tulipán vivo francés maureen",null,null,null,"P57","Gray por minuto"]
[null,10217318,"Tulipán vivo francés menton",null,null,null,"P58","MiliGray por minuto"]
[null,10217319,"Tulipán vivo francés montpellier",null,null,null,"P59","Microgray por minuto"]
[null,10217320,"Tulipán vivo francés naranja unique",null,null,null,"P6","paquete de seis"]
[null,10217321,"Tulipán vivo francés peonia reconocido único",null,null,null,"P60","Nanogray por minuto"]
[null,10217322,"Tulipán vivo francés loro rosado",null,null,null,"P61","Gray por hora"]
[null,10217323,"Tulipán vivo francés princesa unique",null,null,null,"P62","MiliGray por hora"]
[null,10217324,"Tulipán vivo francés reconocido",null,null,null,"P63","Micro gray por hora"]
[null,10217325,"Tulipán vivo francés schepppers",null,null,null,"P64","Nanogray por hora"]
[null,10217326,"Tulipán vivo francés gamuza",null,null,null,"P65","Sievert por segundo"]
[null,10217327,"Tulipán vivo francés toyota",null,null,null,"P66","MilliSievert por segundo"]
[null,10217328,"Tulipán vivo francés loro weber",null,null,null,"P67","MicroSievert por segundo"]
[null,10217329,"Tulipán vivo francés loro blanco",null,null,null,"P68","NanoSievert por segundo"]
[null,10217330,"Tulipán vivo lavanda de borde crespo",null,null,null,"P69","Rem por segundo"]
[null,10217331,"Tulipán vivo rosado fuerte",null,null,null,"P7","Paquete de siete"]
[null,10217332,"Tulipán vivo rosado fuerte hoja variegada",null,null,null,"P70","Sievert por hora"]
[null,10217333,"Tulipán vivo lavanda",null,null,null,"P71","MilliSievert por hora"]
[null,10217334,"Tulipán vivo rosado claro hoja variegada",null,null,null,"P72","Micro Sievert por hora"]
[null,10217335,"Tulipán vivo viuda alegre",null,null,null,"P73","NanoSievert por hora"]
[null,10217336,"Tulipán vivo anaranjado",null,null,null,"P74","Sievert por minuto"]
[null,10217337,"Tulipán vivo loro negro",null,null,null,"P75","MilliSievert por minuto"]
[null,10217338,"Tulipán vivo loro estela rijnveld",null,null,null,"P76","MicroSievert por minuto"]
[null,10217339,"Tulipán vivo llameante",null,null,null,"P77","NanoSievert pominut "]
[null,10217340,"Tulipán vivo loro verde",null,null,null,"P78","Reciprocidad por segundo"]
[null,10217341,"Tulipán vivo loro lavanda",null,null,null,"P79","Pascal metro cuadrado por kilogramo"]
[null,10217342,"Tulipán vivo loro anaranjado",null,null,null,"P8","Paquete de ocho"]
[null,10217343,"Tulipán vivo loro durazno",null,null,null,"P80","Milipascal por metro."]
[null,10217344,"Tulipán vivo loro rosado",null,null,null,"P81","Kilopascal por metro."]
[null,10217345,"Tulipán vivo loro rojo",null,null,null,"P82","Hectopascal por metro."]
[null,10217346,"Tulipán vivo loro rojo rococó",null,null,null,"P83","Admosfera estandar por metro."]
[null,10217347,"Tulipán vivo loro weber",null,null,null,"P84","Admosfera tecnica por metro."]
[null,10217348,"Tulipán vivo loro blanco",null,null,null,"P85","Torr por metro."]
[null,10217349,"Tulipán vivo loro amarillo",null,null,null,"P86","Psi por pulgada"]
[null,10217350,"Tulipán vivo rosado",null,null,null,"P87","Metro cúbico por segundo de metro cuadrado"]
[null,10217351,"Tulipán vivo púrpura",null,null,null,"P88","Rhe"]
[null,10217352,"Tulipán vivo rojo",null,null,null,"P89","Libra por metro cúbico de pulgada"]
[null,10217353,"Tulipán vivo especias",null,null,null,"P9","Nueve paquetes"]
[null,10217354,"Tulipán vivo blanco",null,null,null,"P90","Libra-fuerza por pulgada cuadrada"]
[null,10217355,"Tulipán vivo amarillo",null,null,null,"P91","Permanente (0°c)"]
[null,10217400,"Flor de cera viva",null,null,null,"P92","Permanente (23°c)"]
[null,10217401,"Flor de cera viva alba",null,null,null,"P93","Byte por segundo"]
[null,10217402,"Flor de cera viva bicolor",null,null,null,"P94","Kilobyte por segundo"]
[null,10217403,"Flor de cera viva chichilla",null,null,null,"P95","Megabite por segundo"]
[null,10217404,"Flor de cera viva reina danzante",null,null,null,"P96","Recíproco de la unidad si deriva voltio"]
[null,10217405,"Flor de cera viva dinamarca",null,null,null,"P97","Reciprocidad de Radian"]
[null,10217406,"Flor de cera viva denmar",null,null,null,"P98","Pascal a la suma de potencia de los números estequimetricos"]
[null,10217407,"Flor de cera viva híbrida pastel flor gema",null,null,null,"P99","Mols por metro cúbico a la suma de potencia de los números estequimetricos"]
[null,10217408,"Flor de cera viva híbrida rosada flor gem",null,null,null,"PAL","Pascal"]
[null,10217409,"Flor de cera viva híbrida blanca rubia",null,null,null,"PB","Par de la pulgada"]
[null,10217410,"Flor de cera viva híbrida eric john",null,null,null,"PD","Almohadilla"]
[null,10217411,"Flor de cera viva híbrida dama pintada",null,null,null,"PE","Libra equivalente"]
[null,10217412,"Flor de cera viva híbrida revelación",null,null,null,"PFL","Litro de prueba "]
[null,10217413,"Flor de cera viva híbrida bola de nieve",null,null,null,"PGL","Galón de prueba"]
[null,10217414,"Flor de cera viva juriens brook",null,null,null,"PI","Tono"]
[null,10217415,"Flor de cera viva lady stephanie rosada",null,null,null,"PLA","Grado de platón "]
[null,10217416,"Flor de cera viva madonna",null,null,null,"PM","Porcentaje de libra"]
[null,10217417,"Flor de cera viva mini blanca",null,null,null,"PO","Libra por pulgada"]
[null,10217418,"Flor de cera viva anaranjada",null,null,null,"PQ","Página por pulgada"]
[null,10217419,"Flor de cera viva perla",null,null,null,"PR","Par"]
[null,10217420,"Flor de cera viva pixie moon",null,null,null,"PS","Libra fuerza por pulgada cuadrada"]
[null,10217421,"Flor de cera viva orgullo púrpura",null,null,null,"PT","Pinta (US)"]
[null,10217422,"Flor de cera viva roja",null,null,null,"PTD","Pinta seca (estados unidos)"]
[null,10217423,"Flor de cera viva wanaroo",null,null,null,"PTI","Pint (uk)"]
[null,10217424,"Flor de cera viva amarilla",null,null,null,"PTL","Pinta líquida (estados unidos)"]
[null,10217500,"Hierba de aquiles viva",null,null,null,"PTN","Parte"]
[null,10217501,"Hierba de aquiles viva vinotinto",null,null,null,"PV","Media pinta (US)"]
[null,10217502,"Hierba de aquiles viva crema campesina",null,null,null,"PW","Libra por pulgada de ancho"]
[null,10217503,"Hierba de aquiles viva rosado campesino",null,null,null,"PY","Pico seco (EUA)"]
[null,10217504,"Hierba de aquiles viva luz de luna",null,null,null,"PZ","Peck dry (UK)"]
[null,10217505,"Hierba de aquiles viva anaranjado",null,null,null,"Q10","Joule por tesla"]
[null,10217506,"Hierba de aquiles viva durazno",null,null,null,"Q11","Erlang"]
[null,10217507,"Hierba de aquiles viva rosada",null,null,null,"Q12","Octeto"]
[null,10217508,"Hierba de aquiles viva rojo teñido",null,null,null,"Q13","Octeto por segundo"]
[null,10217509,"Hierba de aquiles viva blanca",null,null,null,"Q14","Shannon"]
[null,10217510,"Hierba de aquiles viva amarilla",null,null,null,"Q15","Hartley"]
[null,10217600,"Zinnia viva","Cinias (guadalajaras) vivas",null,null,"Q16","Unidad natural de información "]
[null,10217601,"Zinia viva amarilla","Cinia (guadalajara) viva amarilla",null,null,"Q17","Shannon por segundo"]
[null,10217602,"Zinia viva mini","Cinia (guadalajara) viva mini",null,null,"Q18","Hartley por segundo "]
[null,10217603,"Zinia viva rosado","Cinia (guadalajara) viva rosado",null,null,"Q19","Unidad natural de información por segundo "]
[null,10217604,"Zinia viva rojo","Cinia (guadalajara) viva rojo",null,null,"Q20","Segundo por kilogramo"]
[null,10217605,"Zinia viva salmón","Cinia (guadalajara) viva salmón",null,null,"Q21","Watt metro cuadrado"]
[null,10217606,"Zinia viva amarillo","Cinia (guadalajara) viva amarillo",null,null,"Q22","Segundo por metro cúbicos de radianes "]
[null,10217700,"Forsythia viva",null,null,null,"Q23","Weber a la potencia menos uno"]
[null,10217701,"Forsythia viva viridissima",null,null,null,"Q24","Reciprocidad de Pulgada"]
[null,10217702,"Forsythia viva giraldiana",null,null,null,"Q25","Dioptría"]
[null,10217703,"Forsythia viva mira",null,null,null,"Q26","Uno por uno"]
[null,10217704,"Forsythia viva suspensa",null,null,null,"Q27","Newtons metros por metro"]
[null,10217705,"Forsythia viva intermedia",null,null,null,"Q28","Kilograma por metro cuadrado pascal segundo"]
[null,10217706,"Forsythia viva variabilis",null,null,null,"Q29","Microgramo por hectogramo"]
[null,10217707,"Forsythia viva ovate",null,null,null,"Q3","Comida"]
[null,10217708,"Forsythia viva intermedia lynwood",null,null,null,"Q30","Ph (potencial de hidrogeno)"]
[null,10217800,"Geranio vivo",null,null,null,"Q31","Kilojoule por gramo"]
[null,10217801,"Geranio vivo argenteum",null,null,null,"Q32","Femtolitro"]
[null,10217802,"Geranio vivo cinereum",null,null,null,"Q33","Picolitro"]
[null,10217803,"Geranio vivo clarkei",null,null,null,"Q34","Nanolitro"]
[null,10217804,"Geranio vivo dalmaticum",null,null,null,"Q35","Megawatts por minuto"]
[null,10217805,"Geranio vivo endressii",null,null,null,"Q36","Metro cuadrado por metro cúbico"]
[null,10217806,"Geranio vivo eriostemon",null,null,null,"Q37","Metro cúbico estándar por día"]
[null,10217807,"Geranio vivo farreri",null,null,null,"Q38","Metro cúbico estándar por hora"]
[null,10217808,"Geranio vivo himalayense o grandiflora",null,null,null,"Q39","Metro cúbico normalizado por día"]
[null,10217809,"Geranio vivo ibericum",null,null,null,"Q40","Metro cúbico normalizado por hora"]
[null,10217810,"Geranio vivo macrorhizum o raiz grande",null,null,null,"Q41","Joule por metro cúbico normalizado"]
[null,10217811,"Geranio vivo maculatum",null,null,null,"Q42","Joule por metro cúbico estándar"]
[null,10217812,"Geranio vivo nodosum",null,null,null,"QA","Página-fascimil"]
[null,10217813,"Geranio vivo phaeum",null,null,null,"QAN","Cuarto (de un año)"]
[null,10217814,"Geranio vivo platypetalum",null,null,null,"QB","Página, copia impresa"]
[null,10217815,"Geranio vivo pratense",null,null,null,"QD","Cuarta docena"]
[null,10217816,"Geranio vivo procurrens",null,null,null,"QH","Un cuarto de hora"]
[null,10217817,"Geranio vivo psilostemon",null,null,null,"QK","Cuarto de kilogramo"]
[null,10217818,"Geranio vivo pylzowianum",null,null,null,"QR","Mano de papel"]
[null,10217819,"Geranio vivo renardii",null,null,null,"QT","Cuarto (EUA)"]
[null,10217820,"Geranio vivo sanguineum o sangruento",null,null,null,"QTD","Cuarto seco (estados unidos)"]
[null,10217821,"Geranio vivo sylvaticum",null,null,null,"QTI","Cuarto (UK)"]
[null,10217822,"Geranio vivo traversii",null,null,null,"QTL","Cuarto de líquido (estadis unidos)"]
[null,10217823,"Geranio vivo tuberosum",null,null,null,"QTR","Cuarto"]
[null,10217824,"Geranio vivo versicolor",null,null,null,"R1","Pica"]
[null,10217825,"Geranio vivo wallachianum",null,null,null,"R9","Mil metros cúbicos "]
[null,10217826,"Geranio vivo wlassovianum",null,null,null,"RH","Hora de funcionamiento"]
[null,10217827,"Geranio vivo x magnificum o llamativo",null,null,null,"RK","Medida métrica de rollo"]
[null,10217900,"Amaryllis viva","Lirios estrella vivos",null,null,"RM","Resma"]
[null,10217901,"Amaryllis viva aglaiae","Lirio estrella vivo aglaiae",null,null,"RN","Medida métrica de Hojas (resma)"]
[null,10217902,"Amaryllis viva amaru","Lirio estrella vivo amaru",null,null,"ROM","Habitación"]
[null,10217903,"Amaryllis viva angustifolium","Lirio estrella vivo angustifolium",null,null,"RP","Libra por resma"]
[null,10217904,"Amaryllis viva anzaldoi","Lirio estrella vivo anzaldoi",null,null,"RPM","Revoluciones por minuto"]
[null,10217905,"Amaryllis viva araripinum","Lirio estrella vivo araripinum",null,null,"RPS","Revoluciones por segundo"]
[null,10217906,"Amaryllis viva arboricola","Lirio estrella vivo arborícola",null,null,"RS","Reiniciar"]
[null,10217907,"Amaryllis viva argentinum","Lirio estrella vivo argentinum",null,null,"RT","Milla de toneladas de ingresos"]
[null,10217908,"Amaryllis viva aulicum","Lirio estrella vivo aulicum",null,null,"RU","correr"]
[null,10217909,"Amaryllis viva aviflorum","Lirio estrella vivo aviflorum",null,null,"S3","Pie cuadrado por segundo"]
[null,10217910,"Amaryllis viva barreirasum","Lirio estrella vivo barreirasum",null,null,"S4","Metro cuadrado por segundo"]
[null,10217911,"Amaryllis viva blossfeldiae","Lirio estrella vivo blossfeldiae",null,null,"S5","Sesenta cuartos de pulgada"]
[null,10217912,"Amaryllis viva blumenavium","Lirio estrella vivo blumenavium",null,null,"S6","Sesión"]
[null,10217913,"Amaryllis viva brasilianum","Lirio estrella vivo brasilianum",null,null,"S7","unidad de almacenamiento"]
[null,10217914,"Amaryllis viva breviflorum","Lirio estrella vivo breviflorum",null,null,"S8","Unidad de publicidad estándar"]
[null,10217915,"Amaryllis viva bukasovii","Lirio estrella vivo bukasovii",null,null,"SAN","Medio año"]
[null,10217916,"Amaryllis viva calyptratum","Lirio estrella vivo calyptratum",null,null,"SCO","Puntuación"]
[null,10217917,"Amaryllis viva caupolicanense","Lirio estrella vivo caupolicanense",null,null,"SCR","Escrúpulo"]
[null,10217918,"Amaryllis viva chionedyanthum","Lirio estrella vivo chionedyanthum",null,null,"SD","Libra sólida"]
[null,10217919,"Amaryllis viva condemaita","Lirio estrella vivo condemaita",null,null,"SE","Sección"]
[null,10217920,"Amaryllis viva corriense","Lirio estrella vivo corriense",null,null,"SEC","Segundo [unidad de tiempo]"]
[null,10217921,"Amaryllis viva cuzcoense","Lirio estrella vivo cuzcoense",null,null,"SET","Conjunto"]
[null,10217922,"Amaryllis viva curitibanum","Lirio estrella vivo curitibanum",null,null,"SG","Segmento "]
[null,10217923,"Amaryllis viva cybister","Lirio estrella vivo cybister",null,null,"SHT","Tonelada de envíos"]
[null,10217924,"Amaryllis viva divijuliani","Lirio estrella vivo divijuliani",null,null,"SIE","Siemens"]
[null,10217925,"Amaryllis viva evansiae","Lirio estrella vivo evansiae",null,null,"SK","Camión cisterna con división"]
[null,10217926,"Amaryllis viva ferreyrae","Lirio estrella vivo ferreyrae",null,null,"SM3","Metro cúbico estándar"]
[null,10217927,"Amaryllis viva forgetii","Lirio estrella vivo forgetii",null,null,"SMI","Milla (milla estatal)"]
[null,10217928,"Amaryllis viva fosteri","Lirio estrella vivo fosteri",null,null,"SN","Barra cuadrada"]
[null,10217929,"Amaryllis viva fuscum","Lirio estrella vivo fuscum",null,null,"SQ","Cuadrado"]
[null,10217930,"Amaryllis viva glaucescens","Lirio estrella vivo glaucescens",null,null,"SQR","Cuadrado y techado"]
[null,10217931,"Amaryllis viva goianum","Lirio estrella vivo goianum",null,null,"SR","Tira"]
[null,10217932,"Amaryllis viva guarapuavicum","Lirio estrella vivo guarapuavicum",null,null,"SS","Medida métrica de hoja"]
[null,10217933,"Amaryllis viva harrisonii","Lirio estrella vivo harrisonii",null,null,"SST","Estandar corto (7200 partidos)"]
[null,10217934,"Amaryllis viva hugoi","Lirio estrella vivo hugoi",null,null,"STC","Palo"]
[null,10217935,"Amaryllis viva iguazuanum","Lirio estrella vivo iguazuanum",null,null,"STI","Estone (UK)"]
[null,10217936,"Amaryllis viva illustre","Lirio estrella vivo illustre",null,null,"STK","Palo, cigarrillo"]
[null,10217937,"Amaryllis viva intiflorum","Lirio estrella vivo intiflorum",null,null,"STL","Litro estándar"]
[null,10217938,"Amaryllis viva kromeri","Lirio estrella vivo kromeri",null,null,"STN","Tonelada (estados unidos) o tonelada corta (UK y estados unidos)"]
[null,10217939,"Amaryllis viva lapacense","Lirio estrella vivo lapacense",null,null,"STW","Paja"]
[null,10217940,"Amaryllis viva leonardii","Lirio estrella vivo leonardii",null,null,"SW","Número de madejas"]
[null,10217941,"Amaryllis viva leopoldii","Lirio estrella vivo leopoldii",null,null,"SX","Envío"]
[null,10217942,"Amaryllis viva macbridei","Lirio estrella vivo macbridei",null,null,"SYR","Jeringuilla"]
[null,10217943,"Amaryllis viva machupijchense","Lirio estrella vivo machupijchense",null,null,"T0","Linea de telecomunicaciones en servicio"]
[null,10217944,"Amaryllis viva mandonii","Lirio estrella vivo mandonii",null,null,"T1","Mil libras"]
[null,10217945,"Amaryllis viva minasgerais","Lirio estrella vivo minasgerais",null,null,"T3","Mil pedazos"]
[null,10217946,"Amaryllis viva miniatum","Lirio estrella vivo miniatum",null,null,"T4","Bolsa de mil"]
[null,10217947,"Amaryllis viva mollevillquense","Lirio estrella vivo mollevillquense",null,null,"T5","Mil envolturas"]
[null,10217948,"Amaryllis viva morelianum","Lirio estrella vivo morelianum",null,null,"T6","Mil galones (US)"]
[null,10217949,"Amaryllis viva nelsonii","Lirio estrella vivo nelsonii",null,null,"T7","Impresión de mil"]
[null,10217950,"Amaryllis viva oconoquense","Lirio estrella vivo oconoquense",null,null,"T8","Mil pulgadas lineales"]
[null,10217951,"Amaryllis viva papilio","Lirio estrella vivo papilio",null,null,"TA","Décimo de pie cúbico"]
[null,10217952,"Amaryllis viva paquichanum","Lirio estrella vivo paquichanum",null,null,"TAB","Tonelada de registro bruto"]
[null,10217953,"Amaryllis viva paradisiacum","Lirio estrella vivo paradisiacum",null,null,"TAH","Kiloamperio-hora (milamperio-hora)"]
[null,10217954,"Amaryllis viva pardinum","Lirio estrella vivo pardinum",null,null,"TAN","Número de acido total"]
[null,10217955,"Amaryllis viva parodii","Lirio estrella vivo parodii",null,null,"TC","Camión"]
[null,10217956,"Amaryllis viva petiolatum","Lirio estrella vivo petiolatum",null,null,"TD","Termico"]
[null,10217957,"Amaryllis viva psittacinum","Lirio estrella vivo psittacinum",null,null,"TE","Totalizador"]
[null,10217958,"Amaryllis viva puniceum","Lirio estrella vivo puniceum",null,null,"TF","Diez yardas cuadradas"]
[null,10217959,"Amaryllis viva reginae","Lirio estrella vivo reginae",null,null,"TI","Mil pulgadas cuadradas"]
[null,10217960,"Amaryllis viva reticulatum","Lirio estrella vivo reticulatum",null,null,"TIC","Tonelada métrica, incluido el contenedor"]
[null,10217961,"Amaryllis viva rubropictum","Lirio estrella vivo rubropictum",null,null,"TIP","Tonelada métrica, incluido el embalaje interior"]
[null,10217962,"Amaryllis viva santacatarina","Lirio estrella vivo santa catarina",null,null,"TJ","Mil centímetros cuadrados"]
[null,10217963,"Amaryllis viva solandraeflorum","Lirio estrella vivo solandraeflorum",null,null,"TKM","Tonelada kilometro"]
[null,10217964,"Amaryllis viva starkiorum","Lirio estrella vivo starkiorum",null,null,"TL","Mil pies (lineal)"]
[null,10217965,"Amaryllis viva striatum","Lirio estrella vivo striatum",null,null,"TMS","Kilogramo de carne importada, menos despojos"]
[null,10217966,"Amaryllis viva stylosum","Lirio estrella vivo stylosum",null,null,"TNE","Tonelada (tonelada métrica)"]
[null,10217967,"Amaryllis viva teyucuarense","Lirio estrella vivo teyucuarense",null,null,"TP","Paquete de diez"]
[null,10217968,"Amaryllis viva traubii","Lirio estrella vivo traubii",null,null,"TPI","Dientes por pulgada"]
[null,10217969,"Amaryllis viva vargasii","Lirio estrella vivo vargasii",null,null,"TPR","Decenas de pares"]
[null,10217970,"Amaryllis viva variegatum","Lirio estrella vivo variegatum",null,null,"TQ","Mil pies"]
[null,10217971,"Amaryllis viva vittatum","Lirio estrella vivo vittatum",null,null,"TQD","Mil metros cúbicos por día "]
[null,10217972,"Amaryllis viva yungacense","Lirio estrella vivo yungacense",null,null,"TR","Diez pies cuadrados"]
[null,10218000,"Rubdeckia viva","Equináceas vivas",null,null,"TRL","Trillones (eur)"]
[null,10218001,"Rubdeckia viva alpicola","Equinácea viva alpicola",null,null,"Ts","Mil pies cuadrados"]
[null,10218002,"Rubdeckia viva amplexicaulis","Equinácea viva amplexicaulis",null,null,"TSD","Tonelada de sustancia 90% seca"]
[null,10218003,"Rubdeckia viva auriculata","Equinácea viva auriculata",null,null,"TSH","Tonelada de vapor por hora"]
[null,10218004,"Rubdeckia viva bicolor","Equinácea viva bicolor",null,null,"TST","Decena de conjuntos"]
[null,10218005,"Rubdeckia viva californica","Equinácea viva califórnica",null,null,"TT","Mil metros lineales"]
[null,10218009,"Rubdeckia viva grandiflora","Equinácea viva grandiflora",null,null,"TW","Mil hojas"]
[null,10218210,"Leucadendron vivo mini",null,null,null,"X5H","Bolsa de plástico tejido"]
[null,10218340,"Leucospermum vivo pendunculatum",null,null,null,"XBZ","Barras, con fleje/ agrupados/ armados"]
[null,10222703,"Calatea serpiente cascabel","Calathea viva serpiente cascabel",null,null,"XFB","Bolsa flexible"]
[null,10224101,"Genciana viva azul",null,null,null,"XLV","Contenedor pequeño"]
[null,10225404,"Phlox viva blanca",null,null,null,"XQC","Tambor de aluminio con cabeza no extraíble"]
[null,10226032,"Eupatorium maculatum vivo",null,null,null,"XTT","Bolsa de mano"]
[null,10226701,"Watsonia viva anaranjada",null,null,null,"XZD","Contenedor intermedio para gráneles de plástico rígido, con equipo estructural para sólidos"]
[null,10231609,"Crisantemo vivo pompón clave",null,null,null,"Z6","Punto de conferencia"]
[null,10231712,"Crisantemo vivo espollado cremon listo"]
[null,10232008,"Crisantemo vivo pompón candor"]
[null,10232053,"Crisantemo vivo pompón cisne"]
[null,10241512,"Clavel vivo de floración sencilla durazno"]
[null,10251905,"Orquídea arachnis viva merry maggie"]
[null,10252051,"Orquídea phalaenopsis viva reichenbachiana"]
[null,10301513,"Rosal cortado fresco milano"]
[null,10301716,"Rosal cortado fresco fedora"]
[null,10301906,"Rosal cortado fresco carolina"]
[null,10301962,"Rosal cortado fresco whisper"]
[null,10302109,"Rosal cortado fresco caramella"]
[null,10302160,"Rosal cortado fresco orange flame"]
[null,10302225,"Rosal cortado fresco malilena o marilena"]
[null,10302357,"Rosal cortado fresco memphis"]
[null,10302386,"Rosal cortado fresco sweet unique"]
[null,10302444,"Rosal cortado fresco nicole"]
[null,10302603,"Rosal cortado fresco akito"]
[null,10302715,"Rosal cortado fresco deja vu"]
[null,10302774,"Rosal cortado fresco tabasco"]
[null,10302842,"Rosal cortado fresco mimi eden spray"]
[null,10311505,"Anturio cortado fresco mickey mouse","Lirio flamingo cortado fresco mickey mouse"]
[null,10311728,"Astromelia cortada fresca santiago","Lirio de campo cortado fresco santiago"]
[null,10312104,"Asclepia cortada fresca blanca","Algodoncillo cortado fresco blanca"]
[null,10312613,"Calla cortada fresca ramillete deformed calla","Alcatraz cortado fresco ramillete deformed calla"]
[null,10312812,"Cresta de gallo (celosia) cortada fresca wheat pink","Flor de terciopelo cortada fresca wheat pink"]
[null,10313401,"Brezo (erica) cortado fresco campunalarus","Brecina cortada fresca campunalarus"]
[null,10313902,"Margarita cortada fresca crema","Gerbera cortada fresca crema"]
[null,10314201,"Godetia cortada fresca bicolor"]
[null,10314812,"Hydrangea cortada fresca verde teñida","Hortensia cortada fresca verde teñida"]
[null,10314914,"Iris cortada fresca hong kong"]
[null,10315416,"Azucena cortada fresca amarilla asiática","Lili cortada fresca amarilla asiática"]
[null,10315468,"Azucena cortada fresca oriental tom pouche","Lili cortada fresca oriental tom pouche"]
[null,10315704,"Muscari cortada fresca latifolia"]
[null,10316410,"Ranúnculo cortado fresco rojo"]
[null,10317004,"Girasol cortada fresca brillo del sol"]
[null,10317330,"Tulipán cortado fresco lavanda de borde crespo"]
[null,10317510,"Hierba de aquiles cortada fresca amarilla"]
[null,10317826,"Geranio cortado fresco wlassovianum"]
[null,10317949,"Amaryllis cortada fresca nelsonii","Lirio estrella cortado fresco nelsonii"]
[null,10318027,"Rubdeckia cortada fresca triloba","Equinácea cortada fresca triloba"]
[null,10318308,"Leucospermum cortado fresco glabrum"]
[null,10321703,"Astilbe cortado fresco rojo","Barba falsa de cabra cortada fresca rojo"]
[null,10323200,"Chasmante cortada fresca"]
[null,10325200,"Nerina cortada fresca"]
[null,10326000,"Especies individuales o variedades de flores cortadas frescas","Arreglos florales frescos, Coronas funerarias, Flor de cempasúchil cortada fresc"]
[null,10326051,"Flor de oereja de oveja cortada fresca"]
[null,10326502,"Tweedia blanca cortada fresca"]
[null,10331615,"Crisantemo cortado fresco pompón rosado elite"]
[null,10331903,"Crisantemo spider cortado fresco anastasia verde"]
[null,10332029,"Crisantemo cortado fresco pompón miletta"]
[null,10332112,"Crisantemo cortado fresco pompón dígito"]
[null,10351604,"Clavel cortado fresco mini o spray lavanda"]
[null,10362003,"Orquídea phalaenopsis cortada fresca afrodita"]
[null,10362054,"Orquídea phalaenopsis cortada fresca schilleriana"]
[null,10362405,"Orquídea cortada fresca vanda hazme cosquillas rosada"]
[null,10401719,"Rosal cortado seco hollywood"]
[null,10401909,"Rosal cortado seco dolce vita"]
[null,10401961,"Rosal cortado seco vivaldi"]
[null,10402130,"Rosal cortado seco fiction"]
[null,10402163,"Rosal cortado seco orange unique"]
[null,10402228,"Rosal cortado seco oriental curiosa"]
[null,10402337,"Rosal cortado seco high and booming"]
[null,10402374,"Rosal cortado seco ravel"]
[null,10402447,"Rosal cortado seco opium"]
[null,10402606,"Rosal cortado seco andean crystal"]
[null,10402725,"Rosal cortado seco gallinda"]
[null,10402801,"Rosal cortado seco alegría spray"]
[null,10402846,"Rosal cortado seco orange success spray"]
[null,10411508,"Anturio cortado seco anaranjado","Lirio flamingo cortado seco anaranjado"]
[null,10411717,"Astromelia cortada seca nice","Lirio de campo cortado seco nice"]
[null,10412203,"Aster cortada seca japonés verde","Estrella cortada seca japonés verde"]
[null,10412616,"Calla cortada seca ramillete farao","Alcatraz cortado seco ramillete farao"]
[null,10412813,"Cresta de gallo (celosia) cortada seca wheat yellow","Flor de terciopelo cortada seca wheat yellow"]
[null,10413603,"Fresia cortada seca doble amarilla","Freesia cortada seca doble amarilla"]
[null,10413905,"Margarita cortada seca rosado claro","Gerbera cortada seca rosado claro"]
[null,10414205,"Godetia cortada seca roja"]
[null,10414708,"Jacinto cortado seco rosado medio"]
[null,10414903,"Iris cortada seca lavanda barbada"]
[null,10415420,"Azucena cortada seca cinnabar longiflorum e híbrido asiática","Lili cortada seca cinnabar longiflorum e híbrido asiática"]
[null,10415471,"Azucena cortada seca oriental white merostar","Lili cortada seca oriental white merostar"]
[null,10416001,"Pimiento chile cortado seco ornamental","Paprika ornamental cortada seca"]
[null,10416503,"Escabiosa cortada seca caucásica azul","Flor del acerico cortada seca caucásica azul"]
[null,10417100,"Guisante de olor cortado seco"]
[null,10417334,"Tulipán cortado seco rosado claro hoja variegada"]
[null,10417424,"Flor de cera cortada seca amarilla"]
[null,10417901,"Amaryllis cortada seca aglaiae","Lirio estrella cortado seco aglaiae"]
[null,10417953,"Amaryllis cortada seca paradisiacum","Lirio estrella cortado seco paradisiacum"]
[null,10418103,"Protea cortada seca carnaval"]
[null,10418116,"Protea cortada seca repens"]
[null,10421801,"Angélica cortada seca gigas"]
[null,10423300,"Costus cortada seca"]
[null,10424800,"Lysimachia cortada seca"]
[null,10425601,"Saponaria cortada seca rosada","Jabonaria cortada seca rosada"]
[null,10426054,"Lythrum cortada seca"]
[null,10426602,"Verónica cortada seca púrpura"]
[null,10431630,"Crisantemo cortado seco pompón reagan rosado"]
[null,10431908,"Crisantemo spider cortado seco anastasia blanco"]
[null,10432032,"Crisantemo cortado seco pompón orinoco púrpura"]
[null,10432115,"Crisantemo cortado seco pompón guía"]
[null,10441613,"Clavel cortado seco mini o spray blanco"]
[null,10451900,"Orquídea arachnis cortada seca"]
[null,10452107,"Orquídea dendrobium cortada seca kating dang"]
[null,10501808,"Eucalipto cortado fresco sin semilla y sin hojas"]
[null,10501908,"Helecho cortado fresco sombrilla"]
[null,10502918,"Dusty miller fresca cortada"]
[null,11101509,"Magnesita","Giobertita"]
[null,11101625,"Mineral de bauxita","Mena de bauxita"]
[null,11111502,"Material de relleno","Tierra para relleno"]
[null,11121809,"Paja"]
[null,11151511,"Fibras de polipropileno"]
[null,11161703,"Tela de algodón oxford"]
[null,11161800,"Tejidos sintéticos"]
[null,11191503,"Sólidos de aleación ferrosa"]
[null,12131803,"Propelente de pistola","Propulsores de pistola"]
[null,12141722,"Lawrencio lr"]
[null,12141744,"Torio th"]
[null,12141907,"Boro b"]
[null,12161700,"Amortiguadores"]
[null,12162501,"Rompedores de emulsión agua en aceite"]
[null,12164001,"Microbicidas registrados","Agentes microbicidas registrados"]
[null,12171504,"Colorantes fdc seguros para alimentos o cosméticos","Colorantes FDC para alimentos o medicamentos o cosméticos"]
[null,12352002,"Alquenos"]
[null,13101501,"Caucho látex","Hule"]
[null,13101709,"Fluorosilicona fvmq"]
[null,13111000,"Resinas"]
[null,13111052,"Sulfona de polipropileno"]
[null,13111216,"Películas de cloruro de polivinilo rígido"]
[null,14111539,"Papel de monitoreo o calcado o registro médico"]
[null,14111824,"Libreta de prescripciones farmacéuticas"]
[null,14122201,"Papel para germinación de semillas"]
[null,15121519,"Aceites de lubricación de relojes"]
[null,20101500,"Equipo de corte"]
[null,20102007,"Taladros de núcleo"]
[null,20111713,"Mástil de perforación"]
[null,20121125,"Kit de retención de cemento","Equipo retención de cemento"]
[null,20121405,"Dispositivos de circulación de producción"]
[null,20121505,"Equipo de núcleos"]
[null,20121906,"Herramientas nucleares"]
[null,20122004,"Accesorios de prueba"]
[null,20122315,"Equipo de medición de profundidad de cable de recuperación"]
[null,20122368,"Mandril de la línea de cable"]
[null,20122614,"Arietes sísmicos"]
[null,20122835,"Equipo viajero"]
[null,20131104,"Arenas de fracturación cubiertas de resina"]
[null,20141704,"Plataformas flotantes de brazo de tensión de producción costa afuera"]
[null,21101518,"Esterilizador de suelo"]
[null,21101801,"Rociadores","Hidrolavadora"]
[null,21102306,"Inyector de fertilizante hidropónico"]
[null,22101612,"Escarificadoras de carreteras"]
[null,22101723,"Cortador lateral de cuchara"]
[null,23101536,"Máquina de clavijas"]
[null,23121613,"Máquinas para procesar seda"]
[null,23151705,"Equipo para recubrir el vacío óptico"]
[null,23151825,"Unidad de tanque para filtrar y mezclar"]
[null,23153004,"Plantilla de aguja"]
[null,23153140,"Brazos articulados"]
[null,23153601,"Máquinas para el arcado al ácido","Máquinas de marcado ácido"]
[null,23181605,"Máquina ralladora"]
[null,23211102,"Máquina para hacer tarjetas de circuitos impresos"]
[null,23241404,"Maquina de rectificación externa"]
[null,23241702,"Máquina rebabadora de energía térmica"]
[null,23242116,"Anexo de máquina de enroscado"]
[null,23242613,"Máquina para hacer tornillos hembra"]
[null,23261506,"Máquina de estero – litografía"]
[null,23271708,"Barra indicadora de temperatura"]
[null,23281901,"Limpiador electroquímico de metal"]
[null,24101606,"Apiladoras"]
[null,24101722,"Banda transportadora de cadena"]
[null,24101749,"Sistema de transporte por bandas"]
[null,24102301,"Vehículo automático guiado por códigos de barras"]
[null,24112206,"Bidones metálicos para líquido inflamable","Latas metálicas con líquido inflamable"]
[null,24121506,"Cajas conductivas"]
[null,24141504,"Sellos de seguridad a prueba de manipulación"]
[null,25101611,"Camiones de carga"]
[null,25102000,"Vehículos de guerra"]
[null,25111715,"Embarcación mecanizada o de uso general"]
[null,25111917,"Alabantes","Bolardos De Amarre"]
[null,25121717,"Unión eléctrica de rieles","Corbata de madera del ferrocarril"]
[null,25161500,"Vehículos a pedal"]
[null,25171901,"Rines o ruedas para automóviles"]
[null,25172300,"Ventanas y parabrisas para vehículos","Refacciones automotrices o autopartes"]
[null,25172803,"Sistemas hidráulicos marítimos"]
[null,25173703,"Colector de escape"]
[null,25174414,"Tacógrafo","Tacómetro de un automóvil"]
[null,25181612,"Tráiler agrícola","Remolque agrícola"]
[null,25191605,"Módulos de servicio para naves espaciales"]
[null,25191743,"Máquina para lavar componentes de ferrocarril","Lavadora de componentes ferroviarios"]
[null,25201519,"Nervaduras de avión"]
[null,25202400,"Sistemas y depósitos de combustible del avión"]
[null,26101205,"Servo motor dc","Servomotor de corriente directa"]
[null,26101713,"Culata de cilindro","Tapa del cilindro"]
[null,26101762,"Varillaje de los componentes del motor"]
[null,26111525,"Transmisiones de tambor"]
[null,26111714,"Zinc aire","Batería mecánicamente recargables, Batería no recargable"]
[null,26111900,"Embragues"]
[null,26121612,"Cable forrado pero no aislado"]
[null,26121700,"Cableado preformado"]
[null,26121813,"Cable automotriz de núcleo sencillo de 600 voltios clase d"]
[null,26131812,"Conmutadores con aislamiento de gas"]
[null,26142303,"Distintivo de película"]
[null,27111535,"Tijeras de alambre"]
[null,27111615,"Almádena o martillo macho","Martillo antichispas"]
[null,27111754,"Llave en s"]
[null,27111910,"Buriles","Cuchilla para torno"]
[null,27112004,"Palas"]
[null,27112121,"Grapa de ángulo","Abrazaderas de ángulo"]
[null,27112161,"Herramienta para empacar cables","Herramienta para sujeción de cable"]
[null,27112404,"Herramientas para poner anclajes","Herramienta de fijación"]
[null,27112730,"Pistola de grasa eléctrica"]
[null,27112811,"Árboles","Mandril industrial"]
[null,27121502,"Bastidores de prensa hidráulica"]
[null,27131522,"Lija neumática miniatura"]
[null,27131702,"Accesorios de vástago de cilindro neumático"]
[null,30102013,"Lámina de estaño"]
[null,30102404,"Varillas de acero"]
[null,30103511,"Núcleo de panal de zinc"]
[null,30111505,"Concreto premezclado","Cemento premezclado"]
[null,30131505,"Bloques de haydita"]
[null,30151501,"Techado prearmado","Techos de rollo"]
[null,30161510,"Cobertura de pared plástica","Revestimiento de pared de plástico"]
[null,30162300,"Accesorios para gabinetes"]
[null,30171525,"Puerta de presión"]
[null,30172108,"Puerta de garaje rodante"]
[null,30191501,"Escaleras"]
[null,30191803,"Espaciador estructural"]
[null,30262404,"Palanquilla de cobre"]
[null,30263600,"Barras de acero al carbón"]
[null,30263709,"Barra de aleación de acero  serie sae 8000 enrollada en caliente"]
[null,30264704,"Alambre de acero inoxidable serie sae 300 enrollada en frío","Rollo laminada en frío de acero inoxidable SAE 300"]
[null,30265401,"Lámina de hierro dúctil enrollada en caliente"]
[null,30266400,"Barras y láminas de materiales especiales"]
[null,31101700,"Piezas fundidas en molde permanente"]
[null,31102016,"Objetos de fundición centrífuga de metal precioso","Piezas de metal precioso hechas mediante fundición centrifuga"]
[null,31102316,"Objetos de metal precioso fundidos en molde de yeso","Piezas de metal precioso fundidas en molde de yeso"]
[null,31111603,"Extrusiones por impacto de latón","Extrusiones de perfiles de latón por impacto"]
[null,31111610,"Extrusiones por impacto de plástico","Extrusiones de perfiles de plástico por impacto"]
[null,31121225,"Ensamble de objetos maquinados de hierro gris fundidos en arena","Ensamble de piezas de hierro gris fundidos a la arena mecanizadas"]
[null,31121506,"Objetos maquinados de aluminio fundidos en molde en concha","Piezas de aluminio fundidas en molde de cáscara mecanizadas"]
[null,31121717,"Objetos maquinados centrifugados de compuestos fundidos","Piezas de compuesto hechas mediante fundición centrífuga mecanizadas"]
[null,31121906,"Objetos maquinados de aluminio fundidos en molde de grafito","Piezas de aluminio fundidas en molde de grafito mecanizadas"]
[null,31132505,"Forja de aleación ferrosa maquinado forjado en tibio","Fragua de aleaciones ferrosas forjadas en tibio mecanizadas"]
[null,31132904,"Forja de titanio tratado con calor y dimensionado en frío forjado en frío","Fragua de titanio tratado con calor forjado y dimensionado en frío"]
[null,31133010,"Forja de berilio tratado con calor forjado en caliente","Fragua de berilio tratado y forjado con calor"]
[null,31133704,"Matriz metal diamante de metal en polvo y aleación de metal","Matriz de metal de diamante de metal y aleaciones de metal pulverizados"]
[null,31142303,"Ensamble de engaste termoplástico moldeado por aire","Montura de polímeros por aire"]
[null,31143102,"Ensamble de moldeado termoplástico terminado por compresión","Ensamble de molde de polímero terminado por compresión"]
[null,31151608,"Cadenas de bola"]
[null,31152306,"Alambre de estaño o aleación de estaño"]
[null,31152307,"Alambre de titanio o aleación de titanio"]
[null,31161617,"Pernos de ala","Abrazadera tipo U"]
[null,31161736,"Tapa de tuerca decorativa"]
[null,31161900,"Muelles"]
[null,31162213,"Remache aerodinámico"]
[null,31162604,"Ganchos de seguridad"]
[null,31163020,"Acoples de brida"]
[null,31163210,"Collares de retención"]
[null,31171526,"Almohadillas de rodamiento","Empaque de balero"]
[null,31171806,"Ruedas de rodillos"]
[null,31191521,"Cepillo abrasivo"]
[null,31201609,"Adhesivos de termo impregnación"]
[null,31211522,"Pintura de trabajo pesado","Pintura revestimiento"]
[null,31231401,"Platina de latón"]
[null,31241610,"Blancos de material óptico infrarrojo","Cristal liso"]
[null,31242207,"Montajes ópticos experimentales"]
[null,31281516,"Componentes de latón estampados"]
[null,31281911,"Componentes de aleación de níquel formados por estiramiento"]
[null,31282119,"Componentes de zinc formados en torno"]
[null,31282410,"Componentes de magnesio formados con explosivos"]
[null,31291220,"Componentes no metálicos maquinados por extrusión de impacto"]
[null,31301212,"Forjas de bronce maquinadas con troquel cerrado"]
[null,31301401,"Forjas de aleación no ferrosa maquinadas por reducción"]
[null,31311200,"Conjuntos de tubería remachada"]
[null,31311705,"Ensambles de tubería pegada de acero de aleación baja"]
[null,31321310,"Ensambles de barras remachadas de titanio"]
[null,31331100,"Conjuntos estructurales con acabado ligado"]
[null,31331503,"Ensambles estructurales con soldadura de solvente de aleación hast x","Ensambles estructurales con soldadura de solvente de aleación hestalloy x"]
[null,31341506,"Ensambles de láminas soldadas con soldadura solvente no metálica"]
[null,31341613,"Ensambles de láminas pegadas de latón"]
[null,31351402,"Ensambles de tubos pegados de acero al carbono"]
[null,31361106,"Ensambles de placas soldadas no metálica","Ensambles de placas soldadas de plástico"]
[null,31361513,"Ensambles de placas soldadas con soldadura ultra violeta de latón"]
[null,31371212,"Moldeable de servicio especial"]
[null,31381146,"Ensamble de imán isotrópico fundido de bario ferrita"]
[null,31381241,"Herramienta anisotrópica sinterizada maquinada de bario ferrita"]
[null,31381405,"Imán isotrópico pegado con plástico maquinado de samario cobalto"]
[null,31381433,"Imán anisotrópico pegado con plástico recubierto de aluminio níquel cobalto ferroso"]
[null,31381528,"Imán isotrópico pegado con plástico moldeado por inyección recubierto de aluminio níquel cobalto ferroso"]
[null,31401605,"Empaque troquelado de interferencia electromagnética o emi"]
[null,31411701,"Sello mecánico de empuje"]
[null,32101513,"Conjuntos de circuitos de aplicaciones específicas"]
[null,32101617,"Tarjetas inteligentes"]
[null,32111614,"Transistor de efecto de campo inteligente"]
[null,32121506,"Capacitor cerámico fijo"]
[null,32131008,"Compuestos disipadores de calor"]
[null,32151501,"Módulo de sonido de control"]
[null,39101619,"Lámparas compactas fluorescentes cfl"]
[null,39111539,"Caja de iluminación"]
[null,39111826,"Juego de cables de iluminación"]
[null,39112505,"Luminarias tipo perfil"]
[null,39121117,"Bus bar","Barra colectora"]
[null,39121330,"Caja de distribución eléctrica"]
[null,39121451,"Conectores tap off","Acoplador direccional"]
[null,39121616,"Breakers de circuito de caja moldeada"]
[null,39121707,"Clavos de tabla de arneses"]
[null,39122205,"Interruptores de seguridad","Switch de seguridad"]
[null,39122304,"Relé de lengüeta","Relevador de lengüeta"]
[null,39122334,"Módulo de relés múltiples o de placa de relés"]
[null,40101706,"Obturadores de aire acondicionado"]
[null,40101837,"Chimenea"]
[null,40141619,"Válvulas de mariposa con diseño de casquillo"]
[null,40141737,"Diafragmas"]
[null,40141922,"Conductos o red de conductos de cobre"]
[null,40151500,"Bombas"]
[null,40151562,"Bombas de tornillo"]
[null,40161501,"Filtros al vacío"]
[null,40161602,"Limpiadores de aire"]
[null,40171601,"Tubo de acero al carbono soldado para uso industrial"]
[null,40172003,"Deflectores para tubos de acero forjado","Coples para tubos de acero forjado"]
[null,40172410,"Tapa de tubo de plástico abs"]
[null,40172810,"Codos para tubos de plástico abs"]
[null,40173409,"Bridas de plato para tubos de cobre"]
[null,40173612,"Acoplamiento reductor para tubos de caucho","Cople reductor para tubos de caucho"]
[null,40174600,"T para tubos","Conexiones en T para tubos"]
[null,40175100,"Brida encajada por soldadura"]
[null,40181804,"Tubo multipuerto de acero soldado"]
[null,40182504,"Tubo multipuerto de cobre extruido"]
[null,40183111,"Cruz de tubo","Tubo en cruz"]
[null,41102426,"Equipos o accesorios para calentar o secar"]
[null,41102919,"Recicladores de solventes"]
[null,41103324,"Generador de ondas para laboratorio"]
[null,41103515,"Generador de gas para laboratorio"]
[null,41103913,"Accesorios para centrífugas de laboratorio"]
[null,41104128,"Recolector de especímenes de cultivo sin frotis"]
[null,41104413,"Incubadoras de cámara única de dióxido de carbono de pared seca con control de humedad"]
[null,41104818,"Empaques estructurados (para uso en columnas de destilación y reactivos químicos)"]
[null,41105202,"Equipo para teñir muestras de hematología"]
[null,41105321,"Tintura para geles ácido nucleicos"]
[null,41106202,"Celdas competentes de bacterias"]
[null,41106510,"Kits para extracción de proteína de células o tejidos de mamíferos"]
[null,41111512,"Balanzas de triple haz"]
[null,41111638,"Probador de circunferencias de cigarrillos"]
[null,41111744,"Micrómetro microscópico"]
[null,41111926,"Sensores de proximidad"]
[null,41111977,"Contador de iones"]
[null,41112201,"Calorímetros"]
[null,41112519,"Indicador de piloto","Manómetros de tubo de Pitot"]
[null,41113037,"Lectores de micro placas"]
[null,41113306,"Analizadores de cloruro"]
[null,41113404,"Contadores beta gamma"]
[null,41113667,"Equipo de prueba del medidor de vatios hora"]
[null,41113729,"Medidor de salida del amplificador"]
[null,41113813,"Agregado estándar"]
[null,41114412,"Sistemas sonoros de radio acústica"]
[null,41114605,"Detectores de grietas o corrosión"]
[null,41114705,"Instrumentos para probar textiles"]
[null,41115314,"Polarímetros"]
[null,41115602,"Equipo de análisis volumétrico"]
[null,41115814,"Accesorios o suministros para analizadores de toxicología"]
[null,41116106,"Tiras de prueba o papel de prueba químico"]
[null,41116122,"Controles de calidad o calibradores o estándares para hematología"]
[null,41121704,"Tubos criogénicos"]
[null,41122400,"Instrumentos de laboratorio"]
[null,41123100,"Suministros de diálisis para laboratorio"]
[null,42121514,"Kits de fijación externa para uso veterinario","Juegos veterinarios de fijación externa"]
[null,42141502,"Palitos (copitos) con punta de fibra","Cotonete, Hisopo"]
[null,42142102,"Unidades o accesorios de enfriamiento para almacenamiento frío para uso médico","Unidades frigoríficas o accesorios de refrigeración médica"]
[null,42142302,"Componentes o accesorios para sistemas de planillas médicas"]
[null,42142713,"Cubiertas o sets urológicos"]
[null,42143505,"Kits de reparación de moldes auditivos"]
[null,42144203,"Brazalete para acu presión"]
[null,42151633,"Instrumentos de empaque de cordones de retracción para uso odontológico"]
[null,42151803,"Cápsulas de amalgama para uso odontológico"]
[null,42152109,"Baños de agua para material de impresión o accesorios para uso odontológico"]
[null,42152411,"Aleaciones de fundición de metal de base de uso odontológico"]
[null,42152423,"Sellantes de huecos o fisuras de uso odontológico","Selladores de huecos o fisuras de uso odontológico"]
[null,42152716,"Topes o bloqueos para ortodoncia"]
[null,42161627,"Monitores de temperatura para unidades de hemodiálisis"]
[null,42171900,"Cajas o bolsas de almacenaje para servicios médicos de urgencia"]
[null,42172013,"Kits de evacuación para servicios médicos de emergencia"]
[null,42181705,"Registros gráficos de electrocardiografía ekg"]
[null,42182016,"Nasofaringoscopios o accesorios"]
[null,42182210,"Termómetros de vidrio no de mercurio para uso médico"]
[null,42182410,"Estuches para diapasones para uso médico"]
[null,42183008,"Eutiscopios oftálmicos"]
[null,42183061,"Aplicadores de presión ocular"]
[null,42192300,"Elevadores de paciente"]
[null,42192404,"Carritos o accesorios para uso médico"]
[null,42201715,"Sondas o accesorios para ultrasonido o eco vaginal"]
[null,42201847,"Sistema móvil de rayos x"]
[null,42203300,"Sistemas médicos estereotáctica"]
[null,42203602,"Equipos de sistema estándar de comunicaciones de imágenes digitales en medicina dicom"]
[null,42211604,"Guantes de baño para los discapacitados físicamente"]
[null,42211909,"Sujetadores de bebida para los discapacitados físicamente"]
[null,42221703,"Calentadores de fluido de infusión arterial o intravenosa"]
[null,42222005,"Partes o accesorios de bombas intravenosas"]
[null,42231803,"Fórmulas de suplementos específicos para enfermedades de adultos"]
[null,42241802,"Fieltros de recubrimiento ortopédico para la espalda o lumbares o para el sacro"]
[null,42251612,"Pesas o sets o accesorios para rehabilitación o terapia"]
[null,42261612,"Dispositivos para enderezar dedos post mortem"]
[null,42271603,"Pantallas de función pulmonar para junto a la cama"]
[null,42272211,"Productos de hiperventilación"]
[null,42272224,"Kits de circuitos para ventiladores"]
[null,42281532,"Esterilizador de plasma de gas"]
[null,42291602,"Tornillos o cables o alfileres o instrumentos para cortar alambre para uso quirúrgico"]
[null,42292400,"Machos de roscar y impulsores quirúrgicos y productos relacionados"]
[null,42293106,"Sets de retractores para uso quirúrgico"]
[null,42293502,"Cánulas o puntas de succión o irrigación láser o productos relacionados para uso quirúrgico"]
[null,42294219,"Sets de instrumentos para cirugía ortopédica"]
[null,42294803,"Cistouretroscopios"]
[null,42294918,"Tubos de insuflación endoscópica"]
[null,42295012,"Botellas de agua o accesorios para endoscopia"]
[null,42295200,"Equipo quirúrgico de energía y accesorios y productos relacionados"]
[null,42295441,"Sets de recuperación para uso quirúrgico"]
[null,42295800,"Sistemas y accesorios de termo - ablación quirúrgica"]
[null,42311501,"Clips para vendajes o compresas","Ganchos para vendas elásticas, Material de curación"]
[null,42311704,"Dispensadores de cinta médica o quirúrgica"]
[null,42312501,"Ligaduras de soporte mamario"]
[null,42321703,"Revestimiento de taza acetabular"]
[null,42322006,"Varilla o espaciador de tendones"]
[null,43191630,"Kits de iniciación para teléfonos móviles"]
[null,43201547,"Tarjetas de voz"]
[null,43201826,"Series de memoria de discos compactos cd de sólo lectura"]
[null,43202218,"Cubierta de cables de computador"]
[null,43211802,"Almohadillas (pads) para mouse"]
[null,43212103,"Impresoras de sublimación de teñido"]
[null,43221700,"Equipo fijo de red y componentes"]
[null,43222602,"Equipo de centro distribuidor de cables"]
[null,43222806,"Bloques de conexiones","Bloque de conexión rápida para telefonía"]
[null,43223308,"Estantes para equipos de sistemas de red"]
[null,43231602,"Software de planeación de recursos del negocio erp","Programa de planeación de recursos del negocio erp"]
[null,43232310,"Software de manejo de metadata","Programa de administración de datos, Programa de manejo de datos"]
[null,43233000,"Software de entorno operativo"]
[null,44101504,"Emisores (senders) digitales"]
[null,44101807,"Calculadoras de bolsillo"]
[null,44102605,"Máquinas para dictado"]
[null,44103117,"Cintas de fax"]
[null,44111605,"Cajas para efectivo o tiquetes","Cajas para efectivo o Maquinas registradoras"]
[null,44112006,"Diarios o repuestos"]
[null,44121906,"Cartuchos para rotuladores"]
[null,44122026,"Garras para papel"]
[null,45101603,"Consumibles de impresión de offset"]
[null,45111606,"Paneles de proyección de despliegue de cristal líquido"]
[null,45111806,"Sistemas de aprendizaje a distancia"]
[null,45121606,"Arneses para cámaras"]
[null,45121806,"Componentes o accesorios de duplicador de micro filmado"]
[null,45141609,"Mesa de trabajo de máquina reveladora de película"]
[null,46161506,"Máquinas para derretir nieve o hielo"]
[null,46171505,"Llaves"]
[null,46171633,"Detector de metales de seguridad"]
[null,46181605,"Zapatos de seguridad"]
[null,46182102,"Correas de conexión a tierra para el talón","Tirantes de conexión a tierra para el talón"]
[null,46182507,"Material de protección contra interferencia electromagnética emi"]
[null,47101511,"Equipos de intercambio de hierro"]
[null,47101613,"Soluciones de neutralización"]
[null,47121608,"Almohadillas de máquinas de piso"]
[null,47131614,"Pinzas para equipos de limpieza"]
[null,47131834,"Soluciones para limpiar joyas","Limpiadores de plata y oro"]
[null,48101530,"Ollas arroceras para uso comercial","Arroceras para uso comercial"]
[null,48101804,"Tazas medidoras para uso comercial"]
[null,48102102,"Mostradores para mantener caliente la comida","Contenedor de alimentos calientes, Vitrinas para mantener caliente la comida"]
[null,48111401,"Máquinas de cajero automático atm","Cajeros automáticos"]
[null,49131604,"Escopetas para deportes"]
[null,49161519,"Defensas traseras o cercas para beisbol"]
[null,49171509,"Caja de salto para uso gimnástico"]
[null,49201603,"Máquinas de resistencia para la parte inferior del cuerpo"]
[null,49211826,"Equipo de medición de características corporales"]
[null,49241509,"Equipo para escalar muros","Equipo para trepar muros"]
[null,50111537,"Conejo, mínimamente procesada sin aditivos"]
[null,50111558,"Venado, mínimamente procesada con aditivos"]
[null,50131617,"Huevos en la cascara de avestruz","Huevos de avestruz en cáscara"]
[null,50171552,"Mezcla para adobar"]
[null,50192300,"Postres y decoraciones de postres"]
[null,50193108,"Puré preparado de varios vegetales"]
[null,50202424,"Concentrado de pomelo","Concentrado de toronja"]
[null,50211611,"Juego de fumador"]
[null,50301517,"Manzana crispin"]
[null,50301588,"Manzanaveine onzas"]
[null,50301641,"Albaricoque queen","Chabacano queen"]
[null,50301903,"Gayuba comun","Rastrera común"]
[null,50302408,"Chirimoya español","Annona española"]
[null,50302709,"Arandano searless","Arándano rojo searless"]
[null,50303303,"Toronja foster"]
[null,50303444,"Uva hanepot o honeypot"]
[null,50303466,"Uva perlette"]
[null,50303641,"Uva pinot gris"]
[null,50304101,"Limón baboon"]
[null,50304421,"Naranja mandarina mediterráneo"]
[null,50304514,"Mangos manila super"]
[null,50304651,"Melón sprite"]
[null,50304936,"Durazno oro rojo"]
[null,50305008,"Naranja agria dulce daidai"]
[null,50305318,"Durazno early treat"]
[null,50305370,"Durazno dama blanca"]
[null,50305449,"Pera bartlette de verano"]
[null,50305713,"Ciruelo / damasco sabor de reina"]
[null,50305844,"Ciruela kelsey"]
[null,50306007,"Pomelo siamese dulce"]
[null,50306500,"Sapotes","Zapotes"]
[null,50306903,"Tamarillo mina de oro","Tomate de árbol mina de oro"]
[null,50307229,"Aceitunas sicilian","Aceituna sicilian"]
[null,50311545,"Manzana jonadorado orgánica"]
[null,50311596,"Manzana york imperial orgánica"]
[null,50311637,"Albaricoque patterson orgánica","Chabacano patterson orgánico"]
[null,50312012,"Mora olallie orgánica","Zarzamora olallie orgánica"]
[null,50312511,"Cereza chapman orgánica"]
[null,50312905,"Dátiles gundila orgánica"]
[null,50312913,"Dátiles mactoum orgánica"]
[null,50313459,"Uva muscat sin papa orgánica"]
[null,50313606,"Uva carignane orgánica"]
[null,50313656,"Uva syrah  orgánica"]
[null,50314301,"Níspero advance orgánico"]
[null,50314438,"Naranja mandarina satsuma orgánica"]
[null,50314617,"Melón galia orgánico"]
[null,50314633,"Sandia luna y estrellas orgánico"]
[null,50314953,"Durazno verano grande orgánico"]
[null,50314954,"Durazno sunglo orgánico"]
[null,50315102,"Papaya maradol orgánica"]
[null,50315402,"Peras anjou orgánica"]
[null,50315416,"Peras early orgánica"]
[null,50315506,"Caqui gigante fuyu orgánica"]
[null,50315810,"Ciruela belleza negra orgánica"]
[null,50315866,"Ciruela rosa roja orgánica"]
[null,50316213,"Frambuesa kellogs san diego orgánica"]
[null,50316903,"Tamarindo mina de oro orgánico","Tomate de árbol mina de oro orgánico"]
[null,50321520,"Manzana earlidorado seca"]
[null,50321525,"Manzana fiji seca"]
[null,50321577,"Manzana reinette seca"]
[null,50321631,"Albaricoque loma seca","Chabacano loma seco"]
[null,50322005,"Mora chester seca","Zarzamora chéster seca"]
[null,50322402,"Chirimoya bronceada seca","Annona bronceada seca"]
[null,50322703,"Arandano gryclesik seca","Arándano rojo gryclesik seco"]
[null,50323205,"Grosella london seca"]
[null,50323474,"Uva roja sin pepa seca"]
[null,50323491,"Uva superior sin pepa seca"]
[null,50323638,"Uva petit verdot seca"]
[null,50324005,"Naranjo meiwa seco","Naranjo chino meiwa seco"]
[null,50324420,"Naranja malvasion seca"]
[null,50324523,"Mango smith seco"]
[null,50324648,"Malon santa claus seco","Melón piel de sapo seco, Melón santa claus seco"]
[null,50324925,"Durazno perla grande seco"]
[null,50325027,"Naranja moro tabaco seca"]
[null,50325316,"Durazno earlrich seco"]
[null,50325367,"Durazno sueño dulce seco"]
[null,50325500,"Caquis secos"]
[null,50325714,"Ciruelo / damasco sabor supremo seco"]
[null,50325841,"Ciruela tipo interspecific seca"]
[null,50326005,"Pomelo rosado seco"]
[null,50327008,"Coco seco"]
[null,50327027,"Mamonsillo seco","Guaya seca"]
[null,50331505,"Manzanas brabum orgánicas secas","Manzana brabum orgánicas secas"]
[null,50331556,"Manzana mutsu orgánicas seca"]
[null,50331614,"Albaricoque earliman orgánicas seca","Chabacano earliman orgánico seco"]
[null,50331707,"Bananas gros michel orgánicas seca","Plátano gros michel orgánico seco"]
[null,50332202,"Agras bluetta orgánicas secas","Fruto azul del bosque bluetta orgánico seco"]
[null,50332512,"Cereza lapin orgánicas secas"]
[null,50333000,"Pitahayas orgánicas secas"]
[null,50333418,"Uva calmeria orgánicas secas"]
[null,50333470,"Uva reina orgánicas secas"]
[null,50333629,"Uva meunier orgánicas secas"]
[null,50333703,"Guayaba lucida orgánicas secas"]
[null,50334312,"Níspero japonés victoria vista blanco orgánico seco"]
[null,50334502,"Mango ataulfo orgánico seco"]
[null,50334658,"Melón tentación orgánico seco"]
[null,50334913,"Durazno diamante brillante orgánico seco"]
[null,50335006,"Naranja berna orgánicas secas"]
[null,50335206,"Maracuyá maypops orgánicas secas"]
[null,50335347,"Durazno dama rica orgánico seco"]
[null,50335427,"Pera rey royal orgánicas secas"]
[null,50335604,"Piña kona sugarloaf orgánicas secas"]
[null,50335811,"Ciruela bullase negra orgánicas secas"]
[null,50335873,"Ciruela santa rosa orgánicas secas"]
[null,50336224,"Frambuesa tor y gris blancobark orgánicas secas"]
[null,50337006,"Canistel orgánicas secas","Zapote amarillo orgánico seco"]
[null,50337224,"Aceitunas picholine orgánicas secas","Aceituna picholine orgánica seca"]
[null,50341536,"Manzana gravenstain congeladas"]
[null,50341588,"Manzana veinte onzas congeladas"]
[null,50341642,"Albaricoque riland congeladas","Chabacano riland congelado"]
[null,50341801,"Berberís paleleaf congeladas","Berberí paleleaf congelado"]
[null,50342503,"Cereza bigarreu congeladas"]
[null,50342803,"Pasa desierta congeladas","Pasa de Corinto desierta congelada"]
[null,50343307,"Toronja rojo rubí congeladas"]
[null,50343447,"Uva jubileo congeladas"]
[null,50343504,"Uva fiesta congeladas"]
[null,50343649,"Uva sangiovese congeladas"]
[null,50344004,"Naranjo chino malayan congelado"]
[null,50344429,"Naranja tanjelo orlando congeladas"]
[null,50344608,"Melón cavaillon congelado"]
[null,50344659,"Melón tigre bebe congelado"]
[null,50344950,"Durazno verano claro congelado"]
[null,50345038,"Naranja sanguine congeladas"]
[null,50345326,"Durazno escudo de sabor congelado"]
[null,50345406,"Pera beth congeladas"]
[null,50345434,"Pera paraíso congeladas"]
[null,50345800,"Ciruelas congeladas"]
[null,50345852,"Ciruela mercado rojo congeladas"]
[null,50346203,"Frambuesa negra congeladas"]
[null,50346601,"Baya mielmadera saskatoon congeladas","Fresa de junio mielmadera congelada"]
[null,50347100,"Aronias congeladas"]
[null,50351515,"Manzana  cox´s orange pippin congelada orgánica"]
[null,50351567,"Manzana pomme dápi congelada orgánica"]
[null,50351639,"Albaricoque poppy congelada orgánica","Chabacano poppy congelado orgánico"]
[null,50351801,"Berberís paleleaf congelada orgánica","Berberí paleleaf congelado orgánico"]
[null,50352213,"Agras patriota congelada orgánica","Fruto azul del bosque patriota congelado orgánico"]
[null,50352701,"Arandano ben lear congelada orgánica","Arándano rojo ben lear congelado orgánico"]
[null,50353108,"Breva misión congelada orgánica","Higo misión congelado orgánico"]
[null,50353429,"Uva early sweet congelada orgánica"]
[null,50353480,"Uva ruby roja sin pepa congelada orgánica"]
[null,50353602,"Uva barbera congelada orgánica"]
[null,50353903,"Fruta de kiwi blake congelada orgánica","Kiwi blake congelado orgánico"]
[null,50354409,"Mandarina naranja fremont congelada orgánica"]
[null,50354513,"Mangos kuini congelado orgánico"]
[null,50354635,"Melón patriota congelado orgánico"]
[null,50354924,"Durazno mina de oro congelado orgánico"]
[null,50355017,"Naranja jaffa congelada orgánica"]
[null,50355305,"Durazno dama de otoño congelado orgánico"]
[null,50355320,"Durazno emperatriz congelado orgánico"]
[null,50355437,"Pera bartlette rojo congelada orgánica"]
[null,50355704,"Ciruelo / damasco dapply dandy congelado orgánico"]
[null,50355836,"Ciruela greengage congelada orgánica"]
[null,50355905,"Granada rojo de pat congelada orgánica"]
[null,50356305,"Ruibarbo timperley temprano congelado orgánico","Acelga roja temprana de Timperley congelada orgánica"]
[null,50357017,"Jambolan congelada orgánica"]
[null,50357102,"Aronia brillantísima congelada orgánica"]
[null,50361547,"Manzana  jonathan  en lata o en frasco"]
[null,50361601,"Abaricoques ambercot en lata o en frasco","Chabacano ambercot en lata o en frasco"]
[null,50361653,"Albaricoque valle dorado en lata o en frasco","Chabacano valle dorado en lata o en frasco"]
[null,50362007,"Bayasjosta en lata o en frasco","Zarzamora josta en lata o en frasco"]
[null,50362513,"Cereza larian en lata o en frasco"]
[null,50362907,"Dátiles hilali en lata o en frasco"]
[null,50363408,"Uva barlinka en lata o en frasco"]
[null,50363420,"Uva catawba en lata o en frasco"]
[null,50363608,"Uva cattarrato en lata o en frasco"]
[null,50363659,"Uvas teroldego en lata o en frasco"]
[null,50364304,"Níspero champagne en lata o en frasco"]
[null,50364440,"Tangelo en lata o en frasco"]
[null,50364618,"Melón gaya en lata o en frasco"]
[null,50364903,"Durazno artic snow en lata o en frasco"]
[null,50364927,"Durazno miel de fuego en lata o en frasco"]
[null,50365104,"Papaya montaña en lata o en frasco"]
[null,50365337,"Durazno lindo en lata o en frasco"]
[null,50365416,"Peras early en lata o en frasco"]
[null,50365459,"Pera williams en lata o en frasco"]
[null,50365811,"Ciruela bullase negra en lata o en frasco"]
[null,50365863,"Ciruela belleza roja en lata o en frasco"]
[null,50366214,"Frambuesa leucodemis whitebark en lata o en frasco"]
[null,50366227,"Frambuesa vino en lata o en frasco"]
[null,50367206,"Aceitunas  arbequina en lata o en frasco","Aceituna arbequina en lata o en frasco"]
[null,50371526,"Manzana gala orgánica en lata o en frasco"]
[null,50371529,"Manzana ginger gold orgánica en lata o en frasco"]
[null,50371579,"Manzana russet orgánica en lata o en frasco"]
[null,50371633,"Albaricoque modesto orgánica en lata o en frasco","Chabacano modesto orgánico en lata o en frasco"]
[null,50371813,"Barberís warty orgánica en lata o en frasco","Berberí warty orgánico en lata o en frasco"]
[null,50372514,"Cereza oscuro guines orgánica en lata o en frasco"]
[null,50372705,"Bayas lingon orgánica en lata o en frasco","Arándano rojo lingon orgánico en lata o en frasco"]
[null,50373207,"Grosella americana worcesterberry orgánic"]
[null,50373440,"Uva flaming red orgánica en lata o en frasco"]
[null,50373627,"Uva matano orgánica en lata o en frasco"]
[null,50373640,"Uva pinot blanc orgánica en lata o en frasco"]
[null,50374100,"Limones orgánicos en lata o en frasco"]
[null,50374420,"Naranja malvasion orgánica en lata o en frasco"]
[null,50374608,"Melón cavaillon orgánico en lata o en frasco"]
[null,50374650,"Melón español orgánico en lata o en frasco"]
[null,50374935,"Durazno diamante rojo orgánico en lata o en frasco"]
[null,50375028,"Naranja navel orgánica en lata o en frasco"]
[null,50375318,"Durazno early treat orgánico en lata o en frasco"]
[null,50375369,"Durazno vista orgánico en lata o en frasco"]
[null,50375448,"Pera crimson stark orgánica en lata o en frasco"]
[null,50375809,"Ciruela betty anne orgánica en lata o en frasco"]
[null,50375843,"Ciruela joanna rojo orgánica en lata o en frasco"]
[null,50376007,"Pomelo siamese dulce orgánico en lata o en frasco"]
[null,50376500,"Sapotes orgánicos en lata o en frasco","Zapotes orgánicos en lata o en frasco"]
[null,50377226,"Aceitunas royal orgánica en lata o en frasco","Aceituna royal orgánica en lata o en frasco"]
[null,50381700,"Purés de frutas tropicales"]
[null,50401725,"Aguacate dr dupis numero 2"]
[null,50401776,"Aguacate semilla de caribe"]
[null,50401852,"Frijoles largos"]
[null,50402207,"Cebolla santa claus","Cebolla de cambray santa claus"]
[null,50402801,"Acelga luz brillante"]
[null,50403209,"Maíz  mantequilla y azúcar"]
[null,50403264,"Maíz nieve de azúcar"]
[null,50403517,"Berenjena  siciliano"]
[null,50404000,"Guisantes","Chícharos"]
[null,50404611,"Lechuga cabeza de mantequilla"]
[null,50404813,"Champiñón pompom"]
[null,50405320,"Cebollablanca guardada"]
[null,50405634,"Pimentón serrano","Chile serrano, Chile verde"]
[null,50405913,"Algas de mar"]
[null,50406329,"Calabaza zucchini"]
[null,50406601,"Nabo globo verde"]
[null,50407008,"Raíz de bambú"]
[null,50407068,"Yu choy"]
[null,50411704,"Aguacate benik orgánico"]
[null,50411755,"Aguacate nabal orgánico"]
[null,50411824,"Frijoles verdes orgánicos"]
[null,50412301,"Repollo negro orgánico","Col negro orgánica"]
[null,50412611,"Coliflor invierno walcheren 3 orgánica"]
[null,50413014,"Shantung orgánico"]
[null,50413513,"Endivias verona orgánicas"]
[null,50413902,"Guisante inglés orgánica","Chícharo inglés orgánico"]
[null,50414402,"Lenteja  verde francesa orgánica"]
[null,50414713,"Champiñón pompom orgánico"]
[null,50415206,"Cebolla cremosa orgánica"]
[null,50415601,"Papa blanca larga orgánica"]
[null,50416104,"Espinaca horenso orgánica"]
[null,50416310,"Batata joya orgánica","Camote joya orgánico"]
[null,50416609,"Calabaza  curcibita orgánica","Calabaza gigante curcibita orgánica"]
[null,50416824,"Maíz  cruz dorada bantam orgánico"]
[null,50417005,"Punta de flecha orgánica","Sagittaria orgánica"]
[null,50417056,"Taro orgánico","Tales orgánica"]
[null,50421731,"Aguacate gotham seco"]
[null,50421759,"Aguacate pinelli seco"]
[null,50421828,"Frijoles hyacinth secos"]
[null,50422204,"Cebolla mercado kyoto seca","Cebolla de cambray mercado kyoto seca"]
[null,50422702,"Apio nabo seco"]
[null,50423100,"Cebollines Secos"]
[null,50423249,"Maíz   pristine seco"]
[null,50423410,"Cocombro gherkin seco","Pepino cohombro gherkin seco"]
[null,50423810,"Ajo morado español seco"]
[null,50424300,"Colinabos Secos","Colirrábanos Secos"]
[null,50424705,"Ñame isleña seca"]
[null,50425210,"Cebolla perla seca"]
[null,50425523,"Pimentón habanero seco","Chile habanero seco"]
[null,50425904,"Chalote gigante mejorado amarillo seco"]
[null,50426221,"Calabaza  estripeti seca"]
[null,50426316,"Batata oriental seca","Camote oriental seca"]
[null,50426805,"Punta de flecha seca","Sagittaria seca"]
[null,50426856,"Taro seco","Tales seca"]
[null,50431719,"Aguacate catalina orgánico seco"]
[null,50431760,"Aguacate pinkerton orgánico seco"]
[null,50431828,"Frijoles hyacinth orgánicos secos"]
[null,50432004,"Brócoli chino orgánico seco"]
[null,50432504,"Zanahoria chantenay orgánica seca"]
[null,50433101,"Cebollín chino orgánico seco"]
[null,50433250,"Maíz  rápido orgánico seco"]
[null,50433502,"Berenjena  belleza negra orgánica seca"]
[null,50433810,"Ajo morado español orgánico seco"]
[null,50434301,"Colinabo estrella azur orgánico seco","Colirrábano estrella azur orgánico seco"]
[null,50434705,"Ñame isleña orgánica seca"]
[null,50435208,"Cebolla kelsae orgánica seca"]
[null,50435401,"Alverja casco morado seca orgánica","Alberjón casco morado seco orgánico"]
[null,50435907,"Chalote hative de nort orgánico seco"]
[null,50436224,"Calabaza  premio triple  orgánica seca"]
[null,50436600,"Auyamas orgánicas secas","Calabazas gigantes orgánicas secas"]
[null,50436808,"Raíz de bambú orgánica seca"]
[null,50436859,"Tapeguaje orgánico seco"]
[null,50441711,"Aguacate cabina 1 congelado"]
[null,50441741,"Aguacate cordero haas congelado"]
[null,50441831,"Frijoles ganado jacobs  congelados"]
[null,50442102,"Repollitas de bruselas falstaff congeladas","Coles de Bruselas falstaff congeladas"]
[null,50442705,"Apio gigante rosado congelado"]
[null,50443202,"Maíz alpine congelado"]
[null,50443253,"Maíz  amanecer seneca congelado"]
[null,50443505,"Berenjena  huevo de pascua congelada"]
[null,50443901,"Petula congelada","Luffa congelada"]
[null,50444102,"Laurel congelado"]
[null,50444801,"Champiñón trompeta negra congelado"]
[null,50445211,"Cebolla baron rojo congelada"]
[null,50445536,"Pimentón tai  congelado","Chile ojo de pájaro congelado"]
[null,50445906,"Chalote grise de bagnolet congelado"]
[null,50446224,"Calabaza  premio triple  congelada"]
[null,50446423,"Tomates tiny tim congelado","Jitomate tiny tim congelado"]
[null,50446614,"Calabaza  kabocha congelada","Calabaza gigante kabocha congelada"]
[null,50446858,"Tallo de taro congelado"]
[null,50451709,"Aguacate blair orgánico congelado"]
[null,50451761,"Aguacate pollock orgánico congelado"]
[null,50451828,"Frijoles hyacinth orgánicos congelados"]
[null,50452101,"Repollitas de bruselas citade orgánica orgánicas congeladas","Coles de Bruselas citade orgánica orgánicas congeladas"]
[null,50452704,"Apio dinant francés orgánico congelado"]
[null,50453101,"Cebollín chino  orgánico congelado"]
[null,50453216,"Maíz  dazzle orgánico congelado"]
[null,50453504,"Berenjena  chino orgánica congelada"]
[null,50453811,"Ajo valentina italiana orgánico congelado"]
[null,50453906,"Calabaza amarga orgánica congelada"]
[null,50454800,"Hongos o champiñones orgánicos congelados"]
[null,50455210,"Cebolla perla orgánica congelada"]
[null,50455525,"Pimentón jalapeño orgánico congelado","Chile cuaresmeño orgánico congelado, Chile jalapeño, seco es chipotle o morita orgánico congelado"]
[null,50455802,"Arame  orgánica congelada"]
[null,50456226,"Calabaza  arbusto scallop amarillo orgánica congelada"]
[null,50456426,"Tomates forma de pera amarillo orgánico congelado"]
[null,50456808,"Raíz de bambú orgánica congelada"]
[null,50456856,"Taro orgánico congelado","Tales orgánica congelada"]
[null,50461712,"Aguacate cabina 3 enlatado o envasado"]
[null,50461713,"Aguacate cabina 5 enlatado o envasado"]
[null,50461764,"Aguacaterue enlatado o envasado"]
[null,50461850,"Frijoles cera enlatados o envasados"]
[null,50462104,"Repollitas de bruselas peer gynt orgánica enlatadas o envasadas","Coles de Bruselas peer gynt orgánica enlatadas o envasadas"]
[null,50462707,"Apio gigante blanco enlatado o envasado"]
[null,50463206,"Maíz avalancha enlatado o envasado"]
[null,50463255,"Maíz  brillo de estrella seneca enlatado o envasado"]
[null,50463507,"Berenjena   mercado de florida enlatada o envasada"]
[null,50463903,"Botella calabaza enlatada o envasada","Mate enlatado o envasado"]
[null,50464608,"Lechuga oja roja roble enlatada o envasada"]
[null,50464803,"Champiñón  enlatado o envasado"]
[null,50465213,"Cebolla rijnsberger enlatada o envasada"]
[null,50465528,"Pimentón pasilla enlatado o envasado","Chile pasilla enlatado o envasado"]
[null,50466221,"Calabaza  estripeti enlatada o envasada"]
[null,50466229,"Calabaza zucchini enlatada o envasada"]
[null,50466501,"Nabo globo verde enlatado o envasado"]
[null,50466812,"Top de remolacha enlatada o envasada","Betabel enlatado o envasado"]
[null,50466909,"Alverja príncipe alberto enlatada o envasada","Chícharo príncipe alberto en lata o envasado"]
[null,50471708,"Aguacate príncipe negro orgánico enlatado o envasado"]
[null,50471759,"Aguacate pinelli orgánico enlatado o envasado"]
[null,50471827,"Frijoles haricot orgánicos enlatados o envasados"]
[null,50472503,"Zanahoria berlicum orgánica enlatada o envasada"]
[null,50472702,"Apio nabo orgánico enlatado o envasado"]
[null,50473016,"Yau choy sum orgánico enlatado o envasado"]
[null,50473302,"Nasturtium orgánico enlatado o envasado"]
[null,50473502,"Berenjena  belleza negra orgánica enlatada o envasada"]
[null,50473810,"Ajo morado español orgánico enlatado o envasado"]
[null,50474300,"Colinabos orgánicos en lata o en frasco","Colirrábanos orgánicos en lata o en frasco"]
[null,50474622,"Lechuga mostza roja rusa orgánica enlatada o envasada"]
[null,50475208,"Cebolla kelsae orgánica enlatada o envasada"]
[null,50475523,"Pimentón habanero orgánico enlatado o envasado","Chile habanero orgánico enlatado o envasado"]
[null,50475905,"Chalote gourmet dorado orgánico enlatado o envasado"]
[null,50476305,"Batata georgia dulce rojo orgánica enlatada o envasada","Camote georgia dulce rojo orgánico enlatado o envasado"]
[null,50476424,"Tomates tumbler orgánico enlatado o envasado","Jitomate tumbler orgánico enlatado o envasado"]
[null,50476807,"Arum orgánica enlatada o envasada","Taro orgánico enlatado o envasado"]
[null,50476858,"Tallo de taro orgánico enlatado o envasado"]
[null,51101571,"Diritromicina"]
[null,51101589,"Carbapenémicos incluyendo tienamicinas"]
[null,51101717,"Ivermectina"]
[null,51102202,"Clorhidrato de flavoxato"]
[null,51102321,"Zidovudina","AZT, Azidotimidina"]
[null,51102715,"Clioquinol"]
[null,51111616,"Capecitabina"]
[null,51111815,"Triptorelina"]
[null,51121704,"Lisinopril"]
[null,51121761,"Clorhidrato de quinapril"]
[null,51121908,"Hoja de digital en polvo o preparados"]
[null,51131704,"Uroquinasa","Activador del plasminógeno tipo uroquinasa"]
[null,51141506,"Fenobarbital sódico"]
[null,51141614,"Clomipramina"]
[null,51141725,"Clorhidrato de ziprasidona"]
[null,51142117,"Dietilamina diclofenaco"]
[null,51142137,"Indometacina trihidrato sódica"]
[null,51142234,"Bitartrato de dihidrocodeína"]
[null,51142907,"Oxibuprocaína"]
[null,51142939,"Clorhidrato de pramoxina"]
[null,51151705,"Clorhidrato de epinefrina"]
[null,51151810,"Mesilato de fentolamina"]
[null,51152004,"Bromuro de vecuronio"]
[null,51161632,"Clorhidrato de ciproheptadina"]
[null,51171501,"Carbonato de calcio"]
[null,51171708,"Clorhidrato de difenoxilato"]
[null,51172102,"Clorhidrato de dicicloverina","Sediclon"]
[null,51181607,"Yoduro de potasio","Yoduro potásico"]
[null,51181748,"Medrisona"]
[null,51181906,"Urofolitropina"]
[null,51182300,"Hormonas del crecimiento y sus inhibidores"]
[null,51191903,"Pentermina","Fentermina"]
[null,51201623,"Vacuna contra el tifo","Vacuna contra el tifoidea"]
[null,51211900,"Fármacos anestésicos veterinarios"]
[null,51212032,"Raíz de angélica"]
[null,51241114,"Clorhidrato de pilocarpina"]
[null,51251002,"Ractopamina"]
[null,52121604,"Manteles"]
[null,52141542,"Moledor de carne para uso doméstico"]
[null,52151601,"Rodillos para uso doméstico","Rodillos para masa de uso doméstico"]
[null,52151653,"Cuchillos para ostras"]
[null,52152014,"Sets de garrafas"]
[null,52161534,"Grabadora de chip de circuito integrado ic"]
[null,53101604,"Camisas o blusas para mujer","Playeras para mujer"]
[null,53102404,"Medias veladas gruesas (“tights”)"]
[null,53102604,"Pijamas o camisas de dormir o batas para mujer"]
[null,53112105,"Zapatones para bebé","Choclo para bebé"]
[null,53131616,"Cremas o lociones para farmacéuticas"]
[null,53141621,"Enhebrador de agujas"]
[null,54101706,"Materiales o accesorios plásticos amigables maleables a bajas temperaturas"]
[null,55101515,"Material promocional o reportes anuales"]
[null,55121609,"Etiquetas para paquetes"]
[null,55121730,"Señales de accidente"]
[null,56101601,"Paraguas para jardín"]
[null,56111502,"Paquetes de muebles para ejecutivos no modulares"]
[null,56112102,"Sillas para grupos de trabajo"]
[null,56121506,"Pupitres"]
[null,56131605,"Tablas de madera para exhibir productos de pintura"]
[null,60101314,"Tarjetas didácticas de sumas"]
[null,60101716,"Materiales para tableros magnéticos"]
[null,60101810,"Patenas"]
[null,60102513,"Dominós"]
[null,60102909,"Sellos de caucho del dinero","Sellos de goma de dinero"]
[null,60103008,"Kits de fracciones"]
[null,60103927,"Especímenes preservados de cuerpos u órganos de plantas"]
[null,60104410,"Aparato para observación lunar","Telescopio"]
[null,60104714,"Aparato para la ley de boyle"]
[null,60104823,"Oscilador armónico simple"]
[null,60105406,"Materiales de enseñanza para compra de casa"]
[null,60105622,"Simuladores para fumar","Simuladores para fumadores"]
[null,60106103,"Materiales didácticos de diseño o delineación"]
[null,60111005,"Soportes de gráficos o accesorios"]
[null,60121012,"Adhesivos decorativos","Calcomanías decorativas"]
[null,60121148,"Cartones de colores"]
[null,60121247,"Caballetes de madera"]
[null,60121410,"Dispositivos para colgar cuadros"]
[null,60121810,"Tintas para dibujar a base de agua"]
[null,60122601,"Azulejos para mosaico"]
[null,60123700,"Materiales de artesanía de macramé y accesorios"]
[null,60124400,"Metales de artesanía"]
[null,60131208,"Mirlitones","Turuta"]
[null,60131321,"Sugonghu"]
[null,60131424,"Jingo"]
[null,60141003,"Casas de muñecas"]
[null,60141303,"Esteras para juegos","Alfombra para juegos"]
[null,70111503,"Servicios de poda de árboles"]
[null,70122001,"Nutrición animal"]
[null,70141517,"Producción de plantas de caucho"]
[null,70151506,"Seguimiento o evaluación forestal","Seguimiento o evaluación de los bosques"]
[null,70171504,"Servicios de cartografía de los recursos hidráulicos"]
[null,70171801,"Servicios de drenaje de tierras"]
[null,71112203,"Servicios de registro durante la pesca","Servicios de registro de pozos durante la pesca"]
[null,71121122,"Servicios de matar el pozo (well kil)l mediante tubería flexible contínua"]
[null,71121602,"Servicios de planificación para el revestimiento de tuberías del pozo"]
[null,71121705,"Servicios de recuperación de tubería en el campo petrolífero"]
[null,71122400,"Servicios de pruebas del pozo submarino"]
[null,71123001,"Administración y provisión de todas los servicios de las instalaciones, ingeniería, modificación y mantenimiento para un emplazamiento o plataforma"]
[null,71131108,"Servicios de desviación del tratamiento de la matriz","Servicios de desviación de tratamiento matricial"]
[null,71131313,"Servicios de bombeo convencional"]
[null,71151105,"Servicios de gestión de datos sísmicos"]
[null,71161105,"Servicios de perforación de pozos"]
[null,72101511,"Servicio de instalación o mantenimiento o reparación de aires acondicionados"]
[null,72121003,"Servicio de construcción y remodelación de elevadores de granos"]
[null,72141004,"Servicio de instalación de reflectores para carreteras"]
[null,72141402,"Remodelación y reparación de instalaciones de detención","Remodelación y reparación de cárceles, Remodelación y reparación de prisiones"]
[null,72151609,"Servicio de soporte del eje de sistemas satelitales","Servicio de soporte del concentrador del sistema satelital"]
[null,72152103,"Servicio de aislamiento de edificaciones"]
[null,72152901,"Servicio de instalación de frentes metálicos de edificios"]
[null,72153609,"Servicio de instalación de aparatos comerciales y domésticos"]
[null,72154301,"Servicio de mantenimiento o reparación de equipos de turbina"]
[null,73101502,"Servicios de producción de gas natural"]
[null,73121509,"Servicios de purificación de metales","Servicios de refinación de metales"]
[null,73151500,"Servicios de ensamble","Servicios de maquila"]
[null,73151800,"Servicios de conversión"]
[null,73161601,"Servicios de construcción de barcos o botes de pesca"]
[null,73181100,"Servicios de revestimiento"]
[null,73181901,"Servicios de soldadura de arco","Servicios de soldadura de electrógena"]
[null,76122100,"Servicios de mezcla de desechos a combustible"]
[null,77101603,"Planificación de la estrategia de conservación marítima","Planificación de la estrategia de conservación marina"]
[null,77121505,"Servicios de detección de gases tóxicos"]
[null,78102001,"Servicios de lanzamiento de satélites"]
[null,78111810,"Servicio de limosinas o town cars"]
[null,78141900,"Servicios de alquiler de contenedores de transporte"]
[null,80111500,"Desarrollo de recursos humanos","Servicios de capacitación de personal"]
[null,80131503,"Arrendamientos de tierras","Renta de terreno"]
[null,80131800,"Servicios de administración inmobiliaria"]
[null,80141703,"Servicios de distribución minorista","Servicios de distribución al menudeo"]
[null,81102000,"Ingeniería de minas"]
[null,81111504,"Servicios de programación de aplicaciones"]
[null,81112003,"Servicios de centros de datos"]
[null,81112500,"Servicios de alquiler o arrendamiento de licencias de software de computador"]
[null,81141901,"Servicio de investigación y desarrollo de productos"]
[null,82101504,"Publicidad en periódicos"]
[null,82112003,"Servicio de interpretación en persona amárico","Servicios de traductor en amárico"]
[null,82112055,"Servicio de interpretación en persona de español","Servicios de traductor en español"]
[null,82151502,"Servicios de litógrafos"]
[null,83101605,"Carga de las instalaciones de gas"]
[null,83112206,"Servicio de administración de la capacidad del radio direccional para la recuperación de desastres"]
[null,84101603,"Ayuda no gubernamental","Donativos"]
[null,84121606,"Servicios de procesamiento de remesas"]
[null,85101502,"Servicios clínicos especializados privados"]
[null,85111616,"Servicios de prevención o control del alcoholismo"]
[null,85131702,"Servicios de investigación bacteriológica"]
[null,85151503,"Servicios de gestión o control de la conservación de los alimentos"]
[null,86101707,"Servicios de formación profesional sobre cuidado personal"]
[null,86131500,"Bellas Artes"]
[null,90101801,"Comidas para llevar preparadas profesionalmente"]
[null,90151503,"Parques zoológicos"]
[null,91111600,"Asistencia y cuidado del hogar","Servicios de cerrajería"]
[null,92121900,"Servicios de seguridad marina"]
[null,93141711,"Servicios de promoción de artesanías tradicionales"]
[null,93142103,"Servicios de cooperación técnica"]
[null,94101601,"Asociaciones de odontólogos"]
[null,94121514,"Servicios de promotores o directores técnicos de clubes deportivos"]
[null,94131702,"Asociaciones ecofeministas"]
[null,95121513,"Banco"]
[null,95121802,"Subestación"]
[null,95141701,"Oficina en la planta"]
[null,"01010101","No existe en el catálogo","Público en general"]
[null,10111302,"Productos para el aseo y cuidado de mascotas"]
[null,10131702,"Acuarios"]
[null,10151525,"Semillas o plántulas de brócoli","Semillas o vástago primario de brócoli"]
[null,10151905,"Bulbos o tallos de jacinto"]
[null,10161600,"Plantas florales","Agave, Caña de azúcar, Maguey"]
[null,10191700,"Dispositivos para control de plagas"]
[null,10201725,"Rosal vivo latin fusion"]
[null,10201901,"Rosal vivo anna"]
[null,10201952,"Rosal vivo sweet akito"]
[null,10202103,"Rosal vivo amber"]
[null,10202136,"Rosal vivo high and magic"]
[null,10202219,"Rosal vivo isis"]
[null,10202329,"Rosal vivo full house"]
[null,10202352,"Rosal vivo light orlando"]
[null,10202438,"Rosal vivo legend"]
[null,10202509,"Rosal vivo white sweetheart","Rosal vivo La Minuette white"]
[null,10202716,"Rosal vivo desire"]
[null,10202758,"Rosal vivo melon"]
[null,10202837,"Rosal vivo magic sensation spray"]
[null,10202888,"Rosal vivo yellow follies spray"]
[null,10211711,"Astromelia viva indian summer","Lirio de campo vivo indian summer"]
[null,10212206,"Aster viva rosado claro japonés","Estrella viva rosado claro japonés"]
[null,10212608,"Calla viva ramillete crystal pink","Alcatraz vivo ramillete crystal pink"]
[null,10212805,"Celosia viva cresta de gallo rojo","Flor de terciopelo viva rojo"]
[null,10213301,"Eremurus vivo deruyter híbrido"]
[null,10213609,"Fresia viva pimpinela","Freesia viva pimpinela"]
[null,10214111,"Gladiolo vivo rojo","Gladiola viva rojo"]
[null,10214619,"Heliconia viva wagneriana","Pinza de langosta viva wagneriana"]
[null,10214908,"Iris viva baerbada blanca y púrpura"]
[null,10215412,"Azucena viva durazno cannes asiática","Lili viva durazno cannes asiática"]
[null,10215463,"Azucena viva oriental sorbonne","Lili viva oriental sorbonne"]
[null,10215802,"Narciso vivo amanecer dorado"]
[null,10216315,"Banksia viva verde","Flor de árbol madreselva australiano viva verde"]
[null,10216910,"Matiola viva blanca","Alhelí viva blanca"]
[null,10217325,"Tulipán vivo francés schepppers"]
[null,10217420,"Flor de cera viva pixie moon"]
[null,10217902,"Amaryllis viva amaru","Lirio estrella vivo amaru"]
[null,10217944,"Amaryllis viva mandonii","Lirio estrella vivo mandonii"]
[null,10218023,"Rubdeckia viva serotina","Equinácea viva serótina"]
[null,10218302,"Leucospermum vivo attenuatum"]
[null,10218334,"Leucospermum vivo gueinzii"]
[null,10223003,"Campanilla viva blanca"]
[null,10224501,"Eléboro vivo verde","Hierba de ballesteros vivo verde"]
[null,10225804,"Sicilia viva peruana","Scilla viva peruana"]
[null,10226044,"Jack en el púlpito vivo"]
[null,10226303,"Trachelium blanca viva","Flor de la viuda blanca viva"]
[null,10231622,"Crisantemo vivo pompón life"]
[null,10231714,"Crisantemo vivo rover rojo"]
[null,10232023,"Crisantemo vivo pompón kiato"]
[null,10232107,"Crisantemo vivo pompón centella bronce"]
[null,10241604,"Clavel vivo mini o spray lavanda"]
[null,10252020,"Orquídea phalaenopsis viva floresensis"]
[null,10252065,"Orquídea phalaenopsis viva zebrina"]
[null,10301512,"Rosal cortado fresco maritime"]
[null,10301729,"Rosal cortado fresco message"]
[null,10301811,"Rosal cortado fresco sweet green"]
[null,10302009,"Rosal cortado fresco fiesta"]
[null,10302122,"Rosal cortado fresco dreamer"]
[null,10302173,"Rosal cortado fresco soap"]
[null,10302234,"Rosal cortado fresco sheril"]
[null,10302348,"Rosal cortado fresco laser"]
[null,10302405,"Rosal cortado fresco black finess o black magic"]
[null,10302443,"Rosal cortado fresco miss paris"]
[null,10302617,"Rosal cortado fresco high and pure"]
[null,10302736,"Rosal cortado fresco helio"]
[null,10302804,"Rosal cortado fresco arrow follies"]
[null,10302812,"Rosal cortado fresco cream gracia spray"]
[null,10311519,"Anturio cortado fresco blanco salvaje","Lirio flamingo cortado fresco blanco salvaje"]
[null,10311730,"Astromelia cortada fresca snowball","Lirio de campo cortado fresco snowball"]
[null,10312212,"Aster cortada fresca japonés  blanco","Estrella cortada fresca japonés blanco"]
[null,10312601,"Calla cortada fresca green goddess","Alcatraz cortado fresco green goddess"]
[null,10313003,"Dalia cortada fresca rosado claro"]
[null,10313004,"Dalia cortada fresca rosado medio"]
[null,10313509,"Euphorbia cortada fresca amarilla","Corona de Cristo cortada fresca amarilla"]
[null,10314305,"Bromelia variegata cortada fresca"]
[null,10314403,"Gypsophilia cortada fresca mirabella","Nube cortada fresca mirabella"]
[null,10314806,"Hydrangea cortada fresca púrpura antiguo o nueva zelandia","Hortensia cortada fresca púrpura antiguo o nueva zelandia"]
[null,10315413,"Azucena cortada fresca risada asiática","Lili cortada fresca risada asiática"]
[null,10315431,"Azucena cortada fresca oriental albion","Lili cortada fresca oriental albión"]
[null,10315482,"Azucena cortada fresca sonata triumphateer","Lili cortada fresca sonata triumphateer"]
[null,10316201,"Peonia cortada fresca alexander fleming"]
[null,10316701,"Boca de dragón cortada fresca bicolor"]
[null,10317202,"Cardo cortado fresco echinops"]
[null,10317345,"Tulipán cortado fresco loro rojo"]
[null,10317604,"Zinia cortada fresca rojo","Cinia (guadalajara) cortada fresca rojo"]
[null,10317935,"Amaryllis cortada fresca iguazuanum","Lirio estrella cortado fresco iguazuanum"]
[null,10317964,"Amaryllis cortada fresca starkiorum","Lirio estrella cortado fresco starkiorum"]
[null,10318114,"Protea cortada fresca visón rosado"]
[null,10318322,"Leucospermum cortado fresco tomentosus"]
[null,10321902,"Ajenjo cortado fresco rey dorado"]
[null,10323504,"Lirio del fuego cortado fresco amarillo","Vallota cortada fresca amarillo"]
[null,10325003,"Caléndula (marigold) cortada fresca anaranjada"]
[null,10326049,"Kochia sedifolia cortada fresca"]
[null,10326066,"Manzana peruana cortada fresca","Cactus cortado fresco"]
[null,10331504,"Crisantemo cortado fresco pompón jeanne"]
[null,10331641,"Crisantemo cortado fresco pompón vero"]
[null,10331919,"Crisantemo spider cortado fresco resolute"]
[null,10332043,"Crisantemo cortado fresco pompón sharp"]
[null,10332127,"Crisantemo cortado fresco pompón retorno"]
[null,10351608,"Clavel cortado fresco mini o spray menta"]
[null,10362041,"Orquídea phalaenopsis cortada fresca modesta"]
[null,10362102,"Orquídea dendrobium cortada fresca burana"]
[null,10401516,"Rosal cortado seco cezanne púrpura"]
[null,10401732,"Rosal cortado seco porcelina"]
[null,10401914,"Rosal cortado seco excalibur"]
[null,10402012,"Rosal cortado seco hot ambiance"]
[null,10402126,"Rosal cortado seco ensueño"]
[null,10402223,"Rosal cortado seco la perla"]
[null,10402300,"Rosas cortadas secas rosados"]
[null,10402352,"Rosal cortado seco light orlando"]
[null,10402409,"Rosal cortado seco caballero"]
[null,10402460,"Rosal cortado seco red paris"]
[null,10402621,"Rosal cortado seco mount everest"]
[null,10402739,"Rosal cortado seco high and yellow magic"]
[null,10402808,"Rosal cortado seco chablis spray"]
[null,10402881,"Rosal cortado seco tiramisú spray"]
[null,10411602,"Allium cortado seco ampeloprasum","Cebolleta ornamental cortada seca ampeloprasum"]
[null,10411734,"Astromelia cortada seca blanca","Lirio de campo cortado seco blanca"]
[null,10412216,"Aster cortada seca novi belgii púrpura","Estrella cortada seca novi belgii púrpura"]
[null,10412618,"Calla cortada seca ramillete florex gold","Alcatraz cortado seco ramillete florex gold"]
[null,10413007,"Dalia cortada seca púrpura"]
[null,10413601,"Fresia cortada seca crema","Freesia cortada seca crema"]
[null,10413919,"Margarita cortada seca durazno","Gerbera cortada seca durazno"]
[null,10414601,"Heliconia cortada seca bihai claw","Pinza de langosta cortada seca bihai claw"]
[null,10414809,"Hydrangea cortada seca rosado oscuro","Hortensia cortada seca rosado oscuro"]
[null,10415103,"Delfinio cortada seca lavanda","Delphinium (larkspurs) cortado seco lavanda"]
[null,10415434,"Azucena cortada seca oriental barbaresco","Lili cortada seca oriental barbaresco"]
[null,10415501,"Lavanda marina cortada seca misty peach"]
[null,10416204,"Peonia cortada seca coral supreme"]
[null,10416604,"Retama de escobas cortada seca amarilla"]
[null,10417315,"Tulipán cortado seco francés florissa"]
[null,10417348,"Tulipán cortado seco loro blanco"]
[null,10417701,"Forsythia cortada seca viridissima"]
[null,10417915,"Amaryllis cortada seca bukasovii","Lirio estrella cortado seco bukasovii"]
[null,10417956,"Amaryllis cortada seca petiolatum","Lirio estrella cortado seco petiolatum"]
[null,10418118,"Protea cortada seca silvia"]
[null,10418325,"Leucospermum cortado seco winterii"]
[null,10422201,"Flor de banano cortada seca anaranjada"]
[null,10423804,"Manzanilla cortada seca blanca"]
[null,10425101,"Mimosa cortada seca azul o púrpura"]
[null,10426017,"Cleome spinosa cortada seca"]
[null,10426066,"Manzana peruana cortada seca","Cactus cortado seco"]
[null,10431507,"Crisantemo cortado seco pompón lexy"]
[null,10431645,"Crisantemo cortado seco pompón rino blanco"]
[null,10431920,"Crisantemo spider cortado seco resomac"]
[null,10432062,"Crisantemo cortado seco pompón reloj"]
[null,10432130,"Crisantemo cortado seco pompón target"]
[null,10451700,"Orquídea catleya cortada seca"]
[null,10452036,"Orquídea phalaenopsis cortada seca maculata"]
[null,10452107,"Orquídea dendrobium cortada seca kating dang"]
[null,10501908,"Helecho cortado fresco sombrilla"]
[null,10502304,"Hiedra fresca cortada verde de árbol"]
[null,10502931,"Lophomyrtus fresca cortada"]
[null,11101528,"Óxido de aluminio activado"]
[null,11101717,"Indio","Indio (metal)"]
[null,11121500,"Savia"]
[null,11122005,"Madera laminada engomada","Madera laminada encolada"]
[null,11151605,"Hebra de bismaleimida"]
[null,11162003,"Tela de arpillera o cáñamo o yute"]
[null,11171501,"Acero e24-2 o a37-2"]
[null,12131509,"Nitrato de amonio y fuel oil - anfo"]
[null,12141604,"Europio eu"]
[null,12141737,"Renio re"]
[null,12142003,"Gas criptón kr"]
[null,12161604,"Catalizadores de ruptura"]
[null,12162600,"Estabilizadores de arcilla"]
[null,12164502,"sabores o extractos","Saborizantes y extractos"]
[null,12171606,"Zeaxantina"]
[null,12352119,"Óxidos orgánicos"]
[null,12352316,"Hidróxido de sodio"]
[null,13101722,"Copoliester"]
[null,13111010,"Nylon"]
[null,13111066,"Resinas de polipropileno"]
[null,14101500,"Materias primas"]
[null,14111611,"Tarjetas de invitación o de anuncio"]
[null,14111800,"Papeles de uso comercial"]
[null,15101514,"Gasolina regular menor a 91 octanos"]
[null,15121516,"Eliminador de fugas"]
[null,20101620,"Vibro – alimentador electromagnético"]
[null,20102007,"Taladros de núcleo"]
[null,20121004,"Unidades acidificantes","Maquina acidificantes, Unidades de acidificación"]
[null,20121208,"Unidades de mezclado de lechada fracturación","Maquina de mezclado de lechada fracturación"]
[null,20121419,"Herramientas de correr tapones"]
[null,20121524,"Partes y accesorios del tarro de perforación"]
[null,20121804,"Sistemas de control de superficie de perforación direccional"]
[null,20122111,"Pistolas festoneadas"]
[null,20122323,"Herramientas de kickover de cable de recuperación"]
[null,20122410,"Analizadores de vibración"]
[null,20122708,"Cruces de la tubería de perforación"]
[null,20122849,"Araña de revestimiento de pozo"]
[null,20123101,"Herramienta de ajuste de salida de revestimientos"]
[null,20142401,"Equipo para producción submarina de boca de pozo"]
[null,21101512,"Gastos generales de riego"]
[null,21101905,"Equipo para identificación de ganado"]
[null,21102303,"Equipo de ventilación para invernadero"]
[null,22101618,"Equipos de preparación de superficies de rodamiento o mecanismos para su colocación"]
[null,22101907,"Puntales de zanja"]
[null,23111603,"Hidrotratador de alimentación catalítica","Hidrotratadora de alimentación catalítica"]
[null,23131511,"Pivotes de agua"]
[null,23151602,"Trituradoras"]
[null,23152002,"Tratadores por llama"]
[null,23153009,"Plantilla de captación"]
[null,23153401,"Sistemas de aplicación de pegante o adhesivo"]
[null,23161514,"Prensas de dimensionamiento o grabado en relieve"]
[null,23181806,"Esterilizador de bebidas"]
[null,23191202,"Cuchillas de mezcladora"]
[null,23231100,"Sierras de cinta y accesorios"]
[null,23241507,"Máquina de aserrado y corte"]
[null,23241701,"Maquina de granallado"]
[null,23242607,"Máquina de súper  - terminado"]
[null,23251509,"Máquina para reducir diámetro de alambres"]
[null,23271407,"Máquina de soldadura de gas inerte de tungsteno"]
[null,23271803,"Desoldador de trenza"]
[null,23291704,"Escariador indexable"]
[null,24101623,"Torre grúas"]
[null,24101711,"Tornamesas","Placas giratorias"]
[null,24101903,"Elevadores de canecas","Elevadores de tambor"]
[null,24112000,"Arcones y cestas"]
[null,24112413,"Cajas o estuches para guardar banderas"]
[null,24122003,"Botellas de cristal"]
[null,24141700,"Tubos y núcleos de embalaje y etiquetas y accesorios"]
[null,25101904,"Carritos de golf"]
[null,25111505,"Buques cisterna","Buque tanque"]
[null,25111716,"Buques buscaminas"]
[null,25121708,"Riel férreo pesado"]
[null,25131604,"Helicópteros médicos o de rescate"]
[null,25171500,"Limpiaparabrisas","Refacciones automotrices o autopartes"]
[null,25172012,"Placa deslizante"]
[null,25172411,"Flotador de tanque de combustible"]
[null,25173008,"Tubo de luz de vehículo"]
[null,25174103,"Techos duros desmontables"]
[null,25174700,"Componentes de ciclo no motorizado o accesorios","Componentes de bicicletas o accesorios"]
[null,25191511,"Equipo de lavabos para aeronaves","Equipo de servicio de lavado para aviones"]
[null,25191714,"Torno para frenos de tambor"]
[null,25191821,"Tester de simulador de motor","Probador de simulación de motor"]
[null,25201800,"Sistemas de control principal del avión"]
[null,25202508,"Parabrisas de avión"]
[null,26101311,"Motor universal"]
[null,26101718,"Sistemas de ignición de motor"]
[null,26111518,"Puntal tensor"]
[null,26111542,"Reductor aumentador de velocidad de bisel"]
[null,26111729,"Unidad de cargador de batería de auto","Unidad de carga automática de la batería"]
[null,26121510,"Alambre de trole"]
[null,26121623,"Cable de radiofrecuencia (rf)"]
[null,26121805,"Cable automotriz de núcleo sencillo de 60 voltios clase d"]
[null,26131504,"Centrales de gas"]
[null,26141802,"Aparato de visión teledirigido para recintos radiactivos"]
[null,27111516,"Alicates de perforación","Perforadora"]
[null,27111551,"Sierra de troncos"]
[null,27111716,"Llave torx"]
[null,27111806,"Calibrador de clavos","Medidor de clavos"]
[null,27111926,"Lima plana de aluminio"]
[null,27112019,"Sierra podadora"]
[null,27112124,"Tensionadores"]
[null,27112308,"Carrito marcador"]
[null,27112600,"Herramientas para precintar","Herramientas para asegurar y etiquetar"]
[null,27112746,"Sierra de cadena"]
[null,27112901,"Pistolas de grasa"]
[null,27121605,"Cuerpos de cilindro hidráulico"]
[null,27131613,"Acoplamiento neumático"]
[null,30101716,"Vigas de caucho"]
[null,30102211,"Placa de bronce"]
[null,30103104,"Rieles de madera"]
[null,30103611,"Esteras de troncos"]
[null,30121504,"Bitumen","Betún"]
[null,30131608,"Ladrillo vitrificado con sal"]
[null,30151603,"Parada de grava"]
[null,30161709,"Alfombras de penachos"]
[null,30162305,"Piezas o ensamble de bandeja de inclinar","Piezas para cajón de inclinación hacia afuera"]
[null,30171907,"Alfeizar o antepecho","Travesaño de ventana"]
[null,30181511,"Inodoros o excusados"]
[null,30191608,"Ménsula del andamio"]
[null,30261504,"Barra de latón forjado en caliente c 464"]
[null,30262600,"Láminas de bronce"]
[null,30263707,"Barra de aleación de acero  serie sae 5000 enrollada en caliente"]
[null,30264301,"Alambre de acero perforado","Rollo de acero perforado"]
[null,30264906,"Barra de aluminio serie sae 3000 enrollada en caliente"]
[null,30266002,"Barra de aleación no ferrosa"]
[null,30266600,"Láminas y lingotes de níckel","Hojas y lingotes de níquel"]
[null,31101811,"Objetos de latón fundidos por moldeo en cáscara","Piezas de latón fundidas en molde de cáscara"]
[null,31102116,"Objetos de metal precioso fundidos en molde cerámico","Piezas de metal precioso fundidas en molde de cerámica"]
[null,31102414,"Objetos de estaño fundidos por proceso en v","Piezas de estaño fundidas por proceso V"]
[null,31111701,"Extrusiones en frío de aluminio","Extrusiones de perfiles de aluminio en frío"]
[null,31121114,"Objetos fundidos maquinados con troquel de estaño","Piezas de plomo fundidas en molde mecanizadas"]
[null,31121411,"Objetos maquinados de latón fundidos en molde de yeso","Piezas de latón fundidas en molde de yeso mecanizadas"]
[null,31121600,"Piezas fundidas mecanizadas de inversión"]
[null,31121812,"Objetos maquinados de bronce fundidos en molde cerámico","Piezas de bronce fundidas en molde de cerámica mecanizadas"]
[null,31132112,"Forja de acero tratado con calor y dimensionado en frío forjado en caliente","Fragua de acero tratado y forjado con calor y dimensionado en frío"]
[null,31132511,"Forja de aleación ferrosa maquinado y tratado con calor forjado en caliente","Fragua de aleaciones ferrosas tratadas y forjadas con calor mecanizadas"]
[null,31133007,"Forja de berilio maquinado y tratado con calor forjado en tibio","Fragua de berilio tratado con calor forjado en tibio mecanizado"]
[null,31133406,"Forja de estaño tratado con calor forjado en tibio","Fragua de estaño tratado con calor forjado en tibio"]
[null,31141602,"Molduras al vacío de caucho"]
[null,31142604,"Ensamble de engaste termofraguado moldeado por disparo múltiple por inyección","Ensamble de engaste termofraguado moldeado por disparo múltiple por inyección"]
[null,31151507,"Cuerda o pita"]
[null,31151902,"Correas de cuero"]
[null,31161513,"Tornillos de cabeza perdida"]
[null,31161632,"Perno de roca"]
[null,31161802,"Arandelas achaflanadas"]
[null,31162001,"Chinches","Tachuelas"]
[null,31162108,"Anclajes de amarre"]
[null,31162704,"Puntas de rodillo","Rodillos con puntas"]
[null,31163009,"Acoples rígidos"]
[null,31163224,"Llave cónica"]
[null,31171529,"Sombreretes de rodamiento"]
[null,31171805,"Cepillos de rueda"]
[null,31201510,"Cinta impregnada de resina"]
[null,31201623,"Adhesivo de contacto"]
[null,31211903,"Equipo para protección"]
[null,31231202,"Berilio en placa labrada"]
[null,31241806,"Filtros de película de plástico"]
[null,31251510,"Solenoides"]
[null,31281531,"Componente estampado de aleación de aleación de acero enrollada en caliente"]
[null,31282001,"Componentes de aluminio hidroformados"]
[null,31282213,"Componentes no metálicos formados enrollados"]
[null,31282312,"Componentes de aleación no ferrosa formados por estiramiento por presión"]
[null,31291314,"Componentes de acero maquinados por extrusión en frío"]
[null,31301204,"Forjas de acero inoxidable maquinadas con troquel cerrado"]
[null,31301415,"Forjas de plomo maquinadas por reducción"]
[null,31311201,"Ensambles de tubería remachada de aluminio"]
[null,31311709,"Ensambles de tubería pegada de acero inoxidable"]
[null,31321412,"Ensambles de barras soldadas con soldadura fuerte o débil de cobre"]
[null,31331202,"Ensambles estructurales atornillados de acero al carbono"]
[null,31331212,"Ensambles estructurales atornillados de cobre"]
[null,31341311,"Ensambles de láminas soldadas con soldadura ultra violeta de aleación wasp"]
[null,31351101,"Ensambles de tubos soldados con soldadura ultra violeta de aluminio"]
[null,31351504,"Ensambles de tubos atornillados de inconel"]
[null,31351709,"Ensambles de tubos soldados con soldadura sónica de acero inoxidable"]
[null,31361700,"Conjuntos de placas remachadas"]
[null,31381108,"Imán anisotrópico fundido maquinado de bario ferrita"]
[null,31381125,"Imán isotrópico fundido recubierto de estroncio ferrita"]
[null,31381300,"Imanes prensados y ensambles magnéticos"]
[null,31381352,"Ensamble de imán anisotrópico prensado y sinterizado de bario ferrita"]
[null,31381447,"Ensamble de imán isotrópico pegado con plástico de estroncio ferrita"]
[null,31381530,"Imán anisotrópico pegado con plástico moldeado por inyección recubierto de bario ferrita"]
[null,31401610,"Kit de empaque troquelado"]
[null,31411903,"Sello moldeado de precisión"]
[null,32101527,"Terminaciones"]
[null,32101533,"Transformador de salid"]
[null,32111510,"Diodos de radiofrecuencia (rf)"]
[null,32111511,"Diodos de señal pequeña"]
[null,32121610,"Termistor"]
[null,32141103,"Elementos de rejilla"]
[null,32151800,"Dispositivos de control de seguridad"]
[null,39101900,"Balastos de lámparas y transformadores de lámparas"]
[null,39111800,"Accesorios de iluminación"]
[null,39112003,"Stand de iluminación"]
[null,39121007,"Conversores de frecuencia"]
[null,39121111,"Tablero de fusibles"]
[null,39121450,"Cabeza de martillo","Perno de cabeza de martillo"]
[null,39121466,"Terminal y tapa de conexión mecánica"]
[null,39121632,"Protector de redes"]
[null,39121904,"Kit y estación de bloqueo"]
[null,39122222,"Interruptor de pie"]
[null,39122320,"Relé horizontal","Relevador horizontal"]
[null,39131714,"Canaletas para cables"]
[null,40101721,"Condensador de agua enfriada"]
[null,40141606,"Válvulas de relevo"]
[null,40141634,"Válvulas de control de rotación"]
[null,40141756,"Caja de accesorios para conectar tubos"]
[null,40142203,"Kits de reparación de reguladores de fluido"]
[null,40151516,"Bombas de corte"]
[null,40151578,"Bomba de aire para buceo"]
[null,40151802,"Partes para compresores de aire"]
[null,40171525,"Tubo de zinc para uso comercial"]
[null,40171616,"Tubo no ferroso para uso industrial"]
[null,40172206,"Bridas ciegas para tubos de cobre"]
[null,40172522,"Uniones de tubo flexible"]
[null,40173003,"Semiacoplamientos para tubos de acero forjado","Reducciones de acero forjado"]
[null,40173601,"Acoplamiento reductor para tubos de latón","Cople reductor para tubos de latón"]
[null,40174006,"Brida deslizante para tubos de acero inoxidable"]
[null,40174701,"Brida roscada para tubos de latón"]
[null,40181603,"Tubo de remate final de latón soldada"]
[null,40182005,"Tubo biselado de cobre sin uniones"]
[null,40182800,"Tubos de acero extruidos"]
[null,41101808,"Aparatos de difracción de neutrones"]
[null,41102511,"Trampas pegajosas para entomología"]
[null,41103008,"Módulos enfriadores refrigerados"]
[null,41103323,"Flujómetro acústico de canal abierto"]
[null,41103907,"Ultra centrífugas"]
[null,41104014,"Aplicadores de muestras"]
[null,41104213,"Agua destilada o deionizada"]
[null,41104600,"Hornos de laboratorio y accesorios"]
[null,41104911,"Sistemas de filtración de aire para laboratorios"]
[null,41105308,"Capilares o cartuchos"]
[null,41105518,"Kits de purificación de ácido ribonucleico rna total"]
[null,41106216,"Medios ricos para levadura"]
[null,41106704,"Instrumento de medición de la clorofila"]
[null,41111602,"Podómetros"]
[null,41111706,"Elementos de sujeción de fotos para microscopios"]
[null,41111818,"Reactivo de examen no destructivo"]
[null,41111941,"Sensores olfativos"]
[null,41112114,"Transmisor termohigrómetro"]
[null,41112404,"Reguladores de presión"]
[null,41112512,"Computadores o totalizadores de flujo","Computadoras o totalizadores de flujo"]
[null,41113053,"Probador de prevención de óxido"]
[null,41113324,"Probador de fuerza de ocultamiento de la pintura"]
[null,41113629,"Medidores de filtración de microondas"]
[null,41113680,"Medidor de factor de energía"]
[null,41113803,"Instrumentos geofísicos electromagnéticos"]
[null,41114202,"Varillas medidoras"]
[null,41114427,"Veletas"]
[null,41114640,"Equipo de medición de plano de carretera"]
[null,41114721,"Probador de longitud de fibra"]
[null,41115337,"Instrumento de medición de ondas"]
[null,41115712,"Columnas para extracción de fase sólida spe","Columnas SPE de extracción en fase sólida"]
[null,41115830,"Analizadores de glucosa"]
[null,41116123,"Kits o suministros para pruebas de histología"]
[null,41116400,"Instrumentos de medición de la aceleración y la vibración"]
[null,41121606,"Puntas de pipeta de carga de gel"]
[null,41122415,"Cristales de bioseparación centrífuga"]
[null,41123401,"Tazas dosificadoras"]
[null,42131602,"Cobertores de barba para personal médico","Cubierta de barba para personal médico"]
[null,42141703,"Cunas para extremidades"]
[null,42142200,"Productos de hidroterapia"]
[null,42142536,"Aguja y catéter para toracentesis o paracentesis"]
[null,42142903,"Monturas para anteojos"]
[null,42143802,"Transductores para cistometría"]
[null,42151603,"Herramientas de colocación de hidróxido de calcio"]
[null,42151656,"Esparcidores para uso odontológico"]
[null,42151900,"Equipo y suministros para higiene dental y cuidado preventivo"]
[null,42152108,"Jeringas de material de impresión o accesorios para uso odontológico"]
[null,42152427,"Resinas de reparación de cura fría para prótesis dentales"]
[null,42152509,"Cubiertas desechables para bandejas de uso odontológico"]
[null,42152705,"Pinzas de aplicación para ortodoncia"]
[null,42161801,"Unidades de diálisis arterio venosa continua cavhd o productos relacionados"]
[null,42171915,"Estuches o bolsas para técnicos médicos de emergencia emt"]
[null,42181520,"Medidor de presión intratoráxica"]
[null,42181717,"Bombillos de electrodos para electrocardiografía ekg"]
[null,42182202,"Termómetros de fibra óptica para uso médico"]
[null,42182501,"Olfatómetros"]
[null,42183022,"Visiómetros para uso oftálmico"]
[null,42191613,"Transmisor de seguridad para bebés o niños"]
[null,42191909,"Gabinete computarizado dispensador de medicamentos"]
[null,42201502,"Unidades móviles o transportables o unidad de camión para tomografía computarizada ct o cat para uso médico"]
[null,42201809,"Inyectores o accesorios de agentes de contraste para imágenes para uso médico"]
[null,42201847,"Sistema móvil de rayos x"]
[null,42203403,"Introductores de catéteres o sets de diagnóstico o intervención vascular"]
[null,42203709,"Sets de calibradores para sistemas de combinación de desplegadores e impresoras de rayos x"]
[null,42211504,"Levantadores o ayudas para ponerse de pie"]
[null,42212005,"Plumeros o cepillos de mango largo para los discapacitados físicamente"]
[null,42221607,"Filtros o pantallas para tubos arteriales o intravenosos de uso general"]
[null,42222302,"Filtros o accesorios o pantallas para transfusión de sangre"]
[null,42231902,"Conchas o protectores de senos"]
[null,42242003,"Dispositivos o accesorios de sujeción prostética"]
[null,42251704,"Barras de manera de caminar para rehabilitación o terapia"]
[null,42261804,"Gabinetes refrigeradores para las morgues"]
[null,42262004,"Tubos de inyección para embalsamar"]
[null,42272003,"Bloques de mordida"]
[null,42272505,"Tubos para aparatos de gas de anestesia o ensamblajes de tubos o ajustes de tubos o accesorios"]
[null,42281709,"Cepillos de limpieza de esterilización"]
[null,42291502,"Trepanadores para biopsia de hueso para uso quirúrgico"]
[null,42292501,"Tapones para uso quirúrgico"]
[null,42293120,"Retractores de columna o nervios"]
[null,42293302,"Separadores para uso quirúrgico"]
[null,42294504,"Instrumentos de membrana intraocular para cirugía oftálmica"]
[null,42294715,"Tubos de empaque de bombas de perfusión"]
[null,42294933,"Puntas de irrigación o succión o sondas de coagulación o accesorios para endoscopia"]
[null,42295100,"Equipo quirúrgico y accesorios y productos relacionados"]
[null,42295307,"Decapantes de arteria carótida o accesorios de uso quirúrgico"]
[null,42295462,"Catéteres uro dinámicos o accesorios"]
[null,42296003,"Válvula mitral"]
[null,42296107,"Pinza craneal"]
[null,42312105,"Kits de barreras de piel o cuidado protector para ostomía"]
[null,42321505,"Placas óseas"]
[null,42321717,"Tornillo componente de cadera"]
[null,42322000,"Implantes ortopédicos de articulaciones distales"]
[null,43201403,"Tarjetas de módem"]
[null,43201602,"Carcasas de equipos de red"]
[null,43201809,"Disco compacto cd de lectura y escritura"]
[null,43211510,"Consola central o terminales básicos (no inteligentes)"]
[null,43211725,"Limpiador de discos compactos o de discos versátiles digitales cd/dvd"]
[null,43212117,"Controlador para impresoras"]
[null,43221707,"Equipo central de microondas"]
[null,43221716,"Equipo central de buscapersonas"]
[null,43222623,"Equipos de conexión cruzada digital dcx"]
[null,43223000,"Equipo de teletipo"]
[null,43223333,"Lente de alcance de fibra óptica","Ocular de alcance de fibra óptica"]
[null,43232105,"Software de gráficas","Programa de gráficas"]
[null,43232607,"Software de control de vuelos","Programa de control de vuelos"]
[null,43233404,"Software discos compactos cd o dvd o tarjetas de sonido","Software o controladores para unidades de CD, DVD o tarjeta de sonido"]
[null,44101803,"Máquinas contabilizadoras","Máquinas de contabilidad"]
[null,44102103,"Máquinas para sellar correspondencia"]
[null,44102805,"Máquina perforadora de encuadernación","Máquina perforadora para encuadernado"]
[null,44111509,"Sujetadores de esferos o lápices"]
[null,44111802,"Película de dibujo","Acetato para dibujo"]
[null,44121513,"Estampillas postales"]
[null,44121802,"Fluido de corrección","Corrector líquido"]
[null,45101608,"Pantallas de serigrafía"]
[null,45101707,"Platinas de impresión"]
[null,45111702,"Cajas de conectores de audio"]
[null,45111828,"Indicador (prompter)"]
[null,45121628,"Filtro de lente de cámara"]
[null,45131600,"Medios cinematográficos"]
[null,46151506,"Bastones anti motines","Cachavas anti motines, Garrotes anti motines, Macanas anti motine"]
[null,46161521,"Luz de advertencia de entrada y salida de estacionamientos"]
[null,46171626,"Equipo de visión nocturna","Gafas de visión nocturna, Lentes de visión nocturna"]
[null,46181508,"Ropa para demorar el fuego","Ropa ignífuga o de antifuego"]
[null,46181701,"Cascos"]
[null,46182313,"Bucle metálico para conectar componentes en sistemas críticos de seguridad"]
[null,46191603,"Mangueras o boquillas para incendios","Mangueras o toberas de incendio"]
[null,47101528,"Secadores para tratamiento de agua"]
[null,47101604,"Químicos de alimentación de calderas","Productos químicos para alimentación de calderas"]
[null,47131615,"Cabezas de escoba"]
[null,47131710,"Dispensadores de papel higiénico"]
[null,48101500,"Equipo para cocinar o calentar"]
[null,48101604,"Moledoras de café para uso comercial","Molinillos de café para uso comercial, Trituradoras de café para uso comercial"]
[null,48101906,"Canastas para servir para servicio de comidas","Charolas para servicio de comidas"]
[null,48111105,"Máquinas de confitería helada"]
[null,49101700,"Premios"]
[null,49141602,"Tablas de esquí acuático o tablas para arrodillarse o boogieboards"]
[null,49161711,"Círculo de lanzamiento de bala"]
[null,49181509,"Bolas de ping pong"]
[null,49211603,"Tacos de golf"]
[null,49221523,"Podio de premiación"]
[null,49241707,"Caldera para piscinas o spa","Calentador para piscinas o spa"]
[null,50111553,"Avestruz, mínimamente procesada sin aditivos"]
[null,50112044,"Avestruz, procesado sin aditivos"]
[null,50131615,"Huevos en la cascara de ganso","Huevos de ganso en cáscara"]
[null,50172000,"Productos de fríjol de soya fermentados"]
[null,50192503,"Rellenos frescos para emparedados","Rellenos frescos para bocadillos, Rellenos frescos para sándwiches"]
[null,50202208,"Takju - vino de arroz coreano"]
[null,50202600,"Jugos o concentrados de especies con pepitas frescas"]
[null,50301500,"Manzanas"]
[null,50301551,"Manzana ley de roma"]
[null,50301604,"Albaricoque negro","Chabacano negro"]
[null,50301805,"Barberís korean","Berberí korean"]
[null,50302014,"Mora thomless hull","Zarzamora thomless hull"]
[null,50302513,"Cereza larian"]
[null,50302906,"Dátiles halawi/halawy"]
[null,50303402,"Uva almeira"]
[null,50303460,"Uva napoleon"]
[null,50303604,"Uva cabemet franc"]
[null,50303640,"Uva pinot blanc"]
[null,50304208,"Lima limón sin pepas","Lima limón sin semillas"]
[null,50304436,"Naranja saltenitas"]
[null,50304614,"Melón eclipse"]
[null,50304902,"Durazno arctic mist"]
[null,50304951,"Durazno verano diamante"]
[null,50305100,"Papayas"]
[null,50305333,"Durazno john henry"]
[null,50305438,"Pera dánjou  rojo"]
[null,50305504,"Caqui dátale ciruela"]
[null,50305807,"Ciruela rosa de otoño"]
[null,50305859,"Ciruela hora prima","Ciruela prime time"]
[null,50306201,"Frambuesa americana roja"]
[null,50306803,"Manzana dulce thai lessand","Saramuyo thai lessand"]
[null,50307044,"Cocona","Túpiro"]
[null,50307225,"Aceitunas ponentine","Aceituna ponentine"]
[null,50311560,"Manzana ozark dorado orgánica"]
[null,50311615,"Albaricoque early bright orgánica","Chabacano early bright orgánico"]
[null,50311710,"Bananas manzano orgánica","Plátano manzano orgánico"]
[null,50312206,"Agras hardyblue orgánica","Fruto azul del bosque hardyblue orgánico"]
[null,50312528,"Cereza van orgánica"]
[null,50313100,"Brevas orgánicas","Higos orgánicos"]
[null,50313422,"Uva christmas rose orgánica"]
[null,50313444,"Uva hanepot o honeypot orgánica"]
[null,50313621,"Uva grenache blanc orgánica"]
[null,50313802,"Arándano cascada orgánico","Arándano azul cascada orgánico"]
[null,50314401,"Naranjas clauselinas orgánicas"]
[null,50314442,"Naranja templo orgánica"]
[null,50314632,"Melón mirage orgánico"]
[null,50314916,"Durazno diamante temprano orgánico"]
[null,50314947,"Durazno primavera clara orgánico"]
[null,50315210,"Maracuyá  wing- steam orgánica"]
[null,50315351,"Durazno nieve de septiembre orgánico"]
[null,50315430,"Pera mauntain bartlette orgánica"]
[null,50315609,"Piña sugarloaf orgánica"]
[null,50315825,"Ciruela ébano mayo orgánica"]
[null,50315876,"Ciruela st catherine orgánica"]
[null,50316227,"Frambuesa vino orgánica"]
[null,50316501,"Zapote blanco orgánico","Zapote blanco orgánico"]
[null,50317219,"Aceitunas marche orgánica","Aceituna marche orgánica"]
[null,50321540,"Manzana howgate wonder seca"]
[null,50321591,"Manzana weatley seca"]
[null,50321636,"Albaricoque palstein seca","Chabacano palstein seco"]
[null,50322007,"Bayas josta seca","Zarzamora josta seca"]
[null,50322506,"Cereza negro schmidt seca"]
[null,50322602,"Citrones fingeroja seca","Cidra finger red seca"]
[null,50323402,"Uva almeira seca"]
[null,50323453,"Uva majestic sin pepa seca"]
[null,50323601,"Uva alicante bouschet seca"]
[null,50323651,"Uva sauvignon musque seca"]
[null,50324204,"Lima limón philippine seco"]
[null,50324433,"Naranja mandarina ponkan bantangas seca"]
[null,50324611,"Melón crenshaw seco"]
[null,50324628,"Melon koreano seco","Melón coreano seco"]
[null,50324948,"Durazno primavera roja seco"]
[null,50325041,"Naranja shamouti jaffa seca"]
[null,50325330,"Durazno princesa de hielo seco"]
[null,50325369,"Durazno vista seco"]
[null,50325500,"Caquis secos"]
[null,50325804,"Ciruela otoño bonito seca"]
[null,50325833,"Ciruela gobernador seca"]
[null,50326208,"Frambuesa focke fresa seca"]
[null,50326801,"Manzana kampong malve dulce seca","Saramuyo kampong mauve seco"]
[null,50327103,"Aronia nero seca"]
[null,50331515,"Manzana  cox´s orange pippin orgánicas seca"]
[null,50331571,"Manzana  roja chief orgánicas seca"]
[null,50331626,"Albaricoque jumbo cot orgánicas seca","Chabacano jumbo cot orgánico seco"]
[null,50331805,"Barberís korean orgánicas seca","Berberí korean orgánico seco"]
[null,50332004,"Mora cherokee orgánicas secas","Zarzamora cherokee orgánicas secas"]
[null,50332606,"Citrones etrog orgánicas secas","Cidra etrog orgánica seca"]
[null,50333111,"Breva rey blanco orgánicas secas","Higo rey blanco orgánico seco"]
[null,50333432,"Uva emperor orgánicas secas"]
[null,50333469,"Uva prncess orgánicas secas"]
[null,50333632,"Uva muscat blanc orgánicas secas"]
[null,50333633,"Uva muscat hamburg orgánicas secas"]
[null,50334301,"Níspero japonés advance orgánico seco"]
[null,50334413,"Naranja miel orgánicas secas"]
[null,50334518,"Mangos oro orgánico seco"]
[null,50334643,"Melón goblin rojo orgánico seco"]
[null,50335018,"Naranja jincheng orgánicas secas"]
[null,50335022,"Naranja valencia tarde orgánicas secas"]
[null,50335310,"Durazno dulce del campo orgánico seco"]
[null,50335362,"Durazno brillo de sol orgánico seco"]
[null,50335456,"Pera tosca orgánicas secas"]
[null,50335708,"Ciruelo / damasco sabor de oro orgánico seco"]
[null,50335836,"Ciruela greengage orgánicas secas"]
[null,50336000,"Pomelos orgánicos secos"]
[null,50337003,"Banana flor orgánicas secas","Flor de plátano orgánica seca"]
[null,50337022,"Mombines orgánicas secas","Hobo orgánico seco"]
[null,50337230,"Aceitunas toscanelle orgánicas secas","Aceituna toscanelle orgánica seca"]
[null,50341551,"Manzana ley de roma congeladas"]
[null,50341609,"Albaricoque  clutha gold congeladas","Chabacano clutha gold congelado"]
[null,50341701,"Bananas manzana congeladas","Plátano apple congelado"]
[null,50342102,"Arandanos enano congeladas","Mirtillo enano congelado"]
[null,50342511,"Cereza chapman congeladas"]
[null,50342912,"Dátiles medjool/ medjol congeladas"]
[null,50343413,"Uva negro globe congeladas"]
[null,50343464,"Uva niagara congeladas"]
[null,50343624,"Uva malbec congeladas"]
[null,50343664,"Uvas blanco riesling congeladas"]
[null,50344307,"Níspero herd´s mammoth congelado"]
[null,50344444,"Mandarina wekiwa congeladas"]
[null,50344657,"Sandia corazón dulce sin semilla congeladas"]
[null,50344908,"Durazno  perla de agosto congelado"]
[null,50345001,"Naranja áfrica agria congeladas"]
[null,50345200,"Maracuyás congeladas"]
[null,50345342,"Durazno dama roja congelado"]
[null,50345421,"Pera hosui congeladas"]
[null,50345512,"Caqui triumph congeladas"]
[null,50345806,"Ciruela orgullo de otoño congeladas"]
[null,50345867,"Ciruela rojo rico congeladas"]
[null,50346219,"Frambuesa san diego congeladas"]
[null,50347001,"Cupania congeladas","Ackee congelada"]
[null,50347223,"Aceitunas nyons congeladas","Aceituna nyons congelada"]
[null,50351531,"Manzana gloster congelada orgánica"]
[null,50351582,"Manzana stark crimson congelada orgánica"]
[null,50351637,"Albaricoque perfeccion congelada orgánica","Chabacano perfección congelado orgánico"]
[null,50352208,"Agras misty congelada orgánica","Fruto azul del bosque misty congelado orgánico"]
[null,50352407,"Chirimoya smoothey congelada orgánica","Annona smoothey congelada orgánica"]
[null,50352709,"Arandano searless congelada orgánica","Arándano rojo searless congelado orgánico"]
[null,50353302,"Toronja duncan congelada orgánica"]
[null,50353442,"Uva gamay congelada orgánica"]
[null,50353496,"Uva zante current congelada orgánica"]
[null,50353643,"Uva primitivo congelada orgánica"]
[null,50353906,"Fruta de kiwi siberiana congelada orgánica","Kiwi siberiano congelado orgánico"]
[null,50354424,"Naranja murcott miel congelada orgánica"]
[null,50354602,"Melón athens congelado orgánico"]
[null,50354654,"Melón bebe de azúcar congelado orgánico"]
[null,50354949,"Durazno verano rojiso congelado orgánico"]
[null,50355033,"Naranja pera congelada orgánica"]
[null,50355321,"Durazno encoré congelado orgánico"]
[null,50355400,"Peras orgánicas congeladas"]
[null,50355607,"Piña español rojo congelada orgánica"]
[null,50355719,"Ciruelo / damasco orgullo geo congelado orgánico"]
[null,50355847,"Ciruela rosa tarde congelada orgánica"]
[null,50356102,"Membrillo piña congelado orgánico"]
[null,50356600,"Bayas saskatoon orgánicas congeladas","Fresas de junio orgánicas congeladas"]
[null,50357033,"Baya plata congelada orgánica","Olivo de otoño congelado orgánico"]
[null,50361510,"Manzana charles ross en lata o en frasco"]
[null,50361551,"Manzana law rome en lata o en frasco"]
[null,50361617,"Albaricoque frenso en lata o en frasco","Chabacano frenso en lata o en frasco"]
[null,50361712,"Banana pisang mas en lata o en frasco","Plátano pisang mas en lata o en frasco"]
[null,50362208,"Agras misty en lata o en frasco","Fruto azul del bosque misty en lata o en frasco"]
[null,50362604,"Cotrones bushakan en lata o en frasco","Cidra bushakan en lata o en frasco"]
[null,50363102,"Breva brown turkey en lata o en frasco","Higo brown turkey en lata o en frasco"]
[null,50363424,"Uva concord sin pepa en lata o en frasco"]
[null,50363475,"Uva regina en lata o en frasco"]
[null,50363601,"Uva alicante bouschet en lata o en frasco"]
[null,50363804,"Arándano montaña en lata o en frasco","Arándano azul montaña en lata o en frasco"]
[null,50364403,"Naranja mandarina cleopatra"]
[null,50364508,"Mango haden en lata o en frasco"]
[null,50364630,"Melón mayan en lata o en frasco"]
[null,50364918,"Durazno fantasia en lata o en frasco"]
[null,50365012,"Naranja cara cara en lata o en frasco"]
[null,50365105,"Papaya solo en lata o en frasco"]
[null,50365353,"Durazno gema sierra en lata o en frasco"]
[null,50365432,"Pera onward en lata o en frasco"]
[null,50365609,"Piña sugarloaf en lata o en frasco"]
[null,50365831,"Ciruela friar en lata o en frasco"]
[null,50365900,"Granadas en lata o en frasco"]
[null,50366229,"Frambuesa yu-shan en lata o en frasco"]
[null,50367012,"Feijoa en lata o en frasco","Guayabo del Brasil en lata o en frasco"]
[null,50367101,"Aronia magia de otoño en lata o en frasco"]
[null,50371542,"Manzana james grives orgánica en lata o en frasco"]
[null,50371593,"Manzana blanca transparent orgánica en lata o en frasco"]
[null,50371647,"Albaricoque  royal orange orgánica en lata o en frasco","Chabacano royal orange orgánico en lata o en frasco"]
[null,50372002,"Mora satín negro orgánica en lata o en frasco","Zarzamora satín negro orgánica en lata o en frasco"]
[null,50372508,"Cereza fiesta bing orgánica en lata o en frasco"]
[null,50372901,"Dátiles asharasi  orgánica en lata o en frasco"]
[null,50373205,"Grosella london orgánica en lata o en frasco"]
[null,50373455,"Uva marro sin pepa orgánica en lata o en frasco"]
[null,50373603,"Uva burger orgánica en lata o en frasco"]
[null,50373654,"Uva st emilion orgánica en lata o en frasco"]
[null,50374303,"Níspero big jim orgánico en lata o en frasco"]
[null,50374435,"Naranja robinson orgánica en lata o en frasco"]
[null,50374613,"Melón dixie lee orgánico en lata o en frasco"]
[null,50374800,"Mirtos orgánicos en lata o en frasco","Arrayanes orgánicos en lata o en frasco"]
[null,50374922,"Durazno tipo plano orgánico en lata o en frasco"]
[null,50375043,"Naranja valencia orgánica en lata o en frasco"]
[null,50375332,"Durazno princesa reina jersey orgánico en lata o en frasco"]
[null,50375411,"Pera concorde orgánica en lata o en frasco"]
[null,50375458,"Pera williams bon chretien orgánica en lata o en frasco"]
[null,50375806,"Ciruela orgullo de otoño orgánica en lata o en frasco"]
[null,50375857,"Ciruela placer rosado orgánica en lata o en frasco"]
[null,50376209,"Frambuesa  focke amarillo himalaya orgánica en lata o en frasco"]
[null,50376222,"Frambuesa hoja de fresa orgánica en lata o en frasco"]
[null,50377200,"Aceitunas orgánicas en lata o en frasco"]
[null,50401508,"Alcachofa morado cecilia"]
[null,50401743,"Aguacate leona linda"]
[null,50401809,"Frijoles ojo negro"]
[null,50401906,"Remolacha burpees dorado","Betabel burpees dorado"]
[null,50402500,"Zanahorias"]
[null,50402701,"Apio celebridad"]
[null,50403227,"Maíz  miel dulce"]
[null,50403403,"Cocombro atena","Pepino cohombro atena"]
[null,50403610,"Endivias  rosa de verona"]
[null,50404101,"Albahaca"]
[null,50404607,"Lechuga hoja roja"]
[null,50404903,"Mostaza hoja gigante"]
[null,50405503,"Maní husa / kerstings","Cacahuate husa / kerstings"]
[null,50405607,"Pimentón kapia","Chile kapia"]
[null,50406208,"Espinaca orach"]
[null,50406413,"Batata o´henry","Camote o´henry"]
[null,50406707,"Auyama queso","Calabaza gigante queso"]
[null,50407023,"Puntas de alverja"]
[null,50407104,"Alverja darfon","Chícharo darfon"]
[null,50411718,"Aguacate california haas orgánico"]
[null,50411741,"Aguacate oveja haas orgánico"]
[null,50411771,"Aguacate taylor orgánico"]
[null,50411839,"Frijoles  mortgage lifter orgánicos"]
[null,50412202,"Cebolla feast ensalada orgánica","Cebolla de cambray feast orgánica"]
[null,50413101,"Cebollín chino orgánico"]
[null,50413305,"Cocombro verde burpless buen sabor orgánico","Pepino cohombro verde burpless buen sabor orgánico"]
[null,50413512,"Endivias sugarthi orgánicas"]
[null,50414010,"Epazote orgánico"]
[null,50414519,"Lechuga boston roja orgánica"]
[null,50415000,"Solanáceas (nightshades)  orgánicas"]
[null,50415502,"Pimentón  árbol orgánico","Chile de árbol orgánico"]
[null,50415704,"Nabo sueco marian orgánico"]
[null,50416204,"Calabaza crookneck orgánica"]
[null,50416404,"Tomates vino de brandy orgánicos","Jitomate vino de brandy orgánico"]
[null,50416619,"Calabaza  warted hubbard orgánica","Calabaza gigante warted hubbard orgánica"]
[null,50416858,"Maíz  reina plateada orgánico"]
[null,50417021,"Diente de león orgánico"]
[null,50417102,"Alverja cavalier orgánica","Chícharo cavalier orgánico"]
[null,50421722,"Aguacate cristina seco"]
[null,50421829,"Frijoles tipo italiano secos"]
[null,50421843,"Frijoles nuna secos"]
[null,50422205,"Cebolla barba roja ensalada seca","Cebolla de cambray barba roja seca"]
[null,50422801,"Acelga luz brillante seca"]
[null,50423221,"Maíz  earlivee seco"]
[null,50423265,"Maíz baile de sol seco"]
[null,50423517,"Berenjena  siciliano seca"]
[null,50423911,"Calabaza tindoori seca"]
[null,50424502,"Lenteja  verde francesa seca"]
[null,50424813,"Champiñón pompom seco"]
[null,50425300,"Alverjas Secas","Cacahuates secos"]
[null,50425801,"Agar-agar seco"]
[null,50426102,"Espinaca bloomsdale seca"]
[null,50426307,"Batata hanna  seca","Camote hanna seca"]
[null,50426600,"Auyamas Secas","Calabazas gigantes Secas"]
[null,50426807,"Arum seca","Taro seco"]
[null,50426903,"Alverja margarita seca","Chícharo margarita seco"]
[null,50431723,"Aguacate collison orgánico seco"]
[null,50431775,"Aguacate trapp orgánico seco"]
[null,50431849,"Frijoles tonka orgánicos secos"]
[null,50432206,"Cebolla amigo rojo ensalada orgánica seca","Cebolla de cambray amigo rojo orgánica seca"]
[null,50432802,"Acelga gigante fordhook orgánica seca"]
[null,50433209,"Maíz  mantequilla y azúcar orgánico seco"]
[null,50433265,"Maíz baile de sol orgánico seco"]
[null,50433518,"Berenjena  tailandés orgánica seca"]
[null,50434001,"Guisante chino orgánica seca","Chícharo chino orgánico seco"]
[null,50434607,"Lechuga hoja roja orgánica seca"]
[null,50434814,"Champiñón porcieni orgánico seco"]
[null,50435301,"Maní bambara orgánico seco","Cacahuate bambara orgánico seco"]
[null,50435601,"Papa blanca larga orgánica seca","Chile panca seco"]
[null,50435906,"Chalote grise de bagnolet orgánico seco"]
[null,50436309,"Batata jersey orgánica seca","Camote jersey orgánico seca"]
[null,50436603,"Calabaza banana rosado orgánica seca","Calabaza gigante banana rosado orgánica seca"]
[null,50436822,"Dasheen orgánico seco"]
[null,50436908,"Guisante oregón sugar pod orgánica seca","Chícharo oregón sugar pod orgánico seco"]
[null,50441726,"Aguacate dr. dupie  congelado"]
[null,50441777,"Aguacate wagner congelado"]
[null,50441839,"Frijoles  mortgage lifter congelados"]
[null,50442209,"Cebolla lisbon blanca ensalada congelada","Cebolla de cambray lisbon blanca congelada"]
[null,50442805,"Acelga ruibarbo congelada"]
[null,50443216,"Maíz  dazzle congelado"]
[null,50443408,"Cocombro limón cristal congelado","Pepino cohombro limón cristal congelado"]
[null,50443600,"Endivias congeladas"]
[null,50444004,"Guisante nieve congelada","Chícharo nieve congelado"]
[null,50444504,"Lenteja crimson pequeña congelada"]
[null,50444705,"Ñame isleña congelada"]
[null,50445304,"Maní español congelado","Cacahuate español congelado"]
[null,50445604,"Papa  russet congelada"]
[null,50446104,"Espinaca horenso congelada"]
[null,50446313,"Batata o´henry congelada","Camote o´henry congelado"]
[null,50446602,"Calabaza gigante atlántico congelada","Calabaza gigante atlántico congelada"]
[null,50446821,"Diente de león congelado"]
[null,50446863,"Udo congelado"]
[null,50451725,"Aguacate dr dupis numero 2 orgánico congelado"]
[null,50451776,"Aguacate semilla de caribe orgánico congelado"]
[null,50451845,"Frijoles runner orgánicos congelados"]
[null,50452500,"Zanahorias  orgánicas congeladas"]
[null,50452803,"Acelga luculus orgánica congelada"]
[null,50453215,"Maíz  dártagnan orgánico congelado"]
[null,50453266,"Maíz estrella tell orgánico congelado"]
[null,50453422,"Cocombro vert de massy cornichon orgánico congelado","Pepino cohombro vert de massy cornichon orgánico congelado"]
[null,50454003,"Guisante de jardín orgánica congelada","Chícharo de jardín orgánico congelado"]
[null,50454503,"Lenteja verde orgánica congelada"]
[null,50454815,"Champiñón portobello orgánico congelado"]
[null,50455304,"Maní español orgánico congelado","Cacahuate español orgánico congelado"]
[null,50455602,"Papa redonda blanca orgánica congelada"]
[null,50456106,"Espinaca  cuarto de cordero orgánica congelada"]
[null,50456310,"Batata joya orgánica congelada","Camote joya orgánico congelado"]
[null,50456409,"Tomates delicia del jardín orgánico congelado","Jitomate delicia del jardín orgánico congelado"]
[null,50456824,"Diakon orgánico congelado","Rábano orgánico congelado"]
[null,50456906,"Alverja primer feltham orgánica congelada","Chícharo primer feltham orgánico congelado"]
[null,50461737,"Aguacate herman enlatado o envasado"]
[null,50461779,"Aguacate wurtz enlatado o envasado"]
[null,50461848,"Frijoles tamarind enlatados o envasados"]
[null,50462210,"Cebolla invierno blanca ensalada enlatada o envasada","Cebolla de cambray invierno blanca enlatada o envasada"]
[null,50462702,"Apio nabo enlatado o envasado"]
[null,50463218,"Maíz  divinidad enlatado o envasado"]
[null,50463269,"Maíz tuxedo enlatado o envasado"]
[null,50463600,"Endivias en lata o en frasco"]
[null,50464004,"Guisante nieve enlatada o envasada","Chícharo nieve enlatado o envasado"]
[null,50464506,"Lenteja roja separada enlatada o envasada"]
[null,50464818,"Champiñón san jorge enlatado o envasado"]
[null,50465305,"Maní valencia enlatado o envasado","Cacahuate valencia enlatado o envasado"]
[null,50465512,"Pimentón aji dulce enlatado o envasado","Ají dulce enlatado o envasado"]
[null,50466109,"Espinaca nueva zelandia enlatada o envasada"]
[null,50466313,"Batata o´henry enlatada o envasada","Camote o´henry enlatado o envasado"]
[null,50466618,"Calabaza  valenciano enlatada o envasada","Calabaza gigante valenciano enlatada o envasada"]
[null,50466827,"Gai choi enlatado o envasado","Mostaza castaña enlatada o envasada"]
[null,50466909,"Alverja príncipe alberto enlatada o envasada","Chícharo príncipe alberto en lata o envasado"]
[null,50471722,"Aguacate cristina orgánico enlatado o envasado"]
[null,50471751,"Aguacate meya orgánico enlatado o envasado"]
[null,50471842,"Frijoles munsi wolf orgánicos enlatados o envasados"]
[null,50472205,"Cebolla barba roja ensalada orgánica enlatada o envasada","Cebolla de cambray barba roja orgánica enlatada o envasada"]
[null,50472800,"Acelgas  orgánicas en lata o en frasco"]
[null,50473208,"Maíz  bodacious orgánico enlatado o envasado"]
[null,50473264,"Maíz nieve de azúcar orgánico enlatado o envasado"]
[null,50473516,"Berenjena  tom bajito orgánica enlatada o envasada"]
[null,50474000,"Guisantes orgánicas en lata o en frasco","Chícharos orgánicos en lata o en frasco"]
[null,50474112,"Limonaria orgánica enlatada o envasada","Té de limón orgánico enlatado o envasado"]
[null,50474812,"Champiñón pleurotus orgánico enlatado o envasado"]
[null,50475300,"Maníes orgánicos en lata o en frasco","Cacahuates orgánicos en lata o en frasco"]
[null,50475401,"Alverja casco morado orgánico enlatada o encasada","Alberjón casco morado orgánico en lata o envasado"]
[null,50476104,"Espinaca horenso orgánica enlatada o envasada"]
[null,50476308,"Batata japonés orgánica enlatada o envasada","Camote japonés orgánico enlatado o envasado"]
[null,50476601,"Calabaza acorn orgánica enlatada o envasada","Calabaza gigante acorn orgánica enlatada o envasada"]
[null,50476707,"Ñame lesser orgánico enlatado o envasado"]
[null,50476904,"Alverja dar fon orgánica enlatada o envasada","Chícharo dar fon orgánico en lata o envasado"]
[null,51101552,"Ceftazidima"]
[null,51101603,"Metronidazol"]
[null,51101807,"Fluconazol"]
[null,51102100,"Leprostáticos"]
[null,51102335,"Sodio de aciclovir","Aciclovir, Aciclovir sódico, Zovira"]
[null,51102730,"Isetionato de hexamidina"]
[null,51111515,"Estreptozocina"]
[null,51121503,"Gluconato de quinidina"]
[null,51121504,"Flecainida"]
[null,51121728,"Prazosina","Hypovase, Minipress, Pressin, Vasoflex ,"]
[null,51121777,"Trimetazidina  dihidrocloruro"]
[null,51122200,"Fármacos contra la hipotensión"]
[null,51131710,"Eptifibatida"]
[null,51141605,"Hidrocloruro de paroxetina"]
[null,51141630,"Tiroides"]
[null,51141807,"Flunitrazepam","Rofenol"]
[null,51142100,"Fármacos antiinflamatorios no esteroideos (NSAID)"]
[null,51142306,"Clorhidrato de atipamezol"]
[null,51142405,"Combinación de ácido acetilsalicílico paracetamol"]
[null,51142901,"Cloroformo","Triclorometano, Tricloruro de metilo"]
[null,51151504,"Nitrato de pilocarpina"]
[null,51151733,"Clorhidrato de dipivefrina"]
[null,51151900,"Relajantes músculo-esqueléticos de acción centrada"]
[null,51161520,"Ciclesonida"]
[null,51161654,"Levocetirizina dihidrocloruro"]
[null,51171604,"Docusato de sodio"]
[null,51171811,"Combinacion de dextrosa fructosa y ácido fosfórico"]
[null,51172108,"Clorhidrato de viquidil"]
[null,51181736,"Fluorometolona"]
[null,51181807,"Etinilestradiol"]
[null,51182010,"Decanoato de nandrolona"]
[null,51191510,"Furosemida"]
[null,51191909,"Tiamina","Vitamina B1"]
[null,51201646,"Vacuna contra el virus del sarampión y la rubeola"]
[null,51211622,"Tiosulfato de sodio"]
[null,51212302,"Aceite etiodizado"]
[null,51241219,"Tazaroteno"]
[null,52101514,"Tapetes de fibra de vidrio"]
[null,52141504,"Fogones para uso doméstico"]
[null,52141604,"Secadoras de calzado"]
[null,52151616,"Espátulas de cocina para uso doméstico","Palas de cocina para uso doméstico, Volteador de cocina para uso doméstico"]
[null,52151703,"Tenedores para uso doméstico"]
[null,52152102,"Vasos para beber para uso doméstico"]
[null,52161609,"Amplificador de señal de discos de vinilo"]
[null,53101900,"Trajes","Prendas de vestir"]
[null,53102514,"Protectores de bolsillos"]
[null,53111503,"Botas para niño"]
[null,53121601,"Bolsos o carteras"]
[null,53131631,"Tatuajes"]
[null,53141619,"Varas magnéticas"]
[null,54111700,"Piezas de relojes de pulsera o de pared o pie o accesorios"]
[null,55111507,"Periódicos electrónicos"]
[null,55121700,"Señalización"]
[null,56101505,"Centros de entretenimiento"]
[null,56101703,"Escritorios"]
[null,56112000,"Muebles de apoyo de la computadora"]
[null,56112205,"Componentes de iluminación, electricidad o información"]
[null,56121604,"Pufs de tamaño de niños"]
[null,60101200,"Incentivos educativos"]
[null,60101328,"Tarjetas didácticas de los números"]
[null,60101730,"Manuales de laboratorio"]
[null,60102303,"Libros de literatura infantil basados en la biblia"]
[null,60102602,"Pirinolas"]
[null,60103006,"Dados de fracciones"]
[null,60103606,"Unidades temáticas multiculturales"]
[null,60104004,"Kits de genética"]
[null,60104604,"Planos inclinados"]
[null,60104802,"Tanques de ondas"]
[null,60104925,"Aparato para la ley de fleming"]
[null,60105420,"Materiales de enseñanza de modales o etiqueta o cortesía"]
[null,60105614,"Materiales de enseñanza sobre la higiene o la seguridad en la cocina"]
[null,60106208,"Materiales didácticos de medicina"]
[null,60111201,"Pendones para el salón de clase","Estandarte para el salón de clases"]
[null,60121131,"Papel japonés para grabado"]
[null,60121209,"Pintura de tatuaje provisional","Pintura de henna"]
[null,60121400,"Enmarcado de cuadro"]
[null,60121540,"Telas de dibujo"]
[null,60121811,"Tintas para dibujar de base solvente"]
[null,60122903,"Cuentas de madera"]
[null,60124200,"Proyectos completos de planes de estudios"]
[null,60124511,"Herramientas de juguete o kits de herramientas de juguete"]
[null,60131231,"Sarrusofón"]
[null,60131406,"Xilófonos"]
[null,60131457,"Timbal"]
[null,60141017,"Caleidoscopios"]
[null,60141117,"Juego del lut o de cuatro palos y accesorios","Juego de loto de cuatro palos y accesorios"]
[null,70111704,"Servicios de asesoría en horticultura","Servicios de consultoría en horticultura"]
[null,70131501,"Servicios de control o evaluación de la desertificación"]
[null,70141903,"Servicios de cosecha de cultivos extensivos","Servicios de recolección de campos de cultivo"]
[null,70151703,"Operaciones especializadas para la cosecha forestal"]
[null,70171704,"Servicios de  mantenimiento o administración  de estaciones de bombeo"]
[null,71112018,"Servicios de medición del fluido de perforación para registros de producción"]
[null,71112200,"Otros servicios de registración","Otros servicios para el registro de pozos"]
[null,71121300,"Servicios de herramientas barrenos hacia abajo"]
[null,71121617,"Servicios de control de perforación de pozos"]
[null,71122005,"Servicios de perforación de pozos con cables conductores"]
[null,71122615,"Servicios de terminación de hoyo abierto"]
[null,71131008,"Servicios de control de la altura de la fracturación del pozo"]
[null,71131412,"Servicios de mejoramiento y restauración de pozos"]
[null,71151307,"Servicios de geofísica"]
[null,71161000,"Servicios de modelar del campo petrolífero"]
[null,72102106,"Control de roedores","Control de ratones"]
[null,72121201,"Servicio de construcción de edificaciones para fincas","Servicio de construcción de granjas"]
[null,72141200,"Servicios de construcción marina","Servicios de construcciones marítimas"]
[null,72141603,"Servicio de construcción de lechos de vía para ferrocarril y vías férreas"]
[null,72151601,"Servicio de instalación de televisión por cable"]
[null,72152402,"Servicio de instalación de ventanas y puertas prefabricadas"]
[null,72152900,"Servicios de montaje de acero estructural"]
[null,72154003,"Servicio de instalación de toldos","Servicio de instalación de cubiertas de lona"]
[null,72154054,"Servicios de carga o eliminación de catalizadores"]
[null,73101610,"Servicios de producción de pesticidas","Servicios de producción de plaguicida"]
[null,73121804,"Servicios de fabricación de cemento o cal o yeso"]
[null,73141602,"Servicios de elaboración de hilado","Servicios de procesamiento de hilado"]
[null,73151907,"Servicios de impresión y duplicación de discos compactos dc"]
[null,73171506,"Servicios de fabricación de equipos de comunicaciones"]
[null,73181012,"Servicios de fresado","Servicios de molienda"]
[null,76101605,"Servicio de filtración y descontaminación a base de carbono"]
[null,76122305,"Reciclaje de productos basados en computadores"]
[null,76122401,"Tarifa de sobreestadía","Costo por demora, Tarifa por demora"]
[null,77121609,"Evaluación de la contaminación por nitratos"]
[null,78101901,"Transporte aéreo a marítimo","Transporte con salida aérea y destino marítimo"]
[null,78131500,"Bodegaje de productos agrícolas"]
[null,78141803,"Servicios de tiendas en buques"]
[null,80111604,"Necesidades de dotación de personal técnico temporal","Colocación de personal temporal técnico"]
[null,80121608,"Derecho de fusiones o adquisiciones","Derecho de combinaciones o adquisiciones"]
[null,80141509,"Análisis competitivo o de inteligencia del mercado"]
[null,80151502,"Expansión comercial","Ampliación comercial"]
[null,81101700,"Ingeniería eléctrica y electrónica"]
[null,81111606,"Programación para basic","Programación de Código simbólico de instrucciones de propósito general para principiantes"]
[null,81112105,"Servicios de hospedaje de operación de sitios web"]
[null,81112220,"Mantenimiento de software de servidores","Mantenimiento de programas para servidores"]
[null,81151705,"Servicios arqueológicos"]
[null,82101702,"Servicios de publicidad aérea"]
[null,82111503,"Redacción de artículos académicos o científicos"]
[null,82121502,"Tipografía"]
[null,82141602,"Montaje de exposición de artículos","Desmontaje de exposición de artículos"]
[null,83101903,"Calefacción del distrito"]
[null,83111905,"Servicios bilaterales internacionales y líneas privadas internacionales arrendadas"]
[null,84111506,"Servicios de facturación"]
[null,84131506,"Servicios de reaseguros"]
[null,85101701,"Política de salud"]
[null,85101703,"Planificación de servicios médicos"]
[null,85121604,"Servicios de especialistas pulmonares"]
[null,85131500,"Servicios de medicina experimental"]
[null,85161500,"Reparación de equipo médico o quirúrgico"]
[null,86111702,"Enseñanza de idiomas extranjeros por inmersión"]
[null,86131800,"Educación militar"]
[null,90111802,"Habitación doble"]
[null,91101500,"Facilidades de spa y ejercicios y rejuvenecimiento"]
[null,91111901,"Servicios de guardería para niños o bebés","Servicios de estancias infantiles"]
[null,91111902,"Servicios de niñera o cuidado de niños"]
[null,91111903,"Servicios asistenciales diurnos para  ancianos"]
[null,91111904,"Servicios de vivienda asistida"]
[null,92101500,"Servicios de policía"]
[null,92101501,"Servicios de vigilancia"]
[null,92101503,"Programas de ayuda a la comunidad"]
[null,92101504,"Programas para la disuasión de delitos"]
[null,92101600,"Servicios de bomberos"]
[null,92101601,"Servicios contra incendios municipales o nacionales"]
[null,92101602,"Servicios de cuerpos de bomberos voluntarios"]
[null,92101603,"Servicios para la  prevención de incendios"]
[null,92101604,"Servicios contra incendios en bosques o tierras vírgenes"]
[null,92101700,"Sistemas de cárceles y prisiones"]
[null,92101800,"Sistemas judiciales"]
[null,92101804,"Multas u honorarios de procesos penales"]
[null,92101900,"Servicios de rescate"]
[null,92101901,"Equipos de búsqueda y salvamento"]
[null,92101902,"Servicios de ambulancia"]
[null,92101903,"Servicios de helicópteros de salvamento"]
[null,92101904,"Servicios de salvavidas para piscina o playa"]
[null,92111800,"Personal y disciplina militar"]
[null,92121500,"Servicios de guardias"]
[null,92121502,"Servicios de protección contra robos"]
[null,92121503,"Alquiler de perros guardianes"]
[null,92121504,"Servicios de guardas de seguridad","Servicios de seguridad privada, Servicios de vigilencia"]
[null,92121600,"Servicios de detectives"]
[null,92121601,"Agencias de detectives"]
[null,92121602,"Servicios de huellas dactilares"]
[null,92121603,"Servicios de detección de mentiras"]
[null,92121604,"Servicios de investigación privada"]
[null,92121700,"Servicios de sistemas de seguridad"]
[null,92121701,"Vigilancia o mantenimiento o monitoreo de alarmas"]
[null,92121702,"Mantenimiento o monitoreo de alarmas contra incendios"]
[null,92121703,"Servicios antirrobo para  tiendas o empresas"]
[null,92121704,"Mantenimiento o monitoreo de sistemas de vigilancia de confinamiento"]
[null,92121800,"Servicios de Carros blindados y transporte de valores"]
[null,92121801,"Servicio de carros blindados"]
[null,92121802,"Servicio de transporte de dinero"]
[null,92121803,"Servicio de almacenamiento de dinero"]
[null,92121900,"Servicios de seguridad marina"]
[null,92121901,"Servicio de botes de seguridad"]
[null,93101500,"Cuerpos políticos"]
[null,93101501,"Servicios de representación de partidos políticos"]
[null,93121500,"Diplomacia"]
[null,93121503,"Servicios de seguridad para diplomáticos"]
[null,93121600,"Relaciones internacionales y cooperación"]
[null,93121608,"Servicio de enlace con organizaciones no gubernamentales"]
[null,93121700,"Organizaciones internacionales"]
[null,93131500,"Programas de refugiados"]
[null,93131501,"Servicios de protección de los derechos humanos"]
[null,93131502,"Servicios de promoción de los derechos humanos"]
[null,93131503,"Servicios de educación o divulgación de información sobre derechos humanos"]
[null,93131504,"Servicios de asistencia de emergencia a refugiados"]
[null,93131505,"Servicios de campos de refugiados"]
[null,93131506,"Servicios de reasentamientos o repatriación de refugiados"]
[null,93131507,"Servicios de asistencia a desplazados"]
[null,93131600,"Planeación y programas de políticas de alimentación y nutrición"]
[null,93131601,"Programas de erradicación del hambre"]
[null,93131602,"Servicios de suministro de alimentos de emergencia"]
[null,93131603,"Servicios del programa mundial de alimentos"]
[null,93131604,"Servicios de la organización para la  alimentación y la agricultura"]
[null,93131605,"Servicios del fondo común para los  productos básicos"]
[null,93131606,"Servicios del fondo internacional para el desarrollo agrícola"]
[null,93131607,"Servicios de distribución de alimentos"]
[null,93131608,"Servicios de suministro de alimentos"]
[null,93131609,"Políticas o programas de ayuda alimentaría"]
[null,93131610,"Servicios de planificación de alimentos"]
[null,93131611,"Servicios de seguridad alimentaria"]
[null,93131612,"Administración de reservas alimentarias"]
[null,93131613,"Servicios de control o  administración de excedentes o escasez de alimentos"]
[null,93131700,"Programas de salud"]
[null,93131701,"Campañas contra el tabaco"]
[null,93131702,"Programas de sanidad"]
[null,93131703,"Programas de investigación"]
[null,93131704,"Servicios de prevención o control de enfermedades"]
[null,93131705,"Programas de prevención o control de abuso de drogas"]
[null,93131800,"Preparación y alivio de desastres"]
[null,93131801,"Servicios de prevención de desastres"]
[null,93131802,"Servicios de respuesta contra desastres"]
[null,93131803,"Servicios de viviendas de emergencia"]
[null,93141500,"Desarrollo y servicios sociales"]
[null,93141504,"Servicios de cuidado en hogares adoptivos u orfanatos"]
[null,93141505,"Servicios de adopción"]
[null,93141510,"Estudios de estructura sociales o servicios relacionados"]
[null,93141511,"Estudios de grupos sociales o servicios relacionados"]
[null,93141514,"Servicios socioculturales"]
[null,93141600,"Población"]
[null,93141601,"Servicios de censo de la población"]
[null,93141602,"Servicios de estudios de muestras de población"]
[null,93141605,"Servicios de tendencias o proyecciones de la población"]
[null,93141606,"Servicios de estadísticas de natalidad"]
[null,93141608,"Servicios de distribución o análisis de la población"]
[null,93141609,"Servicios de análisis de la composición de la población"]
[null,93141610,"Estudios demográficos"]
[null,93141700,"Cultura"]
[null,93141701,"Organizaciones de eventos culturales"]
[null,93141702,"Servicios de promoción cultural"]
[null,93141703,"Servicios relacionados con el arte","Artesanías y obras de arte, Servicios de restauración de obras de arte y artesanías"]
[null,93141704,"Servicios de composición de canciones"]
[null,93141705,"Servicios de redacción literaria"]
[null,93141706,"Servicios de protección de minorías"]
[null,93141707,"Servicios de preservación o  promoción del patrimonio cultural"]
[null,93141708,"Servicios de museos"]
[null,93141709,"Servicios de política cultural"]
[null,93141710,"Servicios de lenguas arcaicas o indígenas"]
[null,93141711,"Servicios de promoción de artesanías tradicionales"]
[null,93141712,"Servicios de protección de la propiedad intelectual o cultural"]
[null,93141713,"Servicios de protección de sitios históricos o monumentos"]
[null,93141714,"Mitología"]
[null,93141800,"Empleo"]
[null,93141801,"Servicios de promoción o planificación del empleo"]
[null,93141802,"Servicios de reclutamiento"]
[null,93141803,"Servicios de estándares laborales internacionales"]
[null,93141804,"Servicios de registros laborales internacionales"]
[null,93141806,"Servicios de estadísticas o predicciones del empleo"]
[null,93141808,"Servicios de seguridad o salud ocupacional"]
[null,93141810,"Servicios de perspectivas de desarrollo profesional"]
[null,93141811,"Servicios de promoción"]
[null,93141812,"Servicios de inspección laboral"]
[null,93141813,"Servicios del consejo del trabajo"]
[null,93141814,"Servicios laborales internacionales"]
[null,93141900,"Desarrollo rural"]
[null,93141901,"Servicios bancarios comerciales agrícolas"]
[null,93141902,"Servicios de inversión rural"]
[null,93141903,"Servicios de organización o gestión de instituciones agrícolas"]
[null,93141904,"Servicios de cooperativas agrícolas o rurales"]
[null,93141905,"Servicios de investigación agrícola"]
[null,93141906,"Servicios de organizaciones de agricultores o campesinos"]
[null,93141909,"Servicios de administración de la tierra"]
[null,93141910,"Servicios para el desarrollo insular"]
[null,93142000,"Desarrollo urbano"]
[null,93142001,"Servicios de planificación de la ordenación urbana"]
[null,93142002,"Servicios de administración de tierras urbanas"]
[null,93142003,"Servicios de programación de inversiones urbanas"]
[null,93142004,"Servicios de reestructuración de  barrios marginales"]
[null,93142005,"Servicios de alumbrado urbano"]
[null,93142006,"Servicios de control o regulación del desarrollo urbano"]
[null,93142007,"Servicios de estándares o regulación de edificios urbanos"]
[null,93142008,"Servicios comunitarios urbanos"]
[null,93142009,"Servicios de administración o gestión de proyectos o programas urbanos"]
[null,93142100,"Desarrollo regional"]
[null,93142101,"Servicios de planificación de desarrollo regional"]
[null,93142102,"Servicios de cooperación económica"]
[null,93142103,"Servicios de cooperación técnica"]
[null,93142104,"Servicios de planificación sectorial"]
[null,93151500,"Administración pública"]
[null,93151501,"Servicios financieros o de  gestión  administrativa de empresas  públicas"]
[null,93151502,"Servicios de sistemas de información o control de empresas públicas"]
[null,93151512,"Servicios de instituciones públicas"]
[null,93151516,"Permiso de construcción"]
[null,93151600,"Finanzas públicas"]
[null,93151608,"Servicios bancarios gubernamentales o centrales"]
[null,93151609,"Servicios de loterías","Billetes de lotería impresos o electrónicos"]
[null,93151611,"Subsidios"]
[null,93161500,"Impuesto de renta"]
[null,93161501,"Impuesto nacional sobre la renta"]
[null,93161502,"Impuesto municipal sobre la renta"]
[null,93161503,"Impuesto sobre el incremento de capital"]
[null,93161504,"Impuesto sobre beneficios extraordinarios"]
[null,93161600,"Impuestos distintos del impuesto de renta"]
[null,93161601,"Impuesto sobre los bienes"]
[null,93161602,"Impuesto sobre la tierra"]
[null,93161603,"Impuesto al valor agregado (iva)"]
[null,93161604,"Impuesto sobre nóminas"]
[null,93161605,"Impuesto sobre las ventas"]
[null,93161606,"Impuesto de seguridad social"]
[null,93161607,"Impuesto a la sucesión o sobre transferencia de propiedad"]
[null,93161608,"Derechos o impuestos aduaneros"]
[null,93161609,"Arancel o tarifa"]
[null,93161700,"Administración tributaria"]
[null,93161702,"Incentivos tributarios"]
[null,93161800,"Temas tributarios"]
[null,93161803,"Investigación tributaria"]
[null,93161804,"Crédito fiscal de inversión"]
[null,93171500,"Política comercial"]
[null,93171501,"Acuerdos comerciales"]
[null,93171502,"Negociaciones comerciales"]
[null,93171503,"Formulación de políticas nacionales de productos básicos"]
[null,93171504,"Desarrollo de pequeñas industrias"]
[null,93171600,"Comercio internacional"]
[null,93171700,"Administración y cumplimiento aduanero"]
[null,93171701,"Convenciones aduaneras"]
[null,93171702,"Trámites aduaneros"]
[null,93171800,"Análisis de comercio"]
[null,93171801,"Proyecciones comerciales"]
[null,93171802,"Proyecciones de la balanza comercial"]
[null,93171803,"Estadísticas comerciales"]
[null,94101500,"Asociaciones de negocios","Agrupaciones y cámaras representativas"]
[null,94101501,"Asociaciones de la industria agrícola"]
[null,94101502,"Asociaciones reguladoras"]
[null,94101503,"Asociaciones empresariales sectoriales"]
[null,94101504,"Asociaciones empresariales internacionales"]
[null,94101505,"Asociaciones de empleadores"]
[null,94101600,"Asociaciones profesionales","Agrupaciones y colegios de profesionistas"]
[null,94101601,"Asociaciones de odontólogos"]
[null,94101602,"Asociaciones de médicos"]
[null,94101603,"Asociaciones de enfermeras"]
[null,94101604,"Asociaciones de contadores"]
[null,94101605,"Asociaciones de arquitectos"]
[null,94101606,"Colegios de abogados"]
[null,94101607,"Asociaciones educativas o de profesores"]
[null,94101608,"Asociaciones de ingenieros"]
[null,94101609,"Asociaciones científicas"]
[null,94101610,"Juntas de revisión de estándares profesionales"]
[null,94101700,"Asociaciones de personal"]
[null,94101701,"Clubes de ocio del personal"]
[null,94101702,"Asociaciones deportivas del personal"]
[null,94101703,"Asociaciones de personal femenino"]
[null,94101704,"Asociaciones de personal pensionado"]
[null,94101705,"Asociaciones de personal administrativo"]
[null,94101800,"Sindicatos"]
[null,94101801,"Sindicatos de obreros o trabajadores generales"]
[null,94111700,"Residencias religiosas"]
[null,94111701,"Residencias religiosas privadas"]
[null,94111702,"Residencias de comunidades religiosas"]
[null,94111703,"Residencias para retiros religiosos"]
[null,94111704,"Residencias religiosas temporales"]
[null,94111800,"Organizaciones y servicios de peregrinaje"]
[null,94111801,"Organizaciones o servicios de peregrinaje a la meca"]
[null,94111802,"Organizaciones o servicios de peregrinaje al vaticano"]
[null,94111803,"Servicios de asistencia para viajes de peregrinaje"]
[null,94111804,"Servicios de operadores turísticos de peregrinaje"]
[null,94111900,"Servicios misioneros"]
[null,94111901,"Servicios de órdenes religiosas"]
[null,94111902,"Servicios de misioneros evangélicos"]
[null,94111903,"Servicios misioneros educativos"]
[null,94112000,"Servicios confesionarios"]
[null,94112001,"Servicios relacionados con el hinduismo"]
[null,94112002,"Servicios relacionados con el budismo"]
[null,94112003,"Servicios relacionados con el cristianismo"]
[null,94112004,"Servicios relacionados con el islamismo"]
[null,94112005,"Servicios relacionados con el judaísmo"]
[null,94121500,"Clubes deportivos"]
[null,94121501,"Clubes de deportes en hielo"]
[null,94121502,"Clubes deportivos de vela o natación"]
[null,94121503,"Clubes deportivos de caza o tiro"]
[null,94121504,"Clubes deportivos de campos al aire libre"]
[null,94121505,"Clubes deportivos de canchas cubiertas o al aire libre"]
[null,94121506,"Clubes deportivos de invierno"]
[null,94121507,"Clubes deportivos de playa o acuáticos"]
[null,94121508,"Clubes deportivos de ciclismo"]
[null,94121509,"Clubes deportivos de montañismo"]
[null,94121510,"Clubes deportivos de carreras"]
[null,94121511,"Clubes deportivos de vuelo"]
[null,94121512,"Clubes deportivos profesionales o semiprofesionales"]
[null,94121513,"Servicios de operadores de eventos en estadios"]
[null,94121514,"Servicios de promotores o directores técnicos de clubes deportivos"]
[null,94121600,"Clubes de hobbies"]
[null,94121601,"Clubes de aficionados a los juegos de cartas"]
[null,94121602,"Clubes de artesanías"]
[null,94121603,"Clubes de aficionados a la poesía o la literatura"]
[null,94121604,"Clubes de aficionados a la cocina"]
[null,94121605,"Clubes de aficionados a la jardinería"]
[null,94121606,"Club de aficionados al coleccionismo"]
[null,94121607,"Club de exploradores (scouts)"]
[null,94121700,"Clubes de aficionados"]
[null,94121701,"Clubes o servicios para aficionados al teatro"]
[null,94121702,"Clubes o servicios para aficionados a la música"]
[null,94121703,"Clubes o servicios para aficionados al baile a la danza"]
[null,94121704,"Clubes o servicios para aficionados a las bellas artes"]
[null,94121800,"Clubes sociales"]
[null,94121801,"Clubes juveniles"]
[null,94121802,"Clubes para la tercera edad"]
[null,94121803,"Clubes para reuniones sociales"]
[null,94121804,"Clubes sociales para personas discapacitadas"]
[null,94121805,"Clubes sociales para veteranos de guerra"]
[null,94131500,"Organizaciones no gubernamentales"]
[null,94131501,"Servicios ambientales no gubernamentales"]
[null,94131502,"Servicios no gubernamentales de ayuda de emergencia"]
[null,94131503,"Servicios no gubernamentales de asistencia técnica"]
[null,94131504,"Servicios no gubernamentales de ayuda al desarrollo"]
[null,94131600,"Organizaciones de caridad"]
[null,94131601,"Servicios de albergue de organizaciones de beneficencia"]
[null,94131602,"Servicios de socorro alimentario"]
[null,94131603,"Servicios de asistencia legal"]
[null,94131604,"Servicios de movilización de recursos","Donativos en especie"]
[null,94131605,"Servicios de asistencia de ayuda internacional"]
[null,94131606,"Servicios de orfanatos o adopción"]
[null,94131607,"Organizaciones de asistencia a los adultos mayores"]
[null,94131608,"Organizaciones de asistencia a presos"]
[null,94131700,"Asociaciones verdes"]
[null,94131701,"Asociaciones ecologistas radicales"]
[null,94131702,"Asociaciones ecofeministas"]
[null,94131703,"Organizaciones políticas ecológicas"]
[null,94131704,"Movimientos o servicios de activistas ecológicos"]
[null,94131800,"Movimientos"]
[null,94131805,"Servicios de preservación cultural de las minorías étnicas"]
[null,94131900,"Asociaciones protectoras de animales"]
[null,94131901,"Movimientos para la liberación de animales"]
[null,94131902,"Asociaciones para la protección de las especies en peligro de extinción"]
[null,94131903,"Asociaciones para la protección de animales amenazados"]
[null,94132000,"Asociaciones de defensa y promoción de los derechos humanos"]
[null,94132001,"Servicios de defensa de los derechos de los niños"]
[null,94132002,"Servicios de defensa de los presos"]
[null,94132003,"Asociaciones para la defensa de la tortura física o mental"]
[null,94132004,"Asociaciones para la defensa de la libertad de expresión"]
[null,95101500,"Lotes residenciales"]
[null,95101501,"Parcela para vivienda unifamiliar","Terreno para vivienda unifamiliar"]
[null,95101502,"Parcela para edificio de apartamentos","Terreno para edificio de apartamentos"]
[null,95101503,"Parcela para apartamentos cooperativos","Terreno para apartamentos cooperativos"]
[null,95101504,"Parcela para condominio","Terreno para condominio"]
[null,95101505,"Parcela para residencia universitaria","Terreno para residencia universitaria"]
[null,95101506,"Parcela para subdivisión de vivienda","Terreno para subdivisión de vivienda"]
[null,95101507,"Parcela para hotel","Terreno para hotel"]
[null,95101508,"Parcela para motel","Terreno para motel"]
[null,95101509,"Parcela para casas móviles","Terreno para casas móviles"]
[null,95101510,"Parque de casas móviles"]
[null,95101600,"Lotes comerciales"]
[null,95101601,"Parque empresarial"]
[null,95101602,"Campus de oficinas"]
[null,95101603,"Sitio para centro comercial de calle"]
[null,95101700,"Lotes industriales"]
[null,95101701,"Parque aéreo"]
[null,95101702,"Sitio para planta ensambladora","Terreno para planta ensambladora"]
[null,95101703,"Sitio para fábrica","Terreno para fábrica"]
[null,95101704,"Sitio para planta manufacturera","Terreno para planta manufacturera"]
[null,95101705,"Sitio para marina","Terreno para marina"]
[null,95101706,"Sitio para planta empacadora","Terreno para planta empacadora"]
[null,95101707,"Sitio para telecomunicaciones","Terreno para telecomunicaciones"]
[null,95101708,"Sitio para empresa pública","Terreno para empresa pública"]
[null,95101800,"Lotes de terrenos gubernamentales"]
[null,95101807,"Patio de mantenimiento"]
[null,95101900,"Tierras agrícolas"]
[null,95101901,"Granja"]
[null,95101902,"Rancho"]
[null,95101903,"Huerto"]
[null,95111500,"Vías de tráfico limitado"]
[null,95111501,"Servidumbre"]
[null,95111502,"Derecho de paso"]
[null,95111503,"Carreteras de acceso"]
[null,95111504,"Rampa o vía de acceso a una autopista"]
[null,95111600,"Vías de tráfico abierto"]
[null,95111602,"Carretera o autopista  o autopista de peaje interestatal","Cuota o tarifa de peaje en carreteras y autopistas federales"]
[null,95111603,"Carretera o autopista  o autopista de peaje interestatal","Cuota o tarifa de peaje en carreteras y autopistas concesionadas"]
[null,95111609,"Cruce de carretera con una carretera principal"]
[null,95111610,"Carretera circunvalar"]
[null,95111615,"Cruce de carreteras"]
[null,95121500,"Edificios y estructuras comerciales y de entretenimiento"]
[null,95121501,"Galería comercial"]
[null,95121502,"Estructura de parqueo","Estructura para estacionamiento"]
[null,95121503,"Cafetería"]
[null,95121504,"Edificio para tienda"]
[null,95121505,"Centro comercial"]
[null,95121506,"Teatro"]
[null,95121507,"Mercado"]
[null,95121508,"Zona de juegos o patios de recreo para niños"]
[null,95121509,"Zoológico"]
[null,95121510,"Jardín"]
[null,95121511,"Parque"]
[null,95121512,"Instalación recreativa al lado del agua"]
[null,95121513,"Banco"]
[null,95121514,"Oficina de tiquetes","Oficina de boletos"]
[null,95121515,"Caída de agua artificial"]
[null,95121516,"Muro de piedras y piedras  artificiales"]
[null,95121517,"Crematorio"]
[null,95121600,"Edificios y estructuras de transporte"]
[null,95121601,"Puente de acero"]
[null,95121602,"Dique seco"]
[null,95121603,"Estación de buses"]
[null,95121604,"Garaje para buses"]
[null,95121605,"Edificio de servicios o reparaciones automotrices"]
[null,95121606,"Estación ferroviaria"]
[null,95121607,"Depósito ferroviario"]
[null,95121608,"Estación ferroviarias  subterráneas"]
[null,95121609,"Depósito de tranvías"]
[null,95121610,"Plataforma de tranvías"]
[null,95121611,"Edificio de aeropuertos"]
[null,95121612,"Torre de control aeroportuaria"]
[null,95121613,"Campo de aviación"]
[null,95121614,"Pista"]
[null,95121615,"Muelle"]
[null,95121616,"Embarcadero"]
[null,95121617,"Dársena"]
[null,95121618,"Marina"]
[null,95121619,"Marina de yates"]
[null,95121620,"Rompeolas"]
[null,95121621,"Malecón"]
[null,95121622,"Edificio de terminal de ferry"]
[null,95121623,"Terminal ro-ro"]
[null,95121624,"Faro"]
[null,95121640,"Tubería"]
[null,95121641,"Estación de bombeo"]
[null,95121642,"Estación de bombeo de aguas residuales"]
[null,95121643,"Descargas de aguas residuales"]
[null,95121644,"Parqueadero","Estacionamiento"]
[null,95121646,"Estructura para parqueo de bicicletas","Estructura de estacionamiento para bicicletas"]
[null,95121700,"Edificios y estructuras públicos"]
[null,95121701,"Oficina postal"]
[null,95121702,"Estación de policía"]
[null,95121703,"Edificio de juzgados"]
[null,95121704,"Edificio de prisión"]
[null,95121705,"Estación de bomberos"]
[null,95121706,"Estación de ambulancias"]
[null,95121707,"Edificio de rescate de montaña"]
[null,95121708,"Estación de botes salvavidas"]
[null,95121709,"Edificio de guardacostas"]
[null,95121710,"Estación de servicio de rescate"]
[null,95121711,"Centro cívico"]
[null,95121712,"Galería de arte"]
[null,95121800,"Edificios y estructuras utilitarios"]
[null,95121801,"Estación de radares"]
[null,95121802,"Subestación"]
[null,95121804,"Torre de agua"]
[null,95121805,"Pozo"]
[null,95121806,"Estación base para telefonía móvil"]
[null,95121808,"Plataforma de gas o petróleo"]
[null,95121900,"Edificios y estructuras educacionales y de administración"]
[null,95121901,"Escuela politécnica"]
[null,95121902,"Centro de formación tecnológica"]
[null,95121903,"Aula"]
[null,95121904,"Biblioteca"]
[null,95121905,"Laboratorio de idiomas"]
[null,95121906,"Edificio de laboratorio"]
[null,95121907,"Estación meteorológica"]
[null,95121908,"Instalación para investigación o prueba"]
[null,95121909,"Escuela primaria"]
[null,95121910,"Escuela de bachillerato clásico"]
[null,95121911,"Escuela de bachillerato"]
[null,95121913,"Universidad"]
[null,95122000,"Edificios y estructuras hospitalarias"]
[null,95122001,"Clínica"]
[null,95122002,"Hogar de convalecencia"]
[null,95122003,"Sala de operaciones o quirófano"]
[null,95122004,"Unidad de cuidados intensivos"]
[null,95122005,"Sala de detección y diagnóstico"]
[null,95122006,"Sala de fluoroscopio"]
[null,95122007,"Sala o laboratorio de patología"]
[null,95122008,"Sala de cateterismo"]
[null,95122100,"Edificios y estructuras de acomodaciones"]
[null,95122101,"Casa residencial"]
[null,95122102,"Apartamento o piso"]
[null,95122103,"Asilo de niños"]
[null,95122104,"Guardería de niños"]
[null,95122105,"Hogar de ancianos"]
[null,95122106,"Hostal"]
[null,95122300,"Edificios y estructuras de salud y deportivas"]
[null,95122301,"Estadio"]
[null,95122302,"Campo deportivo"]
[null,95122303,"Pista de carreras"]
[null,95122304,"Polideportivo"]
[null,95122305,"Spa"]
[null,95122306,"Gimnasio"]
[null,95122307,"Piscina"]
[null,95122308,"Instalación para deportes acuáticos"]
[null,95122400,"Edificios y estructuras industriales"]
[null,95122401,"Taller"]
[null,95122402,"Instalación para conservación en cámaras frigoríficas"]
[null,95122403,"Tienda de descuentos"]
[null,95122500,"Edificios y estructuras agrícolas y de cultivos y pesca"]
[null,95122501,"Granero"]
[null,95122502,"Establo"]
[null,95122503,"Canal de riego"]
[null,95122600,"Edificios y estructuras religiosas"]
[null,95122700,"Edificios y estructuras de defensa"]
[null,95131500,"Tarimas y graderías"]
[null,95131501,"Graderías plegables"]
[null,95131502,"Graderías móviles"]
[null,95131503,"Graderías portátiles"]
[null,95131600,"Edificios y estructuras comerciales e industriales portátiles"]
[null,95131601,"Taquillas portátiles"]
[null,95131602,"Cuarto de baño portátil","Servicios en baños portátiles, Servicios en baños públicos"]
[null,95131603,"Oficina en el emplazamiento"]
[null,95131604,"Unidad de cocina portátil"]
[null,95131605,"Casa contenedor"]
[null,95131606,"Cabina de ventas portátil"]
[null,95131700,"Tiendas carpas y estructuras de membrana"]
[null,95131701,"Estructura textil tipo armazón"]
[null,95131702,"Carpa de poste o de tensión"]
[null,95141500,"Edificios y estructuras prefabricados para fincas"]
[null,95141501,"Silo","Depósitos para granos"]
[null,95141502,"Invernadero"]
[null,95141600,"Edificios y estructuras prefabricados residenciales"]
[null,95141601,"Casa"]
[null,95141602,"Casa móvil"]
[null,95141603,"Cabaña"]
[null,95141604,"Garaje"]
[null,95141605,"Gazebo","Kiosco, Pabellón"]
[null,95141606,"Cocina para casa"]
[null,95141700,"Edificios y estructuras prefabricados comerciales e industriales"]
[null,95141701,"Oficina en la planta"]
[null,95141702,"Cabina de pintura"]
[null,95141703,"Galpón de almacenaje","Almacén"]
[null,95141704,"Sala blanca"]
[null,95141705,"Casa de guardias"]
[null,95141706,"Bodega"]
[null,95141707,"Auditorio"]
[null,95141708,"Cocina para oficina"]
[null,95141709,"Conservatorio"]
[null,95141710,"Cabina telefónica"]
[null,95141711,"Cabina de peaje"]
[null,95141800,"Edificios y estructuras prefabricados de emergencia y alivio"]
[null,95141801,"Albergue"]
[null,95141802,"Carpa o salón de emergencia"]
[null,95141803,"Unidad de contenedor"]
[null,95141900,"Edificios y estructuras prefabricados médicos"]
[null,95141901,"Unidad médica"]
[null,95141902,"Unidad de laboratorio"]
[null,95141903,"Unidad odontológica"]
[null,95141904,"Unidades quirúrgicas"]

{"sheet":"DATOS","index":16,"n_rows":15,"n_cols":4,"rows_kept":15,"cut":false,"hidden":true,"merged":[]}
[]
[]
[]
[null,2011,"Enero",1]
[null,2012,"Febrero",2]
[null,2013,"Marzo",3]
[null,2014,"Abril",4]
[null,2015,"Mayo",5]
[null,2016,"Junio",6]
[null,2017,"Julio",7]
[null,2018,"Agosto",8]
[null,2019,"Septiembre",9]
[null,2021,"Octubre",10]
[null,2022,"Noviembre",11]
[null,null,"Diciembre",12]